Workbook

Sheet WMMCalculations (hidden)
B2: WGS84 Ellipsoid (meters) | E2: World Magnetic Model Gauss Coefficients for Year: | J2: 2020 | L2: Time-Dependent Coefficients | O2: Schmidt Semi-Normalized Associated Legendre Functions | S2: Field Vector Components (nT) | W2: Secular Variation of Field Components (nT/yr)
B3: Semi-Major Axis (a) | C3: 6378137 | E3: Degree (n) | F3: Order (m) | G3: gmn(t0) | H3: hmn(t0) | I3: ġmn(t0) | J3: ḣmn(t0) | L3: gmn(t) | M3: hmn(t) | O3: Pn,m(sin ϕ') | P3: Ṕmn(sin ϕ') | Q3: dṔmn(sin ϕ')/dϕ' | S3: X'(λ,ϕ',r) | T3: Y'(λ,ϕ',r) | U3: Z'(λ,ϕ',r) | W3: Ẋ'(λ,ϕ',r) | X3: Ẏ'(λ,ϕ',r) | Y3: Ż'(λ,ϕ',r)
B4: Semi-Minor Axis (b) | C4: =C3*(1-C6) -> 6356752.314 | E4: 1 | F4: 0 | G4: -29404.5 | H4: 0 | I4: 6.7 | J4: 0 | L4: =G4+($C$29-$J$2)*I4 -> -29371.67 | M4: 0 | O4: =SIN($C$17)*(2*F4+1)*1 -> 0.425465047 | P4: =IF(F4=0,O4,SQRT(2*FACT(E4-F4)/FACT(E4+F4))*O4) -> 0.425465047 | Q4: =((E4+1)*TAN($C$17)*P4)-(SQRT(((E4+1)^2)-(F4^2))*1/COS($C$17)*P6) -> 0.9049748581 | S4: =-1*($C$23/$C$19)^(E4+2)*(L4*COS(F4*$C$18)+M4*SIN(F4*$C$18))*Q4 -> 26542.06383 | T4: =($C$23/$C$19)^(E4+2)*F4*(L4*SIN(F4*$C$18)-M4*COS(F4*$C$18))*P4/COS($C$17) -> 0 | U4: =-1*(E4+1)*($C$23/$C$19)^(E4+2)*(L4*COS(F4*$C$18)+M4*SIN(F4*$C$18))*P4 -> 24956.98159 | W4: =-1*($C$23/$C$19)^(E4+2)*(I4*COS(F4*$C$18)+J4*SIN(F4*$C$18))*Q4 -> -6.054535805 | X4: =($C$23/$C$19)^(E4+2)*(F4*(I4*SIN(F4*$C$18)-J4*COS(F4*$C$18))*P4)/COS($C$17) -> 0 | Y4: =-1*(E4+1)*($C$23/$C$19)^(E4+2)*(I4*COS(F4*$C$18)+J4*SIN(F4*$C$18))*P4 -> -5.692961165
B5: (1/f) | C5: 298.2572236 | E5: 1 | F5: 1 | G5: -1450.7 | H5: 4652.9 | I5: 7.7 | J5: -25.1 | L5: -1412.97 | M5: 4529.91 | O5: =FACTDOUBLE((2*E5-1))*(1-SIN($C$17)^2)^(E5/2) -> 0.9049748581 | P5: 0.9049748581 | Q5: =((E5+1)*TAN($C$17)*P5)-(SQRT(((E5+1)^2)-(F5^2))*1/COS($C$17)*P7) -> -0.425465047 | S5: 1246.512995 | T5: -3723.944247 | U5: -5302.728994 | W5: -6.937940209 | X5: 20.52784477 | Y5: 29.51434671
B6: Flattening (f) | C6: =1/C5 -> 0.003352810665 | E6: 2 | F6: 0 | G6: -2500 | H6: 0 | I6: -11.5 | J6: 0 | L6: -2556.35 | M6: 0 | O6: =(SIN($C$17)*(2*E6-1)*O4-(E6+F6-1))/(E6-F6) -> -0.2284692406 | P6: -0.2284692406 | Q6: =((E6+1)*TAN($C$17)*P6)-(SQRT(((E6+1)^2)-(F6^2))*1/COS($C$17)*P9) -> 1.155105512 | S6: 2947.143964 | T6: 0 | U6: -1748.753867 | W6: 13.25802632 | X6: 0 | Y6: -7.866946808
B7: Eccentricity Squared (e2) | C7: =C6*(2-C6) -> 0.00669437999 | E7: 2 | F7: 1 | G7: 2982 | H7: -2991.6 | I7: -7.1 | J7: -30.2 | L7: 2947.21 | M7: -3139.58 | O7: =(SIN($C$17)*(2*E7-1)*O5)/(E7-F7) -> 1.155105512 | P7: 0.6669004781 | Q7: =((E7+1)*TAN($C$17)*P7)-(SQRT(((E7+1)^2)-(F7^2))*1/COS($C$17)*P10) -> 1.104977379 | S7: 1013.902004 | T7: 3094.165119 | U7: 1835.797938 | W7: 31.8869529 | X7: 8.271083273 | Y7: 57.73536508
E8: 2 | F8: 2 | G8: 1676.8 | H8: -734.8 | I8: -2.2 | J8: -23.9 | L8: 1666.02 | M8: -851.91 | O8: =FACTDOUBLE((2*E8-1))*(1-SIN($C$17)^2)^(E8/2) -> 2.456938481 | P8: 0.7092570468 | Q8: =((E8+1)*TAN($C$17)*P8)-(SQRT(((E8+1)^2)-(F8^2))*1/COS($C$17)*P11) -> -0.6669004781 | S8: -927.2791329 | T8: 1954.334942 | U8: 2958.519064 | W8: -14.32247048 | X8: -16.63270967 | Y8: 45.69638251
B9: Geodetic Coordinates | E9: 3 | F9: 0 | G9: 1363.9 | H9: 0 | I9: 2.8 | J9: 0 | L9: 1377.62 | M9: 0 | O9: =(SIN($C$17)*(2*E9-1)*O6-(E9+F9-1)*O4)/(E9-F9) -> -0.445652825 | P9: -0.445652825 | Q9: =((E9+1)*TAN($C$17)*P9)-(SQRT(((E9+1)^2)-(F9^2))*1/COS($C$17)*P13) -> -0.128819735 | S9: 177.035787 | T9: 0 | U9: 2449.826454 | W9: 0.3598236115 | X9: 0 | Y9: 4.979249771
B10: Latitude (ϕ) (deg) | C10: 25.32859993 | E10: 3 | F10: 1 | G10: -2381 | H10: -82.2 | I10: -6.2 | J10: 5.7 | L10: -2411.38 | M10: -54.27 | O10: =(SIN($C$17)*(2*E10-1)*O7-(E10+F10-1)*O5)/(E10-F10) -> -0.128819735 | P10: -0.05259043658 | Q10: =((E10+1)*TAN($C$17)*P10)-(SQRT(((E10+1)^2)-(F10^2))*1/COS($C$17)*P14) -> 2.15851917 | S10: 3036.067955 | T10: 113.4495421 | U10: -295.8845888 | W10: -2.558777842 | X10: 0.4833568941 | Y10: 0.2493695599
B11: Latitude (ϕ) (rad) | C11: =C10*PI()/180 -> 0.4420674637 | E11: 3 | F11: 2 | G11: 1236.2 | H11: 241.8 | I11: 3.4 | J11: -1 | L11: 1252.86 | M11: 236.9 | O11: =(SIN($C$17)*(2*E11-1)*O8/(E11-F11)) -> 5.226707232 | P11: 0.6747650022 | Q11: =((E11+1)*TAN($C$17)*P11)-(SQRT(((E11+1)^2)-(F11^2))*1/COS($C$17)*P15) -> 0.8007738485 | S11: 182.5928548 | T11: 1866.093304 | U11: 615.4410177 | W11: 1.720476289 | X11: 4.186956982 | Y11: 5.798976524
B12: Longitude (λ) (deg) | C12: 55.51720047 | E12: 3 | F12: 3 | G12: 525.7 | H12: -542.9 | I12: -12.2 | J12: 1.1 | L12: 465.92 | M12: -537.51 | O12: =FACTDOUBLE((2*E12-1))*(1-SIN($C$17)^2)^(E12/2) -> 11.11733777 | P12: 0.5859351477 | Q12: =((E12+1)*TAN($C$17)*P12)-(SQRT(((E12+1)^2)-(F12^2))*1/COS($C$17)*P16) -> -0.8264149759 | S12: -476.6395239 | T12: -803.0016147 | U12: 1351.765677 | W12: 9.993016239 | X12: -3.424881504 | Y12: -28.34052923
B13: Longitude (λ) (rad) | C13: =C12*PI()/180 -> 0.9689579397 | E13: 4 | F13: 0 | G13: 903.1 | H13: 0 | I13: -1.1 | J13: 0 | L13: 897.71 | M13: 0 | O13: =(SIN($C$17)*(2*E13-1)*O9-(E13+F13-1)*O6)/(E13-F13) -> -0.1604650448 | P13: -0.1604650448 | Q13: =((E13+1)*TAN($C$17)*P13)-(SQRT(((E13+1)^2)-(F13^2))*1/COS($C$17)*P18) -> -1.668026703 | S13: 1493.062998 | T13: 0 | U13: 718.1672224 | W13: -1.829509861 | X13: 0 | Y13: -0.8799990471
B14: Height above Ellipsoid (h) (m) | C14: 33.8328 | E14: 4 | F14: 1 | G14: 809.4 | H14: 282 | I14: -1.6 | J14: 0.2 | L14: 801.56 | M14: 282.98 | O14: =(SIN($C$17)*(2*E14-1)*O10-(E14+F14-1)*O7)/(E14-F14) -> -1.668026703 | P14: -0.5274763579 | Q14: =((E14+1)*TAN($C$17)*P14)-(SQRT(((E14+1)^2)-(F14^2))*1/COS($C$17)*P19) -> 0.7668822206 | S14: -525.3738652 | T14: -290.8837003 | U14: 1806.811304 | W14: 0.5666082964 | X14: 0.8323013863 | Y14: -1.948620483
E15: 4 | F15: 2 | G15: 86.2 | H15: -158.4 | I15: -6 | J15: 6.9 | L15: 56.8 | M15: -124.59 | O15: =(SIN($C$17)*(2*E15-1)*O11-(E15+F15-1)*O8)/(E15-F15) -> 1.640888132 | P15: 0.1223045802 | Q15: =((E15+1)*TAN($C$17)*P15)-(SQRT(((E15+1)^2)-(F15^2))*1/COS($C$17)*P20) -> 2.352893254 | S15: 320.6495729 | T15: 2.235923224 | U15: 83.33763408 | W15: -20.16164729 | X15: -0.8418380075 | Y15: -5.240063067
B16: Geocentric Coordinates | E16: 4 | F16: 3 | G16: -309.4 | H16: 199.8 | I16: 5.4 | J16: 3.7 | L16: -282.94 | M16: 217.93 | O16: =(SIN($C$17)*(2*E16-1)*O12/(E16-F16)) -> 33.11027045 | P16: 0.6595723751 | Q16: =((E16+1)*TAN($C$17)*P16)-(SQRT(((E16+1)^2)-(F16^2))*1/COS($C$17)*P21) -> 0.4726525991 | S16: -153.5746865 | T16: 318.6312081 | U16: -1071.544099 | W16: 2.069600112 | X16: 10.58336262 | Y16: 14.44032112
B17: Latitude (ϕ') (rad) | C17: =ASIN(C22/C19) -> 0.439475702 | E17: 4 | F17: 4 | G17: 47.9 | H17: -350.1 | I17: -5.5 | J17: -5.6 | L17: 20.95 | M17: -377.54 | O17: =FACTDOUBLE((2*E17-1))*(1-SIN($C$17)^2)^(E17/2) -> 70.42637817 | P17: 0.4960096097 | Q17: =((E17+1)*TAN($C$17)*P17)-(SQRT(((E17+1)^2)-(F17^2))*1/COS($C$17)*P22) -> -0.9327761982 | S17: 220.8067507 | T17: -643.3441562 | U17: -587.0768917 | W17: 7.287113713 | X17: -1.031764253 | Y17: -19.37484273
B18: Longitude (λ) (rad) | C18: =C13 -> 0.9689579397 | E18: 5 | F18: 0 | G18: -234.4 | H18: 0 | I18: -0.3 | J18: 0 | L18: -235.87 | M18: 0 | O18: =(SIN($C$17)*(2*E18-1)*O13-(E18+F18-1)*O9)/(E18-F18) -> 0.2336321779 | P18: 0.2336321779 | Q18: =((E18+1)*TAN($C$17)*P18)-(SQRT(((E18+1)^2)-(F18^2))*1/COS($C$17)*P24) -> -1.435771215 | S18: -337.5101711 | T18: 0 | U18: 329.5228466 | W18: -0.429274818 | X18: 0 | Y18: 0.4191158434
B19: Radius (r) (m) | C19: =SQRT(C21^2+C22^2) -> 6374283.767 | E19: 5 | F19: 1 | G19: 363.1 | H19: 47.7 | I19: 0.6 | J19: 0.1 | L19: 366.04 | M19: 48.19 | O19: =(SIN($C$17)*(2*E19-1)*O14-(E19+F19-1)*O10)/(E19-F19) -> -1.435771215 | P19: -0.3707145338 | Q19: -1.983994868 | S19: 488.309729 | T19: -112.0425236 | U19: 547.4515578 | W19: 0.8346615985 | X19: -0.178800315 | Y19: 0.935751973
B20: Radius of Curvature (Rc) | C20: =C3/SQRT(1-(C7*SIN(C11)^2)) -> 6382047.871 | E20: 5 | F20: 2 | G20: 187.8 | H20: 208.4 | I20: -0.7 | J20: 2.5 | L20: 184.37 | M20: 220.65 | O20: =(SIN($C$17)*(2*E20-1)*O15-(E20+F20-1)*O11)/(E20-F20) -> -8.358992827 | P20: -0.4078770855 | Q20: 1.578118111 | S20: -219.8298472 | T20: -225.7424413 | U20: 340.9005578 | W20: -4.065109807 | X20: -0.2191694799 | Y20: 6.303958349
B21: Point of Interest (p) | C21: =(C20+C14)*COS(C11) -> 5768566.547 | E21: 5 | F21: 3 | G21: -140.7 | H21: -121.3 | I21: 0.1 | J21: -0.9 | L21: -140.21 | M21: -125.71 | O21: =(SIN($C$17)*(2*E21-1)*O16-(E21+F21-1)*O12)/(E21-F21) -> 24.4820003 | P21: 0.2438465598 | Q21: 2.342107674 | S21: -250.059409 | T21: -124.7676551 | U21: -156.2083433 | W21: 0.7155932295 | X21: -0.6864405553 | Y21: 0.4470203035
B22: North Polar Axis (z) (m) | C22: =(C20*(1-C7)+C14)*SIN(C11) -> 2712034.943 | E22: 5 | F22: 4 | G22: -151.2 | H22: 32.2 | I22: 1.2 | J22: 3 | L22: -145.32 | M22: 46.9 | O22: =(SIN($C$17)*(2*E22-1)*O17/(E22-F22)) -> 269.6756607 | P22: 0.6331042557 | Q22: 0.1560376711 | S22: -11.8891931 | T22: 368.6419207 | U22: -289.4339051 | W22: 0.4511153548 | X22: 3.968543144 | Y22: 10.98208076
B23: Geomagnetic Reference Radius (a) (m) | C23: 6371200 | E23: 5 | F23: 5 | G23: 13.7 | H23: 99.1 | I23: 1 | J23: 0.5 | L23: 18.6 | M23: 101.55 | O23: =FACTDOUBLE((2*E23-1))*(1-SIN($C$17)^2)^(E23/2) -> 573.6069143 | P23: 0.4258413786 | Q23: -1.001025722 | S23: -97.97405359 | T23: -74.66682938 | U23: 250.0719319 | W23: -0.3627518146 | X23: -2.479076831 | Y23: 0.925898682
E24: 6 | F24: 0 | G24: 65.9 | H24: 0 | I24: -0.6 | J24: 0 | L24: 62.96 | M24: 0 | O24: =(SIN($C$17)*(2*E24-1)*O18-(E24+F24-1)*O13)/(E24-F24) -> 0.3159584676 | P24: 0.3159584676 | Q24: =((E24+1)*TAN($C$17)*P24)-(SQRT(((E24+1)^2)-(F24^2))*1/COS($C$17)*P31) -> 0.6577170146 | S24: -41.24986742 | T24: 0 | U24: -138.7111968 | W24: 0.393105471 | X24: 0 | Y24: 1.321898318
B25: Decimal Year | E25: 6 | F25: 1 | G25: 65.6 | H25: -19.1 | I25: -0.4 | J25: 0.1 | L25: 63.64 | M25: -18.61 | O25: =(SIN($C$17)*(2*E25-1)*O19-(E25+F25-1)*O14)/(E25-F25) -> 0.6577170146 | P25: 0.1435256193 | Q25: -2.828330027 | S25: 58.29259822 | T25: 9.952078467 | U25: -20.70669556 | W25: -0.405801431 | X25: -0.0610344461 | Y25: 0.1441487761
B26: Decimal: | E26: 6 | F26: 2 | G26: 73 | H26: 25 | I26: 0.5 | J26: -1.8 | L26: 75.45 | M26: 16.18 | O26: =(SIN($C$17)*(2*E26-1)*O20-(E26+F26-1)*O15)/(E26-F26) -> -12.65181724 | P26: -0.436529167 | Q26: -1.318195526 | S26: -15.73004989 | T26: -73.25725129 | U26: -36.46377044 | W26: -2.441741969 | X26: 0.1723932895 | Y26: -5.660193021
B27: Today: | E27: 6 | F27: 3 | G27: -121.5 | H27: 52.7 | I27: 1.4 | J27: -1.4 | L27: -114.64 | M27: 45.84 | O27: =(SIN($C$17)*(2*E27-1)*O21-(E27+F27-1)*O16)/(E27-F27) -> -50.10119136 | P27: -0.288109222 | Q27: 2.212819833 | S27: -269.2682005 | T27: -17.05021271 | U27: 245.4111058 | W27: 3.719064479 | X27: 0.9856583866 | Y27: -3.389556304
B28: User Input: | E28: 6 | F28: 4 | G28: -36.2 | H28: -64.4 | I28: -1.4 | J28: 0.9 | L28: -43.06 | M28: -59.99 | O28: =(SIN($C$17)*(2*E28-1)*O22-(E28+F28-1)*O17)/(E28-F28) -> 314.1379204 | P28: 0.3298138154 | Q28: 2.198274112 | S28: -158.0142281 | T28: -22.77238427 | U28: -165.9515191 | W28: -0.9553067769 | X28: 2.332351476 | Y28: -1.003293265
B29: Year (t) | C29: 2024.9 | E29: 6 | F29: 5 | G29: 13.5 | H29: 9 | I29: 0 | J29: 0.1 | L29: 13.5 | M29: 9.49 | O29: =(SIN($C$17)*(2*E29-1)*O23/(E29-F29)) -> 2684.546621 | P29: 0.600908143 | Q29: -0.1344085904 | S29: -1.020872211 | T29: -48.39973634 | U29: 31.94850091 | W29: -0.01327174514 | X29: -0.04365973333 | Y29: 0.4153432301
E30: 6 | F30: 6 | G30: -64.7 | H30: 68.1 | I30: 0.8 | J30: 1 | L30: -60.78 | M30: 73 | O30: =FACTDOUBLE((2*E30-1))*(1-SIN($C$17)^2)^(E30/2) -> 5710.098195 | P30: 0.3689691813 | Q30: -1.040803434 | S30: -90.43755177 | T30: -91.64179739 | U30: 224.4234389 | W30: 0.2706762177 | X30: -3.055117038 | Y30: -0.6716909783
B31: Magnetic Field Elements | E31: 7 | F31: 0 | G31: 80.6 | H31: 0 | I31: -0.1 | J31: 0 | L31: 80.11 | M31: 0 | O31: =(SIN($C$17)*(2*E31-1)*O24-(E31+F31-1)*O18)/(E31-F31) -> 0.04939823256 | P31: 0.04939823256 | Q31: =((E31+1)*TAN($C$17)*P31)-(SQRT(((E31+1)^2)-(F31^2))*1/COS($C$17)*P39) -> 2.281376886 | S31: -181.9668909 | T31: 0 | U31: -31.52076398 | W31: 0.2271462875 | X31: 0 | Y31: 0.03934685305
B32: North Component: X (nT) | C32: =S94*COS(C17-C11)-U94*SIN(C17-C11) -> 34039.81472 | E32: 7 | F32: 1 | G32: -76.8 | H32: -51.4 | I32: -0.3 | J32: 0.5 | L32: -78.27 | M32: -48.95 | O32: 2.281376886 | P32: 0.4311397062 | Q32: -0.320085653 | S32: -26.98150372 | T32: -17.45771377 | U32: 290.742118 | W32: 0.07721986554 | X32: -0.2515750911 | Y32: -0.8320910312
B33: East Component: Y (nT) | C33: =T94 -> 1398.630208 | E33: 7 | F33: 2 | G33: -8.3 | H33: -16.8 | I33: -0.1 | J33: 0.6 | L33: -8.79 | M33: -13.86 | O33: -0.6211671216 | P33: -0.01597469462 | Q33: -3.183237556 | S33: -31.00140037 | T33: 0.4632527434 | U33: -1.244614378 | W33: 1.888685783 | X33: -0.004289114068 | Y33: 0.07582513862
B34: Down (Vertical) Component: Z (nT) | C34: =S94*SIN(C17-C11)+U94*COS(C17-C11) -> 28854.1388 | E34: 7 | F34: 3 | G34: 56.5 | H34: 2.3 | I34: 0.7 | J34: -0.7 | L34: 59.93 | M34: -1.13 | O34: -124.3624943 | P34: -0.452302019 | Q34: -0.5249779154 | S34: -30.60362692 | T34: -19.1667696 | U34: -210.9358407 | W34: -0.4409491768 | X34: 0.7733171426 | Y34: -3.039247131
B35: Horizontal Intensity: H (nT) | C35: =SQRT(C32^2+C33^2) -> 34068.53611 | E35: 7 | F35: 4 | G35: 15.8 | H35: 23.5 | I35: 0.2 | J35: -0.2 | L35: 16.78 | M35: 22.52 | O35: -319.7484804 | P35: -0.1753158788 | Q35: 2.670540019 | S35: 73.24138473 | T35: -4.223774438 | U35: -38.46526212 | W35: 0.03845791822 | X35: 0.2179363904 | Y35: -0.02019751416
B36: Total Intensity: F (nT) | C36: =SQRT(C35^2+C34^2) -> 44645.56505 | E36: 7 | F36: 5 | G36: 6.4 | H36: -2.2 | I36: -0.5 | J36: -1.2 | L36: =G36+($C$29-$J$2)*I36 -> 3.95 | M36: -8.08 | O36: 4269.336874 | P36: 0.3901413101 | Q36: 1.969000811 | S36: -16.7240376 | T36: -6.113909037 | U36: -26.50984358 | W36: -2.202540067 | X36: 1.403682862 | Y36: -3.491321536
B37: Inclination: I (rad) | C37: =ATAN(C34/C35) -> 0.7027171622 | E37: 7 | F37: 6 | G37: -7.2 | H37: -27.2 | I37: -0.8 | J37: 0.2 | L37: -11.12 | M37: -26.22 | O37: =(SIN($C$17)*(2*E37-1)*O30/(E37-F37)) -> 31582.81356 | P37: 0.5660120228 | Q37: -0.3927081709 | S37: 0.76028746 | T37: 106.1654283 | U37: -8.766445417 | W37: -0.3143399665 | X37: 0.6857843763 | Y37: 3.624476666
B38: Inclination: I (deg) | C38: =C37*180/PI() -> 40.26272758 | E38: 7 | F38: 7 | G38: 9.8 | H38: -1.9 | I38: 1 | J38: 0.3 | L38: 14.7 | M38: -0.43 | O38: =FACTDOUBLE((2*E38-1))*(1-SIN($C$17)^2)^(E38/2) -> 67177.43895 | P38: 0.3217616384 | Q38: -1.058911533 | S38: 13.38749127 | T38: 18.38397993 | U38: -32.54346368 | W38: 1.076992112 | X38: 0.5344111336 | Y38: -2.618044931
B39: Declination: D (rad) | C39: =ATAN2(C32,C33) -> 0.04106496895 | E39: 8 | F39: 0 | G39: 23.6 | H39: 0 | I39: -0.1 | J39: 0 | L39: 23.11 | M39: 0 | O39: =(SIN($C$17)*(2*E39-1)*O31-(E39+F39-1)*O24)/(E39-F39) -> -0.2370563691 | P39: -0.2370563691 | Q39: =((E39+1)*TAN($C$17)*P39)-(SQRT(((E39+1)^2)-(F39^2))*1/COS($C$17)*P48) -> 1.328279392 | S39: -30.54835517 | T39: 0 | U39: 49.06734217 | W39: 0.1321867381 | X39: 0 | Y39: -0.2123208229
B40: Declination: D (deg) | C40: =C39*180/PI() -> 2.352849407 | E40: 8 | F40: 1 | G40: 9.8 | H40: 8.4 | I40: 0.1 | J40: -0.3 | L40: 10.29 | M40: 6.93 | O40: 1.328279392 | P40: 0.2213798987 | Q40: 2.948756016 | S40: -33.85893917 | T40: 1.109748787 | U40: -22.87784962 | W40: 0.5595339424 | X40: 0.06141553333 | Y40: 0.3780665817
B41: Grid Variation: GV (deg) | C41: =IF(C10>55,C40-C12,IF(C10<-55,C40+C12,C40)) -> 2.352849407 | E41: 8 | F41: 2 | G41: -17.5 | H41: -15.3 | I41: -0.1 | J41: 0.7 | L41: -17.99 | M41: -11.87 | O41: 18.31701361 | P41: 0.3648836451 | Q41: -1.50910419 | S41: -6.941290723 | T41: -16.89405408 | U41: 15.10490216 | W41: 1.035126545 | X41: 0.1267258653 | Y41: -2.252532823
E42: 8 | F42: 3 | G42: -0.4 | H42: 12.8 | I42: 0.5 | J42: -0.2 | L42: 2.05 | M42: 11.82 | O42: -58.53330078 | P42: -0.1435260647 | Q42: -3.166760858 | S42: 2.379940864 | T42: -5.668976212 | U42: 0.9707875191 | W42: -1.679117265 | X42: 0.03704195295 | Y42: -0.6849187344
B43: Secular Variation of Magnetic Field Elements | E43: 8 | F43: 4 | G43: -21.1 | H43: -11.8 | I43: -0.1 | J43: 0.5 | L43: -21.59 | M43: -9.35 | O43: -1374.03604 | P43: -0.4349609421 | Q43: 0.2937776457 | S43: -6.517233331 | T43: -14.3970296 | U43: 86.84349512 | W43: 0.07624068208 | X43: -0.8383347112 | Y43: -1.01592301
B44: North Component: Ẋ (nT/yr) | C44: =W94*COS(C17-C11)-Y94*(SIN(C17-C11)) -> 12.07167485 | E44: 8 | F44: 5 | G44: 15.3 | H44: 14.9 | I44: 0.4 | J44: -0.3 | L44: 17.26 | M44: 13.43 | O44: -1655.918414 | P44: -0.07269246573 | Q44: 2.965669713 | S44: 32.56491797 | T44: 7.54686828 | U44: -7.18388078 | W44: -1.033505085 | X44: 0.1426466693 | Y44: 0.227993122
B45: East Component: Ẏ (nT/yr) | C45: =X94 -> 25.80486058 | E45: 8 | F45: 6 | G45: 13.7 | H45: 3.6 | I45: 0.5 | J45: -0.5 | L45: 16.15 | M45: 1.15 | O45: 63664.73616 | P45: 0.4312456857 | Q45: 1.687576579 | S45: -23.31501786 | T45: -23.70647442 | U45: -53.62157124 | W45: -1.128751437 | X45: 0.6251806489 | Y45: -2.595984526
B46: Down (Vertical) Component: Ż (nT/yr) | C46: =W94*SIN(C17-C11)+Y94*COS(C17-C11) -> 84.56754544 | E46: 8 | F46: 7 | G46: -16.5 | H46: -6.9 | I46: 0 | J46: 0.4 | L46: -16.5 | M46: -4.94 | O46: =(SIN($C$17)*(2*E46-1)*O38/(E46-F46)) -> 428724.7833 | P46: 0.5302049546 | Q46: -0.6171353112 | S46: -10.34864739 | T46: -14.55890907 | U46: 80.01833013 | W46: 0.1176734307 | X46: -1.43306368 | Y46: -0.9098804005
B47: Horizontal Intensity: Ḣ (nT/yr) | C47: =(C32*C44+C33*C45)/C35 -> 13.12087586 | E47: 8 | F47: 8 | G47: -0.3 | H47: 2.8 | I47: 0.4 | J47: 0.1 | L47: 1.66 | M47: 3.29 | O47: =FACTDOUBLE((2*E47-1))*(1-SIN($C$17)^2)^(E47/2) -> 911908.3991 | P47: 0.2819398191 | Q47: -1.060409909 | S47: 3.632676062 | T47: 3.262316907 | U47: -8.692642538 | W47: 0.1480920227 | X47: 0.9616067126 | Y47: -0.3543698898
B48: Total Intensity: Ḟ (nT/yr) | C48: =(C32*C44+C33*C45+C34*C46)/C36 -> 64.66785052 | E48: 9 | F48: 0 | G48: 5 | H48: 0 | I48: -0.1 | J48: 0 | L48: 4.51 | M48: 0 | O48: =(SIN($C$17)*(2*E48-1)*O39-(E48+F48-1)*O31)/(E48-F48) -> -0.2344213608 | P48: -0.2344213608 | Q48: =((E48+1)*TAN($C$17)*P48)-(SQRT(((E48+1)^2)-(F48^2))*1/COS($C$17)*P58) -> -1.365634032 | S48: 6.126312822 | T48: 0 | U48: 10.51627709 | W48: -0.1358384218 | X48: 0 | Y48: -0.2331768757
B49: Inclination: İ (rad/yr) | C49: =(C35*C46-C34*C47)/C36^2 -> 0.001255502538 | E49: 9 | F49: 1 | G49: 8.2 | H49: -23.3 | I49: -0.2 | J49: -0.3 | L49: 7.22 | M49: -24.77 | O49: -1.365634032 | P49: -0.2035767018 | Q49: 3.049383001 | S49: 49.53252257 | T49: -4.469617777 | U49: -33.06789464 | W49: 1.093529183 | X49: -0.001116198503 | Y49: -0.730039698
B50: Inclination: İ (deg/yr) | C50: =C49*180/PI() -> 0.07193499659 | E50: 9 | F50: 2 | G50: 2.9 | H50: 11.1 | I50: 0 | J50: 0.2 | L50: 2.9 | M50: 12.08 | O50: 19.8138436 | P50: 0.3148626437 | Q50: 2.205777904 | S50: -22.45443806 | T50: 4.874575516 | U50: -32.05247327 | W50: -0.4095732906 | X50: 0.04968676861 | Y50: -0.5846433081
B51: Declination: Ḋ (rad/yr) | C51: =(C32*C45-C33*C44)/C35^2 -> 0.0007422544409 | E51: 9 | F51: 3 | G51: -1.4 | H51: 9.8 | I51: 0.4 | J51: -0.4 | L51: 0.56 | M51: 7.84 | O51: 157.4369312 | P51: 0.2729728033 | Q51: -2.500757344 | S51: 3.180743794 | T51: 6.980540036 | U51: -3.471974408 | W51: -1.199114616 | X51: -0.2664342991 | Y51: 1.308906195
B52: Declination: Ḋ (deg/yr) | C52: =C51*180/PI() -> 0.04252804679 | E52: 9 | F52: 4 | G52: -1.1 | H52: -5.1 | I52: -0.3 | J52: 0.4 | L52: -2.57 | M52: -3.14 | O52: -1220.258295 | P52: -0.2395616145 | Q52: -2.861340688 | S52: 11.41786365 | T52: 0.6414174215 | U52: 9.55944135 | W52: -0.1289498794 | X52: -0.5244555599 | Y52: -0.1079614232
E53: 9 | F53: 5 | G53: -13.3 | H53: -6.2 | I53: 0 | J53: 0.1 | L53: -13.3 | M53: -5.71 | O53: -16869.62031 | P53: -0.3958418892 | Q53: 1.073810372 | S53: -4.170152474 | T53: -30.31972211 | U53: 15.37255624 | W53: 0.1058761491 | X53: 0.02871866684 | Y53: -0.3902943755
B54: Uncertainty | E54: 9 | F54: 6 | G54: 1.1 | H54: 7.8 | I54: 0.3 | J54: 0 | L54: 2.57 | M54: 7.8 | O54: 6107.216525 | P54: 0.01850052851 | Q54: 3.11836514 | S54: 3.835752357 | T54: -0.9905616931 | U54: 0.227566185 | W54: -0.8298796179 | X54: -0.01655832803 | Y54: -0.04923481003
B55: North Component: δX (nT) | C55: 138 | E55: 9 | F55: 7 | G55: 8.9 | H55: 0.4 | I55: 0 | J55: -0.2 | L55: 8.9 | M55: -0.58 | O55: 1046632.194 | P55: 0.4576297904 | Q55: 1.377875658 | S55: -10.3267762 | T55: 16.80309249 | U55: -34.29801809 | W55: 0.1313009584 | X55: 0.6181528058 | Y55: 0.436086012
B56: East Component: δY (nT) | C56: 89 | E56: 9 | F56: 8 | G56: -9.3 | H56: -1.5 | I56: 0 | J56: 0.5 | L56: -9.3 | M56: 0.95 | O56: =(SIN($C$17)*(2*E56-1)*O47/(E56-F56)) -> 6595747.549 | P56: 0.4945893552 | Q56: -0.8082066464 | S56: -0.003913043902 | T56: -40.6558979 | U56: 0.0239462255 | W56: 0.3998558246 | X56: -0.2221012688 | Y56: -2.446953825
B57: Down (Vertical) Component: δZ (nT) | C57: 165 | E57: 9 | F57: 9 | G57: -11.9 | H57: 9.7 | I57: -0.4 | J57: 0.2 | L57: -13.86 | M57: 10.68 | O57: =FACTDOUBLE((2*E57-1))*(1-SIN($C$17)^2)^(E57/2) -> 14029320.96 | P57: 0.2479597208 | Q57: -1.049182461 | S57: 18.23989202 | T57: -2.043233828 | U57: -43.10745464 | W57: 0.4532841563 | X57: -0.2612922575 | Y57: -1.071274226
B58: Horizontal Intensity: δH (nT) | C58: 133 | E58: 10 | F58: 0 | G58: -1.9 | H58: 0 | I58: 0 | J58: 0 | L58: -1.9 | M58: 0 | O58: =(SIN($C$17)*(2*E58-1)*O48-(E58+F58-1)*O39)/(E58-F58) -> 0.02384835111 | P58: 0.02384835111 | Q58: =((E58+1)*TAN($C$17)*P58)-(SQRT(((E58+1)^2)-(F58^2))*1/COS($C$17)*P69) -> -2.702483925 | S58: -5.104989599 | T58: 0 | U58: 0.4955446416 | W58: 0 | X58: 0 | Y58: 0
B59: Total Intensity: δF (nT) | C59: 152 | E59: 10 | F59: 1 | G59: -6.2 | H59: 3.4 | I59: 0 | J59: 0 | L59: -6.2 | M59: 3.4 | O59: -2.702483925 | P59: -0.3644028581 | Q59: -0.5250486379 | S59: -0.3693615805 | T59: 2.816586413 | U59: -2.819854133 | W59: 0 | X59: 0 | Y59: 0
B60: Inclination: δI (deg) | C60: 0.22 | E60: 10 | F60: 2 | G60: -0.1 | H60: -0.2 | I60: 0 | J60: 0.1 | L60: -0.1 | M60: 0.29 | O60: -5.164411206 | P60: -0.06700814452 | Q60: 3.723979145 | S60: -1.135045364 | T60: -0.001583135237 | U60: 0.2246602596 | W60: -0.3455707177 | X60: -0.005284538391 | Y60: 0.06839903464
B61: Declination: δD (deg) | C61: =SQRT(0.23^2+(5430/C35)^2) -> 0.2798275374 | E61: 10 | F61: 3 | G61: 1.7 | H61: 3.5 | I61: 0.2 | J61: -0.3 | L61: 2.68 | M61: 2.03 | O61: 282.1562749 | P61: 0.3589879086 | Q61: 1.189675598 | S61: 2.524538644 | T61: 3.073398492 | U61: 8.379651852 | W61: 0.3125951196 | X61: -0.290181331 | Y61: 1.03759088
E62: 10 | F62: 4 | G62: -0.9 | H62: 4.8 | I62: -0.1 | J62: 0.1 | L62: -1.39 | M62: 5.29 | O62: 1333.016785 | P62: 0.1713218234 | Q62: -3.231617889 | S62: -8.072638673 | T62: 3.657631007 | U62: 4.707614412 | W62: 0.02323518979 | X62: 0.1063312032 | Y62: -0.01354975972
E63: 10 | F63: 5 | G63: 0.6 | H63: -8.6 | I63: -0.2 | J63: -0.2 | L63: -0.38 | M63: -9.58 | O63: -22637.67688 | P63: -0.3066815659 | Q63: -2.346218165 | S63: 22.03403104 | T63: -2.765068658 | U63: 31.68151355 | W63: 0.400855437 | X63: -0.3784516346 | Y63: 0.5763678436
E64: 10 | F64: 6 | G64: -0.9 | H64: -0.1 | I64: 0 | J64: 0.1 | L64: -0.9 | M64: 0.39 | O64: -226400.3266 | P64: -0.342916096 | Q64: 1.775731495 | S64: 1.728500312 | T64: -0.134120496 | U64: -3.671746764 | W64: 0.07986628767 | X64: 0.2015855181 | Y64: -0.1696550364
E65: 10 | F65: 7 | G65: 1.9 | H65: -4.2 | I65: -0.1 | J65: 0 | L65: 1.41 | M65: -4.2 | O65: 533735.4541 | P65: 0.09803528546 | Q65: 3.15039086 | S65: 2.424607679 | T65: 3.288732256 | U65: 0.8299504034 | W65: 0.2749440457 | X65: -0.0361128415 | Y65: 0.09411416274
E66: 10 | F66: 8 | G66: 1.4 | H66: -3.4 | I66: -0.2 | J66: -0.1 | L66: 0.42 | M66: -3.89 | O66: 18908249 | P66: 0.472618588 | Q66: 1.057166644 | S66: 4.022096313 | T66: 3.385848954 | U66: 19.77937197 | W66: 0.1260255728 | X66: -0.7839826783 | Y66: 0.6197531058
E67: 10 | F67: 9 | G67: -2.4 | H67: -0.1 | I67: -0.1 | J67: 0.2 | L67: -2.89 | M67: 0.88 | O67: =(SIN($C$17)*(2*E67-1)*O57/(E67-F67)) -> 113410728.3 | P67: 0.4598559676 | Q67: -0.9676457152 | S67: 2.667111043 | T67: -5.457350716 | U67: -13.94245436 | W67: 0.1978865139 | X67: 0.3987201837 | Y67: -1.0344615
E68: 10 | F68: 10 | G68: -3.9 | H68: -8.8 | I68: 0 | J68: 0 | L68: =G68+($C$29-$J$2)*I68 -> -3.9 | M68: -8.8 | O68: =FACTDOUBLE((2*E68-1))*(1-SIN($C$17)^2)^(E68/2) -> 241227472.1 | P68: =IF(F68=0,O68,SQRT(2*FACT(E68-F68)/FACT(E68+F68))*O68) -> 0.2187154463 | Q68: -1.028269203 | S68: =-1*($C$23/$C$19)^(E68+2)*(L68*COS(F68*$C$18)+M68*SIN(F68*$C$18))*Q68 -> 6.202571128 | T68: =($C$23/$C$19)^(E68+2)*F68*(L68*SIN(F68*$C$18)-M68*COS(F68*$C$18))*P68/COS($C$17) -> -17.95524078 | U68: =-1*(E68+1)*($C$23/$C$19)^(E68+2)*(L68*COS(F68*$C$18)+M68*SIN(F68*$C$18))*P68 -> -14.5123273 | W68: =-1*($C$23/$C$19)^(E68+2)*(I68*COS(F68*$C$18)+J68*SIN(F68*$C$18))*Q68 -> 0 | X68: =($C$23/$C$19)^(E68+2)*(F68*(I68*SIN(F68*$C$18)-J68*COS(F68*$C$18))*P68)/COS($C$17) -> 0 | Y68: =-1*(E68+1)*($C$23/$C$19)^(E68+2)*(I68*COS(F68*$C$18)+J68*SIN(F68*$C$18))*P68 -> 0
E69: 11 | F69: 0 | G69: 3 | H69: 0 | I69: 0 | J69: 0 | L69: 3 | M69: 0 | O69: =(SIN($C$17)*(2*E69-1)*O58-(E69+F69-1)*O48)/(E69-F69) -> 0.2324811859 | P69: 0.2324811859 | Q69: =((E69+1)*TAN($C$17)*P69)-(SQRT(((E69+1)^2)-(F69^2))*1/COS($C$17)*P81) -> -0.9124087105 | S69: 2.720061126 | T69: 0 | U69: -8.316839097 | W69: 0 | X69: 0 | Y69: 0
E70: 11 | F70: 1 | G70: -1.4 | H70: 0 | I70: -0.1 | J70: 0 | L70: -1.89 | M70: 0 | O70: -0.9124087105 | P70: -0.1123097486 | Q70: -3.830173491 | S70: -4.072738278 | T70: 0.1921294873 | U70: -1.433067864 | W70: -0.2154887978 | X70: 0.01016558134 | Y70: -0.07582369651
E71: 11 | F71: 2 | G71: -2.5 | H71: 2.6 | I71: 0 | J71: 0.1 | L71: -2.5 | M71: 3.09 | O71: -31.54543653 | P71: -0.3405594202 | Q71: 0.9603068155 | S71: -3.608550762 | T71: 0.9156947016 | U71: 15.35666646 | W71: -0.08906961008 | X71: -0.0268449258 | Y71: 0.3790475411
E72: 11 | F72: 3 | G72: 2.4 | H72: -0.5 | I72: 0 | J72: 0 | L72: 2.4 | M72: -0.5 | O72: 59.29002291 | P72: 0.0570233466 | Q72: 3.90319691 | S72: 9.504711514 | T72: 0.01350191657 | U72: 1.666297053 | W72: 0 | X72: 0 | Y72: 0
E73: 11 | F73: 4 | G73: -0.9 | H73: -0.4 | I73: 0 | J73: 0.2 | L73: -0.9 | M73: 0.58 | O73: 4141.972737 | P73: 0.3636534369 | Q73: 0.05921291148 | S73: -0.01644585102 | T73: 1.650906128 | U73: -1.212017466 | W73: 0.007885037968 | X73: 0.2371441839 | Y73: 0.5811072793
E74: 11 | F74: 5 | G74: 0.3 | H74: 0.6 | I74: -0.1 | J74: 0 | L74: -0.19 | M74: 0.6 | O74: 8463.659876 | P74: 0.07021495979 | Q74: -3.683491859 | S74: -2.268826423 | T74: 0.04206970938 | U74: 0.5189821903 | W74: -0.04832239365 | X74: 0.03821319709 | Y74: 0.01105349507
E75: 11 | F75: 6 | G75: -0.7 | H75: -0.2 | I75: 0 | J75: 0 | L75: -0.7 | M75: -0.2 | O75: -424109.8804 | P75: -0.3483772234 | Q75: -1.691853126 | S75: -0.8974461568 | T75: -1.136233195 | U75: -2.217566965 | W75: 0 | X75: 0 | Y75: 0
E76: 11 | F76: 7 | G76: -0.1 | H76: -1.7 | I76: 0 | J76: 0.1 | L76: -0.1 | M76: -1.21 | O76: -3255986.478 | P76: -0.2819244236 | Q76: 2.377188529 | S76: 1.576531423 | T76: -2.197902147 | U76: -2.243638857 | W76: -0.1131543329 | X76: 0.1902234055 | Y76: 0.161035457
E77: 11 | F77: 8 | G77: 1.4 | H77: -1.6 | I77: -0.1 | J77: 0 | L77: 0.91 | M77: -1.6 | O77: 16739108.05 | P77: 0.1662553483 | Q77: 3.083066706 | S77: 4.591570607 | T77: 1.560768051 | U77: 2.971222786 | W77: 0.03129287091 | X77: -0.1452846707 | Y77: 0.02024973567
E78: 11 | F78: 9 | G78: -0.6 | H78: -3 | I78: -0.1 | J78: -0.1 | L78: -1.09 | M78: -3.49 | O78: 373370610 | P78: 0.4787489302 | Q78: 0.7379036042 | S78: 1.047590068 | T78: -15.92365197 | U78: 8.15606735 | W78: -0.008415570442 | X78: -0.6669019698 | Y78: -0.06551986449
E79: 11 | F79: 10 | G79: 0.2 | H79: -2 | I79: -0.1 | J79: 0 | L79: -0.29 | M79: -2 | O79: =(SIN($C$17)*(2*E79-1)*O68/(E79-F79)) -> 2155311013 | P79: 0.4264351449 | Q79: -1.097804698 | S79: 0.8763660059 | T79: -8.683318705 | U79: -4.085024582 | W79: 0.105289583 | X79: 0.1225511645 | Y79: -0.4907887025
E80: 11 | F80: 11 | G80: 3.1 | H80: -2.6 | I80: -0.1 | J80: 0 | L80: 2.61 | M80: -2.6 | O80: =FACTDOUBLE((2*E80-1))*(1-SIN($C$17)^2)^(E80/2) -> 4584400745 | P80: 0.1933812112 | Q80: -1.000079062 | S80: 1.580764185 | T80: -7.761814142 | U80: -3.667991113 | W80: 0.03286444314 | X80: 0.220439888 | Y80: -0.07625836068
E81: 12 | F81: 0 | G81: -2 | H81: 0 | I81: 0 | J81: 0 | L81: -2 | M81: 0 | O81: =(SIN($C$17)*(2*E81-1)*O69-(E81+F81-1)*O58)/(E81-F81) -> 0.1677215306 | P81: 0.1677215306 | Q81: =((E81+1)*TAN($C$17)*P81)-(SQRT(((E81+1)^2)-(F81^2))*1/COS($C$17)*P94) -> 2.136477523 | S81: 4.244105347 | T81: 0 | U81: 4.331317265 | W81: 0 | X81: 0 | Y81: 0
E82: 12 | F82: 1 | G82: -0.1 | H82: -1.2 | I82: 0 | J82: 0 | L82: -0.1 | M82: -1.2 | O82: 2.136477523 | P82: 0.2419084434 | Q82: -2.848822021 | S82: -2.959101563 | T82: 0.1584959849 | U82: 3.266547162 | W82: 0 | X82: 0 | Y82: 0
E83: 12 | F83: 2 | G83: 0.5 | H83: 0.5 | I83: 0 | J83: 0 | L83: 0.5 | M83: 0.5 | O83: -24.1556709 | P83: -0.220399925 | Q83: -3.209242557 | S83: 0.9155299124 | T83: -0.3126035618 | U83: 0.8173814741 | W83: 0 | X83: 0 | Y83: 0
E84: 12 | F84: 3 | G84: 1.3 | H84: 1.3 | I84: 0 | J84: -0.1 | L84: 1.3 | M84: 0.81 | O84: -374.4437449 | P84: -0.2789544468 | Q84: 2.305893692 | S84: 2.464326425 | T84: -1.001276811 | U84: -3.875570074 | W84: 0.0532659828 | X84: 0.08933077322 | Y84: -0.08376976639
E85: 12 | F85: 4 | G85: -1.2 | H85: -1.8 | I85: 0 | J85: 0.1 | L85: -1.2 | M85: -1.31 | O85: 2567.104327 | P85: 0.1593708839 | Q85: 3.647159988 | S85: -6.406593171 | T85: -0.1178512054 | U85: -3.639357049 | W85: 0.2427180293 | X85: 0.05193900339 | Y85: 0.1378794544
E86: 12 | F86: 5 | G86: 0.7 | H86: 0.1 | I86: 0 | J86: 0 | L86: 0.7 | M86: 0.1 | O86: 63575.09049 | P86: 0.3384410202 | Q86: -1.062994296 | S86: -0.007089626193 | T86: -1.313226799 | U86: 0.02934396195 | W86: 0 | X86: 0 | Y86: 0
E87: 12 | F87: 6 | G87: 0.3 | H87: 0.7 | I87: 0 | J87: 0 | L87: 0.3 | M87: 0.7 | O87: -50234.14049 | P87: -0.02382372744 | Q87: -3.866193979 | S87: -0.1886350597 | T87: 0.1192314911 | U87: -0.0151109524 | W87: 0 | X87: 0 | Y87: 0
E88: 12 | F88: 7 | G88: 0.5 | H88: -0.1 | I88: 0 | J88: 0 | L88: 0.5 | M88: -0.1 | O88: -8293866.459 | P88: -0.3683963755 | Q88: -0.9580177783 | S88: 0.3720613666 | T88: -0.926315218 | U88: 1.859943318 | W88: 0 | X88: 0 | Y88: 0
E89: 12 | F89: 8 | G89: -0.2 | H89: 0.6 | I89: 0 | J89: 0.1 | L89: -0.2 | M89: 1.09 | O89: -48863226.72 | P89: -0.2170403359 | Q89: 2.867648686 | S89: -3.030211383 | T89: 0.5913087578 | U89: 2.981472345 | W89: -0.2833390837 | X89: 0.01946463473 | Y89: 0.2787817533
E90: 12 | F90: 9 | G90: -0.5 | H90: 0.2 | I90: 0 | J90: 0 | L90: -0.5 | M90: 0.2 | O90: 461825582.8 | P90: 0.223818847 | Q90: 2.936243643 | S90: -1.488998679 | T90: -0.3786400906 | U90: -1.475510245 | W90: 0 | X90: 0 | Y90: 0
E91: 12 | F91: 10 | G91: 0.1 | H91: -0.9 | I91: 0 | J91: 0 | L91: 0.1 | M91: -0.9 | O91: 8012720812 | P91: 0.4779986943 | Q91: 0.4289510359 | S91: -0.05923501555 | T91: -4.694343638 | U91: -0.8581058218 | W91: 0 | X91: 0 | Y91: 0
E92: 12 | F92: 11 | G92: -1.1 | H92: 0 | I92: 0 | J92: 0 | L92: -1.1 | M92: 0 | O92: =(SIN($C$17)*(2*E92-1)*O80/(E92-F92)) -> 4.48615524e+10 | P92: 0.3945863718 | Q92: -1.201324868 | S92: 0.4340451829 | T92: 4.945389673 | U92: -1.853360518 | W92: 0 | X92: 0 | Y92: 0
E93: 12 | F93: 12 | G93: -0.3 | H93: 0.5 | I93: -0.1 | J93: -0.1 | L93: -0.79 | M93: 0.01 | O93: =FACTDOUBLE((2*E93-1))*(1-SIN($C$17)^2)^(E93/2) -> 9.54216505e+10 | P93: 0.1713204029 | Q93: -0.9665352705 | S93: -0.4557344595 | T93: 1.424991205 | U93: 1.050138548 | W93: 0.02075525176 | X93: 0.3153490193 | Y93: -0.04782585451
E94: 13 | F94: 0 | G94: - | H94: - | I94: - | J94: - | O94: =(SIN($C$17)*(2*E94-1)*O81-(E94+F94-1)*O69)/(E94-F94) -> -0.07736792366 | P94: -0.07736792366 | Q94: - | S94: =SUM(S4:S93) -> 33964.91743 | T94: =SUM(T4:T93) -> 1398.630208 | U94: =SUM(U4:U93) -> 28942.26488 | W94: =SUM(W4:W93) -> 11.85245563 | X94: =SUM(X4:X93) -> 25.80486058 | Y94: =SUM(Y4:Y93) -> 84.59854828
E95: 13 | F95: 1 | G95: - | H95: - | I95: - | J95: - | O95: 2.882185499 | P95: 0.3021351355 | Q95: -
E96: 13 | F96: 2 | G96: - | H96: - | I96: - | J96: - | O96: 16.79102455 | P96: 0.1311958954 | Q96: -
E97: 13 | F97: 3 | G97: - | H97: - | I97: - | J97: - | O97: -487.2168482 | P97: -0.286951841 | Q97: -
E98: 13 | F98: 4 | G98: - | H98: - | I98: - | J98: - | O98: -4329.581636 | P98: -0.1955726811 | Q98: -
E99: 13 | F99: 5 | G99: - | H99: - | I99: - | J99: - | O99: 66542.78172 | P99: 0.2361596526 | Q99: -
E100: 13 | F100: 6 | G100: - | H100: - | I100: - | J100: - | O100: 1014236.582 | P100: 0.2919592412 | Q100: -
E101: 13 | F101: 7 | G101: - | H101: - | I101: - | J101: - | O101: -4392502.332 | P101: -0.10686388 | Q101: -
E102: 13 | F102: 8 | G102: - | H102: - | I102: - | J102: - | O102: -170904407.5 | P102: -0.3704136036 | Q102: -
E103: 13 | F103: 9 | G103: - | H103: - | I103: - | J103: - | O103: -732129181.7 | P103: -0.1512951618 | Q103: -
E104: 13 | F104: 10 | G104: - | H104: - | I104: - | J104: - | O104: 1.260382454e+10 | P104: 0.271547468 | Q104: -
E105: 13 | F105: 11 | G105: - | H105: - | I105: - | J105: - | O105: 1.858671727e+11 | P105: 0.4719324642 | Q105: -
E106: 13 | F106: 12 | G106: - | H106: - | I106: - | J106: - | O106: =(SIN($C$17)*(2*E106-1)*O93/(E106-F106)) -> 1.014964426e+12 | P106: 0.3644542163 | Q106: -

Sheet CountryNavaidStats
E3: ALL | F3: 26
I5: ="Number of Countries on screen =" & SUBTOTAL(103,B10:B246) -> Number of Countries on screen =224
I6: ="Number of NAVAIDS on screen =" & SUBTOTAL(109,F10:F246) -> Number of NAVAIDS on screen =4083
G8: Country Categorization of True north vs Magnetic north differential | K8: Five and Ten year Mag VAR changes
B9: Country 3 letter Ident | C9: Country Name | D9: World Region | E9: Sub region | F9: Total # of ALL NAVAID types in the country | G9: Locations between 0 and 3 degrees | H9: Locations between 3 and 5 degree | I9: Locations between 5 and 10 degrees | J9: Locations 10 degrees and greater | K9: # of sites where 5 year Mag var change in excess of 1 degree | L9: # of sites where 10 year Mag var change in excess of 1 degree
B10: USA | C10: United States of America | D10: Americas | E10: Northern America | F10: 1154 | G10: 235 | H10: 162 | I10: 367 | J10: 390 | K10: 37 | L10: 216
B11: JPN | C11: Japan | D11: Asia | E11: Eastern Asia | F11: 158 | G11: 1 | H11: 1 | I11: 151 | J11: 5 | K11: 0 | L11: 0
B12: CHN | C12: China | D12: Asia | E12: Eastern Asia | F12: 136 | G12: 29 | H12: 44 | I12: 53 | J12: 10 | K12: 0 | L12: 32
B13: CAN | C13: Canada | D13: Americas | E13: Northern America | F13: 120 | G13: 6 | H13: 5 | I13: 21 | J13: 88 | K13: 13 | L13: 61
B14: FRA | C14: France | D14: Europe | E14: Western Europe | F14: 115 | G14: 100 | H14: 15 | I14: 0 | J14: 0 | K14: 0 | L14: 114
B15: AUS | C15: Australia | D15: Oceania | E15: Australia and New Zealand | F15: 98 | G15: 22 | H15: 4 | I15: 27 | J15: 45 | K15: 0 | L15: 0
B16: ESP | C16: Spain | D16: Europe | E16: Southern Europe | F16: 93 | G16: 85 | H16: 6 | I16: 0 | J16: 2 | K16: 0 | L16: 90
B17: DEU | C17: Germany | D17: Europe | E17: Western Europe | F17: 86 | G17: 1 | H17: 76 | I17: 9 | J17: 0 | K17: 0 | L17: 86
B18: BRA | C18: Brazil | D18: Americas | E18: Latin America and the Caribbean | F18: 84 | G18: 0 | H18: 0 | I18: 1 | J18: 83 | K18: 2 | L18: 40
B19: ITA | C19: Italy | D19: Europe | E19: Southern Europe | F19: 82 | G19: 0 | H19: 82 | I19: 0 | J19: 0 | K19: 0 | L19: 82
B20: MEX | C20: Mexico | D20: Americas | E20: Latin America and the Caribbean | F20: 79 | G20: 19 | H20: 34 | I20: 23 | J20: 3 | K20: 0 | L20: 76
B21: IND | C21: India | D21: Asia | E21: Southern Asia | F21: 78 | G21: 78 | H21: 0 | I21: 0 | J21: 0 | K21: 0 | L21: 0
B22: TUR | C22: Turkey | D22: Asia | E22: Western Asia | F22: 76 | G22: 0 | H22: 0 | I22: 76 | J22: 0 | K22: 0 | L22: 6
B23: GBR | C23: United Kingdom of Great Britain and Northern Ireland | D23: Europe | E23: Northern Europe | F23: 73 | G23: 73 | H23: 0 | I23: 0 | J23: 0 | K23: 40 | L23: 73
B24: GRC | C24: Greece | D24: Europe | E24: Southern Europe | F24: 69 | G24: 0 | H24: 14 | I24: 55 | J24: 0 | K24: 0 | L24: 46
B25: IRN | C25: Iran (Islamic Republic of) | D25: Asia | E25: Southern Asia | F25: 61 | G25: 17 | H25: 29 | I25: 15 | J25: 0 | K25: 0 | L25: 2
B26: ARG | C26: Argentina | D26: Americas | E26: Latin America and the Caribbean | F26: 57 | G26: 8 | H26: 6 | I26: 27 | J26: 16 | K26: 11 | L26: 54
B27: IDN | C27: Indonesia | D27: Asia | E27: South-eastern Asia | F27: 53 | G27: 52 | H27: 1 | I27: 0 | J27: 0 | K27: 0 | L27: 5
B28: NOR | C28: Norway | D28: Europe | E28: Northern Europe | F28: 52 | G28: 10 | H28: 14 | I28: 17 | J28: 11 | K28: 52 | L28: 52
B29: THA | C29: Thailand | D29: Asia | E29: South-eastern Asia | F29: 50 | G29: 50 | H29: 0 | I29: 0 | J29: 0 | K29: 0 | L29: 0
B30: ZAF | C30: South Africa | D30: Africa | E30: Sub-Saharan Africa | F30: 46 | G30: 0 | H30: 0 | I30: 0 | J30: 46 | K30: 0 | L30: 44
B31: COL | C31: Colombia | D31: Americas | E31: Latin America and the Caribbean | F31: 46 | G31: 0 | H31: 2 | I31: 38 | J31: 6 | K31: 0 | L31: 46
B32: KOR | C32: Korea, Republic of | D32: Asia | E32: Eastern Asia | F32: 44 | G32: 0 | H32: 0 | I32: 44 | J32: 0 | K32: 0 | L32: 0
B33: SAU | C33: Saudi Arabia | D33: Asia | E33: Western Asia | F33: 42 | G33: 7 | H33: 34 | I33: 1 | J33: 0 | K33: 0 | L33: 0
B34: VEN | C34: Venezuela (Bolivarian Republic of) | D34: Americas | E34: Latin America and the Caribbean | F34: 37 | G34: 0 | H34: 0 | I34: 1 | J34: 36 | K34: 0 | L34: 31
B35: DZA | C35: Algeria | D35: Africa | E35: Northern Africa | F35: 36 | G35: 36 | H35: 0 | I35: 0 | J35: 0 | K35: 0 | L35: 36
B36: SWE | C36: Sweden | D36: Europe | E36: Northern Europe | F36: 31 | G36: 0 | H36: 0 | I36: 27 | J36: 4 | K36: 24 | L36: 31
B37: RUS | C37: Russian Federation | D37: Europe | E37: Eastern Europe | F37: 30 | G37: 1 | H37: 5 | I37: 3 | J37: 21 | K37: 0 | L37: 19
B38: PHL | C38: Philippines | D38: Asia | E38: South-eastern Asia | F38: 29 | G38: 25 | H38: 4 | I38: 0 | J38: 0 | K38: 0 | L38: 18
B39: CHL | C39: Chile | D39: Americas | E39: Latin America and the Caribbean | F39: 28 | G39: 10 | H39: 3 | I39: 10 | J39: 5 | K39: 8 | L39: 24
B40: MYS | C40: Malaysia | D40: Asia | E40: South-eastern Asia | F40: 28 | G40: 28 | H40: 0 | I40: 0 | J40: 0 | K40: 0 | L40: 0
B41: PER | C41: Peru | D41: Americas | E41: Latin America and the Caribbean | F41: 27 | G41: 6 | H41: 6 | I41: 15 | J41: 0 | K41: 16 | L41: 27
B42: FIN | C42: Finland | D42: Europe | E42: Northern Europe | F42: 24 | G42: 0 | H42: 0 | I42: 3 | J42: 21 | K42: 16 | L42: 24
B43: PRT | C43: Portugal | D43: Europe | E43: Southern Europe | F43: 24 | G43: 14 | H43: 3 | I43: 7 | J43: 0 | K43: 0 | L43: 23
B44: POL | C44: Poland | D44: Europe | E44: Eastern Europe | F44: 22 | G44: 0 | H44: 0 | I44: 22 | J44: 0 | K44: 0 | L44: 22
B45: NGA | C45: Nigeria | D45: Africa | E45: Sub-Saharan Africa | F45: 21 | G45: 21 | H45: 0 | I45: 0 | J45: 0 | K45: 0 | L45: 21
B46: NZL | C46: New Zealand | D46: Oceania | E46: Australia and New Zealand | F46: 20 | G46: 0 | H46: 0 | I46: 0 | J46: 20 | K46: 0 | L46: 10
B47: EGY | C47: Egypt | D47: Africa | E47: Northern Africa | F47: 20 | G47: 0 | H47: 17 | I47: 3 | J47: 0 | K47: 0 | L47: 0
B48: NLD | C48: Netherlands | D48: Europe | E48: Western Europe | F48: 19 | G48: 14 | H48: 3 | I48: 1 | J48: 1 | K48: 0 | L48: 17
B49: MAR | C49: Morocco | D49: Africa | E49: Northern Africa | F49: 19 | G49: 19 | H49: 0 | I49: 0 | J49: 0 | K49: 0 | L49: 19
B50: BEL | C50: Belgium | D50: Europe | E50: Western Europe | F50: 18 | G50: 18 | H50: 0 | I50: 0 | J50: 0 | K50: 0 | L50: 18
B51: TWN | C51: Taiwan, Province of China | D51: Asia | E51: Eastern Asia | F51: 17 | G51: 0 | H51: 12 | I51: 5 | J51: 0 | K51: 0 | L51: 0
B52: ROU | C52: Romania | D52: Europe | E52: Eastern Europe | F52: 15 | G52: 0 | H52: 0 | I52: 15 | J52: 0 | K52: 0 | L52: 15
B53: ECU | C53: Ecuador | D53: Americas | E53: Latin America and the Caribbean | F53: 15 | G53: 3 | H53: 11 | I53: 1 | J53: 0 | K53: 0 | L53: 15
B54: KAZ | C54: Kazakhstan | D54: Asia | E54: Central Asia | F54: 14 | G54: 0 | H54: 0 | I54: 11 | J54: 3 | K54: 0 | L54: 0
B55: DNK | C55: Denmark | D55: Europe | E55: Northern Europe | F55: 14 | G55: 0 | H55: 11 | I55: 3 | J55: 0 | K55: 4 | L55: 14
B56: CUB | C56: Cuba | D56: Americas | E56: Latin America and the Caribbean | F56: 14 | G56: 0 | H56: 0 | I56: 14 | J56: 0 | K56: 0 | L56: 6
B57: COD | C57: Congo, Democratic Republic of the | D57: Africa | E57: Sub-Saharan Africa | F57: 14 | G57: 14 | H57: 0 | I57: 0 | J57: 0 | K57: 0 | L57: 3
B58: PAK | C58: Pakistan | D58: Asia | E58: Southern Asia | F58: 13 | G58: 12 | H58: 1 | I58: 0 | J58: 0 | K58: 0 | L58: 0
B59: LBY | C59: Libya | D59: Africa | E59: Northern Africa | F59: 13 | G59: 2 | H59: 11 | I59: 0 | J59: 0 | K59: 0 | L59: 10
B60: VNM | C60: Viet Nam | D60: Asia | E60: South-eastern Asia | F60: 13 | G60: 13 | H60: 0 | I60: 0 | J60: 0 | K60: 0 | L60: 0
B61: CHE | C61: Switzerland | D61: Europe | E61: Western Europe | F61: 12 | G61: 2 | H61: 10 | I61: 0 | J61: 0 | K61: 0 | L61: 12
B62: IRQ | C62: Iraq | D62: Asia | E62: Western Asia | F62: 12 | G62: 0 | H62: 6 | I62: 6 | J62: 0 | K62: 0 | L62: 0
B63: TUN | C63: Tunisia | D63: Africa | E63: Northern Africa | F63: 12 | G63: 3 | H63: 9 | I63: 0 | J63: 0 | K63: 0 | L63: 12
B64: AUT | C64: Austria | D64: Europe | E64: Western Europe | F64: 11 | G64: 0 | H64: 5 | I64: 6 | J64: 0 | K64: 0 | L64: 11
B65: SRB | C65: Serbia | D65: Europe | E65: Southern Europe | F65: 11 | G65: 0 | H65: 0 | I65: 11 | J65: 0 | K65: 0 | L65: 11
B66: HUN | C66: Hungary | D66: Europe | E66: Eastern Europe | F66: 11 | G66: 0 | H66: 0 | I66: 11 | J66: 0 | K66: 0 | L66: 11
B67: KEN | C67: Kenya | D67: Africa | E67: Sub-Saharan Africa | F67: 11 | G67: 11 | H67: 0 | I67: 0 | J67: 0 | K67: 0 | L67: 0
B68: CZE | C68: Czechia | D68: Europe | E68: Eastern Europe | F68: 10 | G68: 0 | H68: 2 | I68: 8 | J68: 0 | K68: 0 | L68: 10
B69: BOL | C69: Bolivia (Plurinational State of) | D69: Americas | E69: Latin America and the Caribbean | F69: 9 | G69: 0 | H69: 0 | I69: 2 | J69: 7 | K69: 9 | L69: 9
B70: DOM | C70: Dominican Republic | D70: Americas | E70: Latin America and the Caribbean | F70: 9 | G70: 0 | H70: 0 | I70: 0 | J70: 9 | K70: 0 | L70: 0
B71: UKR | C71: Ukraine | D71: Europe | E71: Eastern Europe | F71: 9 | G71: 0 | H71: 0 | I71: 9 | J71: 0 | K71: 0 | L71: 7
B72: SDN | C72: Sudan | D72: Africa | E72: Northern Africa | F72: 9 | G72: 0 | H72: 9 | I72: 0 | J72: 0 | K72: 0 | L72: 0
B73: OMN | C73: Oman | D73: Asia | E73: Western Asia | F73: 9 | G73: 9 | H73: 0 | I73: 0 | J73: 0 | K73: 0 | L73: 0
B74: BGR | C74: Bulgaria | D74: Europe | E74: Eastern Europe | F74: 8 | G74: 0 | H74: 0 | I74: 8 | J74: 0 | K74: 0 | L74: 8
B75: BIH | C75: Bosnia and Herzegovina | D75: Europe | E75: Southern Europe | F75: 8 | G75: 1 | H75: 0 | I75: 7 | J75: 0 | K75: 0 | L75: 7
B76: MMR | C76: Myanmar | D76: Asia | E76: South-eastern Asia | F76: 8 | G76: 8 | H76: 0 | I76: 0 | J76: 0 | K76: 0 | L76: 0
B77: ISR | C77: Israel | D77: Asia | E77: Western Asia | F77: 8 | G77: 0 | H77: 3 | I77: 5 | J77: 0 | K77: 0 | L77: 0
B78: ARE | C78: United Arab Emirates | D78: Asia | E78: Western Asia | F78: 8 | G78: 8 | H78: 0 | I78: 0 | J78: 0 | K78: 0 | L78: 0
B79: PAN | C79: Panama | D79: Americas | E79: Latin America and the Caribbean | F79: 7 | G79: 0 | H79: 3 | I79: 4 | J79: 0 | K79: 0 | L79: 7
B80: IRL | C80: Ireland | D80: Europe | E80: Northern Europe | F80: 7 | G80: 6 | H80: 0 | I80: 0 | J80: 1 | K80: 6 | L80: 6
B81: PNG | C81: Papua New Guinea | D81: Oceania | E81: Melanesia | F81: 7 | G81: 0 | H81: 2 | I81: 5 | J81: 0 | K81: 0 | L81: 0
B82: HRV | C82: Croatia | D82: Europe | E82: Southern Europe | F82: 7 | G82: 0 | H82: 4 | I82: 3 | J82: 0 | K82: 0 | L82: 7
B83: CIV | C83: Côte d'Ivoire | D83: Africa | E83: Sub-Saharan Africa | F83: 7 | G83: 1 | H83: 6 | I83: 0 | J83: 0 | K83: 0 | L83: 7
B84: SYR | C84: Syrian Arab Republic | D84: Asia | E84: Western Asia | F84: 7 | G84: 0 | H84: 0 | I84: 7 | J84: 0 | K84: 0 | L84: 0
B85: CMR | C85: Cameroon | D85: Africa | E85: Sub-Saharan Africa | F85: 7 | G85: 7 | H85: 0 | I85: 0 | J85: 0 | K85: 0 | L85: 7
B86: BGD | C86: Bangladesh | D86: Asia | E86: Southern Asia | F86: 7 | G86: 7 | H86: 0 | I86: 0 | J86: 0 | K86: 0 | L86: 0
B87: URY | C87: Uruguay | D87: Americas | E87: Latin America and the Caribbean | F87: 6 | G87: 0 | H87: 0 | I87: 0 | J87: 6 | K87: 0 | L87: 6
B88: MOZ | C88: Mozambique | D88: Africa | E88: Sub-Saharan Africa | F88: 6 | G88: 0 | H88: 0 | I88: 3 | J88: 3 | K88: 0 | L88: 3
B89: AGO | C89: Angola | D89: Africa | E89: Sub-Saharan Africa | F89: 6 | G89: 3 | H89: 1 | I89: 2 | J89: 0 | K89: 0 | L89: 5
B90: ZWE | C90: Zimbabwe | D90: Africa | E90: Sub-Saharan Africa | F90: 6 | G90: 0 | H90: 0 | I90: 3 | J90: 3 | K90: 0 | L90: 1
B91: MLI | C91: Mali | D91: Africa | E91: Sub-Saharan Africa | F91: 6 | G91: 4 | H91: 2 | I91: 0 | J91: 0 | K91: 0 | L91: 6
B92: GAB | C92: Gabon | D92: Africa | E92: Sub-Saharan Africa | F92: 6 | G92: 6 | H92: 0 | I92: 0 | J92: 0 | K92: 0 | L92: 6
B93: LVA | C93: Latvia | D93: Europe | E93: Northern Europe | F93: 6 | G93: 0 | H93: 0 | I93: 6 | J93: 0 | K93: 0 | L93: 6
B94: XJY | C94: Antarctica | F94: 6 | G94: 0 | H94: 0 | I94: 0 | J94: 6 | K94: 0 | L94: 4
B95: NPL | C95: Nepal | D95: Asia | E95: Southern Asia | F95: 6 | G95: 6 | H95: 0 | I95: 0 | J95: 0 | K95: 0 | L95: 0
B96: LTU | C96: Lithuania | D96: Europe | E96: Northern Europe | F96: 5 | G96: 0 | H96: 0 | I96: 5 | J96: 0 | K96: 0 | L96: 5
B97: BWA | C97: Botswana | D97: Africa | E97: Sub-Saharan Africa | F97: 5 | G97: 0 | H97: 0 | I97: 2 | J97: 3 | K97: 0 | L97: 1
B98: BHS | C98: Bahamas | D98: Americas | E98: Latin America and the Caribbean | F98: 5 | G98: 0 | H98: 0 | I98: 5 | J98: 0 | K98: 0 | L98: 0
B99: PRI | C99: Puerto Rico | D99: Americas | E99: Latin America and the Caribbean | F99: 5 | G99: 0 | H99: 0 | I99: 0 | J99: 5 | K99: 0 | L99: 0
B100: SVK | C100: Slovakia | D100: Europe | E100: Eastern Europe | F100: 5 | G100: 0 | H100: 0 | I100: 5 | J100: 0 | K100: 0 | L100: 5
B101: UZB | C101: Uzbekistan | D101: Asia | E101: Central Asia | F101: 5 | G101: 0 | H101: 1 | I101: 4 | J101: 0 | K101: 0 | L101: 0
B102: AFG | C102: Afghanistan | D102: Asia | E102: Southern Asia | F102: 5 | G102: 1 | H102: 3 | I102: 1 | J102: 0 | K102: 0 | L102: 0
B103: GTM | C103: Guatemala | D103: Americas | E103: Latin America and the Caribbean | F103: 5 | G103: 5 | H103: 0 | I103: 0 | J103: 0 | K103: 0 | L103: 5
B104: HND | C104: Honduras | D104: Americas | E104: Latin America and the Caribbean | F104: 5 | G104: 5 | H104: 0 | I104: 0 | J104: 0 | K104: 0 | L104: 5
B105: LAO | C105: Lao People's Democratic Republic | D105: Asia | E105: South-eastern Asia | F105: 5 | G105: 5 | H105: 0 | I105: 0 | J105: 0 | K105: 0 | L105: 0
B106: YEM | C106: Yemen | D106: Asia | E106: Western Asia | F106: 5 | G106: 5 | H106: 0 | I106: 0 | J106: 0 | K106: 0 | L106: 0
B107: SGP | C107: Singapore | D107: Asia | E107: South-eastern Asia | F107: 5 | G107: 5 | H107: 0 | I107: 0 | J107: 0 | K107: 0 | L107: 0
B108: PYF | C108: French Polynesia | D108: Oceania | E108: Polynesia | F108: 4 | G108: 0 | H108: 0 | I108: 0 | J108: 4 | K108: 0 | L108: 0
B109: MDG | C109: Madagascar | D109: Africa | E109: Sub-Saharan Africa | F109: 4 | G109: 0 | H109: 0 | I109: 1 | J109: 3 | K109: 0 | L109: 0
B110: NAM | C110: Namibia | D110: Africa | E110: Sub-Saharan Africa | F110: 4 | G110: 0 | H110: 0 | I110: 1 | J110: 3 | K110: 0 | L110: 0
B111: EST | C111: Estonia | D111: Europe | E111: Northern Europe | F111: 4 | G111: 0 | H111: 0 | I111: 2 | J111: 2 | K111: 0 | L111: 4
B112: ZMB | C112: Zambia | D112: Africa | E112: Sub-Saharan Africa | F112: 4 | G112: 0 | H112: 2 | I112: 2 | J112: 0 | K112: 0 | L112: 0
B113: BLR | C113: Belarus | D113: Europe | E113: Eastern Europe | F113: 4 | G113: 0 | H113: 0 | I113: 3 | J113: 1 | K113: 0 | L113: 4
B114: MRT | C114: Mauritania | D114: Africa | E114: Sub-Saharan Africa | F114: 4 | G114: 2 | H114: 2 | I114: 0 | J114: 0 | K114: 0 | L114: 4
B115: MWI | C115: Malawi | D115: Africa | E115: Sub-Saharan Africa | F115: 4 | G115: 1 | H115: 1 | I115: 2 | J115: 0 | K115: 0 | L115: 0
B116: GHA | C116: Ghana | D116: Africa | E116: Sub-Saharan Africa | F116: 4 | G116: 4 | H116: 0 | I116: 0 | J116: 0 | K116: 0 | L116: 4
B117: CAF | C117: Central African Republic | D117: Africa | E117: Sub-Saharan Africa | F117: 4 | G117: 4 | H117: 0 | I117: 0 | J117: 0 | K117: 0 | L117: 2
B118: CYP | C118: Cyprus | D118: Asia | E118: Western Asia | F118: 4 | G118: 0 | H118: 0 | I118: 4 | J118: 0 | K118: 0 | L118: 0
B119: JOR | C119: Jordan | D119: Asia | E119: Western Asia | F119: 4 | G119: 0 | H119: 1 | I119: 3 | J119: 0 | K119: 0 | L119: 0
B120: ETH | C120: Ethiopia | D120: Africa | E120: Sub-Saharan Africa | F120: 4 | G120: 4 | H120: 0 | I120: 0 | J120: 0 | K120: 0 | L120: 0
B121: HKG | C121: Hong Kong | D121: Asia | E121: Eastern Asia | F121: 4 | G121: 0 | H121: 4 | I121: 0 | J121: 0 | K121: 0 | L121: 0
B122: NER | C122: Niger | D122: Africa | E122: Sub-Saharan Africa | F122: 4 | G122: 4 | H122: 0 | I122: 0 | J122: 0 | K122: 0 | L122: 3
B123: ISL | C123: Iceland | D123: Europe | E123: Northern Europe | F123: 3 | G123: 0 | H123: 0 | I123: 1 | J123: 2 | K123: 3 | L123: 3
B124: FJI | C124: Fiji | D124: Oceania | E124: Melanesia | F124: 3 | G124: 0 | H124: 0 | I124: 0 | J124: 3 | K124: 0 | L124: 0
B125: NCL | C125: New Caledonia | D125: Oceania | E125: Melanesia | F125: 3 | G125: 0 | H125: 0 | I125: 0 | J125: 3 | K125: 0 | L125: 0
B126: SEN | C126: Senegal | D126: Africa | E126: Sub-Saharan Africa | F126: 3 | G126: 0 | H126: 1 | I126: 2 | J126: 0 | K126: 0 | L126: 3
B127: TZA | C127: Tanzania, United Republic of | D127: Africa | E127: Sub-Saharan Africa | F127: 3 | G127: 3 | H127: 0 | I127: 0 | J127: 0 | K127: 0 | L127: 0
B128: TKM | C128: Turkmenistan | D128: Asia | E128: Central Asia | F128: 3 | G128: 0 | H128: 0 | I128: 3 | J128: 0 | K128: 0 | L128: 0
B129: HTI | C129: Haiti | D129: Americas | E129: Latin America and the Caribbean | F129: 3 | G129: 0 | H129: 0 | I129: 0 | J129: 3 | K129: 0 | L129: 0
B130: CRI | C130: Costa Rica | D130: Americas | E130: Latin America and the Caribbean | F130: 3 | G130: 2 | H130: 1 | I130: 0 | J130: 0 | K130: 0 | L130: 3
B131: ESH | C131: Western Sahara | D131: Africa | E131: Northern Africa | F131: 3 | G131: 2 | H131: 1 | I131: 0 | J131: 0 | K131: 0 | L131: 3
B132: NIC | C132: Nicaragua | D132: Americas | E132: Latin America and the Caribbean | F132: 3 | G132: 1 | H132: 2 | I132: 0 | J132: 0 | K132: 0 | L132: 3
B133: MKD | C133: North Macedonia | D133: Europe | E133: Southern Europe | F133: 3 | G133: 0 | H133: 0 | I133: 3 | J133: 0 | K133: 0 | L133: 3
B134: TCD | C134: Chad | D134: Africa | E134: Sub-Saharan Africa | F134: 3 | G134: 2 | H134: 1 | I134: 0 | J134: 0 | K134: 0 | L134: 2
B135: COG | C135: Congo | D135: Africa | E135: Sub-Saharan Africa | F135: 3 | G135: 3 | H135: 0 | I135: 0 | J135: 0 | K135: 0 | L135: 3
B136: KWT | C136: Kuwait | D136: Asia | E136: Western Asia | F136: 3 | G136: 0 | H136: 3 | I136: 0 | J136: 0 | K136: 0 | L136: 0
B137: PRY | C137: Paraguay | D137: Americas | E137: Latin America and the Caribbean | F137: 2 | G137: 0 | H137: 0 | I137: 0 | J137: 2 | K137: 0 | L137: 2
B138: GIN | C138: Guinea | D138: Africa | E138: Sub-Saharan Africa | F138: 2 | G138: 0 | H138: 1 | I138: 1 | J138: 0 | K138: 0 | L138: 2
B139: CPV | C139: Cabo Verde | D139: Africa | E139: Sub-Saharan Africa | F139: 2 | G139: 0 | H139: 0 | I139: 2 | J139: 0 | K139: 0 | L139: 2
B140: TCA | C140: Turks and Caicos Islands | D140: Americas | E140: Latin America and the Caribbean | F140: 2 | G140: 0 | H140: 0 | I140: 0 | J140: 2 | K140: 0 | L140: 0
B141: SVN | C141: Slovenia | D141: Europe | E141: Southern Europe | F141: 2 | G141: 0 | H141: 2 | I141: 0 | J141: 0 | K141: 0 | L141: 2
B142: MHL | C142: Marshall Islands | D142: Oceania | E142: Micronesia | F142: 2 | G142: 0 | H142: 0 | I142: 2 | J142: 0 | K142: 0 | L142: 0
B143: GEO | C143: Georgia | D143: Asia | E143: Western Asia | F143: 2 | G143: 0 | H143: 0 | I143: 2 | J143: 0 | K143: 0 | L143: 0
B144: BFA | C144: Burkina Faso | D144: Africa | E144: Sub-Saharan Africa | F144: 2 | G144: 2 | H144: 0 | I144: 0 | J144: 0 | K144: 0 | L144: 2
B145: JAM | C145: Jamaica | D145: Americas | E145: Latin America and the Caribbean | F145: 2 | G145: 0 | H145: 0 | I145: 2 | J145: 0 | K145: 0 | L145: 2
B146: REU | C146: Réunion | D146: Africa | E146: Sub-Saharan Africa | F146: 2 | G146: 0 | H146: 0 | I146: 0 | J146: 2 | K146: 0 | L146: 0
B147: GUM | C147: Guam | D147: Oceania | E147: Micronesia | F147: 2 | G147: 2 | H147: 0 | I147: 0 | J147: 0 | K147: 0 | L147: 0
B148: MDV | C148: Maldives | D148: Asia | E148: Southern Asia | F148: 2 | G148: 1 | H148: 1 | I148: 0 | J148: 0 | K148: 0 | L148: 0
B149: LBN | C149: Lebanon | D149: Asia | E149: Western Asia | F149: 2 | G149: 0 | H149: 0 | I149: 2 | J149: 0 | K149: 0 | L149: 0
B150: MUS | C150: Mauritius | D150: Africa | E150: Sub-Saharan Africa | F150: 2 | G150: 0 | H150: 0 | I150: 0 | J150: 2 | K150: 0 | L150: 0
B151: VIR | C151: Virgin Islands (U.S.) | D151: Americas | E151: Latin America and the Caribbean | F151: 2 | G151: 0 | H151: 0 | I151: 0 | J151: 2 | K151: 0 | L151: 0
B152: BEN | C152: Benin | D152: Africa | E152: Sub-Saharan Africa | F152: 2 | G152: 2 | H152: 0 | I152: 0 | J152: 0 | K152: 0 | L152: 2
B153: KGZ | C153: Kyrgyzstan | D153: Asia | E153: Central Asia | F153: 2 | G153: 0 | H153: 0 | I153: 2 | J153: 0 | K153: 0 | L153: 0
B154: QAT | C154: Qatar | D154: Asia | E154: Western Asia | F154: 2 | G154: 2 | H154: 0 | I154: 0 | J154: 0 | K154: 0 | L154: 0
B155: TGO | C155: Togo | D155: Africa | E155: Sub-Saharan Africa | F155: 2 | G155: 2 | H155: 0 | I155: 0 | J155: 0 | K155: 0 | L155: 2
B156: ABW | C156: Aruba | D156: Americas | E156: Latin America and the Caribbean | F156: 2 | G156: 0 | H156: 0 | I156: 0 | J156: 2 | K156: 0 | L156: 2
B157: ARM | C157: Armenia | D157: Asia | E157: Western Asia | F157: 2 | G157: 0 | H157: 0 | I157: 2 | J157: 0 | K157: 0 | L157: 0
B158: BHR | C158: Bahrain | D158: Asia | E158: Western Asia | F158: 2 | G158: 1 | H158: 1 | I158: 0 | J158: 0 | K158: 0 | L158: 0
B159: DJI | C159: Djibouti | D159: Africa | E159: Sub-Saharan Africa | F159: 2 | G159: 2 | H159: 0 | I159: 0 | J159: 0 | K159: 0 | L159: 0
B160: FLK | C160: Falkland Islands (Malvinas) | D160: Americas | E160: Latin America and the Caribbean | F160: 2 | G160: 2 | H160: 0 | I160: 0 | J160: 0 | K160: 0 | L160: 0
B161: KHM | C161: Cambodia | D161: Asia | E161: South-eastern Asia | F161: 2 | G161: 2 | H161: 0 | I161: 0 | J161: 0 | K161: 0 | L161: 0
B162: LUX | C162: Luxembourg | D162: Europe | E162: Western Europe | F162: 2 | G162: 2 | H162: 0 | I162: 0 | J162: 0 | K162: 0 | L162: 2
B163: MAC | C163: Macao | D163: Asia | E163: Eastern Asia | F163: 2 | G163: 0 | H163: 2 | I163: 0 | J163: 0 | K163: 0 | L163: 0
B164: SLV | C164: El Salvador | D164: Americas | E164: Latin America and the Caribbean | F164: 2 | G164: 2 | H164: 0 | I164: 0 | J164: 0 | K164: 0 | L164: 2
B165: SYC | C165: Seychelles | D165: Africa | E165: Sub-Saharan Africa | F165: 2 | G165: 0 | H165: 0 | I165: 2 | J165: 0 | K165: 0 | L165: 0
B166: SLB | C166: Solomon Islands | D166: Oceania | E166: Melanesia | F166: 1 | G166: 0 | H166: 0 | I166: 1 | J166: 0 | K166: 0 | L166: 0
B167: GUY | C167: Guyana | D167: Americas | E167: Latin America and the Caribbean | F167: 1 | G167: 0 | H167: 0 | I167: 0 | J167: 1 | K167: 0 | L167: 0
B168: LSO | C168: Lesotho | D168: Africa | E168: Sub-Saharan Africa | F168: 1 | G168: 0 | H168: 0 | I168: 0 | J168: 1 | K168: 0 | L168: 1
B169: GRL | C169: Greenland | D169: Americas | E169: Northern America | F169: 1 | G169: 0 | H169: 0 | I169: 0 | J169: 1 | K169: 1 | L169: 1
B170: VUT | C170: Vanuatu | D170: Oceania | E170: Melanesia | F170: 1 | G170: 0 | H170: 0 | I170: 0 | J170: 1 | K170: 0 | L170: 0
B171: COK | C171: Cook Islands | D171: Oceania | E171: Polynesia | F171: 1 | G171: 0 | H171: 0 | I171: 0 | J171: 1 | K171: 0 | L171: 0
B172: GUF | C172: French Guiana | D172: Americas | E172: Latin America and the Caribbean | F172: 1 | G172: 0 | H172: 0 | I172: 0 | J172: 1 | K172: 0 | L172: 0
B173: GLP | C173: Guadeloupe | D173: Americas | E173: Latin America and the Caribbean | F173: 1 | G173: 0 | H173: 0 | I173: 0 | J173: 1 | K173: 0 | L173: 0
B174: MNG | C174: Mongolia | D174: Asia | E174: Eastern Asia | F174: 1 | G174: 0 | H174: 0 | I174: 1 | J174: 0 | K174: 0 | L174: 1
B175: AZE | C175: Azerbaijan | D175: Asia | E175: Western Asia | F175: 1 | G175: 0 | H175: 0 | I175: 1 | J175: 0 | K175: 0 | L175: 0
B176: TON | C176: Tonga | D176: Oceania | E176: Polynesia | F176: 1 | G176: 0 | H176: 0 | I176: 0 | J176: 1 | K176: 0 | L176: 0
B177: SLE | C177: Sierra Leone | D177: Africa | E177: Sub-Saharan Africa | F177: 1 | G177: 0 | H177: 0 | I177: 1 | J177: 0 | K177: 0 | L177: 1
B178: SUR | C178: Suriname | D178: Americas | E178: Latin America and the Caribbean | F178: 1 | G178: 0 | H178: 0 | I178: 0 | J178: 1 | K178: 0 | L178: 0
B179: LBR | C179: Liberia | D179: Africa | E179: Sub-Saharan Africa | F179: 1 | G179: 0 | H179: 0 | I179: 1 | J179: 0 | K179: 0 | L179: 1
B180: MDA | C180: Moldova, Republic of | D180: Europe | E180: Eastern Europe | F180: 1 | G180: 0 | H180: 0 | I180: 1 | J180: 0 | K180: 0 | L180: 1
B181: ASM | C181: American Samoa | D181: Oceania | E181: Polynesia | F181: 1 | G181: 0 | H181: 0 | I181: 0 | J181: 1 | K181: 0 | L181: 0
B182: TTO | C182: Trinidad and Tobago | D182: Americas | E182: Latin America and the Caribbean | F182: 1 | G182: 0 | H182: 0 | I182: 0 | J182: 1 | K182: 0 | L182: 0
B183: WSM | C183: Samoa | D183: Oceania | E183: Polynesia | F183: 1 | G183: 0 | H183: 0 | I183: 0 | J183: 1 | K183: 0 | L183: 0
B184: LKA | C184: Sri Lanka | D184: Asia | E184: Southern Asia | F184: 1 | G184: 1 | H184: 0 | I184: 0 | J184: 0 | K184: 0 | L184: 0
B185: SWZ | C185: Eswatini | D185: Africa | E185: Sub-Saharan Africa | F185: 1 | G185: 0 | H185: 0 | I185: 0 | J185: 1 | K185: 0 | L185: 1
B186: GRD | C186: Grenada | D186: Americas | E186: Latin America and the Caribbean | F186: 1 | G186: 0 | H186: 0 | I186: 0 | J186: 1 | K186: 0 | L186: 0
B187: LCA | C187: Saint Lucia | D187: Americas | E187: Latin America and the Caribbean | F187: 1 | G187: 0 | H187: 0 | I187: 0 | J187: 1 | K187: 0 | L187: 0
B188: SHN | C188: Saint Helena, Ascension and Tristan da Cunha | D188: Africa | E188: Sub-Saharan Africa | F188: 1 | G188: 0 | H188: 0 | I188: 0 | J188: 1 | K188: 1 | L188: 1
B189: ATG | C189: Antigua and Barbuda | D189: Americas | E189: Latin America and the Caribbean | F189: 1 | G189: 0 | H189: 0 | I189: 0 | J189: 1 | K189: 0 | L189: 0
B190: COM | C190: Comoros | D190: Africa | E190: Sub-Saharan Africa | F190: 1 | G190: 0 | H190: 0 | I190: 1 | J190: 0 | K190: 0 | L190: 0
B191: WLF | C191: Wallis and Futuna | D191: Oceania | E191: Polynesia | F191: 1 | G191: 0 | H191: 0 | I191: 0 | J191: 1 | K191: 0 | L191: 0
B192: BLZ | C192: Belize | D192: Americas | E192: Latin America and the Caribbean | F192: 1 | G192: 1 | H192: 0 | I192: 0 | J192: 0 | K192: 0 | L192: 1
B193: BTN | C193: Bhutan | D193: Asia | E193: Southern Asia | F193: 1 | G193: 1 | H193: 0 | I193: 0 | J193: 0 | K193: 0 | L193: 0
B194: GNB | C194: Guinea-Bissau | D194: Africa | E194: Sub-Saharan Africa | F194: 1 | G194: 0 | H194: 0 | I194: 1 | J194: 0 | K194: 0 | L194: 1
B195: PRK | C195: Korea (Democratic People's Republic of) | D195: Asia | E195: Eastern Asia | F195: 1 | G195: 0 | H195: 0 | I195: 1 | J195: 0 | K195: 0 | L195: 0
B196: STP | C196: Sao Tome and Principe | D196: Africa | E196: Sub-Saharan Africa | F196: 1 | G196: 1 | H196: 0 | I196: 0 | J196: 0 | K196: 0 | L196: 1
B197: TJK | C197: Tajikistan | D197: Asia | E197: Central Asia | F197: 1 | G197: 0 | H197: 1 | I197: 0 | J197: 0 | K197: 0 | L197: 0
B198: UGA | C198: Uganda | D198: Africa | E198: Sub-Saharan Africa | F198: 1 | G198: 1 | H198: 0 | I198: 0 | J198: 0 | K198: 0 | L198: 0
B199: BMU | C199: Bermuda | D199: Americas | E199: Northern America | F199: 1 | G199: 0 | H199: 0 | I199: 0 | J199: 1 | K199: 0 | L199: 0
B200: BRB | C200: Barbados | D200: Americas | E200: Latin America and the Caribbean | F200: 1 | G200: 0 | H200: 0 | I200: 0 | J200: 1 | K200: 0 | L200: 0
B201: GMB | C201: Gambia | D201: Africa | E201: Sub-Saharan Africa | F201: 1 | G201: 0 | H201: 0 | I201: 1 | J201: 0 | K201: 0 | L201: 1
B202: UMI | C202: United States Minor Outlying Islands | D202: Oceania | E202: Micronesia | F202: 1 | G202: 0 | H202: 0 | I202: 1 | J202: 0 | K202: 0 | L202: 0
B203: MTQ | C203: Martinique | D203: Americas | E203: Latin America and the Caribbean | F203: 1 | G203: 0 | H203: 0 | I203: 0 | J203: 1 | K203: 0 | L203: 0
B204: MYT | C204: Mayotte | D204: Africa | E204: Sub-Saharan Africa | F204: 1 | G204: 0 | H204: 0 | I204: 1 | J204: 0 | K204: 0 | L204: 0
... 30 more rows

Sheet CompositeAirportListing (hidden)
G2: Runways that are in TRUE will not have a Mag Bearing value in column G
G4: Uniques airports in database = 14422
G6: ="Number of runways on screen = " & SUBTOTAL(3,A10:A99980) -> Number of runways on screen = 36980 | Y6: ="Number of runways on screen = " & SUBTOTAL(3,A10:A99980) -> Number of runways on screen = 36980
A8: From GlobalAirportListing Worksheet | M8: From Airports worksheet | R8: Declination by year | W8: Declination predictions using WMM2020 | AC8: Required RWY marking changes
A9: Airport Ident | B9: Airport Name | C9: State/Province | D9: Airport Country | E9: IAP Available | F9: Runway Ident | G9: 2021_Mag Bearing | H9: True Bearing | I9: Runway Length | J9: Surface Type | K9: Calculated Direction | L9: Calculated Variation | M9: ARP_Latitude | N9: ARP_Longitude | O9: ARP_Elevation_ft_asl | P9: GPS_code | Q9: RWY CATEGORY | R9: 2020 | S9: 2021 | T9: 2022 | U9: 2023 | V9: 2024 | W9: 2025 | X9: 2026 | Y9: 2027 | Z9: 2028 | AA9: 2029 | AB9: 2030 | AC9: Change with True | AD9: Change with Mag | AE9: Currently Required
A10: OABN | B10: Bamyan | D10: AFG | E10: N | F10: 36 | G10: 68 | H10: 71 | I10: 7218 | J10: ASPHALT | K10: E | L10: 3 | M10: 34.808916 | N10: 67.816629 | O10: 8367 | P10: OABN | Q10: HARD | R10: 3.489018367 | S10: 3.537055167 | T10: 3.585315956 | U10: 3.633402094 | V10: 3.681700373 | AB10: 3.971285812 | AC10: YES | AD10: YES | AE10: YES | AJ10: Changes needed to original dataset
A11: OABN | B11: Bamyan | D11: AFG | E11: N | F11: 25 | G11: 248 | H11: 251 | I11: 7218 | J11: ASPHALT | K11: E | L11: 3 | M11: 34.808916 | N11: 67.816629 | O11: 8367 | P11: OABN | Q11: HARD | R11: 3.489018367 | S11: 3.537055167 | T11: 3.585315956 | U11: 3.633402094 | V11: 3.681700373 | AB11: 3.971285812 | AC11: NO | AD11: NO | AE11: NO | AJ11: XJL to TCA
A12: OABT | B12: Bost | D12: AFG | E12: N | F12: 1 | G12: 6 | H12: 8 | I12: 7551 | J12: ASPHALT | K12: E | L12: 2 | M12: 31.5597 | N12: 64.364998 | O12: 2464 | P12: OABT | Q12: HARD | R12: 2.851572477 | S12: 2.902391963 | T12: 2.953208179 | U12: 3.00420368 | V12: 3.055003353 | AB12: 3.360136748 | AC12: NO | AD12: YES | AE12: NO | AJ12: XJX to XJY
A13: OABT | B13: Bost | D13: AFG | E13: N | F13: 19 | G13: 186 | H13: 188 | I13: 7551 | J13: ASPHALT | K13: E | L13: 2 | M13: 31.5597 | N13: 64.364998 | O13: 2464 | P13: OABT | Q13: HARD | R13: 2.851572477 | S13: 2.902391963 | T13: 2.953208179 | U13: 3.00420368 | V13: 3.055003353 | AB13: 3.360136748 | AC13: NO | AD13: YES | AE13: NO | AJ13: XJW to USA
A14: OACC | B14: Shahid General Mohaiden Ghory | D14: AFG | E14: N | F14: 7 | G14: 65 | H14: 67 | I14: 6562 | J14: ASPHALT | K14: E | L14: 2 | M14: 34.526465 | N14: 65.27102 | O14: 7383 | P14: OACC | Q14: HARD | R14: 3.602197614 | S14: 3.653292522 | T14: 3.70459266 | U14: 3.755698493 | V14: 3.807021945 | AB14: 4.11441639 | AC14: NO | AD14: YES | AE14: YES | AJ14: XJV to XJY
A15: OACC | B15: Shahid General Mohaiden Ghory | D15: AFG | E15: N | F15: 25 | G15: 245 | H15: 247 | I15: 6562 | J15: ASPHALT | K15: E | L15: 2 | M15: 34.526465 | N15: 65.27102 | O15: 7383 | P15: OACC | Q15: HARD | R15: 3.602197614 | S15: 3.653292522 | T15: 3.70459266 | U15: 3.755698493 | V15: 3.807021945 | AB15: 4.11441639 | AC15: NO | AD15: YES | AE15: YES | AJ15: XJU to ESH
A16: OADY | B16: Dwyer | D16: AFG | E16: N | F16: 5 | G16: 49 | H16: 50.55 | I16: 8003 | J16: CONCRETE | K16: E | L16: 1.55 | M16: 31.09265667 | N16: 64.07270667 | Q16: HARD | R16: 2.753927831 | S16: 2.804791353 | T16: 2.855476737 | U16: 2.906328288 | V16: 2.957173645 | AB16: 3.261950958 | AC16: NO | AD16: NO | AE16: NO | AJ16: FSM to XJI
A17: OADY | B17: Dwyer | D17: AFG | E17: N | F17: 23 | G17: 229 | H17: 230.56 | I17: 8003 | J17: CONCRETE | K17: E | L17: 1.56 | M17: 31.09265667 | N17: 64.07270667 | Q17: HARD | R17: 2.753927831 | S17: 2.804791353 | T17: 2.855476737 | U17: 2.906328288 | V17: 2.957173645 | AB17: 3.261950958 | AC17: NO | AD17: NO | AE17: NO | AJ17: MID to UMI
A18: OAFR | B18: Farah | D18: AFG | E18: N | F18: 15 | G18: 147 | H18: 150 | I18: 8202 | J18: ASPHALT | K18: E | L18: 3 | M18: 32.366667 | N18: 62.165347 | O18: 3083 | P18: OAFR | Q18: HARD | R18: 3.217057665 | S18: 3.268735054 | T18: 3.320407795 | U18: 3.372075804 | V18: 3.423738998 | AB18: 3.733413916 | AC18: NO | AD18: NO | AE18: NO | AJ18: SCG to SRB
A19: OAFR | B19: Farah | D19: AFG | E19: N | F19: 33 | G19: 327 | H19: 330 | I19: 8202 | J19: ASPHALT | K19: E | L19: 3 | M19: 32.366667 | N19: 62.165347 | O19: 3083 | P19: OAFR | Q19: HARD | R19: 3.217057665 | S19: 3.268735054 | T19: 3.320407795 | U19: 3.372075804 | V19: 3.423738998 | AB19: 3.733413916 | AC19: NO | AD19: NO | AE19: NO | AJ19: ANT to SXM
A20: OAFZ | B20: Feyzabad | D20: AFG | E20: N | F20: 18 | G20: 178 | H20: 181 | I20: 6561 | J20: ASPHALT | K20: E | L20: 3 | M20: 37.122148 | N20: 70.5201 | O20: 3872 | P20: OAFZ | Q20: HARD | R20: 3.955647629 | S20: 3.99823872 | T20: 4.041065854 | U20: 4.083739287 | V20: 4.12643235 | AB20: 4.383505075 | AC20: NO | AD20: NO | AE20: NO | AJ20: XJO to MNP
A21: OAFZ | B21: Feyzabad | D21: AFG | E21: N | F21: 36 | G21: 358 | H21: 1 | I21: 6561 | J21: ASPHALT | K21: E | L21: 3 | M21: 37.122148 | N21: 70.5201 | O21: 3872 | P21: OAFZ | Q21: HARD | R21: 3.955647629 | S21: 3.99823872 | T21: 4.041065854 | U21: 4.083739287 | V21: 4.12643235 | AB21: 4.383505075 | AC21: NO | AD21: NO | AE21: NO | AJ21: XJN to PYF
A22: OAHR | B22: Khwaja Abdullah Ansari Intl | D22: AFG | E22: Y | F22: 18 | G22: 184 | H22: 188 | I22: 9888 | J22: ASPHALT | K22: E | L22: 4 | M22: 34.209999 | N22: 62.228298 | O22: 3206 | P22: OAHR | Q22: HARD | R22: 3.72827348 | S22: 3.780622202 | T22: 3.832973831 | U22: 3.885328279 | V22: 3.937685459 | AB22: 4.251881021 | AC22: YES | AD22: NO | AE22: NO | AJ22: XJB to SPM
A23: OAHR | B23: Khwaja Abdullah Ansari Intl | D23: AFG | E23: Y | F23: 36 | G23: 4 | H23: 8 | I23: 9888 | J23: ASPHALT | K23: E | L23: 4 | M23: 34.209999 | N23: 62.228298 | O23: 3206 | P23: OAHR | Q23: HARD | R23: 3.72827348 | S23: 3.780622202 | T23: 3.832973831 | U23: 3.885328279 | V23: 3.937685459 | AB23: 4.251881021 | AC23: YES | AD23: YES | AE23: YES | AJ23: XJC to SHN
A24: OAIX | B24: Bagram | D24: AFG | E24: Y | F24: 03R | G24: 26.85 | H24: 29.85 | I24: 11819 | J24: CONCRETE | K24: E | L24: 3 | M24: 34.946098 | N24: 69.264999 | O24: 4895 | P24: OAIX | Q24: HARD | R24: 3.41022863 | S24: 3.455642854 | T24: 3.501272088 | U24: 3.546923136 | V24: 3.592414794 | AB24: 3.866533345 | AC24: NO | AD24: NO | AE24: NO | AJ24: XJD to IOT
A25: OAIX | B25: Bagram | D25: AFG | E25: Y | F25: 21L | G25: 206.86 | H25: 209.86 | I25: 11819 | J25: CONCRETE | K25: E | L25: 3 | M25: 34.946098 | N25: 69.264999 | O25: 4895 | P25: OAIX | Q25: HARD | R25: 3.41022863 | S25: 3.455642854 | T25: 3.501272088 | U25: 3.546923136 | V25: 3.592414794 | AB25: 3.866533345 | AC25: NO | AD25: NO | AE25: NO | AJ25: XJF to ESP
A26: OAIX | B26: Bagram | D26: AFG | E26: Y | F26: 03L | G26: 26.86 | H26: 29.86 | I26: 9687 | J26: ASPHALT | K26: E | L26: 3 | M26: 34.946098 | N26: 69.264999 | O26: 4895 | P26: OAIX | Q26: HARD | R26: 3.41022863 | S26: 3.455642854 | T26: 3.501272088 | U26: 3.546923136 | V26: 3.592414794 | AB26: 3.866533345 | AC26: NO | AD26: NO | AE26: NO | AJ26: XJG to CYP
A27: OAIX | B27: Bagram | D27: AFG | E27: Y | F27: 21R | G27: 206.87 | H27: 209.87 | I27: 9687 | J27: ASPHALT | K27: E | L27: 3 | M27: 34.946098 | N27: 69.264999 | O27: 4895 | P27: OAIX | Q27: HARD | R27: 3.41022863 | S27: 3.455642854 | T27: 3.501272088 | U27: 3.546923136 | V27: 3.592414794 | AB27: 3.866533345 | AC27: NO | AD27: NO | AE27: NO | AJ27: XJP to CHL
A28: OAJL | B28: Jalalabad | D28: AFG | E28: Y | F28: 13 | G28: 129.53 | H28: 131.53 | I28: 6480 | J28: ASPHALT | K28: E | L28: 2 | M28: 34.399799 | N28: 70.498596 | O28: 1814 | P28: OAJL | Q28: HARD | R28: 3.14832447 | S28: 3.191103025 | T28: 3.233891787 | U28: 3.276701189 | V28: 3.319351786 | AB28: 3.576787249 | AC28: NO | AD28: NO | AE28: NO | AJ28: XJR to TTO
A29: OAJL | B29: Jalalabad | D29: AFG | E29: Y | F29: 31 | G29: 310 | H29: 311.55 | I29: 6480 | J29: ASPHALT | K29: E | L29: 1.55 | M29: 34.399799 | N29: 70.498596 | O29: 1814 | P29: OAJL | Q29: HARD | R29: 3.14832447 | S29: 3.191103025 | T29: 3.233891787 | U29: 3.276701189 | V29: 3.319351786 | AB29: 3.576787249 | AC29: NO | AD29: NO | AE29: NO | AJ29: XJS to ABW
A30: OAKB | B30: Hamid Karzai Intl | D30: AFG | E30: Y | F30: 11 | G30: 104 | H30: 107 | I30: 11520 | J30: ASPHALT | K30: E | L30: 3 | M30: 34.565899 | N30: 69.212303 | O30: 5877 | P30: OAKB | Q30: HARD | R30: 3.304578513 | S30: 3.350121283 | T30: 3.395683977 | U30: 3.441266549 | V30: 3.487060754 | AB30: 3.761485972 | AC30: NO | AD30: YES | AE30: YES | AJ30: XJT to TTO
A31: OAKB | B31: Hamid Karzai Intl | D31: AFG | E31: Y | F31: 29 | G31: 284 | H31: 287 | I31: 11520 | J31: ASPHALT | K31: E | L31: 3 | M31: 34.565899 | N31: 69.212303 | O31: 5877 | P31: OAKB | Q31: HARD | R31: 3.304578513 | S31: 3.350121283 | T31: 3.395683977 | U31: 3.441266549 | V31: 3.487060754 | AB31: 3.761485972 | AC31: NO | AD31: YES | AE31: YES
A32: OAKN | B32: Kandahar | D32: AFG | E32: Y | F32: 5 | G32: 53.2 | H32: 55.2 | I32: 10497 | J32: ASPHALT | K32: E | L32: 2 | M32: 31.5058 | N32: 65.847801 | O32: 3337 | P32: OAKN | Q32: HARD | R32: 2.733541764 | S32: 2.783290992 | T32: 2.833039818 | U32: 2.882960836 | V32: 2.932708468 | AB32: 3.231329434 | AC32: YES | AD32: NO | AE32: NO
A33: OAKN | B33: Kandahar | D33: AFG | E33: Y | F33: 23 | G33: 233.21 | H33: 235.21 | I33: 10497 | J33: ASPHALT | K33: E | L33: 2 | M33: 31.5058 | N33: 65.847801 | O33: 3337 | P33: OAKN | Q33: HARD | R33: 2.733541764 | S33: 2.783290992 | T33: 2.833039818 | U33: 2.882960836 | V33: 2.932708468 | AB33: 3.231329434 | AC33: YES | AD33: NO | AE33: NO
A34: OAMN | B34: Maimana | D34: AFG | E34: N | F34: 14 | G34: 140 | H34: 143.4 | I34: 6561 | J34: GRAVEL | K34: E | L34: 3.4 | M34: 35.930801 | N34: 64.760902 | O34: 2743 | P34: OAMN | Q34: SOFT | R34: -7.704137638 | S34: -7.74611757 | T34: -7.787990322 | U34: -7.829756258 | V34: -7.871380494 | AB34: -8.11908522 | AC34: NO | AD34: YES | AE34: YES
A35: OAMN | B35: Maimana | D35: AFG | E35: N | F35: 32 | G35: 320 | H35: 323.4 | I35: 6561 | J35: GRAVEL | K35: E | L35: 3.4 | M35: 35.930801 | N35: 64.760902 | O35: 2743 | P35: OAMN | Q35: SOFT | R35: -7.704137638 | S35: -7.74611757 | T35: -7.787990322 | U35: -7.829756258 | V35: -7.871380494 | AB35: -8.11908522 | AC35: NO | AD35: YES | AE35: YES
A36: OAMS | B36: Mawlana Jalaluddin Muhammad Balkhi | D36: AFG | E36: Y | F36: 6 | G36: 62 | H36: 65.98 | I36: 9836 | J36: ASPHALT | K36: E | L36: 3.98 | M36: 36.706902 | N36: 67.209702 | O36: 1284 | P36: OAMS | Q36: HARD | R36: 4.12714505 | S36: 4.176500038 | T36: 4.225881986 | U36: 4.275290844 | V36: 4.324711307 | AB36: 4.621667375 | AC36: YES | AD36: NO | AE36: NO
A37: OAMS | B37: Mawlana Jalaluddin Muhammad Balkhi | D37: AFG | E37: Y | F37: 24 | G37: 242 | H37: 245.98 | I37: 9836 | J37: ASPHALT | K37: E | L37: 3.98 | M37: 36.706902 | N37: 67.209702 | O37: 1284 | P37: OAMS | Q37: HARD | R37: 4.12714505 | S37: 4.176500038 | T37: 4.225881986 | U37: 4.275290844 | V37: 4.324711307 | AB37: 4.621667375 | AC37: YES | AD37: NO | AE37: NO
A38: OANZ | B38: Nimroz | D38: AFG | E38: N | F38: 14 | G38: 135 | H38: 137 | I38: 8989 | J38: ASPHALT | K38: E | L38: 2 | Q38: HARD | AC38: NO | AD38: NO | AE38: NO
A39: OANZ | B39: Nimroz | D39: AFG | E39: N | F39: 32 | G39: 315 | H39: 317 | I39: 8989 | J39: ASPHALT | K39: E | L39: 2 | Q39: HARD | AC39: NO | AD39: NO | AE39: NO
A40: OAQA | B40: Qalat | D40: AFG | E40: N | F40: 2 | G40: 23 | H40: 24.8 | I40: 4925 | J40: SAND/CLAY | K40: E | L40: 1.8 | M40: 32.13733333 | N40: 66.90133333 | Q40: SOFT | R40: 2.822182432 | S40: 2.8710464 | T40: 2.92010748 | U40: 2.968980115 | V40: 3.017866571 | AB40: 3.311243233 | AC40: NO | AD40: NO | AE40: NO
A41: OAQA | B41: Qalat | D41: AFG | E41: N | F41: 20 | G41: 203 | H41: 204.8 | I41: 4925 | J41: SAND/CLAY | K41: E | L41: 1.8 | M41: 32.13733333 | N41: 66.90133333 | Q41: SOFT | R41: 2.822182432 | S41: 2.8710464 | T41: 2.92010748 | U41: 2.968980115 | V41: 3.017866571 | AB41: 3.311243233 | AC41: NO | AD41: NO | AE41: NO
A42: OAQN | B42: Qala-I-Naw | D42: AFG | E42: N | F42: 4 | G42: 37 | H42: 40 | I42: 6561 | J42: CONCRETE | K42: E | L42: 3 | M42: 34.985472 | N42: 63.117404 | O42: 2999 | P42: OAQN | Q42: HARD | R42: 3.896999914 | S42: 3.949513667 | T42: 4.002049299 | U42: 4.054593368 | V42: 4.106949693 | AB42: 4.422012173 | AC42: NO | AD42: NO | AE42: NO
A43: OAQN | B43: Qala-I-Naw | D43: AFG | E43: N | F43: 22 | G43: 217 | H43: 220 | I43: 6561 | J43: CONCRETE | K43: E | L43: 3 | M43: 34.985472 | N43: 63.117404 | O43: 2999 | P43: OAQN | Q43: HARD | R43: 3.896999914 | S43: 3.949513667 | T43: 4.002049299 | U43: 4.054593368 | V43: 4.106949693 | AB43: 4.422012173 | AC43: NO | AD43: NO | AE43: NO
A44: OASA | B44: Sharana | D44: AFG | E44: N | F44: 14 | G44: 142 | H44: 145 | I44: 4265 | J44: ASPHALT | K44: E | L44: 3 | M44: 33.12575 | N44: 68.838517 | O44: 7340 | P44: OASA | Q44: HARD | R44: 2.935286438 | S44: 2.981284571 | T44: 3.027481733 | U44: 3.073495133 | V44: 3.119530938 | AB44: 3.396346029 | AC44: NO | AD44: NO | AE44: NO
A45: OASA | B45: Sharana | D45: AFG | E45: N | F45: 32 | G45: 322 | H45: 325 | I45: 4265 | J45: ASPHALT | K45: E | L45: 3 | M45: 33.12575 | N45: 68.838517 | O45: 7340 | P45: OASA | Q45: HARD | R45: 2.935286438 | S45: 2.981284571 | T45: 3.027481733 | U45: 3.073495133 | V45: 3.119530938 | AB45: 3.396346029 | AC45: NO | AD45: NO | AE45: NO
A46: OASD | B46: Shindand | D46: AFG | E46: Y | F46: 18 | G46: 180 | H46: 182 | I46: 7933 | J46: PAVED | K46: E | L46: 2 | M46: 33.3913 | N46: 62.261002 | O46: 3773 | P46: OASD | Q46: HARD | R46: 3.491178494 | S46: 3.543106671 | T46: 3.595224765 | U46: 3.647140141 | V46: 3.699257191 | AB46: 4.011550937 | AC46: NO | AD46: NO | AE46: NO
A47: OASD | B47: Shindand | D47: AFG | E47: Y | F47: 36 | G47: 360 | H47: 2 | I47: 7933 | J47: PAVED | K47: E | L47: 2 | M47: 33.3913 | N47: 62.261002 | O47: 3773 | P47: OASD | Q47: HARD | R47: 3.491178494 | S47: 3.543106671 | T47: 3.595224765 | U47: 3.647140141 | V47: 3.699257191 | AB47: 4.011550937 | AC47: NO | AD47: NO | AE47: NO
A48: OASH | B48: Camp Dahlke | D48: AFG | E48: N | F48: 16L | G48: 165 | H48: 167.38 | I48: 6870 | J48: CONCRETE | K48: E | L48: 2.38 | M48: 33.90774167 | N48: 69.074925 | Q48: HARD | R48: 3.132785813 | S48: 3.178664563 | T48: 3.224559881 | U48: 3.27029346 | V48: 3.316221894 | AB48: 3.591780815 | AC48: YES | AD48: NO | AE48: NO
A49: OASH | B49: Camp Dahlke | D49: AFG | E49: N | F49: 34R | G49: 345 | H49: 347.38 | I49: 6870 | J49: CONCRETE | K49: E | L49: 2.38 | M49: 33.90774167 | N49: 69.074925 | Q49: HARD | R49: 3.132785813 | S49: 3.178664563 | T49: 3.224559881 | U49: 3.27029346 | V49: 3.316221894 | AB49: 3.591780815 | AC49: YES | AD49: NO | AE49: NO
A50: OASL | B50: Salerno | D50: AFG | E50: N | F50: 9 | G50: 86 | H50: 89 | I50: 4000 | J50: GRAVEL | K50: E | L50: 3 | M50: 33.358135 | N50: 69.95752167 | Q50: SOFT | R50: 2.910205644 | S50: 2.954096079 | T50: 2.998001669 | U50: 3.041932286 | V50: 3.085868202 | AB50: 3.349446051 | AC50: NO | AD50: NO | AE50: NO
A51: OASL | B51: Salerno | D51: AFG | E51: N | F51: 27 | G51: 266 | H51: 269 | I51: 4000 | J51: GRAVEL | K51: E | L51: 3 | M51: 33.358135 | N51: 69.95752167 | Q51: SOFT | R51: 2.910205644 | S51: 2.954096079 | T51: 2.998001669 | U51: 3.041932286 | V51: 3.085868202 | AB51: 3.349446051 | AC51: NO | AD51: NO | AE51: NO
A52: OATN | B52: Tarin Kowt | D52: AFG | E52: N | F52: 12 | G52: 121 | H52: 123 | I52: 7300 | J52: CONCRETE | K52: E | L52: 2 | M52: 32.604198 | N52: 65.865799 | O52: 4429 | P52: OATN | Q52: HARD | R52: 3.01914086 | S52: 3.069188282 | T52: 3.119425836 | U52: 3.169482025 | V52: 3.219728194 | AB52: 3.520733449 | AC52: NO | AD52: NO | AE52: NO
A53: OATN | B53: Tarin Kowt | D53: AFG | E53: N | F53: 30 | G53: 301 | H53: 303 | I53: 7300 | J53: CONCRETE | K53: E | L53: 2 | M53: 32.604198 | N53: 65.865799 | O53: 4429 | P53: OATN | Q53: HARD | R53: 3.01914086 | S53: 3.069188282 | T53: 3.119425836 | U53: 3.169482025 | V53: 3.219728194 | AB53: 3.520733449 | AC53: NO | AD53: NO | AE53: NO
A54: OAUZ | B54: Kunduz | D54: AFG | E54: N | F54: 11 | G54: 110 | H54: 113 | I54: 8100 | J54: ASPHALT | K54: E | L54: 3 | M54: 36.6651 | N54: 68.910797 | O54: 1457 | P54: OAUZ | Q54: HARD | R54: 3.96547086 | S54: 4.011697968 | T54: 4.058169561 | U54: 4.104470428 | V54: 4.150987349 | AB54: 4.43036929 | AC54: NO | AD54: NO | AE54: NO
A55: OAUZ | B55: Kunduz | D55: AFG | E55: N | F55: 29 | G55: 290 | H55: 293 | I55: 8100 | J55: ASPHALT | K55: E | L55: 3 | M55: 36.6651 | N55: 68.910797 | O55: 1457 | P55: OAUZ | Q55: HARD | R55: 3.96547086 | S55: 4.011697968 | T55: 4.058169561 | U55: 4.104470428 | V55: 4.150987349 | AB55: 4.43036929 | AC55: NO | AD55: NO | AE55: NO
A56: OAZI | B56: Bastion | D56: AFG | E56: N | F56: 1 | G56: 8 | H56: 10 | I56: 11482 | J56: ASPHALT | K56: E | L56: 2 | M56: 31.848735 | N56: 64.223175 | O56: 2943 | P56: OAZI | Q56: HARD | R56: 2.936111616 | S56: 2.987074761 | T56: 3.038219192 | U56: 3.089177371 | V56: 3.140316647 | AB56: 3.446369266 | AC56: NO | AD56: NO | AE56: NO
A57: OAZI | B57: Bastion | D57: AFG | E57: N | F57: 19 | G57: 188 | H57: 190 | I57: 11482 | J57: ASPHALT | K57: E | L57: 2 | M57: 31.848735 | N57: 64.223175 | O57: 2943 | P57: OAZI | Q57: HARD | R57: 2.936111616 | S57: 2.987074761 | T57: 3.038219192 | U57: 3.089177371 | V57: 3.140316647 | AB57: 3.446369266 | AC57: NO | AD57: NO | AE57: NO
A58: FNBG | B58: 17th of September | D58: AGO | E58: N | F58: 14 | G58: 137 | H58: 130.21 | I58: 5249 | J58: ASPHALT | K58: W | L58: 6.79 | M58: -12.609 | N58: 13.4037 | O58: 118 | P58: FNBG | Q58: HARD | R58: -4.66433024 | S58: -4.514487593 | T58: -4.36428551 | U58: -4.213676273 | V58: -4.063019551 | AB58: -3.149453634 | AC58: YES | AD58: YES | AE58: YES
A59: FNBG | B59: 17th of September | D59: AGO | E59: N | F59: 32 | G59: 317 | H59: 310.21 | I59: 5249 | J59: ASPHALT | K59: W | L59: 6.79 | M59: -12.609 | N59: 13.4037 | O59: 118 | P59: FNBG | Q59: HARD | R59: -4.66433024 | S59: -4.514487593 | T59: -4.36428551 | U59: -4.213676273 | V59: -4.063019551 | AB59: -3.149453634 | AC59: YES | AD59: YES | AE59: YES
A60: FNCA | B60: Cabinda | D60: AGO | E60: Y | F60: 18 | G60: 183 | H60: 178.99 | I60: 8202 | J60: ASPHALT | K60: W | L60: 4.01 | M60: -5.596990108 | N60: 12.18840027 | O60: 66 | P60: FNCA | Q60: HARD | R60: -2.202698161 | S60: -2.054254623 | T60: -1.905577086 | U60: -1.756437287 | V60: -1.607295314 | AB60: -0.7072046158 | AC60: NO | AD60: NO | AE60: NO
A61: FNCA | B61: Cabinda | D61: AGO | E61: Y | F61: 36 | G61: 3 | H61: 358.99 | I61: 8202 | J61: ASPHALT | K61: W | L61: 4.01 | M61: -5.596990108 | N61: 12.18840027 | O61: 66 | P61: FNCA | Q61: HARD | R61: -2.202698161 | S61: -2.054254623 | T61: -1.905577086 | U61: -1.756437287 | V61: -1.607295314 | AB61: -0.7072046158 | AC61: NO | AD61: NO | AE61: NO
A62: FNCP | B62: Capanda | D62: AGO | E62: N | F62: 15 | G62: 142 | H62: 139 | I62: 6562 | J62: ASPHALT | K62: W | L62: 3 | M62: -9.77331333 | N62: 15.457595 | Q62: HARD | R62: -2.702077641 | S62: -2.569479385 | T62: -2.436665715 | U62: -2.303363621 | V62: -2.170111217 | AB62: 2.424453562 | AC62: YES | AD62: YES | AE62: YES
A63: FNCP | B63: Capanda | D63: AGO | E63: N | F63: 33 | G63: 322 | H63: 319 | I63: 6562 | J63: ASPHALT | K63: W | L63: 3 | M63: -9.77331333 | N63: 15.457595 | Q63: HARD | R63: -2.702077641 | S63: -2.569479385 | T63: -2.436665715 | U63: -2.303363621 | V63: -2.170111217 | AB63: 2.424453562 | AC63: YES | AD63: YES | AE63: YES
A64: FNCT | B64: Catumbela | D64: AGO | E64: Y | F64: 2 | G64: 16 | H64: 10 | I64: 12093 | J64: PAVED | K64: W | L64: 6 | M64: -12.4792 | N64: 13.4869 | O64: 23 | P64: FNCT | Q64: HARD | R64: -4.568230172 | S64: -4.419438127 | T64: -4.269986105 | U64: -4.12015869 | V64: -3.9702454 | AB64: -3.061488444 | AC64: YES | AD64: YES | AE64: YES
A65: FNCT | B65: Catumbela | D65: AGO | E65: Y | F65: 20 | G65: 196 | H65: 190 | I65: 12093 | J65: PAVED | K65: W | L65: 6 | M65: -12.4792 | N65: 13.4869 | O65: 23 | P65: FNCT | Q65: HARD | R65: -4.568230172 | S65: -4.419438127 | T65: -4.269986105 | U65: -4.12015869 | V65: -3.9702454 | AB65: -3.061488444 | AC65: YES | AD65: YES | AE65: YES
A66: FNCV | B66: Cuito Cuanavale | D66: AGO | E66: N | F66: 12 | G66: 118 | H66: 113 | I66: 8858 | J66: ASPHALT | K66: W | L66: 5 | M66: -15.16030025 | N66: 19.15609932 | P66: FNCV | Q66: HARD | R66: -4.894541307 | S66: -4.822956179 | T66: -4.751362718 | U66: -4.68006747 | V66: -4.608400736 | AB66: -4.177618246 | AC66: YES | AD66: NO | AE66: NO
A67: FNCV | B67: Cuito Cuanavale | D67: AGO | E67: N | F67: 30 | G67: 298 | H67: 293 | I67: 8858 | J67: ASPHALT | K67: W | L67: 5 | M67: -15.16030025 | N67: 19.15609932 | P67: FNCV | Q67: HARD | R67: -4.894541307 | S67: -4.822956179 | T67: -4.751362718 | U67: -4.68006747 | V67: -4.608400736 | AB67: -4.177618246 | AC67: YES | AD67: NO | AE67: NO
A68: FNDU | B68: Kamakenzo | D68: AGO | E68: Y | F68: 4 | G68: 43 | H68: 41 | I68: 8202 | J68: PAVED | K68: W | L68: 2 | M68: -7.400889874 | N68: 20.81850052 | O68: 2451 | P68: FNDU | Q68: HARD | R68: -0.6664285303 | S68: -0.5740114085 | T68: -0.4815800272 | U68: -0.3891320402 | V68: -0.2966666675 | AB68: 0.2581825332 | AC68: NO | AD68: NO | AE68: NO
A69: FNDU | B69: Kamakenzo | D69: AGO | E69: Y | F69: 22 | G69: 223 | H69: 221 | I69: 8202 | J69: PAVED | K69: W | L69: 2 | M69: -7.400889874 | N69: 20.81850052 | O69: 2451 | P69: FNDU | Q69: HARD | R69: -0.6664285303 | S69: -0.5740114085 | T69: -0.4815800272 | U69: -0.3891320402 | V69: -0.2966666675 | AB69: 0.2581825332 | AC69: NO | AD69: NO | AE69: NO
A70: FNGI | B70: 11th of November | D70: AGO | E70: Y | F70: 12 | G70: 122 | H70: 114.85 | I70: 10591 | J70: ASPHALT | K70: W | L70: 7.15 | M70: -17.0435009 | N70: 15.68379974 | O70: 3566 | P70: FNGI | Q70: HARD | R70: -6.905167394 | S70: -6.798402523 | T70: -6.691054196 | U70: -6.583867283 | V70: -6.476469766 | AB70: -5.82729388 | AC70: YES | AD70: NO | AE70: NO
A71: FNGI | B71: 11th of November | D71: AGO | E71: Y | F71: 30 | G71: 302 | H71: 294.85 | I71: 10591 | J71: ASPHALT | K71: W | L71: 7.15 | M71: -17.0435009 | N71: 15.68379974 | O71: 3566 | P71: FNGI | Q71: HARD | R71: -6.905167394 | S71: -6.798402523 | T71: -6.691054196 | U71: -6.583867283 | V71: -6.476469766 | AB71: -5.82729388 | AC71: YES | AD71: NO | AE71: NO
A72: FNHU | B72: Albano Machado | D72: AGO | E72: Y | F72: 11 | G72: 107 | H72: 100.52 | I72: 8727 | J72: ASPHALT | K72: W | L72: 6.48 | M72: -12.80889988 | N72: 15.76049995 | O72: 5587 | P72: FNHU | Q72: HARD | R72: -4.086523718 | S72: -3.961895294 | T72: -3.836709561 | U72: -3.711629737 | V72: -3.58630543 | AB72: -2.828820228 | AC72: YES | AD72: YES | AE72: YES
A73: FNHU | B73: Albano Machado | D73: AGO | E73: Y | F73: 29 | G73: 287 | H73: 280.5 | I73: 8727 | J73: ASPHALT | K73: W | L73: 6.5 | M73: -12.80889988 | N73: 15.76049995 | O73: 5587 | P73: FNHU | Q73: HARD | R73: -4.086523718 | S73: -3.961895294 | T73: -3.836709561 | U73: -3.711629737 | V73: -3.58630543 | AB73: -2.828820228 | AC73: YES | AD73: YES | AE73: YES
A74: FNLU | B74: 4th Of February | D74: AGO | E74: Y | F74: 5 | G74: 53 | H74: 46 | I74: 12139 | J74: ASPHALT | K74: W | L74: 7 | M74: -8.85837 | N74: 13.2312 | O74: 243 | P74: FNLU | Q74: HARD | R74: -2.998902776 | S74: -2.849505883 | T74: -2.699809593 | U74: -2.550081893 | V74: -2.399790567 | AB74: -1.49187205 | AC74: NO | AD74: NO | AE74: NO
A75: FNLU | B75: 4th Of February | D75: AGO | E75: Y | F75: 23 | G75: 233 | H75: 226 | I75: 12139 | J75: ASPHALT | K75: W | L75: 7 | M75: -8.85837 | N75: 13.2312 | O75: 243 | P75: FNLU | Q75: HARD | R75: -2.998902776 | S75: -2.849505883 | T75: -2.699809593 | U75: -2.550081893 | V75: -2.399790567 | AB75: -1.49187205 | AC75: NO | AD75: NO | AE75: NO
A76: FNLU | B76: 4th Of February | D76: AGO | E76: Y | F76: 7 | G76: 74 | H76: 67.54 | I76: 8166 | J76: ASPHALT | K76: W | L76: 6.46 | M76: -8.85837 | N76: 13.2312 | O76: 243 | P76: FNLU | Q76: HARD | R76: -2.998902776 | S76: -2.849505883 | T76: -2.699809593 | U76: -2.550081893 | V76: -2.399790567 | AB76: -1.49187205 | AC76: NO | AD76: NO | AE76: NO
A77: FNLU | B77: 4th Of February | D77: AGO | E77: Y | F77: 25 | G77: 254 | H77: 247.54 | I77: 8166 | J77: ASPHALT | K77: W | L77: 6.46 | M77: -8.85837 | N77: 13.2312 | O77: 243 | P77: FNLU | Q77: HARD | R77: -2.998902776 | S77: -2.849505883 | T77: -2.699809593 | U77: -2.550081893 | V77: -2.399790567 | AB77: -1.49187205 | AC77: NO | AD77: NO | AE77: NO
A78: FNMA | B78: Malange | D78: AGO | E78: N | F78: 13 | G78: 125 | H78: 123 | I78: 7218 | J78: ASPHALT | K78: W | L78: 2 | M78: -9.525090218 | N78: 16.31240082 | O78: 3868 | P78: FNMA | Q78: HARD | R78: -2.375311689 | S78: -2.249729441 | T78: -2.123715205 | U78: -1.997798204 | V78: -1.871709634 | AB78: -1.110805142 | AC78: YES | AD78: YES | AE78: NO
A79: FNMA | B79: Malange | D79: AGO | E79: N | F79: 31 | G79: 305 | H79: 303 | I79: 7218 | J79: ASPHALT | K79: W | L79: 2 | M79: -9.525090218 | N79: 16.31240082 | O79: 3868 | P79: FNMA | Q79: HARD | R79: -2.375311689 | S79: -2.249729441 | T79: -2.123715205 | U79: -1.997798204 | V79: -1.871709634 | AB79: -1.110805142 | AC79: YES | AD79: YES | AE79: NO
A80: FNME | B80: Menongue | D80: AGO | E80: Y | F80: 13 | G80: 125 | H80: 118 | I80: 11483 | J80: PAVED | K80: W | L80: 7 | M80: -14.6576004 | N80: 17.71980095 | O80: 4469 | P80: FNME | Q80: HARD | R80: -4.769823367 | S80: -4.676441766 | T80: -4.5826231 | U80: -4.489030703 | V80: -4.395001429 | AB80: -3.829612043 | AC80: YES | AD80: YES | AE80: YES
A81: FNME | B81: Menongue | D81: AGO | E81: Y | F81: 31 | G81: 305 | H81: 298 | I81: 11483 | J81: PAVED | K81: W | L81: 7 | M81: -14.6576004 | N81: 17.71980095 | O81: 4469 | P81: FNME | Q81: HARD | R81: -4.769823367 | S81: -4.676441766 | T81: -4.5826231 | U81: -4.489030703 | V81: -4.395001429 | AB81: -3.829612043 | AC81: YES | AD81: YES | AE81: YES
A82: FNMO | B82: Welwitschia Mirabilis | D82: AGO | E82: Y | F82: 8 | G82: 76 | H82: 66.55 | I82: 8202 | J82: ASPHALT | K82: W | L82: 9.45 | M82: -15.2612 | N82: 12.1468 | O82: 210 | P82: FNMO | Q82: HARD | R82: -6.659452693 | S82: -6.498648599 | T82: -6.337299449 | U82: -6.175014434 | V82: -6.012574831 | AB82: -5.025406295 | AC82: YES | AD82: YES | AE82: YES
A83: FNMO | B83: Welwitschia Mirabilis | D83: AGO | E83: Y | F83: 26 | G83: 256 | H83: 246.54 | I83: 8202 | J83: ASPHALT | K83: W | L83: 9.46 | M83: -15.2612 | N83: 12.1468 | O83: 210 | P83: FNMO | Q83: HARD | R83: -6.659452693 | S83: -6.498648599 | T83: -6.337299449 | U83: -6.175014434 | V83: -6.012574831 | AB83: -5.025406295 | AC83: YES | AD83: YES | AE83: YES
A84: FNSA | B84: Saurimo | D84: AGO | E84: Y | F84: 13 | G84: 133 | H84: 130.14 | I84: 11155 | J84: ASPHALT | K84: W | L84: 2.86 | M84: -9.689069748 | N84: 20.43190002 | O84: 3584 | P84: FNSA | Q84: HARD | R84: -1.616133113 | S84: -1.528292363 | T84: -1.440155566 | U84: -1.351995626 | V84: -1.263818801 | AB84: -0.7348000796 | AC84: NO | AD84: NO | AE84: NO
A85: FNSA | B85: Saurimo | D85: AGO | E85: Y | F85: 31 | G85: 313 | H85: 310.14 | I85: 11155 | J85: ASPHALT | K85: W | L85: 2.86 | M85: -9.689069748 | N85: 20.43190002 | O85: 3584 | P85: FNSA | Q85: HARD | R85: -1.616133113 | S85: -1.528292363 | T85: -1.440155566 | U85: -1.351995626 | V85: -1.263818801 | AB85: -0.7348000796 | AC85: NO | AD85: NO | AE85: NO
A86: FNUA | B86: Luau | D86: AGO | E86: N | F86: 16 | G86: 163 | H86: 161 | I86: 8530 | J86: ASPHALT | K86: W | L86: 2 | M86: -10.71580029 | N86: 22.23110008 | O86: 3609 | P86: FNUA | Q86: HARD | R86: -1.896687969 | S86: -1.831742899 | T86: -1.766817855 | U86: -1.701912995 | V86: -1.637036261 | AB86: -1.247891003 | AC86: NO | AD86: NO | AE86: NO
A87: FNUA | B87: Luau | D87: AGO | E87: N | F87: 34 | G87: 343 | H87: 341 | I87: 8530 | J87: ASPHALT | K87: W | L87: 2 | M87: -10.71580029 | N87: 22.23110008 | O87: 3609 | P87: FNUA | Q87: HARD | R87: -1.896687969 | S87: -1.831742899 | T87: -1.766817855 | U87: -1.701912995 | V87: -1.637036261 | AB87: -1.247891003 | AC87: NO | AD87: NO | AE87: NO
A88: FNUB | B88: Mukanka | D88: AGO | E88: Y | F88: 10 | G88: 95 | H88: 88 | I88: 10308 | J88: ASPHALT | K88: W | L88: 7 | M88: -14.92469978 | N88: 13.57499981 | O88: 5778 | P88: FNUB | Q88: HARD | R88: -5.971812911 | S88: -5.827303271 | T88: -5.682735257 | U88: -5.537420875 | V88: -5.392049614 | AB88: -4.510041587 | AC88: YES | AD88: YES | AE88: YES
A89: FNUB | B89: Mukanka | D89: AGO | E89: Y | F89: 28 | G89: 275 | H89: 268.17 | I89: 10308 | J89: ASPHALT | K89: W | L89: 6.83 | M89: -14.92469978 | N89: 13.57499981 | O89: 5778 | P89: FNUB | Q89: HARD | R89: -5.971812911 | S89: -5.827303271 | T89: -5.682735257 | U89: -5.537420875 | V89: -5.392049614 | AB89: -4.510041587 | AC89: YES | AD89: YES | AE89: YES
A90: FNUE | B90: Luena | D90: AGO | E90: Y | F90: 11 | G90: 108 | H90: 103.98 | I90: 10991 | J90: ASPHALT | K90: W | L90: 4.02 | M90: -11.76809978 | N90: 19.89769936 | O90: 4360 | P90: FNUE | Q90: HARD | R90: -2.694056508 | S90: -2.610011965 | T90: -2.52622321 | U90: -2.442100065 | V90: -2.35795702 | AB90: -1.853002289 | AC90: YES | AD90: NO | AE90: NO
A91: FNUE | B91: Luena | D91: AGO | E91: Y | F91: 29 | G91: 288 | H91: 283.98 | I91: 10991 | J91: ASPHALT | K91: W | L91: 4.02 | M91: -11.76809978 | N91: 19.89769936 | O91: 4360 | P91: FNUE | Q91: HARD | R91: -2.694056508 | S91: -2.610011965 | T91: -2.52622321 | U91: -2.442100065 | V91: -2.35795702 | AB91: -1.853002289 | AC91: YES | AD91: NO | AE91: NO
A92: FNUG | B92: Uige | D92: AGO | E92: N | F92: 1 | G92: 7 | H92: 5 | I92: 6234 | J92: ASPHALT | K92: W | L92: 2 | M92: -7.603069782 | N92: 15.02779961 | O92: 2720 | P92: FNUG | Q92: HARD | R92: -1.997999786 | S92: -1.862099 | T92: -1.726244519 | U92: -1.589949501 | V92: -1.453452236 | AB92: -0.6309579197 | AC92: YES | AD92: YES | AE92: YES
A93: FNUG | B93: Uige | D93: AGO | E93: N | F93: 19 | G93: 187 | H93: 185 | I93: 6234 | J93: ASPHALT | K93: W | L93: 2 | M93: -7.603069782 | N93: 15.02779961 | O93: 2720 | P93: FNUG | Q93: HARD | R93: -1.997999786 | S93: -1.862099 | T93: -1.726244519 | U93: -1.589949501 | V93: -1.453452236 | AB93: -0.6309579197 | AC93: NO | AD93: NO | AE93: NO
A94: TQPF | B94: Clayton J Lloyd Intl | D94: AIA | E94: Y | F94: 11 | G94: 105 | H94: 91 | I94: 5459 | J94: ASPHALT | K94: W | L94: 14 | M94: 18.204773 | N94: -63.05383 | O94: 127 | P94: TQPF | Q94: HARD | R94: -14.44659939 | S94: -14.48702875 | T94: -14.52717945 | U94: -14.56745529 | V94: -14.60770695 | AB94: -14.84735691 | AC94: YES | AD94: NO | AE94: NO
A95: TQPF | B95: Clayton J Lloyd Intl | D95: AIA | E95: Y | F95: 29 | G95: 285 | H95: 271 | I95: 5459 | J95: ASPHALT | K95: W | L95: 14 | M95: 18.204773 | N95: -63.05383 | O95: 127 | P95: TQPF | Q95: HARD | R95: -14.44659939 | S95: -14.48702875 | T95: -14.52717945 | U95: -14.56745529 | V95: -14.60770695 | AB95: -14.84735691 | AC95: YES | AD95: NO | AE95: NO
A96: LAKU | B96: Kukes | D96: ALB | E96: Y | F96: 1 | G96: 8 | H96: 12.99 | I96: 7211 | J96: ASPHALT | K96: E | L96: 4.99 | M96: 42.035802 | N96: 20.415955 | O96: 1120 | P96: LAKU | Q96: HARD | R96: 4.812141049 | S96: 4.933383422 | T96: 5.054332958 | U96: 5.175182261 | V96: 5.296206349 | AB96: 6.019602703 | AC96: NO | AD96: NO | AE96: NO
A97: LAKU | B97: Kukes | D97: ALB | E97: Y | F97: 19 | G97: 188 | H97: 192.99 | I97: 7211 | J97: ASPHALT | K97: E | L97: 4.99 | M97: 42.035802 | N97: 20.415955 | O97: 1120 | P97: LAKU | Q97: HARD | R97: 4.812141049 | S97: 4.933383422 | T97: 5.054332958 | U97: 5.175182261 | V97: 5.296206349 | AB97: 6.019602703 | AC97: NO | AD97: NO | AE97: NO
A98: LATI | B98: Tirana | D98: ALB | E98: Y | F98: 17 | G98: 170 | H98: 174.28 | I98: 9009 | J98: ASPHALT | K98: E | L98: 4.28 | M98: 41.41469955 | N98: 19.72060013 | O98: 126 | P98: LATI | Q98: HARD | R98: 4.644190619 | S98: 4.764757469 | T98: 4.885216372 | U98: 5.005815721 | V98: 5.126113911 | AB98: 5.846298141 | AC98: NO | AD98: NO | AE98: NO
A99: LATI | B99: Tirana | D99: ALB | E99: Y | F99: 35 | G99: 350 | H99: 354.29 | I99: 9009 | J99: ASPHALT | K99: E | L99: 4.29 | M99: 41.41469955 | N99: 19.72060013 | O99: 126 | P99: LATI | Q99: HARD | R99: 4.644190619 | S99: 4.764757469 | T99: 4.885216372 | U99: 5.005815721 | V99: 5.126113911 | AB99: 5.846298141 | AC99: NO | AD99: NO | AE99: NO
A100: TNCB | B100: Flamingo Intl | D100: SXM | E100: Y | F100: 10 | G100: 104 | H100: 92 | I100: 10030 | J100: ASPH/CONC | K100: W | L100: 12 | M100: 12.131 | N100: -68.268501 | O100: 20 | P100: TNCB | Q100: HARD | R100: -12.00337488 | S100: -12.11114612 | T100: -12.21864143 | U100: -12.32615382 | V100: -12.4338434 | AB100: -13.0782369 | AC100: YES | AD100: YES | AE100: NO
A101: TNCB | B101: Flamingo Intl | D101: SXM | E101: Y | F101: 28 | G101: 284 | H101: 272 | I101: 10030 | J101: ASPH/CONC | K101: W | L101: 12 | M101: 12.131 | N101: -68.268501 | O101: 20 | P101: TNCB | Q101: HARD | R101: -12.00337488 | S101: -12.11114612 | T101: -12.21864143 | U101: -12.32615382 | V101: -12.4338434 | AB101: -13.0782369 | AC101: YES | AD101: YES | AE101: NO
A102: TNCC | B102: Hato Intl | D102: SXM | E102: Y | F102: 11 | G102: 114 | H102: 102 | I102: 11198 | J102: ASPH/CONC | K102: W | L102: 12 | M102: 12.1889 | N102: -68.959801 | O102: 29 | P102: TNCC | Q102: HARD | R102: -11.63876203 | S102: -11.74911285 | T102: -11.85969686 | U102: -11.97001587 | V102: -12.08036159 | AB102: -12.74256592 | AC102: YES | AD102: NO | AE102: NO
A103: TNCC | B103: Hato Intl | D103: SXM | E103: Y | F103: 29 | G103: 294 | H103: 282 | I103: 11198 | J103: ASPH/CONC | K103: W | L103: 12 | M103: 12.1889 | N103: -68.959801 | O103: 29 | P103: TNCC | Q103: HARD | R103: -11.63876203 | S103: -11.74911285 | T103: -11.85969686 | U103: -11.97001587 | V103: -12.08036159 | AB103: -12.74256592 | AC103: YES | AD103: NO | AE103: NO
A104: TNCE | B104: F D Roosevelt | D104: SXM | E104: Y | F104: 6 | G104: 64 | H104: 50 | I104: 3934 | J104: ASPHALT | K104: W | L104: 14 | M104: 17.49650002 | N104: -62.97940063 | O104: 129 | P104: TNCE | Q104: HARD | R104: -14.47158916 | S104: -14.51592448 | T104: -14.56002988 | U104: -14.6042039 | V104: -14.64834984 | AB104: -14.91138806 | AC104: YES | AD104: NO | AE104: NO
A105: TNCE | B105: F D Roosevelt | D105: SXM | E105: Y | F105: 24 | G105: 244 | H105: 230 | I105: 3934 | J105: ASPHALT | K105: W | L105: 14 | M105: 17.49650002 | N105: -62.97940063 | O105: 129 | P105: TNCE | Q105: HARD | R105: -14.47158916 | S105: -14.51592448 | T105: -14.56002988 | U105: -14.6042039 | V105: -14.64834984 | AB105: -14.91138806 | AC105: YES | AD105: NO | AE105: NO
A106: TNCM | B106: Princess Juliana Intl | D106: SXM | E106: Y | F106: 10 | G106: 96 | H106: 82 | I106: 7546 | J106: ASPHALT | K106: W | L106: 14 | M106: 18.04100037 | N106: -63.10889816 | O106: 13 | P106: TNCM | Q106: HARD | R106: -14.42813057 | S106: -14.46983821 | T106: -14.51172144 | U106: -14.5535263 | V106: -14.59499937 | AB106: -14.84322236 | AC106: YES | AD106: NO | AE106: NO
A107: TNCM | B107: Princess Juliana Intl | D107: SXM | E107: Y | F107: 28 | G107: 276 | H107: 262 | I107: 7546 | J107: ASPHALT | K107: W | L107: 14 | M107: 18.04100037 | N107: -63.10889816 | O107: 13 | P107: TNCM | Q107: HARD | R107: -14.42813057 | S107: -14.46983821 | T107: -14.51172144 | U107: -14.5535263 | V107: -14.59499937 | AB107: -14.84322236 | AC107: YES | AD107: NO | AE107: NO
A108: TNCS | B108: Juancho E. Yrausquin | D108: SXM | E108: Y | F108: 12 | G108: 126 | H108: 112 | I108: 1315 | J108: CONCRETE | K108: W | L108: 14 | M108: 17.64500046 | N108: -63.22000122 | O108: 60 | P108: TNCS | Q108: HARD | R108: -14.38982388 | S108: -14.4350458 | T108: -14.47998431 | U108: -14.525043 | V108: -14.56981907 | AB108: -14.83738251 | AC108: YES | AD108: YES | AE108: YES
A109: TNCS | B109: Juancho E. Yrausquin | D109: SXM | E109: Y | F109: 30 | G109: 306 | H109: 292 | I109: 1315 | J109: CONCRETE | K109: W | L109: 14 | M109: 17.64500046 | N109: -63.22000122 | O109: 60 | P109: TNCS | Q109: HARD | R109: -14.38982388 | S109: -14.4350458 | T109: -14.47998431 | U109: -14.525043 | V109: -14.56981907 | AB109: -14.83738251 | AC109: YES | AD109: YES | AE109: YES
A110: OMAA | B110: Abu Dhabi Intl | D110: ARE | E110: Y | F110: 13L | G110: 126 | H110: 128 | I110: 13451 | J110: ASPHALT | K110: E | L110: 2 | M110: 24.443764 | N110: 54.651718 | O110: 88 | P110: OMAA | Q110: HARD | R110: 2.111921025 | S110: 2.152731153 | T110: 2.193513653 | U110: 2.234089511 | V110: 2.274804428 | AB110: 2.518197081 | AC110: NO | AD110: NO | AE110: NO
A111: OMAA | B111: Abu Dhabi Intl | D111: ARE | E111: Y | F111: 31R | G111: 306 | H111: 308 | I111: 13451 | J111: ASPHALT | K111: E | L111: 2 | M111: 24.443764 | N111: 54.651718 | O111: 88 | P111: OMAA | Q111: HARD | R111: 2.111921025 | S111: 2.152731153 | T111: 2.193513653 | U111: 2.234089511 | V111: 2.274804428 | AB111: 2.518197081 | AC111: NO | AD111: NO | AE111: NO
A112: OMAA | B112: Abu Dhabi Intl | D112: ARE | E112: Y | F112: 13R | G112: 126 | H112: 128 | I112: 13471 | J112: ASPHALT | K112: E | L112: 2 | M112: 24.443764 | N112: 54.651718 | O112: 88 | P112: OMAA | Q112: HARD | R112: 2.111921025 | S112: 2.152731153 | T112: 2.193513653 | U112: 2.234089511 | V112: 2.274804428 | AB112: 2.518197081 | AC112: NO | AD112: NO | AE112: NO
A113: OMAA | B113: Abu Dhabi Intl | D113: ARE | E113: Y | F113: 31L | G113: 306 | H113: 308 | I113: 13471 | J113: ASPHALT | K113: E | L113: 2 | M113: 24.443764 | N113: 54.651718 | O113: 88 | P113: OMAA | Q113: HARD | R113: 2.111921025 | S113: 2.152731153 | T113: 2.193513653 | U113: 2.234089511 | V113: 2.274804428 | AB113: 2.518197081 | AC113: NO | AD113: NO | AE113: NO
A114: OMAB | B114: Buhasa | D114: ARE | E114: N | F114: 15 | G114: 150 | H114: 151 | I114: 2001 | J114: TARMAC | K114: E | L114: 1 | M114: 23.59970093 | N114: 53.37939835 | P114: OMAB | Q114: HARD | R114: 2.107725325 | S114: 2.145991727 | T114: 2.184224418 | U114: 2.222588406 | V114: 2.26075363 | AB114: 2.489030957 | AC114: NO | AD114: NO | AE114: NO
A115: OMAB | B115: Buhasa | D115: ARE | E115: N | F115: 33 | G115: 330 | H115: 331 | I115: 2001 | J115: TARMAC | K115: E | L115: 1 | M115: 23.59970093 | N115: 53.37939835 | P115: OMAB | Q115: HARD | R115: 2.107725325 | S115: 2.145991727 | T115: 2.184224418 | U115: 2.222588406 | V115: 2.26075363 | AB115: 2.489030957 | AC115: NO | AD115: NO | AE115: NO
A116: OMAD | B116: Al Bateen Executive | D116: ARE | E116: Y | F116: 13 | G116: 126 | H116: 128 | I116: 10505 | J116: ASPHALT | K116: E | L116: 2 | M116: 24.428301 | N116: 54.458099 | O116: 16 | P116: OMAD | Q116: HARD | R116: 2.130156165 | S116: 2.170632938 | T116: 2.211075979 | U116: 2.251491833 | V116: 2.29186753 | AB116: 2.533594121 | AC116: NO | AD116: NO | AE116: NO
A117: OMAD | B117: Al Bateen Executive | D117: ARE | E117: Y | F117: 31 | G117: 306 | H117: 308 | I117: 10505 | J117: ASPHALT | K117: E | L117: 2 | M117: 24.428301 | N117: 54.458099 | O117: 16 | P117: OMAD | Q117: HARD | R117: 2.130156165 | S117: 2.170632938 | T117: 2.211075979 | U117: 2.251491833 | V117: 2.29186753 | AB117: 2.533594121 | AC117: NO | AD117: NO | AE117: NO
A118: OMAF | B118: Futaysi | D118: ARE | E118: N | F118: 14 | G118: 140 | H118: 141 | I118: 3281 | J118: SAND | K118: E | L118: 1 | M118: 24.378889 | N118: 54.316111 | P118: OMAF | Q118: SOFT | R118: 2.136748012 | S118: 2.177035022 | T118: 2.217294682 | U118: 2.257520779 | V118: 2.297713317 | AB118: 2.537983401 | AC118: NO | AD118: NO | AE118: NO
A119: OMAF | B119: Futaysi | D119: ARE | E119: N | F119: 32 | G119: 320 | H119: 321 | I119: 3281 | J119: SAND | K119: E | L119: 1 | M119: 24.378889 | N119: 54.316111 | P119: OMAF | Q119: SOFT | R119: 2.136748012 | S119: 2.177035022 | T119: 2.217294682 | U119: 2.257520779 | V119: 2.297713317 | AB119: 2.537983401 | AC119: NO | AD119: NO | AE119: NO
A120: OMAG | B120: Kizad | D120: ARE | E120: N | F120: 12 | G120: 123 | H120: 125 | I120: 3051 | J120: ASPHALT | K120: E | L120: 2 | M120: 24.726505 | N120: 54.832259 | O120: 50 | P120: OMAG | Q120: HARD | R120: 2.143218249 | S120: 2.184520185 | T120: 2.225782252 | U120: 2.266850364 | V120: 2.308045389 | AB120: 2.55436534 | AC120: NO | AD120: NO | AE120: NO
A121: OMAG | B121: Kizad | D121: ARE | E121: N | F121: 30 | G121: 303 | H121: 305 | I121: 3051 | J121: ASPHALT | K121: E | L121: 2 | M121: 24.726505 | N121: 54.832259 | O121: 50 | P121: OMAG | Q121: HARD | R121: 2.143218249 | S121: 2.184520185 | T121: 2.225782252 | U121: 2.266850364 | V121: 2.308045389 | AB121: 2.55436534 | AC121: NO | AD121: NO | AE121: NO
A122: OMAJ | B122: Jebel Dhana | D122: ARE | E122: N | F122: 13 | G122: 130 | H122: 131 | I122: 7218 | J122: TARMAC | K122: E | L122: 1 | M122: 24.18740082 | N122: 52.61399841 | O122: 43 | P122: OMAJ | Q122: HARD | R122: 2.29639742 | S122: 2.33431705 | T122: 2.372204828 | U122: 2.410053752 | V122: 2.447877737 | AB122: 2.67430387 | AC122: NO | AD122: NO | AE122: NO
A123: OMAJ | B123: Jebel Dhana | D123: ARE | E123: N | F123: 31 | G123: 310 | H123: 311 | I123: 7218 | J123: TARMAC | K123: E | L123: 1 | M123: 24.18740082 | N123: 52.61399841 | O123: 43 | P123: OMAJ | Q123: HARD | R123: 2.29639742 | S123: 2.33431705 | T123: 2.372204828 | U123: 2.410053752 | V123: 2.447877737 | AB123: 2.67430387 | AC123: NO | AD123: NO | AE123: NO
A124: OMAL | B124: Al Ain Intl | D124: ARE | E124: Y | F124: 1 | G124: 6 | H124: 8 | I124: 13140 | J124: ASPH/CONC | K124: E | L124: 2 | M124: 24.26169968 | N124: 55.60919952 | O124: 869 | P124: OMAL | Q124: HARD | R124: 1.978475194 | S124: 2.020315339 | T124: 2.062114396 | U124: 2.103884183 | V124: 2.145618851 | AB124: 2.395275548 | AC124: NO | AD124: NO | AE124: NO
A125: OMAL | B125: Al Ain Intl | D125: ARE | E125: Y | F125: 19 | G125: 186 | H125: 188 | I125: 13140 | J125: ASPH/CONC | K125: E | L125: 2 | M125: 24.26169968 | N125: 55.60919952 | O125: 869 | P125: OMAL | Q125: HARD | R125: 1.978475194 | S125: 2.020315339 | T125: 2.062114396 | U125: 2.103884183 | V125: 2.145618851 | AB125: 2.395275548 | AC125: NO | AD125: NO | AE125: NO
A126: OMAQ | B126: Qarnayn | D126: ARE | E126: N | F126: 11 | G126: 110 | H126: 111 | I126: 3300 | J126: PAVED | K126: E | L126: 1 | M126: 24.93059921 | N126: 52.85509872 | P126: OMAQ | Q126: HARD | R126: 2.396361779 | S126: 2.435335004 | T126: 2.474277108 | U126: 2.51318809 | V126: 2.552067954 | AB126: 2.784677422 | AC126: NO | AD126: NO | AE126: NO
A127: OMAQ | B127: Qarnayn | D127: ARE | E127: N | F127: 29 | G127: 290 | H127: 291 | I127: 3300 | J127: PAVED | K127: E | L127: 1 | M127: 24.93059921 | N127: 52.85509872 | P127: OMAQ | Q127: HARD | R127: 2.396361779 | S127: 2.435335004 | T127: 2.474277108 | U127: 2.51318809 | V127: 2.552067954 | AB127: 2.784677422 | AC127: NO | AD127: NO | AE127: NO
A128: OMAR | B128: Arzanah | D128: ARE | E128: N | F128: 13 | G128: 130 | H128: 131 | I128: 3438 | J128: ASPHALT | K128: E | L128: 1 | M128: 24.78050041 | N128: 52.55989838 | O128: 15 | P128: OMAR | Q128: HARD | R128: 2.404053336 | S128: 2.442447145 | T128: 2.480977769 | U128: 2.519309427 | V128: 2.55777776 | AB128: 2.787447638 | AC128: NO | AD128: NO | AE128: NO
A129: OMAR | B129: Arzanah | D129: ARE | E129: N | F129: 31 | G129: 310 | H129: 311 | I129: 3438 | J129: ASPHALT | K129: E | L129: 1 | M129: 24.78050041 | N129: 52.55989838 | O129: 15 | P129: OMAR | Q129: HARD | R129: 2.404053336 | S129: 2.442447145 | T129: 2.480977769 | U129: 2.519309427 | V129: 2.55777776 | AB129: 2.787447638 | AC129: NO | AD129: NO | AE129: NO
A130: OMAS | B130: Das I | D130: ARE | E130: N | F130: 13 | G130: 128 | H130: 130 | I130: 6890 | J130: ASPHALT | K130: E | L130: 2 | M130: 25.14620018 | N130: 52.87369919 | O130: 12 | P130: OMAS | Q130: HARD | R130: 2.432074382 | S130: 2.471168468 | T130: 2.510393105 | U130: 2.549594226 | V130: 2.588756934 | AB130: 2.822770586 | AC130: NO | AD130: NO | AE130: NO
A131: OMAS | B131: Das I | D131: ARE | E131: N | F131: 31 | G131: 308 | H131: 310 | I131: 6890 | J131: ASPHALT | K131: E | L131: 2 | M131: 25.14620018 | N131: 52.87369919 | O131: 12 | P131: OMAS | Q131: HARD | R131: 2.432074382 | S131: 2.471168468 | T131: 2.510393105 | U131: 2.549594226 | V131: 2.588756934 | AB131: 2.822770586 | AC131: NO | AD131: NO | AE131: NO
A132: OMAZ | B132: Zirku | D132: ARE | E132: N | F132: 13 | G132: 131 | H132: 133 | I132: 6299 | J132: ASPHALT | K132: E | L132: 2 | M132: 24.86249161 | N132: 53.07714081 | O132: 14 | P132: OMAZ | Q132: HARD | R132: 2.359283816 | S132: 2.398547962 | T132: 2.437612695 | U132: 2.476806601 | V132: 2.51580839 | AB132: 2.749654134 | AC132: NO | AD132: NO | AE132: NO
A133: OMAZ | B133: Zirku | D133: ARE | E133: N | F133: 31 | G133: 311 | H133: 313 | I133: 6299 | J133: ASPHALT | K133: E | L133: 2 | M133: 24.86249161 | N133: 53.07714081 | O133: 14 | P133: OMAZ | Q133: HARD | R133: 2.359283816 | S133: 2.398547962 | T133: 2.437612695 | U133: 2.476806601 | V133: 2.51580839 | AB133: 2.749654134 | AC133: NO | AD133: NO | AE133: NO
A134: OMBY | B134: Sir Bani Yas | D134: ARE | E134: Y | F134: 13 | G134: 130 | H134: 132 | I134: 8281 | J134: ASPHALT | K134: E | L134: 2 | M134: 24.283611 | N134: 52.580278 | O134: 25 | P134: OMBY | Q134: HARD | R134: 2.316627282 | S134: 2.354594928 | T134: 2.392530842 | U134: 2.43060171 | V134: 2.468474104 | AB134: 2.695208902 | AC134: NO | AD134: NO | AE134: NO
A135: OMBY | B135: Sir Bani Yas | D135: ARE | E135: Y | F135: 31 | G135: 310 | H135: 312 | I135: 8281 | J135: ASPHALT | K135: E | L135: 2 | M135: 24.283611 | N135: 52.580278 | O135: 25 | P135: OMBY | Q135: HARD | R135: 2.316627282 | S135: 2.354594928 | T135: 2.392530842 | U135: 2.43060171 | V135: 2.468474104 | AB135: 2.695208902 | AC135: NO | AD135: NO | AE135: NO
A136: OMDB | B136: Dubai Intl | D136: ARE | E136: Y | F136: 12L | G136: 119 | H136: 121 | I136: 14275 | J136: ASPHALT | K136: E | L136: 2 | M136: 25.25279999 | N136: 55.36439896 | O136: 62 | P136: OMDB | Q136: HARD | R136: 2.183994412 | S136: 2.226419333 | T136: 2.26864336 | U136: 2.311002646 | V136: 2.353329067 | AB136: 2.606429522 | AC136: NO | AD136: NO | AE136: NO
A137: OMDB | B137: Dubai Intl | D137: ARE | E137: Y | F137: 30R | G137: 299 | H137: 301 | I137: 14275 | J137: ASPHALT | K137: E | L137: 2 | M137: 25.25279999 | N137: 55.36439896 | O137: 62 | P137: OMDB | Q137: HARD | R137: 2.183994412 | S137: 2.226419333 | T137: 2.26864336 | U137: 2.311002646 | V137: 2.353329067 | AB137: 2.606429522 | AC137: NO | AD137: NO | AE137: NO
A138: OMDB | B138: Dubai Intl | D138: ARE | E138: Y | F138: 12R | G138: 119 | H138: 121 | I138: 14590 | J138: ASPHALT | K138: E | L138: 2 | M138: 25.25279999 | N138: 55.36439896 | O138: 62 | P138: OMDB | Q138: HARD | R138: 2.183994412 | S138: 2.226419333 | T138: 2.26864336 | U138: 2.311002646 | V138: 2.353329067 | AB138: 2.606429522 | AC138: NO | AD138: NO | AE138: NO
A139: OMDB | B139: Dubai Intl | D139: ARE | E139: Y | F139: 30L | G139: 299 | H139: 301 | I139: 14590 | J139: ASPHALT | K139: E | L139: 2 | M139: 25.25279999 | N139: 55.36439896 | O139: 62 | P139: OMDB | Q139: HARD | R139: 2.183994412 | S139: 2.226419333 | T139: 2.26864336 | U139: 2.311002646 | V139: 2.353329067 | AB139: 2.606429522 | AC139: NO | AD139: NO | AE139: NO
A140: OMDL | B140: Delma | D140: ARE | E140: Y | F140: 17 | G140: 172 | H140: 174 | I140: 8202 | J140: ASPHALT | K140: E | L140: 2 | M140: 24.49255667 | N140: 52.335205 | Q140: HARD | R140: 2.380753707 | S140: 2.418670075 | T140: 2.456555269 | U140: 2.494409294 | V140: 2.532232155 | AB140: 2.758507167 | AC140: NO | AD140: NO | AE140: NO
A141: OMDL | B141: Delma | D141: ARE | E141: Y | F141: 35 | G141: 352 | H141: 354 | I141: 8202 | J141: ASPHALT | K141: E | L141: 2 | M141: 24.49255667 | N141: 52.335205 | Q141: HARD | R141: 2.380753707 | S141: 2.418670075 | T141: 2.456555269 | U141: 2.494409294 | V141: 2.532232155 | AB141: 2.758507167 | AC141: NO | AD141: NO | AE141: NO
A142: OMDW | B142: Al Maktoum Intl | D142: ARE | E142: Y | F142: 12 | G142: 119 | H142: 121 | I142: 14764 | J142: ASPHALT | K142: E | L142: 2 | M142: 24.896356 | N142: 55.161389 | O142: 114 | P142: OMDW | Q142: HARD | R142: 2.139508655 | S142: 2.181226971 | T142: 2.223079285 | U142: 2.264898153 | V142: 2.306516419 | AB142: 2.556185804 | AC142: NO | AD142: NO | AE142: NO
A143: OMDW | B143: Al Maktoum Intl | D143: ARE | E143: Y | F143: 30 | G143: 299 | H143: 301 | I143: 14764 | J143: ASPHALT | K143: E | L143: 2 | M143: 24.896356 | N143: 55.161389 | O143: 114 | P143: OMDW | Q143: HARD | R143: 2.139508655 | S143: 2.181226971 | T143: 2.223079285 | U143: 2.264898153 | V143: 2.306516419 | AB143: 2.556185804 | AC143: NO | AD143: NO | AE143: NO
A144: OMDW | B144: Al Maktoum Intl | D144: ARE | E144: Y | F144: 13 | G144: 119 | H144: 121 | I144: 6030 | J144: ASPHALT | K144: E | L144: 2 | M144: 24.896356 | N144: 55.161389 | O144: 114 | P144: OMDW | Q144: HARD | R144: 2.139508655 | S144: 2.181226971 | T144: 2.223079285 | U144: 2.264898153 | V144: 2.306516419 | AB144: 2.556185804 | AC144: YES | AD144: YES | AE144: YES
A145: OMDW | B145: Al Maktoum Intl | D145: ARE | E145: Y | F145: 31 | G145: 299 | H145: 301 | I145: 6030 | J145: ASPHALT | K145: E | L145: 2 | M145: 24.896356 | N145: 55.161389 | O145: 114 | P145: OMDW | Q145: HARD | R145: 2.139508655 | S145: 2.181226971 | T145: 2.223079285 | U145: 2.264898153 | V145: 2.306516419 | AB145: 2.556185804 | AC145: YES | AD145: YES | AE145: YES
A146: OMFJ | B146: Fujairah Intl | D146: ARE | E146: Y | F146: 11 | G146: 111 | H146: 113 | I146: 12303 | J146: ASPHALT | K146: E | L146: 2 | M146: 25.11219978 | N146: 56.32400131 | O146: 152 | P146: OMFJ | Q146: HARD | R146: 2.062233476 | S146: 2.105528965 | T146: 2.148964308 | U146: 2.192365934 | V146: 2.235733831 | AB146: 2.495058259 | AC146: NO | AD146: NO | AE146: NO
A147: OMFJ | B147: Fujairah Intl | D147: ARE | E147: Y | F147: 29 | G147: 291 | H147: 293 | I147: 12303 | J147: ASPHALT | K147: E | L147: 2 | M147: 25.11219978 | N147: 56.32400131 | O147: 152 | P147: OMFJ | Q147: HARD | R147: 2.062233476 | S147: 2.105528965 | T147: 2.148964308 | U147: 2.192365934 | V147: 2.235733831 | AB147: 2.495058259 | AC147: NO | AD147: NO | AE147: NO
A148: OMNK | B148: Sas Al Nakhl | D148: ARE | E148: N | F148: 16 | G148: 160 | H148: 161 | I148: 6270 | J148: UNKNOWN | K148: E | L148: 1 | Q148: SOFT | AC148: NO | AD148: NO | AE148: NO
A149: OMNK | B149: Sas Al Nakhl | D149: ARE | E149: N | F149: 34 | G149: 340 | H149: 341 | I149: 6270 | J149: UNKNOWN | K149: E | L149: 1 | Q149: SOFT | AC149: NO | AD149: NO | AE149: NO
A150: OMRJ | B150: Al Jazeirah | D150: ARE | E150: N | F150: 16 | G150: 160 | H150: 161 | I150: 1640 | J150: TARMAC | K150: E | L150: 1 | M150: 25.664957 | N150: 55.774413 | P150: OMRJ | Q150: HARD | R150: 2.219747269 | S150: 2.263085086 | T150: 2.306221749 | U150: 2.349333188 | V150: 2.39257441 | AB150: 2.650685007 | AC150: NO | AD150: NO | AE150: NO
A151: OMRJ | B151: Al Jazeirah | D151: ARE | E151: N | F151: 34 | G151: 340 | H151: 341 | I151: 1640 | J151: TARMAC | K151: E | L151: 1 | M151: 25.664957 | N151: 55.774413 | P151: OMRJ | Q151: HARD | R151: 2.219747269 | S151: 2.263085086 | T151: 2.306221749 | U151: 2.349333188 | V151: 2.39257441 | AB151: 2.650685007 | AC151: NO | AD151: NO | AE151: NO
A152: OMRJ | B152: Al Jazeirah | D152: ARE | E152: N | F152: 10 | G152: 100 | H152: 101 | I152: 2625 | J152: TARMAC | K152: E | L152: 1 | M152: 25.664957 | N152: 55.774413 | P152: OMRJ | Q152: HARD | R152: 2.219747269 | S152: 2.263085086 | T152: 2.306221749 | U152: 2.349333188 | V152: 2.39257441 | AB152: 2.650685007 | AC152: NO | AD152: NO | AE152: NO
A153: OMRJ | B153: Al Jazeirah | D153: ARE | E153: N | F153: 28 | G153: 280 | H153: 281 | I153: 2625 | J153: TARMAC | K153: E | L153: 1 | M153: 25.664957 | N153: 55.774413 | P153: OMRJ | Q153: HARD | R153: 2.219747269 | S153: 2.263085086 | T153: 2.306221749 | U153: 2.349333188 | V153: 2.39257441 | AB153: 2.650685007 | AC153: NO | AD153: NO | AE153: NO
A154: OMRK | B154: Ras Al Khaimah Intl | D154: ARE | E154: Y | F154: 16 | G154: 163 | H154: 165 | I154: 12336 | J154: ASPHALT | K154: E | L154: 2 | M154: 25.6135006 | N154: 55.93880081 | O154: 102 | P154: OMRK | Q154: HARD | R154: 2.193838085 | S154: 2.237307376 | T154: 2.28056893 | U154: 2.323973519 | V154: 2.367177198 | AB154: 2.626379412 | AC154: NO | AD154: NO | AE154: NO
A155: OMRK | B155: Ras Al Khaimah Intl | D155: ARE | E155: Y | F155: 34 | G155: 343 | H155: 345 | I155: 12336 | J155: ASPHALT | K155: E | L155: 2 | M155: 25.6135006 | N155: 55.93880081 | O155: 102 | P155: OMRK | Q155: HARD | R155: 2.193838085 | S155: 2.237307376 | T155: 2.28056893 | U155: 2.323973519 | V155: 2.367177198 | AB155: 2.626379412 | AC155: NO | AD155: NO | AE155: NO
A156: OMRS | B156: Al Saqr Field | D156: ARE | E156: N | F156: 15 | G156: 150 | H156: 151 | I156: 2625 | J156: TARMAC | K156: E | L156: 1 | M156: 25.752944 | N156: 55.959234 | O156: 2 | P156: OMRS | Q156: HARD | R156: 2.218252419 | S156: 2.261810182 | T156: 2.305335986 | U156: 2.348829817 | V156: 2.392284603 | AB156: 2.652037567 | AC156: NO | AD156: NO | AE156: NO
A157: OMRS | B157: Al Saqr Field | D157: ARE | E157: N | F157: 33 | G157: 330 | H157: 331 | I157: 2625 | J157: TARMAC | K157: E | L157: 1 | M157: 25.752944 | N157: 55.959234 | O157: 2 | P157: OMRS | Q157: HARD | R157: 2.218252419 | S157: 2.261810182 | T157: 2.305335986 | U157: 2.348829817 | V157: 2.392284603 | AB157: 2.652037567 | AC157: NO | AD157: NO | AE157: NO
A158: OMSJ | B158: Sharjah Intl | D158: ARE | E158: Y | F158: 12 | G158: 120 | H158: 122.37 | I158: 13320 | J158: ASPHALT | K158: E | L158: 2.37 | M158: 25.32859993 | N158: 55.51720047 | O158: 111 | P158: OMSJ | Q158: HARD | R158: 2.182420447 | S158: 2.225220608 | T158: 2.267819665 | U158: 2.310392704 | V158: 2.352926272 | AB158: 2.607453449 | AC158: NO | AD158: NO | AE158: NO
A159: OMSJ | B159: Sharjah Intl | D159: ARE | E159: Y | F159: 30 | G159: 300 | H159: 302.38 | I159: 13320 | J159: ASPHALT | K159: E | L159: 2.38 | M159: 25.32859993 | N159: 55.51720047 | O159: 111 | P159: OMSJ | Q159: HARD | R159: 2.182420447 | S159: 2.225220608 | T159: 2.267819665 | U159: 2.310392704 | V159: 2.352926272 | AB159: 2.607453449 | AC159: NO | AD159: NO | AE159: NO
A160: OMSN | B160: Sir Bu Na'ir | D160: ARE | E160: N | F160: 10 | G160: 97.25 | H160: 99.25 | I160: 2400 | J160: MATS | K160: E | L160: 2 | M160: 25.21679 | N160: 54.233447 | O160: 13 | P160: OMSN | Q160: SOFT | R160: 2.295260026 | S160: 2.336195753 | T160: 2.377099458 | U160: 2.418146508 | V160: 2.458986206 | AB160: 2.703359492 | AC160: NO | AD160: NO | AE160: NO
A161: OMSN | B161: Sir Bu Na'ir | D161: ARE | E161: N | F161: 28 | G161: 277.25 | H161: 279.25 | I161: 2400 | J161: MATS | K161: E | L161: 2 | M161: 25.21679 | N161: 54.233447 | O161: 13 | P161: OMSN | Q161: SOFT | R161: 2.295260026 | S161: 2.336195753 | T161: 2.377099458 | U161: 2.418146508 | V161: 2.458986206 | AB161: 2.703359492 | AC161: NO | AD161: NO | AE161: NO
A162: OMZA | B162: Falej Hazza | D162: ARE | E162: N | F162: 17 | G162: 170 | H162: 171 | I162: 3280 | J162: UNKNOWN | K162: E | L162: 1 | Q162: SOFT | AC162: NO | AD162: NO | AE162: NO
A163: OMZA | B163: Falej Hazza | D163: ARE | E163: N | F163: 35 | G163: 350 | H163: 351 | I163: 3280 | J163: UNKNOWN | K163: E | L163: 1 | Q163: SOFT | AC163: NO | AD163: NO | AE163: NO
A164: 1287 | B164: Nogoya | D164: ARG | E164: N | F164: 16 | G164: 160 | H164: 157 | I164: 5906 | J164: DIRT | K164: W | L164: 3 | M164: -32.4025 | N164: -59.7461 | O164: 137 | Q164: SOFT | R164: -9.556762957 | S164: -9.733626372 | T164: -9.912071913 | U164: -10.09190845 | V164: -10.27374146 | AB164: -11.40035252 | AC164: NO | AD164: YES | AE164: YES
A165: 1287 | B165: Nogoya | D165: ARG | E165: N | F165: 34 | G165: 340 | H165: 337 | I165: 5906 | J165: DIRT | K165: W | L165: 3 | M165: -32.4025 | N165: -59.7461 | O165: 137 | Q165: SOFT | R165: -9.556762957 | S165: -9.733626372 | T165: -9.912071913 | U165: -10.09190845 | V165: -10.27374146 | AB165: -11.40035252 | AC165: NO | AD165: YES | AE165: YES
A166: 1304 | B166: Rawson | D166: ARG | E166: N | F166: 4 | G166: 40 | H166: 47 | I166: 3937 | J166: DIRT | K166: E | L166: 7 | M166: -43.2944 | N166: -65.0644 | O166: 36 | Q166: SOFT | R166: 2.242848369 | S166: 2.110221258 | T166: 1.976469774 | U166: 1.841261536 | V166: 1.705221105 | AB166: 0.8637496299 | AC166: YES | AD166: YES | AE166: NO
A167: 1304 | B167: Rawson | D167: ARG | E167: N | F167: 22 | G167: 220 | H167: 227 | I167: 3937 | J167: DIRT | K167: E | L167: 7 | M167: -43.2944 | N167: -65.0644 | O167: 36 | Q167: SOFT | R167: 2.242848369 | S167: 2.110221258 | T167: 1.976469774 | U167: 1.841261536 | V167: 1.705221105 | AB167: 0.8637496299 | AC167: YES | AD167: YES | AE167: NO
A168: 1320 | B168: San Juan | D168: ARG | E168: N | F168: 18 | G168: 180 | H168: 185 | I168: 5413 | J168: ASPHALT | K168: E | L168: 5 | M168: -31.60280037 | N168: -68.54730225 | O168: 2079 | Q168: HARD | R168: -1.879706529 | S168: -2.074143523 | T168: -2.27010982 | U168: -2.467628867 | V168: -2.666427175 | AB168: -3.894351331 | AC168: NO | AD168: YES | AE168: YES
A169: 1320 | B169: San Juan | D169: ARG | E169: N | F169: 36 | G169: 360 | H169: 5 | I169: 5413 | J169: ASPHALT | K169: E | L169: 5 | M169: -31.60280037 | N169: -68.54730225 | O169: 2079 | Q169: HARD | R169: -1.879706529 | S169: -2.074143523 | T169: -2.27010982 | U169: -2.467628867 | V169: -2.666427175 | AB169: -3.894351331 | AC169: NO | AD169: YES | AE169: YES
A170: 1321 | B170: San Martin De Los Andes | D170: ARG | E170: N | F170: 4 | G170: 40 | H170: 51 | I170: 3937 | J170: DIRT | K170: E | L170: 11 | Q170: SOFT | AC170: YES | AD170: YES | AE170: YES
A171: 1321 | B171: San Martin De Los Andes | D171: ARG | E171: N | F171: 22 | G171: 220 | H171: 231 | I171: 3937 | J171: DIRT | K171: E | L171: 11 | Q171: SOFT | AC171: YES | AD171: YES | AE171: YES
A172: 1847 | B172: Veronica | D172: ARG | E172: N | F172: 2 | G172: 20 | H172: 15 | I172: 4757 | J172: DIRT | K172: W | L172: 5 | M172: -35.4 | N172: -57.3667 | O172: 55 | Q172: SOFT | R172: -9.795803861 | S172: -9.946776405 | T172: -10.09922406 | U172: -10.25310586 | V172: -10.40856143 | AB172: -11.37369471 | AC172: NO | AD172: YES | AE172: NO
A173: 1847 | B173: Veronica | D173: ARG | E173: N | F173: 20 | G173: 200 | H173: 195 | I173: 4757 | J173: DIRT | K173: W | L173: 5 | M173: -35.4 | N173: -57.3667 | O173: 55 | Q173: SOFT | R173: -9.795803861 | S173: -9.946776405 | T173: -10.09922406 | U173: -10.25310586 | V173: -10.40856143 | AB173: -11.37369471 | AC173: NO | AD173: YES | AE173: NO
A174: 1847 | B174: Veronica | D174: ARG | E174: N | F174: 14 | G174: 140 | H174: 135 | I174: 2625 | J174: DIRT | K174: W | L174: 5 | M174: -35.4 | N174: -57.3667 | O174: 55 | Q174: SOFT | R174: -9.795803861 | S174: -9.946776405 | T174: -10.09922406 | U174: -10.25310586 | V174: -10.40856143 | AB174: -11.37369471 | AC174: NO | AD174: YES | AE174: NO
A175: 1847 | B175: Veronica | D175: ARG | E175: N | F175: 32 | G175: 320 | H175: 315 | I175: 2625 | J175: DIRT | K175: W | L175: 5 | M175: -35.4 | N175: -57.3667 | O175: 55 | Q175: SOFT | R175: -9.795803861 | S175: -9.946776405 | T175: -10.09922406 | U175: -10.25310586 | V175: -10.40856143 | AB175: -11.37369471 | AC175: NO | AD175: YES | AE175: NO
A176: 1850 | B176: General Rodriguez | D176: ARG | E176: N | F176: 16 | G176: 160 | H176: 157 | I176: 3773 | J176: DIRT | K176: W | L176: 3 | N176: 2MULTIPLE MATCHES | Q176: SOFT | AC176: NO | AD176: NO | AE176: NO
A177: 1850 | B177: General Rodriguez | D177: ARG | E177: N | F177: 34 | G177: 340 | H177: 337 | I177: 3773 | J177: DIRT | K177: W | L177: 3 | N177: 2MULTIPLE MATCHES | Q177: SOFT | AC177: NO | AD177: NO | AE177: NO
A178: 1854 | B178: Sub Aux Miguel A Cardone | D178: ARG | E178: N | F178: 14 | G178: 140 | H178: 137.7 | I178: 3609 | J178: DIRT | K178: W | L178: 2.3 | Q178: SOFT | AC178: NO | AD178: NO | AE178: NO
A179: 1854 | B179: Sub Aux Miguel A Cardone | D179: ARG | E179: N | F179: 32 | G179: 320 | H179: 317.7 | I179: 3609 | J179: DIRT | K179: W | L179: 2.3 | Q179: SOFT | AC179: NO | AD179: NO | AE179: NO
A180: 1888 | B180: Rio Cuarto | D180: ARG | E180: N | F180: 01R | G180: 10 | H180: 9.5 | I180: 2782 | J180: DIRT | K180: W | L180: 0.5 | M180: -33.16059875 | N180: -64.33820343 | O180: 1423 | Q180: SOFT | R180: -4.963557956 | S180: -5.150347997 | T180: -5.338766916 | U180: -5.528774025 | V180: -5.720414014 | AB180: -6.905572813 | AC180: NO | AD180: YES | AE180: NO
A181: 1888 | B181: Rio Cuarto | D181: ARG | E181: N | F181: 19L | G181: 190 | H181: 189.5 | I181: 2782 | J181: DIRT | K181: W | L181: 0.5 | M181: -33.16059875 | N181: -64.33820343 | O181: 1423 | Q181: SOFT | R181: -4.963557956 | S181: -5.150347997 | T181: -5.338766916 | U181: -5.528774025 | V181: -5.720414014 | AB181: -6.905572813 | AC181: NO | AD181: YES | AE181: NO
A182: 1888 | B182: Rio Cuarto | D182: ARG | E182: N | F182: 01L | G182: 10 | H182: 9.5 | I182: 3051 | J182: ASPHALT | K182: W | L182: 0.5 | M182: -33.16059875 | N182: -64.33820343 | O182: 1423 | Q182: HARD | R182: -4.963557956 | S182: -5.150347997 | T182: -5.338766916 | U182: -5.528774025 | V182: -5.720414014 | AB182: -6.905572813 | AC182: NO | AD182: YES | AE182: NO
A183: 1888 | B183: Rio Cuarto | D183: ARG | E183: N | F183: 19R | G183: 190 | H183: 189.5 | I183: 3051 | J183: ASPHALT | K183: W | L183: 0.5 | M183: -33.16059875 | N183: -64.33820343 | O183: 1423 | Q183: HARD | R183: -4.963557956 | S183: -5.150347997 | T183: -5.338766916 | U183: -5.528774025 | V183: -5.720414014 | AB183: -6.905572813 | AC183: NO | AD183: YES | AE183: NO
A184: AGR | B184: Alta Gracia | D184: ARG | E184: N | F184: 2 | G184: 20 | H184: 23 | I184: 3488 | J184: DIRT | K184: E | L184: 3 | M184: -31.65139961 | N184: -64.39389801 | O184: 1748 | Q184: SOFT | R184: -5.773576718 | S184: -5.967218457 | T184: -6.162777592 | U184: -6.360030016 | V184: -6.558960153 | AB184: -7.788351594 | AC184: NO | AD184: YES | AE184: YES
A185: AGR | B185: Alta Gracia | D185: ARG | E185: N | F185: 20 | G185: 200 | H185: 203 | I185: 3488 | J185: DIRT | K185: E | L185: 3 | M185: -31.65139961 | N185: -64.39389801 | O185: 1748 | Q185: SOFT | R185: -5.773576718 | S185: -5.967218457 | T185: -6.162777592 | U185: -6.360030016 | V185: -6.558960153 | AB185: -7.788351594 | AC185: NO | AD185: YES | AE185: YES
A186: AJA | B186: La Laja | D186: ARG | E186: N | F186: 15 | G186: 150 | H186: 155 | I186: 3937 | J186: DIRT | K186: E | L186: 5 | M186: -31.35138893 | N186: -68.47305298 | O186: 2132 | Q186: SOFT | R186: -2.090059658 | S186: -2.285696087 | T186: -2.482893111 | U186: -2.681639637 | V186: -2.881675602 | AB186: -4.117200175 | AC186: NO | AD186: YES | AE186: YES
A187: AJA | B187: La Laja | D187: ARG | E187: N | F187: 33 | G187: 330 | H187: 335 | I187: 3937 | J187: DIRT | K187: E | L187: 5 | M187: -31.35138893 | N187: -68.47305298 | O187: 2132 | Q187: SOFT | R187: -2.090059658 | S187: -2.285696087 | T187: -2.482893111 | U187: -2.681639637 | V187: -2.881675602 | AB187: -4.117200175 | AC187: NO | AD187: YES | AE187: YES
A188: APO | B188: Apostoles | D188: ARG | E188: N | F188: 6 | G188: 60 | H188: 48 | I188: 5906 | J188: ASPHALT | K188: W | L188: 12 | Q188: HARD | AC188: YES | AD188: YES | AE188: YES
A189: APO | B189: Apostoles | D189: ARG | E189: N | F189: 24 | G189: 240 | H189: 228 | I189: 5906 | J189: ASPHALT | K189: W | L189: 12 | Q189: HARD | AC189: YES | AD189: YES | AE189: YES
A190: ARY | B190: Arcor | D190: ARG | E190: N | F190: 1 | G190: 10 | H190: 6 | I190: 3937 | J190: DIRT | K190: W | L190: 4 | Q190: SOFT | AC190: NO | AD190: NO | AE190: NO
A191: ARY | B191: Arcor | D191: ARG | E191: N | F191: 19 | G191: 190 | H191: 186 | I191: 3937 | J191: DIRT | K191: W | L191: 4 | Q191: SOFT | AC191: NO | AD191: NO | AE191: NO
A192: ATE | B192: Zarate | D192: ARG | E192: N | F192: 1 | G192: 10 | H192: 9 | I192: 3937 | J192: DIRT | K192: W | L192: 1 | M192: -34.119912 | N192: -59.083198 | O192: 85 | Q192: SOFT | R192: -9.133645357 | S192: -9.29956437 | T192: -9.466777062 | U192: -9.635901418 | V192: -9.806575701 | AB192: -10.86468995 | AC192: NO | AD192: YES | AE192: YES
A193: ATE | B193: Zarate | D193: ARG | E193: N | F193: 19 | G193: 190 | H193: 189 | I193: 3937 | J193: DIRT | K193: W | L193: 1 | M193: -34.119912 | N193: -59.083198 | O193: 85 | Q193: SOFT | R193: -9.133645357 | S193: -9.29956437 | T193: -9.466777062 | U193: -9.635901418 | V193: -9.806575701 | AB193: -10.86468995 | AC193: NO | AD193: YES | AE193: YES
A194: ATE | B194: Zarate | D194: ARG | E194: N | F194: 9 | G194: 90 | H194: 89 | I194: 4429 | J194: DIRT | K194: W | L194: 1 | M194: -34.119912 | N194: -59.083198 | O194: 85 | Q194: SOFT | R194: -9.133645357 | S194: -9.29956437 | T194: -9.466777062 | U194: -9.635901418 | V194: -9.806575701 | AB194: -10.86468995 | AC194: NO | AD194: YES | AE194: YES
A195: ATE | B195: Zarate | D195: ARG | E195: N | F195: 27 | G195: 270 | H195: 269 | I195: 4429 | J195: DIRT | K195: W | L195: 1 | M195: -34.119912 | N195: -59.083198 | O195: 85 | Q195: SOFT | R195: -9.133645357 | S195: -9.29956437 | T195: -9.466777062 | U195: -9.635901418 | V195: -9.806575701 | AB195: -10.86468995 | AC195: NO | AD195: YES | AE195: YES
A196: AVA | B196: Aeroparque Rosario | D196: ARG | E196: N | F196: 1 | G196: 10 | H196: 2.4 | I196: 2523 | J196: DIRT | K196: W | L196: 7.6 | Q196: SOFT | AC196: YES | AD196: YES | AE196: YES
A197: AVA | B197: Aeroparque Rosario | D197: ARG | E197: N | F197: 19 | G197: 190 | H197: 182.4 | I197: 2523 | J197: DIRT | K197: W | L197: 7.6 | Q197: SOFT | AC197: YES | AD197: YES | AE197: YES
A198: BAI | B198: Lago Buenos Aires | D198: ARG | E198: N | F198: 10 | G198: 100 | H198: 109.8 | I198: 3281 | J198: DIRT | K198: E | L198: 9.8 | M198: -46.57640076 | N198: -70.94860077 | O198: 1312 | Q198: SOFT | R198: 9.316284419 | S198: 9.20022218 | T198: 9.083229992 | U198: 8.965096856 | V198: 8.846311886 | AB198: 8.113993847 | AC198: YES | AD198: NO | AE198: NO
A199: BAI | B199: Lago Buenos Aires | D199: ARG | E199: N | F199: 28 | G199: 280 | H199: 289.8 | I199: 3281 | J199: DIRT | K199: E | L199: 9.8 | M199: -46.57640076 | N199: -70.94860077 | O199: 1312 | Q199: SOFT | R199: 9.316284419 | S199: 9.20022218 | T199: 9.083229992 | U199: 8.965096856 | V199: 8.846311886 | AB199: 8.113993847 | AC199: YES | AD199: NO | AE199: NO
A200: BAL | B200: Balcarce | D200: ARG | E200: N | F200: 3 | G200: 30 | H200: 25 | I200: 3425 | J200: DIRT | K200: W | L200: 5 | M200: -37.9156 | N200: -58.3442 | O200: 393 | Q200: SOFT | R200: -7.336675264 | S200: -7.479981343 | T200: -7.624324685 | U200: -7.770393224 | V200: -7.917532198 | AB200: -8.831994601 | AC200: NO | AD200: NO | AE200: NO
A201: BAL | B201: Balcarce | D201: ARG | E201: N | F201: 21 | G201: 210 | H201: 205 | I201: 3425 | J201: DIRT | K201: W | L201: 5 | M201: -37.9156 | N201: -58.3442 | O201: 393 | Q201: SOFT | R201: -7.336675264 | S201: -7.479981343 | T201: -7.624324685 | U201: -7.770393224 | V201: -7.917532198 | AB201: -8.831994601 | AC201: NO | AD201: NO | AE201: NO
A202: BAL | B202: Balcarce | D202: ARG | E202: N | F202: 16 | G202: 160 | H202: 155 | I202: 2625 | J202: DIRT | K202: W | L202: 5 | M202: -37.9156 | N202: -58.3442 | O202: 393 | Q202: SOFT | R202: -7.336675264 | S202: -7.479981343 | T202: -7.624324685 | U202: -7.770393224 | V202: -7.917532198 | AB202: -8.831994601 | AC202: NO | AD202: NO | AE202: NO
A203: BAL | B203: Balcarce | D203: ARG | E203: N | F203: 34 | G203: 340 | H203: 335 | I203: 2625 | J203: DIRT | K203: W | L203: 5 | M203: -37.9156 | N203: -58.3442 | O203: 393 | Q203: SOFT | R203: -7.336675264 | S203: -7.479981343 | T203: -7.624324685 | U203: -7.770393224 | V203: -7.917532198 | AB203: -8.831994601 | AC203: NO | AD203: NO | AE203: NO
A204: BEL | B204: Bell Ville | D204: ARG | E204: N | F204: 18 | G204: 180 | H204: 174.1 | I204: 5453 | J204: ASPHALT | K204: W | L204: 5.9 | M204: -32.6599 | N204: -62.702 | O204: 429 | Q204: HARD | R204: -6.769469149 | S204: -6.955623708 | T204: -7.143138569 | U204: -7.332265655 | V204: -7.523060894 | AB204: -8.704575106 | AC204: YES | AD204: NO | AE204: NO
... 2046 more rows

Sheet CountryStats
C2: NOTE: Rows without Country names means that the 3 letter country code is not in the Countries worksheet
F5: ="Number of countries on screen =" & SUBTOTAL(103,B10:B246) -> Number of countries on screen =224
F6: ="Number of runways on screen =" & SUBTOTAL(109,F10:F246) -> Number of runways on screen =36980
F7: ="Number of runways missing coordinates on screen =" & SUBTOTAL(109,H10:H246) -> Number of runways missing coordinates on screen =1197 | I7: Runways Requiring changes
I8: =I247 -> 20805 | J8: =J247 -> 11949 | K8: =K247 -> 8570 | L8: =ReturnCount(L10,"YES") -> 0
B9: Country 3 letter Ident | C9: Country Name | D9: World Region | E9: Sub region | F9: Total# of runways in country | G9: Runways with coodinates | H9: Runways without coodinates | I9: With True | J9: With Mag | K9: Currently | L9: Mag > True
B10: AFG | C10: Afghanistan | D10: Asia | E10: Southern Asia | F10: 48 | G10: 46 | H10: 2 | I10: 9 | J10: 10 | K10: 8 | L10: =IF(Table4[[#This Row],[With True ]]<>"",IF(Table4[[#This Row],[With Mag]]>Table4[[#This Row],[With True ]],"YES",""),"") -> YES
B11: AGO | C11: Angola | D11: Africa | E11: Sub-Saharan Africa | F11: 36 | G11: 36 | H11: 0 | I11: 23 | J11: 17 | K11: 15 | L11: =IF(Table4[[#This Row],[With True ]]<>"",IF(Table4[[#This Row],[With Mag]]>Table4[[#This Row],[With True ]],"YES",""),"") -> 
B12: AIA | C12: Anguilla | D12: Americas | E12: Latin America and the Caribbean | F12: 2 | G12: 2 | H12: 0 | I12: 2 | J12: 0 | K12: 0 | L12: =IF(Table4[[#This Row],[With True ]]<>"",IF(Table4[[#This Row],[With Mag]]>Table4[[#This Row],[With True ]],"YES",""),"") -> 
B13: ALB | C13: Albania | D13: Europe | E13: Southern Europe | F13: 4 | G13: 4 | H13: 0 | I13: 0 | J13: 0 | K13: 0 | L13: =IF(Table4[[#This Row],[With True ]]<>"",IF(Table4[[#This Row],[With Mag]]>Table4[[#This Row],[With True ]],"YES",""),"") -> 
B14: SXM | C14: Sint Maarten (Dutch part) | D14: Americas | E14: Latin America and the Caribbean | F14: 10 | G14: 10 | H14: 0 | I14: 10 | J14: 4 | K14: 2 | L14: =IF(Table4[[#This Row],[With True ]]<>"",IF(Table4[[#This Row],[With Mag]]>Table4[[#This Row],[With True ]],"YES",""),"") -> 
B15: ARE | C15: United Arab Emirates | D15: Asia | E15: Western Asia | F15: 54 | G15: 50 | H15: 4 | I15: 2 | J15: 2 | K15: 2 | L15: =IF(Table4[[#This Row],[With True ]]<>"",IF(Table4[[#This Row],[With Mag]]>Table4[[#This Row],[With True ]],"YES",""),"") -> 
B16: ARG | C16: Argentina | D16: Americas | E16: Latin America and the Caribbean | F16: 578 | G16: 502 | H16: 76 | I16: 346 | J16: 196 | K16: 152 | L16: =IF(Table4[[#This Row],[With True ]]<>"",IF(Table4[[#This Row],[With Mag]]>Table4[[#This Row],[With True ]],"YES",""),"") -> 
B17: ARM | C17: Armenia | D17: Asia | E17: Western Asia | F17: 6 | G17: 6 | H17: 0 | I17: 0 | J17: 2 | K17: 2 | L17: =IF(Table4[[#This Row],[With True ]]<>"",IF(Table4[[#This Row],[With Mag]]>Table4[[#This Row],[With True ]],"YES",""),"") -> YES
B18: ASM | C18: American Samoa | D18: Oceania | E18: Polynesia | F18: 8 | G18: 8 | H18: 0 | I18: 8 | J18: 0 | K18: 2 | L18: =IF(Table4[[#This Row],[With True ]]<>"",IF(Table4[[#This Row],[With Mag]]>Table4[[#This Row],[With True ]],"YES",""),"") -> 
B19: ATG | C19: Antigua and Barbuda | D19: Americas | E19: Latin America and the Caribbean | F19: 4 | G19: 4 | H19: 0 | I19: 4 | J19: 0 | K19: 0 | L19: =IF(Table4[[#This Row],[With True ]]<>"",IF(Table4[[#This Row],[With Mag]]>Table4[[#This Row],[With True ]],"YES",""),"") -> 
B20: AUS | C20: Australia | D20: Oceania | E20: Australia and New Zealand | F20: 1366 | G20: 1328 | H20: 38 | I20: 936 | J20: 317 | K20: 285 | L20: =IF(Table4[[#This Row],[With True ]]<>"",IF(Table4[[#This Row],[With Mag]]>Table4[[#This Row],[With True ]],"YES",""),"") -> 
B21: AUT | C21: Austria | D21: Europe | E21: Western Europe | F21: 136 | G21: 136 | H21: 0 | I21: 28 | J21: 70 | K21: 36 | L21: =IF(Table4[[#This Row],[With True ]]<>"",IF(Table4[[#This Row],[With Mag]]>Table4[[#This Row],[With True ]],"YES",""),"") -> YES
B22: AZE | C22: Azerbaijan | D22: Asia | E22: Western Asia | F22: 22 | G22: 22 | H22: 0 | I22: 14 | J22: 2 | K22: 0 | L22: =IF(Table4[[#This Row],[With True ]]<>"",IF(Table4[[#This Row],[With Mag]]>Table4[[#This Row],[With True ]],"YES",""),"") -> 
B23: BDI | C23: Burundi | D23: Africa | E23: Sub-Saharan Africa | F23: 6 | G23: 6 | H23: 0 | I23: 0 | J23: 0 | K23: 0 | L23: =IF(Table4[[#This Row],[With True ]]<>"",IF(Table4[[#This Row],[With Mag]]>Table4[[#This Row],[With True ]],"YES",""),"") -> 
B24: BEL | C24: Belgium | D24: Europe | E24: Western Europe | F24: 112 | G24: 112 | H24: 0 | I24: 8 | J24: 32 | K24: 14 | L24: =IF(Table4[[#This Row],[With True ]]<>"",IF(Table4[[#This Row],[With Mag]]>Table4[[#This Row],[With True ]],"YES",""),"") -> YES
B25: BEN | C25: Benin | D25: Africa | E25: Sub-Saharan Africa | F25: 4 | G25: 4 | H25: 0 | I25: 2 | J25: 2 | K25: 0 | L25: =IF(Table4[[#This Row],[With True ]]<>"",IF(Table4[[#This Row],[With Mag]]>Table4[[#This Row],[With True ]],"YES",""),"") -> 
B26: BFA | C26: Burkina Faso | D26: Africa | E26: Sub-Saharan Africa | F26: 8 | G26: 8 | H26: 0 | I26: 6 | J26: 6 | K26: 2 | L26: =IF(Table4[[#This Row],[With True ]]<>"",IF(Table4[[#This Row],[With Mag]]>Table4[[#This Row],[With True ]],"YES",""),"") -> 
B27: BGD | C27: Bangladesh | D27: Asia | E27: Southern Asia | F27: 22 | G27: 22 | H27: 0 | I27: 0 | J27: 0 | K27: 0 | L27: =IF(Table4[[#This Row],[With True ]]<>"",IF(Table4[[#This Row],[With Mag]]>Table4[[#This Row],[With True ]],"YES",""),"") -> 
B28: BGR | C28: Bulgaria | D28: Europe | E28: Eastern Europe | F28: 30 | G28: 28 | H28: 2 | I28: 12 | J28: 6 | K28: 4 | L28: =IF(Table4[[#This Row],[With True ]]<>"",IF(Table4[[#This Row],[With Mag]]>Table4[[#This Row],[With True ]],"YES",""),"") -> 
B29: BHR | C29: Bahrain | D29: Asia | E29: Western Asia | F29: 10 | G29: 10 | H29: 0 | I29: 0 | J29: 0 | K29: 0 | L29: =IF(Table4[[#This Row],[With True ]]<>"",IF(Table4[[#This Row],[With Mag]]>Table4[[#This Row],[With True ]],"YES",""),"") -> 
B30: BHS | C30: Bahamas | D30: Americas | E30: Latin America and the Caribbean | F30: 68 | G30: 66 | H30: 2 | I30: 30 | J30: 38 | K30: 30 | L30: =IF(Table4[[#This Row],[With True ]]<>"",IF(Table4[[#This Row],[With Mag]]>Table4[[#This Row],[With True ]],"YES",""),"") -> YES
B31: BIH | C31: Bosnia and Herzegovina | D31: Europe | E31: Southern Europe | F31: 40 | G31: 24 | H31: 16 | I31: 10 | J31: 6 | K31: 2 | L31: =IF(Table4[[#This Row],[With True ]]<>"",IF(Table4[[#This Row],[With Mag]]>Table4[[#This Row],[With True ]],"YES",""),"") -> 
B32: BLR | C32: Belarus | D32: Europe | E32: Eastern Europe | F32: 16 | G32: 16 | H32: 0 | I32: 14 | J32: 0 | K32: 0 | L32: =IF(Table4[[#This Row],[With True ]]<>"",IF(Table4[[#This Row],[With Mag]]>Table4[[#This Row],[With True ]],"YES",""),"") -> 
B33: BLZ | C33: Belize | D33: Americas | E33: Latin America and the Caribbean | F33: 10 | G33: 8 | H33: 2 | I33: 2 | J33: 2 | K33: 2 | L33: =IF(Table4[[#This Row],[With True ]]<>"",IF(Table4[[#This Row],[With Mag]]>Table4[[#This Row],[With True ]],"YES",""),"") -> 
B34: BMU | C34: Bermuda | D34: Americas | E34: Northern America | F34: 2 | G34: 2 | H34: 0 | I34: 2 | J34: 0 | K34: 0 | L34: =IF(Table4[[#This Row],[With True ]]<>"",IF(Table4[[#This Row],[With Mag]]>Table4[[#This Row],[With True ]],"YES",""),"") -> 
B35: BOL | C35: Bolivia (Plurinational State of) | D35: Americas | E35: Latin America and the Caribbean | F35: 88 | G35: 88 | H35: 0 | I35: 72 | J35: 41 | K35: 31 | L35: =IF(Table4[[#This Row],[With True ]]<>"",IF(Table4[[#This Row],[With Mag]]>Table4[[#This Row],[With True ]],"YES",""),"") -> 
B36: BRA | C36: Brazil | D36: Americas | E36: Latin America and the Caribbean | F36: 1646 | G36: 1616 | H36: 30 | I36: 1640 | J36: 252 | K36: 217 | L36: =IF(Table4[[#This Row],[With True ]]<>"",IF(Table4[[#This Row],[With Mag]]>Table4[[#This Row],[With True ]],"YES",""),"") -> 
B37: BRB | C37: Barbados | D37: Americas | E37: Latin America and the Caribbean | F37: 2 | G37: 2 | H37: 0 | I37: 2 | J37: 0 | K37: 0 | L37: =IF(Table4[[#This Row],[With True ]]<>"",IF(Table4[[#This Row],[With Mag]]>Table4[[#This Row],[With True ]],"YES",""),"") -> 
B38: BRN | C38: Brunei Darussalam | D38: Asia | E38: South-eastern Asia | F38: 4 | G38: 4 | H38: 0 | I38: 0 | J38: 2 | K38: 2 | L38: =IF(Table4[[#This Row],[With True ]]<>"",IF(Table4[[#This Row],[With Mag]]>Table4[[#This Row],[With True ]],"YES",""),"") -> YES
B39: BTN | C39: Bhutan | D39: Asia | E39: Southern Asia | F39: 8 | G39: 6 | H39: 2 | I39: 2 | J39: 2 | K39: 2 | L39: =IF(Table4[[#This Row],[With True ]]<>"",IF(Table4[[#This Row],[With Mag]]>Table4[[#This Row],[With True ]],"YES",""),"") -> 
B40: BWA | C40: Botswana | D40: Africa | E40: Sub-Saharan Africa | F40: 42 | G40: 42 | H40: 0 | I40: 40 | J40: 9 | K40: 5 | L40: =IF(Table4[[#This Row],[With True ]]<>"",IF(Table4[[#This Row],[With Mag]]>Table4[[#This Row],[With True ]],"YES",""),"") -> 
B41: CAF | C41: Central African Republic | D41: Africa | E41: Sub-Saharan Africa | F41: 16 | G41: 16 | H41: 0 | I41: 4 | J41: 6 | K41: 4 | L41: =IF(Table4[[#This Row],[With True ]]<>"",IF(Table4[[#This Row],[With Mag]]>Table4[[#This Row],[With True ]],"YES",""),"") -> YES
B42: CAN | C42: Canada | D42: Americas | E42: Northern America | F42: 2949 | G42: 2831 | H42: 118 | I42: 2588 | J42: 818 | K42: 651 | L42: =IF(Table4[[#This Row],[With True ]]<>"",IF(Table4[[#This Row],[With Mag]]>Table4[[#This Row],[With True ]],"YES",""),"") -> 
B43: CHE | C43: Switzerland | D43: Europe | E43: Western Europe | F43: 129 | G43: 128 | H43: 1 | I43: 22 | J43: 52 | K43: 32 | L43: =IF(Table4[[#This Row],[With True ]]<>"",IF(Table4[[#This Row],[With Mag]]>Table4[[#This Row],[With True ]],"YES",""),"") -> YES
B44: CHL | C44: Chile | D44: Americas | E44: Latin America and the Caribbean | F44: 301 | G44: 293 | H44: 8 | I44: 173 | J44: 53 | K44: 47 | L44: =IF(Table4[[#This Row],[With True ]]<>"",IF(Table4[[#This Row],[With Mag]]>Table4[[#This Row],[With True ]],"YES",""),"") -> 
B45: CHN | C45: China | D45: Asia | E45: Eastern Asia | F45: 249 | G45: 249 | H45: 0 | I45: 93 | J45: 74 | K45: 53 | L45: =IF(Table4[[#This Row],[With True ]]<>"",IF(Table4[[#This Row],[With Mag]]>Table4[[#This Row],[With True ]],"YES",""),"") -> 
B46: CIV | C46: Côte d'Ivoire | D46: Africa | E46: Sub-Saharan Africa | F46: 16 | G46: 16 | H46: 0 | I46: 14 | J46: 6 | K46: 2 | L46: =IF(Table4[[#This Row],[With True ]]<>"",IF(Table4[[#This Row],[With Mag]]>Table4[[#This Row],[With True ]],"YES",""),"") -> 
B47: CMR | C47: Cameroon | D47: Africa | E47: Sub-Saharan Africa | F47: 22 | G47: 22 | H47: 0 | I47: 2 | J47: 8 | K47: 2 | L47: =IF(Table4[[#This Row],[With True ]]<>"",IF(Table4[[#This Row],[With Mag]]>Table4[[#This Row],[With True ]],"YES",""),"") -> YES
B48: COD | C48: Congo, Democratic Republic of the | D48: Africa | E48: Sub-Saharan Africa | F48: 40 | G48: 40 | H48: 0 | I48: 12 | J48: 16 | K48: 16 | L48: =IF(Table4[[#This Row],[With True ]]<>"",IF(Table4[[#This Row],[With Mag]]>Table4[[#This Row],[With True ]],"YES",""),"") -> YES
B49: COG | C49: Congo | D49: Africa | E49: Sub-Saharan Africa | F49: 10 | G49: 8 | H49: 2 | I49: 0 | J49: 2 | K49: 0 | L49: =IF(Table4[[#This Row],[With True ]]<>"",IF(Table4[[#This Row],[With Mag]]>Table4[[#This Row],[With True ]],"YES",""),"") -> YES
B50: COK | C50: Cook Islands | D50: Oceania | E50: Polynesia | F50: 18 | G50: 18 | H50: 0 | I50: 18 | J50: 0 | K50: 0 | L50: =IF(Table4[[#This Row],[With True ]]<>"",IF(Table4[[#This Row],[With Mag]]>Table4[[#This Row],[With True ]],"YES",""),"") -> 
B51: COL | C51: Colombia | D51: Americas | E51: Latin America and the Caribbean | F51: 212 | G51: 208 | H51: 4 | I51: 128 | J51: 75 | K51: 42 | L51: =IF(Table4[[#This Row],[With True ]]<>"",IF(Table4[[#This Row],[With Mag]]>Table4[[#This Row],[With True ]],"YES",""),"") -> 
B52: COM | C52: Comoros | D52: Africa | E52: Sub-Saharan Africa | F52: 6 | G52: 6 | H52: 0 | I52: 4 | J52: 0 | K52: 0 | L52: =IF(Table4[[#This Row],[With True ]]<>"",IF(Table4[[#This Row],[With Mag]]>Table4[[#This Row],[With True ]],"YES",""),"") -> 
B53: CPV | C53: Cabo Verde | D53: Africa | E53: Sub-Saharan Africa | F53: 14 | G53: 14 | H53: 0 | I53: 14 | J53: 6 | K53: 3 | L53: =IF(Table4[[#This Row],[With True ]]<>"",IF(Table4[[#This Row],[With Mag]]>Table4[[#This Row],[With True ]],"YES",""),"") -> 
B54: CRI | C54: Costa Rica | D54: Americas | E54: Latin America and the Caribbean | F54: 78 | G54: 72 | H54: 6 | I54: 4 | J54: 8 | K54: 6 | L54: =IF(Table4[[#This Row],[With True ]]<>"",IF(Table4[[#This Row],[With Mag]]>Table4[[#This Row],[With True ]],"YES",""),"") -> YES
B55: CUB | C55: Cuba | D55: Americas | E55: Latin America and the Caribbean | F55: 44 | G55: 44 | H55: 0 | I55: 24 | J55: 9 | K55: 7 | L55: =IF(Table4[[#This Row],[With True ]]<>"",IF(Table4[[#This Row],[With Mag]]>Table4[[#This Row],[With True ]],"YES",""),"") -> 
B56: CYM | C56: Cayman Islands | D56: Americas | E56: Latin America and the Caribbean | F56: 4 | G56: 4 | H56: 0 | I56: 0 | J56: 2 | K56: 2 | L56: =IF(Table4[[#This Row],[With True ]]<>"",IF(Table4[[#This Row],[With Mag]]>Table4[[#This Row],[With True ]],"YES",""),"") -> YES
B57: CYP | C57: Cyprus | D57: Asia | E57: Western Asia | F57: 10 | G57: 10 | H57: 0 | I57: 4 | J57: 4 | K57: 2 | L57: =IF(Table4[[#This Row],[With True ]]<>"",IF(Table4[[#This Row],[With Mag]]>Table4[[#This Row],[With True ]],"YES",""),"") -> 
B58: CZE | C58: Czechia | D58: Europe | E58: Eastern Europe | F58: 278 | G58: 272 | H58: 6 | I58: 66 | J58: 106 | K58: 76 | L58: =IF(Table4[[#This Row],[With True ]]<>"",IF(Table4[[#This Row],[With Mag]]>Table4[[#This Row],[With True ]],"YES",""),"") -> YES
B59: DEU | C59: Germany | D59: Europe | E59: Western Europe | F59: 1102 | G59: 1098 | H59: 4 | I59: 170 | J59: 403 | K59: 176 | L59: =IF(Table4[[#This Row],[With True ]]<>"",IF(Table4[[#This Row],[With Mag]]>Table4[[#This Row],[With True ]],"YES",""),"") -> YES
B60: DJI | C60: Djibouti | D60: Africa | E60: Sub-Saharan Africa | F60: 2 | G60: 2 | H60: 0 | I60: 0 | J60: 0 | K60: 0 | L60: =IF(Table4[[#This Row],[With True ]]<>"",IF(Table4[[#This Row],[With Mag]]>Table4[[#This Row],[With True ]],"YES",""),"") -> 
B61: DMA | C61: Dominica | D61: Americas | E61: Latin America and the Caribbean | F61: 4 | G61: 4 | H61: 0 | I61: 4 | J61: 1 | K61: 1 | L61: =IF(Table4[[#This Row],[With True ]]<>"",IF(Table4[[#This Row],[With Mag]]>Table4[[#This Row],[With True ]],"YES",""),"") -> 
B62: DNK | C62: Denmark | D62: Europe | E62: Northern Europe | F62: 168 | G62: 150 | H62: 18 | I62: 28 | J62: 80 | K62: 32 | L62: =IF(Table4[[#This Row],[With True ]]<>"",IF(Table4[[#This Row],[With Mag]]>Table4[[#This Row],[With True ]],"YES",""),"") -> YES
B63: DOM | C63: Dominican Republic | D63: Americas | E63: Latin America and the Caribbean | F63: 42 | G63: 40 | H63: 2 | I63: 36 | J63: 16 | K63: 10 | L63: =IF(Table4[[#This Row],[With True ]]<>"",IF(Table4[[#This Row],[With Mag]]>Table4[[#This Row],[With True ]],"YES",""),"") -> 
B64: DZA | C64: Algeria | D64: Africa | E64: Northern Africa | F64: 96 | G64: 96 | H64: 0 | I64: 4 | J64: 15 | K64: 7 | L64: =IF(Table4[[#This Row],[With True ]]<>"",IF(Table4[[#This Row],[With Mag]]>Table4[[#This Row],[With True ]],"YES",""),"") -> YES
B65: ECU | C65: Ecuador | D65: Americas | E65: Latin America and the Caribbean | F65: 68 | G65: 64 | H65: 4 | I65: 16 | J65: 16 | K65: 4 | L65: =IF(Table4[[#This Row],[With True ]]<>"",IF(Table4[[#This Row],[With Mag]]>Table4[[#This Row],[With True ]],"YES",""),"") -> 
B66: EGY | C66: Egypt | D66: Africa | E66: Northern Africa | F66: 80 | G66: 80 | H66: 0 | I66: 18 | J66: 36 | K66: 20 | L66: =IF(Table4[[#This Row],[With True ]]<>"",IF(Table4[[#This Row],[With Mag]]>Table4[[#This Row],[With True ]],"YES",""),"") -> YES
B67: ERI | C67: Eritrea | D67: Africa | E67: Sub-Saharan Africa | F67: 6 | G67: 6 | H67: 0 | I67: 0 | J67: 0 | K67: 0 | L67: =IF(Table4[[#This Row],[With True ]]<>"",IF(Table4[[#This Row],[With Mag]]>Table4[[#This Row],[With True ]],"YES",""),"") -> 
B68: ESP | C68: Spain | D68: Europe | E68: Southern Europe | F68: 185 | G68: 185 | H68: 0 | I68: 22 | J68: 58 | K68: 36 | L68: =IF(Table4[[#This Row],[With True ]]<>"",IF(Table4[[#This Row],[With Mag]]>Table4[[#This Row],[With True ]],"YES",""),"") -> YES
B69: EST | C69: Estonia | D69: Europe | E69: Northern Europe | F69: 46 | G69: 44 | H69: 2 | I69: 38 | J69: 15 | K69: 5 | L69: =IF(Table4[[#This Row],[With True ]]<>"",IF(Table4[[#This Row],[With Mag]]>Table4[[#This Row],[With True ]],"YES",""),"") -> 
B70: ETH | C70: Ethiopia | D70: Africa | E70: Sub-Saharan Africa | F70: 40 | G70: 40 | H70: 0 | I70: 1 | J70: 6 | K70: 6 | L70: =IF(Table4[[#This Row],[With True ]]<>"",IF(Table4[[#This Row],[With Mag]]>Table4[[#This Row],[With True ]],"YES",""),"") -> YES
B71: FIN | C71: Finland | D71: Europe | E71: Northern Europe | F71: 188 | G71: 188 | H71: 0 | I71: 128 | J71: 101 | K71: 82 | L71: =IF(Table4[[#This Row],[With True ]]<>"",IF(Table4[[#This Row],[With Mag]]>Table4[[#This Row],[With True ]],"YES",""),"") -> 
B72: FJI | C72: Fiji | D72: Oceania | E72: Melanesia | F72: 44 | G72: 44 | H72: 0 | I72: 44 | J72: 2 | K72: 4 | L72: =IF(Table4[[#This Row],[With True ]]<>"",IF(Table4[[#This Row],[With Mag]]>Table4[[#This Row],[With True ]],"YES",""),"") -> 
B73: FLK | C73: Falkland Islands (Malvinas) | D73: Americas | E73: Latin America and the Caribbean | F73: 8 | G73: 8 | H73: 0 | I73: 0 | J73: 0 | K73: 0 | L73: =IF(Table4[[#This Row],[With True ]]<>"",IF(Table4[[#This Row],[With Mag]]>Table4[[#This Row],[With True ]],"YES",""),"") -> 
B74: FRA | C74: France | D74: Europe | E74: Western Europe | F74: 1316 | G74: 1314 | H74: 2 | I74: 59 | J74: 358 | K74: 164 | L74: =IF(Table4[[#This Row],[With True ]]<>"",IF(Table4[[#This Row],[With Mag]]>Table4[[#This Row],[With True ]],"YES",""),"") -> YES
B75: FRO | C75: Faroe Islands | D75: Europe | E75: Northern Europe | F75: 2 | G75: 2 | H75: 0 | I75: 0 | J75: 0 | K75: 0 | L75: =IF(Table4[[#This Row],[With True ]]<>"",IF(Table4[[#This Row],[With Mag]]>Table4[[#This Row],[With True ]],"YES",""),"") -> 
B76: XJI | C76: Micronesia (Federated States of) | D76: Oceania | E76: Micronesia | F76: 28 | G76: 28 | H76: 0 | I76: 22 | J76: 8 | K76: 2 | L76: =IF(Table4[[#This Row],[With True ]]<>"",IF(Table4[[#This Row],[With Mag]]>Table4[[#This Row],[With True ]],"YES",""),"") -> 
B77: GAB | C77: Gabon | D77: Africa | E77: Sub-Saharan Africa | F77: 18 | G77: 18 | H77: 0 | I77: 12 | J77: 12 | K77: 8 | L77: =IF(Table4[[#This Row],[With True ]]<>"",IF(Table4[[#This Row],[With Mag]]>Table4[[#This Row],[With True ]],"YES",""),"") -> 
B78: GBR | C78: United Kingdom of Great Britain and Northern Ireland | D78: Europe | E78: Northern Europe | F78: 748 | G78: 738 | H78: 10 | I78: 138 | J78: 227 | K78: 125 | L78: =IF(Table4[[#This Row],[With True ]]<>"",IF(Table4[[#This Row],[With Mag]]>Table4[[#This Row],[With True ]],"YES",""),"") -> YES
B79: GEO | C79: Georgia | D79: Asia | E79: Western Asia | F79: 12 | G79: 8 | H79: 4 | I79: 8 | J79: 4 | K79: 4 | L79: =IF(Table4[[#This Row],[With True ]]<>"",IF(Table4[[#This Row],[With Mag]]>Table4[[#This Row],[With True ]],"YES",""),"") -> 
B80: GHA | C80: Ghana | D80: Africa | E80: Sub-Saharan Africa | F80: 16 | G80: 16 | H80: 0 | I80: 8 | J80: 4 | K80: 2 | L80: =IF(Table4[[#This Row],[With True ]]<>"",IF(Table4[[#This Row],[With Mag]]>Table4[[#This Row],[With True ]],"YES",""),"") -> 
B81: GIB | C81: Gibraltar | D81: Europe | E81: Southern Europe | F81: 2 | G81: 2 | H81: 0 | I81: 0 | J81: 0 | K81: 0 | L81: =IF(Table4[[#This Row],[With True ]]<>"",IF(Table4[[#This Row],[With Mag]]>Table4[[#This Row],[With True ]],"YES",""),"") -> 
B82: GIN | C82: Guinea | D82: Africa | E82: Sub-Saharan Africa | F82: 24 | G82: 22 | H82: 2 | I82: 24 | J82: 18 | K82: 10 | L82: =IF(Table4[[#This Row],[With True ]]<>"",IF(Table4[[#This Row],[With Mag]]>Table4[[#This Row],[With True ]],"YES",""),"") -> 
B83: GLP | C83: Guadeloupe | D83: Americas | E83: Latin America and the Caribbean | F83: 16 | G83: 16 | H83: 0 | I83: 16 | J83: 0 | K83: 0 | L83: =IF(Table4[[#This Row],[With True ]]<>"",IF(Table4[[#This Row],[With Mag]]>Table4[[#This Row],[With True ]],"YES",""),"") -> 
B84: GMB | C84: Gambia | D84: Africa | E84: Sub-Saharan Africa | F84: 2 | G84: 2 | H84: 0 | I84: 2 | J84: 0 | K84: 0 | L84: =IF(Table4[[#This Row],[With True ]]<>"",IF(Table4[[#This Row],[With Mag]]>Table4[[#This Row],[With True ]],"YES",""),"") -> 
B85: GNB | C85: Guinea-Bissau | D85: Africa | E85: Sub-Saharan Africa | F85: 2 | G85: 2 | H85: 0 | I85: 2 | J85: 2 | K85: 0 | L85: =IF(Table4[[#This Row],[With True ]]<>"",IF(Table4[[#This Row],[With Mag]]>Table4[[#This Row],[With True ]],"YES",""),"") -> 
B86: GNQ | C86: Equatorial Guinea | D86: Africa | E86: Sub-Saharan Africa | F86: 6 | G86: 6 | H86: 0 | I86: 0 | J86: 0 | K86: 0 | L86: =IF(Table4[[#This Row],[With True ]]<>"",IF(Table4[[#This Row],[With Mag]]>Table4[[#This Row],[With True ]],"YES",""),"") -> 
B87: GRC | C87: Greece | D87: Europe | E87: Southern Europe | F87: 120 | G87: 120 | H87: 0 | I87: 28 | J87: 20 | K87: 14 | L87: =IF(Table4[[#This Row],[With True ]]<>"",IF(Table4[[#This Row],[With Mag]]>Table4[[#This Row],[With True ]],"YES",""),"") -> 
B88: GRD | C88: Grenada | D88: Americas | E88: Latin America and the Caribbean | F88: 4 | G88: 4 | H88: 0 | I88: 4 | J88: 2 | K88: 2 | L88: =IF(Table4[[#This Row],[With True ]]<>"",IF(Table4[[#This Row],[With Mag]]>Table4[[#This Row],[With True ]],"YES",""),"") -> 
B89: GRL | C89: Greenland | D89: Americas | E89: Northern America | F89: 32 | G89: 32 | H89: 0 | I89: 30 | J89: 20 | K89: 14 | L89: =IF(Table4[[#This Row],[With True ]]<>"",IF(Table4[[#This Row],[With Mag]]>Table4[[#This Row],[With True ]],"YES",""),"") -> 
B90: GTM | C90: Guatemala | D90: Americas | E90: Latin America and the Caribbean | F90: 16 | G90: 16 | H90: 0 | I90: 6 | J90: 8 | K90: 4 | L90: =IF(Table4[[#This Row],[With True ]]<>"",IF(Table4[[#This Row],[With Mag]]>Table4[[#This Row],[With True ]],"YES",""),"") -> YES
B91: GUF | C91: French Guiana | D91: Americas | E91: Latin America and the Caribbean | F91: 18 | G91: 18 | H91: 0 | I91: 18 | J91: 0 | K91: 0 | L91: =IF(Table4[[#This Row],[With True ]]<>"",IF(Table4[[#This Row],[With Mag]]>Table4[[#This Row],[With True ]],"YES",""),"") -> 
B92: GUM | C92: Guam | D92: Oceania | E92: Micronesia | F92: 8 | G92: 8 | H92: 0 | I92: 4 | J92: 4 | K92: 4 | L92: =IF(Table4[[#This Row],[With True ]]<>"",IF(Table4[[#This Row],[With Mag]]>Table4[[#This Row],[With True ]],"YES",""),"") -> 
B93: GUY | C93: Guyana | D93: Americas | E93: Latin America and the Caribbean | F93: 44 | G93: 42 | H93: 2 | I93: 44 | J93: 4 | K93: 2 | L93: =IF(Table4[[#This Row],[With True ]]<>"",IF(Table4[[#This Row],[With Mag]]>Table4[[#This Row],[With True ]],"YES",""),"") -> 
B94: HKG | C94: Hong Kong | D94: Asia | E94: Eastern Asia | F94: 4 | G94: 4 | H94: 0 | I94: 0 | J94: 0 | K94: 0 | L94: =IF(Table4[[#This Row],[With True ]]<>"",IF(Table4[[#This Row],[With Mag]]>Table4[[#This Row],[With True ]],"YES",""),"") -> 
B95: HND | C95: Honduras | D95: Americas | E95: Latin America and the Caribbean | F95: 40 | G95: 38 | H95: 2 | I95: 6 | J95: 6 | K95: 4 | L95: =IF(Table4[[#This Row],[With True ]]<>"",IF(Table4[[#This Row],[With Mag]]>Table4[[#This Row],[With True ]],"YES",""),"") -> 
B96: HRV | C96: Croatia | D96: Europe | E96: Southern Europe | F96: 94 | G96: 74 | H96: 20 | I96: 16 | J96: 26 | K96: 12 | L96: =IF(Table4[[#This Row],[With True ]]<>"",IF(Table4[[#This Row],[With Mag]]>Table4[[#This Row],[With True ]],"YES",""),"") -> YES
B97: HTI | C97: Haiti | D97: Americas | E97: Latin America and the Caribbean | F97: 10 | G97: 10 | H97: 0 | I97: 8 | J97: 4 | K97: 2 | L97: =IF(Table4[[#This Row],[With True ]]<>"",IF(Table4[[#This Row],[With Mag]]>Table4[[#This Row],[With True ]],"YES",""),"") -> 
B98: HUN | C98: Hungary | D98: Europe | E98: Eastern Europe | F98: 50 | G98: 50 | H98: 0 | I98: 10 | J98: 18 | K98: 6 | L98: =IF(Table4[[#This Row],[With True ]]<>"",IF(Table4[[#This Row],[With Mag]]>Table4[[#This Row],[With True ]],"YES",""),"") -> YES
B99: IDN | C99: Indonesia | D99: Asia | E99: South-eastern Asia | F99: 570 | G99: 484 | H99: 86 | I99: 62 | J99: 68 | K99: 52 | L99: =IF(Table4[[#This Row],[With True ]]<>"",IF(Table4[[#This Row],[With Mag]]>Table4[[#This Row],[With True ]],"YES",""),"") -> YES
B100: RUS | C100: Russian Federation | D100: Europe | E100: Eastern Europe | F100: 362 | G100: 360 | H100: 2 | I100: 298 | J100: 85 | K100: 53 | L100: =IF(Table4[[#This Row],[With True ]]<>"",IF(Table4[[#This Row],[With Mag]]>Table4[[#This Row],[With True ]],"YES",""),"") -> 
B101: IND | C101: India | D101: Asia | E101: Southern Asia | F101: 322 | G101: 322 | H101: 0 | I101: 32 | J101: 36 | K101: 28 | L101: =IF(Table4[[#This Row],[With True ]]<>"",IF(Table4[[#This Row],[With Mag]]>Table4[[#This Row],[With True ]],"YES",""),"") -> YES
B102: IRL | C102: Ireland | D102: Europe | E102: Northern Europe | F102: 62 | G102: 62 | H102: 0 | I102: 30 | J102: 30 | K102: 18 | L102: =IF(Table4[[#This Row],[With True ]]<>"",IF(Table4[[#This Row],[With Mag]]>Table4[[#This Row],[With True ]],"YES",""),"") -> 
B103: IRN | C103: Iran (Islamic Republic of) | D103: Asia | E103: Southern Asia | F103: 196 | G103: 196 | H103: 0 | I103: 38 | J103: 34 | K103: 18 | L103: =IF(Table4[[#This Row],[With True ]]<>"",IF(Table4[[#This Row],[With Mag]]>Table4[[#This Row],[With True ]],"YES",""),"") -> 
B104: IRQ | C104: Iraq | D104: Asia | E104: Western Asia | F104: 24 | G104: 24 | H104: 0 | I104: 6 | J104: 12 | K104: 8 | L104: =IF(Table4[[#This Row],[With True ]]<>"",IF(Table4[[#This Row],[With Mag]]>Table4[[#This Row],[With True ]],"YES",""),"") -> YES
B105: ISL | C105: Iceland | D105: Europe | E105: Northern Europe | F105: 120 | G105: 116 | H105: 4 | I105: 118 | J105: 29 | K105: 16 | L105: =IF(Table4[[#This Row],[With True ]]<>"",IF(Table4[[#This Row],[With Mag]]>Table4[[#This Row],[With True ]],"YES",""),"") -> 
B106: ISR | C106: Israel | D106: Asia | E106: Western Asia | F106: 12 | G106: 12 | H106: 0 | I106: 2 | J106: 6 | K106: 4 | L106: =IF(Table4[[#This Row],[With True ]]<>"",IF(Table4[[#This Row],[With Mag]]>Table4[[#This Row],[With True ]],"YES",""),"") -> YES
B107: ITA | C107: Italy | D107: Europe | E107: Southern Europe | F107: 368 | G107: 342 | H107: 26 | I107: 34 | J107: 123 | K107: 89 | L107: =IF(Table4[[#This Row],[With True ]]<>"",IF(Table4[[#This Row],[With Mag]]>Table4[[#This Row],[With True ]],"YES",""),"") -> YES
B108: JAM | C108: Jamaica | D108: Americas | E108: Latin America and the Caribbean | F108: 14 | G108: 12 | H108: 2 | I108: 6 | J108: 2 | K108: 0 | L108: =IF(Table4[[#This Row],[With True ]]<>"",IF(Table4[[#This Row],[With Mag]]>Table4[[#This Row],[With True ]],"YES",""),"") -> 
B109: JOR | C109: Jordan | D109: Asia | E109: Western Asia | F109: 10 | G109: 10 | H109: 0 | I109: 2 | J109: 6 | K109: 0 | L109: =IF(Table4[[#This Row],[With True ]]<>"",IF(Table4[[#This Row],[With Mag]]>Table4[[#This Row],[With True ]],"YES",""),"") -> YES
B110: JPN | C110: Japan | D110: Asia | E110: Eastern Asia | F110: 296 | G110: 296 | H110: 0 | I110: 196 | J110: 55 | K110: 43 | L110: =IF(Table4[[#This Row],[With True ]]<>"",IF(Table4[[#This Row],[With Mag]]>Table4[[#This Row],[With True ]],"YES",""),"") -> 
B111: KAZ | C111: Kazakhstan | D111: Asia | E111: Central Asia | F111: 52 | G111: 52 | H111: 0 | I111: 38 | J111: 11 | K111: 11 | L111: =IF(Table4[[#This Row],[With True ]]<>"",IF(Table4[[#This Row],[With Mag]]>Table4[[#This Row],[With True ]],"YES",""),"") -> 
B112: KEN | C112: Kenya | D112: Africa | E112: Sub-Saharan Africa | F112: 100 | G112: 98 | H112: 2 | I112: 10 | J112: 12 | K112: 12 | L112: =IF(Table4[[#This Row],[With True ]]<>"",IF(Table4[[#This Row],[With Mag]]>Table4[[#This Row],[With True ]],"YES",""),"") -> YES
B113: KGZ | C113: Kyrgyzstan | D113: Asia | E113: Central Asia | F113: 8 | G113: 8 | H113: 0 | I113: 2 | J113: 2 | K113: 2 | L113: =IF(Table4[[#This Row],[With True ]]<>"",IF(Table4[[#This Row],[With Mag]]>Table4[[#This Row],[With True ]],"YES",""),"") -> 
B114: KHM | C114: Cambodia | D114: Asia | E114: South-eastern Asia | F114: 8 | G114: 8 | H114: 0 | I114: 0 | J114: 0 | K114: 0 | L114: =IF(Table4[[#This Row],[With True ]]<>"",IF(Table4[[#This Row],[With Mag]]>Table4[[#This Row],[With True ]],"YES",""),"") -> 
B115: KIR | C115: Kiribati | D115: Oceania | E115: Micronesia | F115: 22 | G115: 22 | H115: 0 | I115: 22 | J115: 0 | K115: 0 | L115: =IF(Table4[[#This Row],[With True ]]<>"",IF(Table4[[#This Row],[With Mag]]>Table4[[#This Row],[With True ]],"YES",""),"") -> 
B116: KNA | C116: Saint Kitts and Nevis | D116: Americas | E116: Latin America and the Caribbean | F116: 2 | G116: 2 | H116: 0 | I116: 2 | J116: 0 | K116: 0 | L116: =IF(Table4[[#This Row],[With True ]]<>"",IF(Table4[[#This Row],[With Mag]]>Table4[[#This Row],[With True ]],"YES",""),"") -> 
B117: KOR | C117: Korea, Republic of | D117: Asia | E117: Eastern Asia | F117: 98 | G117: 90 | H117: 8 | I117: 82 | J117: 21 | K117: 19 | L117: =IF(Table4[[#This Row],[With True ]]<>"",IF(Table4[[#This Row],[With Mag]]>Table4[[#This Row],[With True ]],"YES",""),"") -> 
B118: KWT | C118: Kuwait | D118: Asia | E118: Western Asia | F118: 10 | G118: 10 | H118: 0 | I118: 0 | J118: 0 | K118: 0 | L118: =IF(Table4[[#This Row],[With True ]]<>"",IF(Table4[[#This Row],[With Mag]]>Table4[[#This Row],[With True ]],"YES",""),"") -> 
B119: LAO | C119: Lao People's Democratic Republic | D119: Asia | E119: South-eastern Asia | F119: 28 | G119: 28 | H119: 0 | I119: 0 | J119: 4 | K119: 4 | L119: =IF(Table4[[#This Row],[With True ]]<>"",IF(Table4[[#This Row],[With Mag]]>Table4[[#This Row],[With True ]],"YES",""),"") -> YES
B120: LBN | C120: Lebanon | D120: Asia | E120: Western Asia | F120: 10 | G120: 10 | H120: 0 | I120: 4 | J120: 0 | K120: 0 | L120: =IF(Table4[[#This Row],[With True ]]<>"",IF(Table4[[#This Row],[With Mag]]>Table4[[#This Row],[With True ]],"YES",""),"") -> 
B121: LBR | C121: Liberia | D121: Africa | E121: Sub-Saharan Africa | F121: 10 | G121: 10 | H121: 0 | I121: 10 | J121: 4 | K121: 2 | L121: =IF(Table4[[#This Row],[With True ]]<>"",IF(Table4[[#This Row],[With Mag]]>Table4[[#This Row],[With True ]],"YES",""),"") -> 
B122: LBY | C122: Libya | D122: Africa | E122: Northern Africa | F122: 80 | G122: 70 | H122: 10 | I122: 2 | J122: 16 | K122: 10 | L122: =IF(Table4[[#This Row],[With True ]]<>"",IF(Table4[[#This Row],[With Mag]]>Table4[[#This Row],[With True ]],"YES",""),"") -> YES
B123: LCA | C123: Saint Lucia | D123: Americas | E123: Latin America and the Caribbean | F123: 4 | G123: 4 | H123: 0 | I123: 4 | J123: 2 | K123: 2 | L123: =IF(Table4[[#This Row],[With True ]]<>"",IF(Table4[[#This Row],[With Mag]]>Table4[[#This Row],[With True ]],"YES",""),"") -> 
B124: LKA | C124: Sri Lanka | D124: Asia | E124: Southern Asia | F124: 28 | G124: 28 | H124: 0 | I124: 4 | J124: 4 | K124: 4 | L124: =IF(Table4[[#This Row],[With True ]]<>"",IF(Table4[[#This Row],[With Mag]]>Table4[[#This Row],[With True ]],"YES",""),"") -> 
B125: LSO | C125: Lesotho | D125: Africa | E125: Sub-Saharan Africa | F125: 32 | G125: 32 | H125: 0 | I125: 32 | J125: 22 | K125: 15 | L125: =IF(Table4[[#This Row],[With True ]]<>"",IF(Table4[[#This Row],[With Mag]]>Table4[[#This Row],[With True ]],"YES",""),"") -> 
B126: LTU | C126: Lithuania | D126: Europe | E126: Northern Europe | F126: 86 | G126: 84 | H126: 2 | I126: 50 | J126: 30 | K126: 20 | L126: =IF(Table4[[#This Row],[With True ]]<>"",IF(Table4[[#This Row],[With Mag]]>Table4[[#This Row],[With True ]],"YES",""),"") -> 
B127: LUX | C127: Luxembourg | D127: Europe | E127: Western Europe | F127: 4 | G127: 4 | H127: 0 | I127: 0 | J127: 0 | K127: 0 | L127: =IF(Table4[[#This Row],[With True ]]<>"",IF(Table4[[#This Row],[With Mag]]>Table4[[#This Row],[With True ]],"YES",""),"") -> 
B128: LVA | C128: Latvia | D128: Europe | E128: Northern Europe | F128: 18 | G128: 16 | H128: 2 | I128: 12 | J128: 10 | K128: 6 | L128: =IF(Table4[[#This Row],[With True ]]<>"",IF(Table4[[#This Row],[With Mag]]>Table4[[#This Row],[With True ]],"YES",""),"") -> 
B129: MAC | C129: Macao | D129: Asia | E129: Eastern Asia | F129: 2 | G129: 2 | H129: 0 | I129: 0 | J129: 0 | K129: 0 | L129: =IF(Table4[[#This Row],[With True ]]<>"",IF(Table4[[#This Row],[With Mag]]>Table4[[#This Row],[With True ]],"YES",""),"") -> 
B130: MAR | C130: Morocco | D130: Africa | E130: Northern Africa | F130: 48 | G130: 48 | H130: 0 | I130: 8 | J130: 16 | K130: 2 | L130: =IF(Table4[[#This Row],[With True ]]<>"",IF(Table4[[#This Row],[With Mag]]>Table4[[#This Row],[With True ]],"YES",""),"") -> YES
B131: MDA | C131: Moldova, Republic of | D131: Europe | E131: Eastern Europe | F131: 14 | G131: 10 | H131: 4 | I131: 8 | J131: 6 | K131: 6 | L131: =IF(Table4[[#This Row],[With True ]]<>"",IF(Table4[[#This Row],[With Mag]]>Table4[[#This Row],[With True ]],"YES",""),"") -> 
B132: MDG | C132: Madagascar | D132: Africa | E132: Sub-Saharan Africa | F132: 62 | G132: 62 | H132: 0 | I132: 62 | J132: 11 | K132: 3 | L132: =IF(Table4[[#This Row],[With True ]]<>"",IF(Table4[[#This Row],[With Mag]]>Table4[[#This Row],[With True ]],"YES",""),"") -> 
B133: MDV | C133: Maldives | D133: Asia | E133: Southern Asia | F133: 26 | G133: 26 | H133: 0 | I133: 4 | J133: 2 | K133: 2 | L133: =IF(Table4[[#This Row],[With True ]]<>"",IF(Table4[[#This Row],[With Mag]]>Table4[[#This Row],[With True ]],"YES",""),"") -> 
B134: MEX | C134: Mexico | D134: Americas | E134: Latin America and the Caribbean | F134: 206 | G134: 200 | H134: 6 | I134: 168 | J134: 96 | K134: 76 | L134: =IF(Table4[[#This Row],[With True ]]<>"",IF(Table4[[#This Row],[With Mag]]>Table4[[#This Row],[With True ]],"YES",""),"") -> 
B135: MHL | C135: Marshall Islands | D135: Oceania | E135: Micronesia | F135: 10 | G135: 8 | H135: 2 | I135: 10 | J135: 2 | K135: 4 | L135: =IF(Table4[[#This Row],[With True ]]<>"",IF(Table4[[#This Row],[With Mag]]>Table4[[#This Row],[With True ]],"YES",""),"") -> 
B136: UMI | C136: United States Minor Outlying Islands | D136: Oceania | E136: Micronesia | F136: 2 | G136: 2 | H136: 0 | I136: 2 | J136: 0 | K136: 0 | L136: =IF(Table4[[#This Row],[With True ]]<>"",IF(Table4[[#This Row],[With Mag]]>Table4[[#This Row],[With True ]],"YES",""),"") -> 
B137: MKD | C137: North Macedonia | D137: Europe | E137: Southern Europe | F137: 4 | G137: 4 | H137: 0 | I137: 2 | J137: 0 | K137: 0 | L137: =IF(Table4[[#This Row],[With True ]]<>"",IF(Table4[[#This Row],[With Mag]]>Table4[[#This Row],[With True ]],"YES",""),"") -> 
B138: MLI | C138: Mali | D138: Africa | E138: Sub-Saharan Africa | F138: 40 | G138: 40 | H138: 0 | I138: 16 | J138: 16 | K138: 6 | L138: =IF(Table4[[#This Row],[With True ]]<>"",IF(Table4[[#This Row],[With Mag]]>Table4[[#This Row],[With True ]],"YES",""),"") -> 
B139: MLT | C139: Malta | D139: Europe | E139: Southern Europe | F139: 4 | G139: 4 | H139: 0 | I139: 0 | J139: 0 | K139: 0 | L139: =IF(Table4[[#This Row],[With True ]]<>"",IF(Table4[[#This Row],[With Mag]]>Table4[[#This Row],[With True ]],"YES",""),"") -> 
B140: MMR | C140: Myanmar | D140: Asia | E140: South-eastern Asia | F140: 94 | G140: 94 | H140: 0 | I140: 6 | J140: 4 | K140: 5 | L140: =IF(Table4[[#This Row],[With True ]]<>"",IF(Table4[[#This Row],[With Mag]]>Table4[[#This Row],[With True ]],"YES",""),"") -> 
B141: MNG | C141: Mongolia | D141: Asia | E141: Eastern Asia | F141: 50 | G141: 48 | H141: 2 | I141: 14 | J141: 8 | K141: 2 | L141: =IF(Table4[[#This Row],[With True ]]<>"",IF(Table4[[#This Row],[With Mag]]>Table4[[#This Row],[With True ]],"YES",""),"") -> 
B142: MOZ | C142: Mozambique | D142: Africa | E142: Sub-Saharan Africa | F142: 42 | G142: 42 | H142: 0 | I142: 38 | J142: 21 | K142: 13 | L142: =IF(Table4[[#This Row],[With True ]]<>"",IF(Table4[[#This Row],[With Mag]]>Table4[[#This Row],[With True ]],"YES",""),"") -> 
B143: MRT | C143: Mauritania | D143: Africa | E143: Sub-Saharan Africa | F143: 16 | G143: 16 | H143: 0 | I143: 12 | J143: 10 | K143: 6 | L143: =IF(Table4[[#This Row],[With True ]]<>"",IF(Table4[[#This Row],[With Mag]]>Table4[[#This Row],[With True ]],"YES",""),"") -> 
B144: MSR | C144: Montserrat | D144: Americas | E144: Latin America and the Caribbean | F144: 2 | G144: 2 | H144: 0 | I144: 2 | J144: 2 | K144: 0 | L144: =IF(Table4[[#This Row],[With True ]]<>"",IF(Table4[[#This Row],[With Mag]]>Table4[[#This Row],[With True ]],"YES",""),"") -> 
B145: MTQ | C145: Martinique | D145: Americas | E145: Latin America and the Caribbean | F145: 2 | G145: 2 | H145: 0 | I145: 2 | J145: 0 | K145: 0 | L145: =IF(Table4[[#This Row],[With True ]]<>"",IF(Table4[[#This Row],[With Mag]]>Table4[[#This Row],[With True ]],"YES",""),"") -> 
B146: MUS | C146: Mauritius | D146: Africa | E146: Sub-Saharan Africa | F146: 4 | G146: 4 | H146: 0 | I146: 4 | J146: 0 | K146: 0 | L146: =IF(Table4[[#This Row],[With True ]]<>"",IF(Table4[[#This Row],[With Mag]]>Table4[[#This Row],[With True ]],"YES",""),"") -> 
B147: MWI | C147: Malawi | D147: Africa | E147: Sub-Saharan Africa | F147: 18 | G147: 18 | H147: 0 | I147: 10 | J147: 0 | K147: 0 | L147: =IF(Table4[[#This Row],[With True ]]<>"",IF(Table4[[#This Row],[With Mag]]>Table4[[#This Row],[With True ]],"YES",""),"") -> 
B148: MYS | C148: Malaysia | D148: Asia | E148: South-eastern Asia | F148: 88 | G148: 88 | H148: 0 | I148: 10 | J148: 14 | K148: 14 | L148: =IF(Table4[[#This Row],[With True ]]<>"",IF(Table4[[#This Row],[With Mag]]>Table4[[#This Row],[With True ]],"YES",""),"") -> YES
B149: MYT | C149: Mayotte | D149: Africa | E149: Sub-Saharan Africa | F149: 2 | G149: 2 | H149: 0 | I149: 2 | J149: 0 | K149: 0 | L149: =IF(Table4[[#This Row],[With True ]]<>"",IF(Table4[[#This Row],[With Mag]]>Table4[[#This Row],[With True ]],"YES",""),"") -> 
B150: NAM | C150: Namibia | D150: Africa | E150: Sub-Saharan Africa | F150: 44 | G150: 44 | H150: 0 | I150: 44 | J150: 16 | K150: 16 | L150: =IF(Table4[[#This Row],[With True ]]<>"",IF(Table4[[#This Row],[With Mag]]>Table4[[#This Row],[With True ]],"YES",""),"") -> 
B151: NCL | C151: New Caledonia | D151: Oceania | E151: Melanesia | F151: 28 | G151: 28 | H151: 0 | I151: 28 | J151: 4 | K151: 2 | L151: =IF(Table4[[#This Row],[With True ]]<>"",IF(Table4[[#This Row],[With Mag]]>Table4[[#This Row],[With True ]],"YES",""),"") -> 
B152: NER | C152: Niger | D152: Africa | E152: Sub-Saharan Africa | F152: 20 | G152: 20 | H152: 0 | I152: 0 | J152: 0 | K152: 0 | L152: =IF(Table4[[#This Row],[With True ]]<>"",IF(Table4[[#This Row],[With Mag]]>Table4[[#This Row],[With True ]],"YES",""),"") -> 
B153: NGA | C153: Nigeria | D153: Africa | E153: Sub-Saharan Africa | F153: 64 | G153: 64 | H153: 0 | I153: 6 | J153: 16 | K153: 10 | L153: =IF(Table4[[#This Row],[With True ]]<>"",IF(Table4[[#This Row],[With Mag]]>Table4[[#This Row],[With True ]],"YES",""),"") -> YES
B154: NIC | C154: Nicaragua | D154: Americas | E154: Latin America and the Caribbean | F154: 32 | G154: 32 | H154: 0 | I154: 2 | J154: 8 | K154: 6 | L154: =IF(Table4[[#This Row],[With True ]]<>"",IF(Table4[[#This Row],[With Mag]]>Table4[[#This Row],[With True ]],"YES",""),"") -> YES
B155: NIU | C155: Niue | D155: Oceania | E155: Polynesia | F155: 2 | G155: 2 | H155: 0 | I155: 2 | J155: 0 | K155: 0 | L155: =IF(Table4[[#This Row],[With True ]]<>"",IF(Table4[[#This Row],[With Mag]]>Table4[[#This Row],[With True ]],"YES",""),"") -> 
B156: NLD | C156: Netherlands | D156: Europe | E156: Western Europe | F156: 70 | G156: 70 | H156: 0 | I156: 17 | J156: 22 | K156: 6 | L156: =IF(Table4[[#This Row],[With True ]]<>"",IF(Table4[[#This Row],[With Mag]]>Table4[[#This Row],[With True ]],"YES",""),"") -> YES
B157: NOR | C157: Norway | D157: Europe | E157: Northern Europe | F157: 193 | G157: 185 | H157: 8 | I157: 67 | J157: 69 | K157: 29 | L157: =IF(Table4[[#This Row],[With True ]]<>"",IF(Table4[[#This Row],[With Mag]]>Table4[[#This Row],[With True ]],"YES",""),"") -> YES
B158: NPL | C158: Nepal | D158: Asia | E158: Southern Asia | F158: 48 | G158: 48 | H158: 0 | I158: 0 | J158: 2 | K158: 2 | L158: =IF(Table4[[#This Row],[With True ]]<>"",IF(Table4[[#This Row],[With Mag]]>Table4[[#This Row],[With True ]],"YES",""),"") -> YES
B159: NRU | C159: Nauru | D159: Oceania | E159: Micronesia | F159: 2 | G159: 2 | H159: 0 | I159: 2 | J159: 0 | K159: 0 | L159: =IF(Table4[[#This Row],[With True ]]<>"",IF(Table4[[#This Row],[With Mag]]>Table4[[#This Row],[With True ]],"YES",""),"") -> 
B160: NZL | C160: New Zealand | D160: Oceania | E160: Australia and New Zealand | F160: 446 | G160: 408 | H160: 38 | I160: 446 | J160: 107 | K160: 89 | L160: =IF(Table4[[#This Row],[With True ]]<>"",IF(Table4[[#This Row],[With Mag]]>Table4[[#This Row],[With True ]],"YES",""),"") -> 
B161: OMN | C161: Oman | D161: Asia | E161: Western Asia | F161: 24 | G161: 24 | H161: 0 | I161: 2 | J161: 4 | K161: 4 | L161: =IF(Table4[[#This Row],[With True ]]<>"",IF(Table4[[#This Row],[With Mag]]>Table4[[#This Row],[With True ]],"YES",""),"") -> YES
B162: PAK | C162: Pakistan | D162: Asia | E162: Southern Asia | F162: 76 | G162: 76 | H162: 0 | I162: 14 | J162: 4 | K162: 4 | L162: =IF(Table4[[#This Row],[With True ]]<>"",IF(Table4[[#This Row],[With Mag]]>Table4[[#This Row],[With True ]],"YES",""),"") -> 
B163: PAN | C163: Panama | D163: Americas | E163: Latin America and the Caribbean | F163: 62 | G163: 48 | H163: 14 | I163: 32 | J163: 26 | K163: 24 | L163: =IF(Table4[[#This Row],[With True ]]<>"",IF(Table4[[#This Row],[With Mag]]>Table4[[#This Row],[With True ]],"YES",""),"") -> 
B164: PER | C164: Peru | D164: Americas | E164: Latin America and the Caribbean | F164: 162 | G164: 156 | H164: 6 | I164: 24 | J164: 77 | K164: 61 | L164: =IF(Table4[[#This Row],[With True ]]<>"",IF(Table4[[#This Row],[With Mag]]>Table4[[#This Row],[With True ]],"YES",""),"") -> YES
B165: PHL | C165: Philippines | D165: Asia | E165: South-eastern Asia | F165: 198 | G165: 184 | H165: 14 | I165: 3 | J165: 59 | K165: 41 | L165: =IF(Table4[[#This Row],[With True ]]<>"",IF(Table4[[#This Row],[With Mag]]>Table4[[#This Row],[With True ]],"YES",""),"") -> YES
B166: PLW | C166: Palau | D166: Oceania | E166: Micronesia | F166: 6 | G166: 6 | H166: 0 | I166: 0 | J166: 0 | K166: 0 | L166: =IF(Table4[[#This Row],[With True ]]<>"",IF(Table4[[#This Row],[With Mag]]>Table4[[#This Row],[With True ]],"YES",""),"") -> 
B167: PNG | C167: Papua New Guinea | D167: Oceania | E167: Melanesia | F167: 86 | G167: 84 | H167: 2 | I167: 28 | J167: 21 | K167: 19 | L167: =IF(Table4[[#This Row],[With True ]]<>"",IF(Table4[[#This Row],[With Mag]]>Table4[[#This Row],[With True ]],"YES",""),"") -> 
B168: POL | C168: Poland | D168: Europe | E168: Eastern Europe | F168: 302 | G168: 298 | H168: 4 | I168: 108 | J168: 100 | K168: 66 | L168: =IF(Table4[[#This Row],[With True ]]<>"",IF(Table4[[#This Row],[With Mag]]>Table4[[#This Row],[With True ]],"YES",""),"") -> 
B169: PRI | C169: Puerto Rico | D169: Americas | E169: Latin America and the Caribbean | F169: 22 | G169: 20 | H169: 2 | I169: 20 | J169: 6 | K169: 4 | L169: =IF(Table4[[#This Row],[With True ]]<>"",IF(Table4[[#This Row],[With Mag]]>Table4[[#This Row],[With True ]],"YES",""),"") -> 
B170: PRK | C170: Korea (Democratic People's Republic of) | D170: Asia | E170: Eastern Asia | F170: 4 | G170: 4 | H170: 0 | I170: 2 | J170: 2 | K170: 2 | L170: =IF(Table4[[#This Row],[With True ]]<>"",IF(Table4[[#This Row],[With Mag]]>Table4[[#This Row],[With True ]],"YES",""),"") -> 
B171: PRT | C171: Portugal | D171: Europe | E171: Southern Europe | F171: 82 | G171: 78 | H171: 4 | I171: 38 | J171: 36 | K171: 29 | L171: =IF(Table4[[#This Row],[With True ]]<>"",IF(Table4[[#This Row],[With Mag]]>Table4[[#This Row],[With True ]],"YES",""),"") -> 
B172: PRY | C172: Paraguay | D172: Americas | E172: Latin America and the Caribbean | F172: 38 | G172: 28 | H172: 10 | I172: 36 | J172: 28 | K172: 24 | L172: =IF(Table4[[#This Row],[With True ]]<>"",IF(Table4[[#This Row],[With Mag]]>Table4[[#This Row],[With True ]],"YES",""),"") -> 
B173: PYF | C173: French Polynesia | D173: Oceania | E173: Polynesia | F173: 100 | G173: 100 | H173: 0 | I173: 100 | J173: 5 | K173: 5 | L173: =IF(Table4[[#This Row],[With True ]]<>"",IF(Table4[[#This Row],[With Mag]]>Table4[[#This Row],[With True ]],"YES",""),"") -> 
B174: QAT | C174: Qatar | D174: Asia | E174: Western Asia | F174: 10 | G174: 10 | H174: 0 | I174: 2 | J174: 2 | K174: 2 | L174: =IF(Table4[[#This Row],[With True ]]<>"",IF(Table4[[#This Row],[With Mag]]>Table4[[#This Row],[With True ]],"YES",""),"") -> 
B175: REU | C175: Réunion | D175: Africa | E175: Sub-Saharan Africa | F175: 6 | G175: 6 | H175: 0 | I175: 6 | J175: 0 | K175: 0 | L175: =IF(Table4[[#This Row],[With True ]]<>"",IF(Table4[[#This Row],[With Mag]]>Table4[[#This Row],[With True ]],"YES",""),"") -> 
B176: ROU | C176: Romania | D176: Europe | E176: Eastern Europe | F176: 60 | G176: 48 | H176: 12 | I176: 18 | J176: 13 | K176: 7 | L176: =IF(Table4[[#This Row],[With True ]]<>"",IF(Table4[[#This Row],[With Mag]]>Table4[[#This Row],[With True ]],"YES",""),"") -> 
B177: RWA | C177: Rwanda | D177: Africa | E177: Sub-Saharan Africa | F177: 12 | G177: 12 | H177: 0 | I177: 0 | J177: 2 | K177: 2 | L177: =IF(Table4[[#This Row],[With True ]]<>"",IF(Table4[[#This Row],[With Mag]]>Table4[[#This Row],[With True ]],"YES",""),"") -> YES
B178: SAU | C178: Saudi Arabia | D178: Asia | E178: Western Asia | F178: 134 | G178: 132 | H178: 2 | I178: 8 | J178: 15 | K178: 13 | L178: =IF(Table4[[#This Row],[With True ]]<>"",IF(Table4[[#This Row],[With Mag]]>Table4[[#This Row],[With True ]],"YES",""),"") -> YES
B179: SRB | C179: Serbia | D179: Europe | E179: Southern Europe | F179: 66 | G179: 60 | H179: 6 | I179: 24 | J179: 16 | K179: 10 | L179: =IF(Table4[[#This Row],[With True ]]<>"",IF(Table4[[#This Row],[With Mag]]>Table4[[#This Row],[With True ]],"YES",""),"") -> 
B180: SDN | C180: Sudan | D180: Africa | E180: Northern Africa | F180: 32 | G180: 32 | H180: 0 | I180: 6 | J180: 2 | K180: 0 | L180: =IF(Table4[[#This Row],[With True ]]<>"",IF(Table4[[#This Row],[With Mag]]>Table4[[#This Row],[With True ]],"YES",""),"") -> 
B181: SEN | C181: Senegal | D181: Africa | E181: Sub-Saharan Africa | F181: 28 | G181: 26 | H181: 2 | I181: 24 | J181: 16 | K181: 13 | L181: =IF(Table4[[#This Row],[With True ]]<>"",IF(Table4[[#This Row],[With Mag]]>Table4[[#This Row],[With True ]],"YES",""),"") -> 
B182: SGP | C182: Singapore | D182: Asia | E182: South-eastern Asia | F182: 14 | G182: 14 | H182: 0 | I182: 0 | J182: 0 | K182: 0 | L182: =IF(Table4[[#This Row],[With True ]]<>"",IF(Table4[[#This Row],[With Mag]]>Table4[[#This Row],[With True ]],"YES",""),"") -> 
B183: SHN | C183: Saint Helena, Ascension and Tristan da Cunha | D183: Africa | E183: Sub-Saharan Africa | F183: 4 | G183: 4 | H183: 0 | I183: 4 | J183: 2 | K183: 2 | L183: =IF(Table4[[#This Row],[With True ]]<>"",IF(Table4[[#This Row],[With Mag]]>Table4[[#This Row],[With True ]],"YES",""),"") -> 
B184: SLB | C184: Solomon Islands | D184: Oceania | E184: Melanesia | F184: 54 | G184: 50 | H184: 4 | I184: 46 | J184: 12 | K184: 10 | L184: =IF(Table4[[#This Row],[With True ]]<>"",IF(Table4[[#This Row],[With Mag]]>Table4[[#This Row],[With True ]],"YES",""),"") -> 
B185: SLE | C185: Sierra Leone | D185: Africa | E185: Sub-Saharan Africa | F185: 12 | G185: 12 | H185: 0 | I185: 12 | J185: 12 | K185: 8 | L185: =IF(Table4[[#This Row],[With True ]]<>"",IF(Table4[[#This Row],[With Mag]]>Table4[[#This Row],[With True ]],"YES",""),"") -> 
B186: SLV | C186: El Salvador | D186: Americas | E186: Latin America and the Caribbean | F186: 8 | G186: 8 | H186: 0 | I186: 0 | J186: 0 | K186: 0 | L186: =IF(Table4[[#This Row],[With True ]]<>"",IF(Table4[[#This Row],[With Mag]]>Table4[[#This Row],[With True ]],"YES",""),"") -> 
B187: SOM | C187: Somalia | D187: Africa | E187: Sub-Saharan Africa | F187: 16 | G187: 16 | H187: 0 | I187: 0 | J187: 2 | K187: 2 | L187: =IF(Table4[[#This Row],[With True ]]<>"",IF(Table4[[#This Row],[With Mag]]>Table4[[#This Row],[With True ]],"YES",""),"") -> YES
B188: SPM | C188: Saint Pierre and Miquelon | D188: Americas | E188: Northern America | F188: 4 | G188: 4 | H188: 0 | I188: 4 | J188: 2 | K188: 0 | L188: =IF(Table4[[#This Row],[With True ]]<>"",IF(Table4[[#This Row],[With Mag]]>Table4[[#This Row],[With True ]],"YES",""),"") -> 
B189: STP | C189: Sao Tome and Principe | D189: Africa | E189: Sub-Saharan Africa | F189: 4 | G189: 4 | H189: 0 | I189: 2 | J189: 2 | K189: 0 | L189: =IF(Table4[[#This Row],[With True ]]<>"",IF(Table4[[#This Row],[With Mag]]>Table4[[#This Row],[With True ]],"YES",""),"") -> 
B190: SUR | C190: Suriname | D190: Americas | E190: Latin America and the Caribbean | F190: 12 | G190: 12 | H190: 0 | I190: 12 | J190: 2 | K190: 0 | L190: =IF(Table4[[#This Row],[With True ]]<>"",IF(Table4[[#This Row],[With Mag]]>Table4[[#This Row],[With True ]],"YES",""),"") -> 
B191: SVK | C191: Slovakia | D191: Europe | E191: Eastern Europe | F191: 70 | G191: 70 | H191: 0 | I191: 10 | J191: 28 | K191: 24 | L191: =IF(Table4[[#This Row],[With True ]]<>"",IF(Table4[[#This Row],[With Mag]]>Table4[[#This Row],[With True ]],"YES",""),"") -> YES
B192: SVN | C192: Slovenia | D192: Europe | E192: Southern Europe | F192: 44 | G192: 42 | H192: 2 | I192: 10 | J192: 16 | K192: 9 | L192: =IF(Table4[[#This Row],[With True ]]<>"",IF(Table4[[#This Row],[With Mag]]>Table4[[#This Row],[With True ]],"YES",""),"") -> YES
B193: SWE | C193: Sweden | D193: Europe | E193: Northern Europe | F193: 358 | G193: 338 | H193: 20 | I193: 90 | J193: 247 | K193: 203 | L193: =IF(Table4[[#This Row],[With True ]]<>"",IF(Table4[[#This Row],[With Mag]]>Table4[[#This Row],[With True ]],"YES",""),"") -> YES
B194: SWZ | C194: Eswatini | D194: Africa | E194: Sub-Saharan Africa | F194: 4 | G194: 4 | H194: 0 | I194: 4 | J194: 3 | K194: 1 | L194: =IF(Table4[[#This Row],[With True ]]<>"",IF(Table4[[#This Row],[With Mag]]>Table4[[#This Row],[With True ]],"YES",""),"") -> 
B195: SYC | C195: Seychelles | D195: Africa | E195: Sub-Saharan Africa | F195: 4 | G195: 4 | H195: 0 | I195: 0 | J195: 0 | K195: 0 | L195: =IF(Table4[[#This Row],[With True ]]<>"",IF(Table4[[#This Row],[With Mag]]>Table4[[#This Row],[With True ]],"YES",""),"") -> 
B196: SYR | C196: Syrian Arab Republic | D196: Asia | E196: Western Asia | F196: 16 | G196: 16 | H196: 0 | I196: 10 | J196: 4 | K196: 4 | L196: =IF(Table4[[#This Row],[With True ]]<>"",IF(Table4[[#This Row],[With Mag]]>Table4[[#This Row],[With True ]],"YES",""),"") -> 
B197: TCA | C197: Turks and Caicos Islands | D197: Americas | E197: Latin America and the Caribbean | F197: 14 | G197: 14 | H197: 0 | I197: 14 | J197: 0 | K197: 0 | L197: =IF(Table4[[#This Row],[With True ]]<>"",IF(Table4[[#This Row],[With Mag]]>Table4[[#This Row],[With True ]],"YES",""),"") -> 
B198: TCD | C198: Chad | D198: Africa | E198: Sub-Saharan Africa | F198: 28 | G198: 28 | H198: 0 | I198: 0 | J198: 8 | K198: 6 | L198: =IF(Table4[[#This Row],[With True ]]<>"",IF(Table4[[#This Row],[With Mag]]>Table4[[#This Row],[With True ]],"YES",""),"") -> YES
B199: TGO | C199: Togo | D199: Africa | E199: Sub-Saharan Africa | F199: 4 | G199: 4 | H199: 0 | I199: 2 | J199: 2 | K199: 2 | L199: =IF(Table4[[#This Row],[With True ]]<>"",IF(Table4[[#This Row],[With Mag]]>Table4[[#This Row],[With True ]],"YES",""),"") -> 
B200: THA | C200: Thailand | D200: Asia | E200: South-eastern Asia | F200: 116 | G200: 116 | H200: 0 | I200: 6 | J200: 16 | K200: 14 | L200: =IF(Table4[[#This Row],[With True ]]<>"",IF(Table4[[#This Row],[With Mag]]>Table4[[#This Row],[With True ]],"YES",""),"") -> YES
B201: TJK | C201: Tajikistan | D201: Asia | E201: Central Asia | F201: 8 | G201: 8 | H201: 0 | I201: 2 | J201: 2 | K201: 0 | L201: =IF(Table4[[#This Row],[With True ]]<>"",IF(Table4[[#This Row],[With Mag]]>Table4[[#This Row],[With True ]],"YES",""),"") -> 
B202: TKM | C202: Turkmenistan | D202: Asia | E202: Central Asia | F202: 18 | G202: 18 | H202: 0 | I202: 10 | J202: 6 | K202: 6 | L202: =IF(Table4[[#This Row],[With True ]]<>"",IF(Table4[[#This Row],[With Mag]]>Table4[[#This Row],[With True ]],"YES",""),"") -> 
B203: TLS | C203: Timor-Leste | D203: Asia | E203: South-eastern Asia | F203: 18 | G203: 16 | H203: 2 | I203: 0 | J203: 0 | K203: 0 | L203: =IF(Table4[[#This Row],[With True ]]<>"",IF(Table4[[#This Row],[With Mag]]>Table4[[#This Row],[With True ]],"YES",""),"") -> 
... 44 more rows

Sheet RWYTYPE
U3: Listing of Runway surface types | V3: Used for True analysis | W3: # of defined runways | Z3: Runway Category | AA3: Country Code
B4: From XML descriptions | U4: ASPH/BITU | V4: HARD | W4: 8 | Z4: HARD | AA4: GRD
B5: <simpleType name="surfaceType"> | M5: From XML descriptions | U5: ASPH/CONC | V5: HARD | W5: 1532
B6: <restriction base="{http://www.w3.org/2001/XMLSchema}string"> | M6: ASPHALT | U6: ASPH/DIRT | V6: HARD | W6: 12 | Z6: Runway Length categories | AC6: Requiring changes
B7: <enumeration value="Asphalt"/> | M7: ASPHALT_AND_GRASS | U7: ASPH/GRAS | V7: HARD | W7: 54 | Z7: From | AA7: To | AB7: # of RWY's | AC7: With True | AD7: With Mag | AE7: Now with Mag
B8: <enumeration value="AsphaltAndGrass"/> | M8: BITUMINOUS_TAR_OR_ASPHALT | U8: ASPH/GRVL | V8: HARD | W8: 120 | Z8: 0 | AA8: 4000 | AB8: 2 | AC8: 2 | AD8: 0 | AE8: 0
B9: <enumeration value="BituminousTarOrAsphalt"/> | M9: Bituminous tar or asphalt and/or oil or bitumen bound, mix-in-place surfaces (often refered to as “earth cement”) | U9: ASPH/SAND | V9: HARD | W9: 4 | Z9: 4000 | AA9: 6000 | AB9: 0 | AC9: 0 | AD9: 0 | AE9: 0
B10: <enumeration value="BrickisLaidOrMortared"/> | M10: BRICKIS_LAID_OR_MORTARED | U10: ASPH/SLD | V10: HARD | W10: 160 | Z10: 6000 | AA10: 8000 | AB10: 0 | AC10: 0 | AD10: 0 | AE10: 0
B11: <enumeration value="Clay"/> | M11: CLAY | U11: ASPH/SOIL | V11: HARD | W11: 2 | Z11: 8000 | AA11: 10000 | AB11: 2 | AC11: 2 | AD11: 2 | AE11: 2
B12: <enumeration value="Concrete"/> | M12: CONCRETE | U12: ASPH/TRTD | V12: HARD | W12: 34 | Z12: 10000 | AA12: 12000 | AB12: 0 | AC12: 0 | AD12: 0 | AE12: 0
B13: <enumeration value="ConcreteAndAsphalt"/> | M13: CONCRETE_AND_ASPHALT | U13: ASPH/TURF | V13: HARD | W13: 76 | Z13: 12000 | AA13: 14000 | AB13: 0 | AC13: 0 | AD13: 0 | AE13: 0
B14: <enumeration value="ConcreteAndGrass"/> | M14: CONCRETE_AND_GRASS | U14: ASPHALT | V14: HARD | W14: 17764 | Z14: 14000 | AA14: 16000 | AB14: 0 | AC14: 0 | AD14: 0 | AE14: 0
B15: <enumeration value="Coral"/> | M15: CORAL | U15: BITU/ASPH | V15: HARD | W15: 6 | Z15: 16000 | AA15: 25000 | AB15: 0 | AC15: 0 | AD15: 0 | AE15: 0
B16: <enumeration value="Dirt"/> | M16: DIRT | U16: BITU/CONC | V16: HARD | W16: 136
B17: <enumeration value="Grass"/> | M17: GRASS | U17: BITU/GRAS | V17: HARD | W17: 8
B18: <enumeration value="Gravel"/> | M18: GRAVEL | U18: BITU/GRVL | V18: HARD | W18: 14
B19: <enumeration value="Ice"/> | M19: ICE | U19: BITU/MAC | V19: HARD | W19: 2 | AA19: Total | AB19: =SUM(AB8:AB18) -> 4 | AC19: =SUM(AC8:AC18) -> 4 | AD19: =SUM(AD8:AD18) -> 2 | AE19: =SUM(AE8:AE18) -> 2
B20: <enumeration value="Laterite"/> | M20: LANDING_MAT | U20: BITU/SAND | V20: HARD | W20: 4
B21: <enumeration value="Macadam"/> | M21: Usually made of aluminium | U21: BITU/SLD | V21: HARD | W21: 56
B22: <enumeration value="LandingMat"/> | M22: LATERITE | U22: BITU/TRTD | V22: HARD | W22: 10 | Z22: KML Point Color | AA22: Category
B23: <enumeration value="ProtectiveLaminate"/> | M23: MACADAM | U23: BITU/TURF | V23: HARD | W23: 4 | Z23: TEXT | AA23: HARD
B24: <enumeration value="Metal"/> | M24: METAL | U24: BITUMEN | V24: HARD | W24: 584 | Z24: TEXT | AA24: SOFT
B25: <enumeration value="Mix"/> | M25: Steel or Aluminium | U25: BRICK | V25: HARD | W25: 2 | Z25: TEXT | AA25: WATER/ICE/SNOW
B26: <enumeration value="Other"/> | M26: MIX | U26: CLAY | V26: HARD | W26: 34
B27: <enumeration value="Paved"/> | M27: Non bituminous mix | U27: CLAY/GRAS | V27: SOFT | W27: 22
B28: <enumeration value="PiercedSteelPlanking"/> | M28: OTHER | U28: CLAY/GRVL | V28: SOFT | W28: 40
B29: <enumeration value="Sand"/> | M29: PAVED | U29: CLAY/SAND | V29: SOFT | W29: 30
B30: <enumeration value="Sealed"/> | M30: generic hard surface | U30: CLAY/TURF | V30: SOFT | W30: 2
B31: <enumeration value="Silt"/> | M31: PIERCED_STEEL_PLANKING | U31: CONC/ASPH | V31: HARD | W31: 423
B32: <enumeration value="Snow"/> | M32: PROTECTIVE_LAMINATE | U32: CONC/BITU | V32: HARD | W32: 146
B33: <enumeration value="Soil"/> | M33: Usually made of rubber | U33: CONC/GRAS | V33: HARD | W33: 4
B34: <enumeration value="Stone"/> | M34: SAND | U34: CONC/GRVL | V34: HARD | W34: 8
B35: <enumeration value="Tarmac"/> | M35: SEALED | U35: CONC/MAC | V35: HARD | W35: 16
B36: <enumeration value="Treated"/> | M36: SILT | U36: CONC/SLD | V36: HARD | W36: 4
B37: <enumeration value="Turf"/> | M37: SNOW | U37: CONC/TARM | V37: HARD | W37: 2
B38: <enumeration value="Unknown"/> | M38: SOIL | U38: CONC/TURF | V38: SOFT | W38: 4
B39: <enumeration value="Unpaved"/> | M39: STONE | U39: CONCRETE | V39: HARD | W39: 3073
B40: <enumeration value="Water"/> | M40: TARMAC | U40: CORAL | V40: SOFT | W40: 70
M41: TREATED | U41: DIRT | V41: SOFT | W41: 744
M42: TURF | U42: DIRT/ASPH | V42: HARD | W42: 4
M43: UNKNOWN | U43: DIRT/GRAS | V43: SOFT | W43: 22
M44: UNPAVED | U44: DIRT/GRVL | V44: SOFT | W44: 10
M45: WATER | U45: DIRT/TRTD | V45: SOFT | W45: 6
U46: DIRT/TURF | V46: HARD | W46: 2
U47: EARTH | V47: SOFT | W47: 4
U48: GRAS/ASPH | V48: HARD | W48: 34
U49: GRAS/CLAY | V49: SOFT | W49: 30
U50: GRAS/CONC | V50: SOFT | W50: 6
U51: GRAS/DIRT | V51: SOFT | W51: 6
U52: GRAS/GRVL | V52: SOFT | W52: 30
U53: GRAS/SAND | V53: SOFT | W53: 10
U54: GRAS/SLD | V54: SOFT | W54: 2
U55: GRAS/SOIL | V55: SOFT | W55: 6
U56: GRASS | V56: SOFT | W56: 3460
U57: GRAVEL | V57: SOFT | W57: 1706
U58: GRVL/ASPH | V58: HARD | W58: 36
U59: GRVL/BITU | V59: HARD | W59: 2
U60: GRVL/CLAY | V60: SOFT | W60: 22
U61: GRVL/DIRT | V61: SOFT | W61: 188
U62: GRVL/GRAS | V62: SOFT | W62: 18
U63: GRVL/SAND | V63: SOFT | W63: 10
U64: GRVL/SLD | V64: SOFT | W64: 14
U65: GRVL/SOIL | V65: SOFT | W65: 2
U66: GRVL/TRTD | V66: SOFT | W66: 42
U67: GRVL/TURF | V67: SOFT | W67: 40
U68: ICE | V68: WATER/ICE/SNOW | W68: 18
U69: LATE/BITU | V69: HARD | W69: 2
U70: LATE/CLAY | V70: HARD | W70: 14
U71: LATE/GRAS | V71: SOFT | W71: 10
U72: LATE/GRVL | V72: HARD | W72: 2
U73: LATE/SAND | V73: HARD | W73: 2
U74: LATERITE | V74: HARD | W74: 96
U75: LIMESTONE | V75: HARD | W75: 2
U76: MACA/CONC | V76: HARD | W76: 4
U77: MACADAM | V77: HARD | W77: 162
U78: MATS | V78: SOFT | W78: 6
U79: PAVED | V79: HARD | W79: 800
U80: PLANKING | V80: SOFT | W80: 4
U81: SAND | V81: SOFT | W81: 90
U82: SAND/ASPH | V82: HARD | W82: 4
U83: SAND/CLAY | V83: SOFT | W83: 38
U84: SAND/GRAS | V84: SOFT | W84: 16
U85: SAND/GRVL | V85: SOFT | W85: 28
U86: SAND/SILT | V86: SOFT | W86: 4
U87: SAND/TRTD | V87: SOFT | W87: 8
U88: SAND/TURF | V88: SOFT | W88: 2
U89: SILT/CLAY | V89: SOFT | W89: 8
U90: SILT/GRAS | V90: SOFT | W90: 2
U91: SLD | V91: HARD | W91: 88
U92: SNOW | V92: WATER/ICE/SNOW | W92: 8
U93: SOD | V93: SOFT | W93: 2
U94: SOIL | V94: SOFT | W94: 112
U95: SOIL/ASPH | V95: HARD | W95: 2
U96: TARM/CONC | V96: SOFT | W96: 16
U97: TARM/GRAS | V97: SOFT | W97: 4
U98: TARM/SLD | V98: SOFT | W98: 2
U99: TARMAC | V99: SOFT | W99: 126
U100: TREATED | V100: SOFT | W100: 2
U101: TURF | V101: SOFT | W101: 3640
U102: TURF/ASPH | V102: HARD | W102: 28
U103: TURF/CLAY | V103: SOFT | W103: 10
U104: TURF/CONC | V104: HARD | W104: 2
U105: TURF/DIRT | V105: SOFT | W105: 108
U106: TURF/GRVL | V106: SOFT | W106: 138
U107: TURF/SAND | V107: SOFT | W107: 2
U108: UNKNOWN | V108: SOFT | W108: 62
U109: UNPAVED | V109: SOFT | W109: 222
U110: WATER | V110: WATER/ICE/SNOW | W110: 158
V111: Total | W111: =SUM(W4:W110) -> 36980

Sheet Sheet1 (hidden)
E4: 1 | F4: 0 | G4: -29404.5 | H4: 0 | I4: 6.7 | J4: 0
E5: 1 | F5: 1 | G5: -1450.7 | H5: 4652.9 | I5: 7.7 | J5: -25.1
E6: 2 | F6: 0 | G6: -2500 | H6: 0 | I6: -11.5 | J6: 0
E7: 2 | F7: 1 | G7: 2982 | H7: -2991.6 | I7: -7.1 | J7: -30.2
E8: 2 | F8: 2 | G8: 1676.8 | H8: -734.8 | I8: -2.2 | J8: -23.9
E9: 3 | F9: 0 | G9: 1363.9 | H9: 0 | I9: 2.8 | J9: 0
E10: 3 | F10: 1 | G10: -2381 | H10: -82.2 | I10: -6.2 | J10: 5.7
E11: 3 | F11: 2 | G11: 1236.2 | H11: 241.8 | I11: 3.4 | J11: -1
E12: 3 | F12: 3 | G12: 525.7 | H12: -542.9 | I12: -12.2 | J12: 1.1
E13: 4 | F13: 0 | G13: 903.1 | H13: 0 | I13: -1.1 | J13: 0
E14: 4 | F14: 1 | G14: 809.4 | H14: 282 | I14: -1.6 | J14: 0.2
E15: 4 | F15: 2 | G15: 86.2 | H15: -158.4 | I15: -6 | J15: 6.9
E16: 4 | F16: 3 | G16: -309.4 | H16: 199.8 | I16: 5.4 | J16: 3.7
E17: 4 | F17: 4 | G17: 47.9 | H17: -350.1 | I17: -5.5 | J17: -5.6
E18: 5 | F18: 0 | G18: -234.4 | H18: 0 | I18: -0.3 | J18: 0
E19: 5 | F19: 1 | G19: 363.1 | H19: 47.7 | I19: 0.6 | J19: 0.1
E20: 5 | F20: 2 | G20: 187.8 | H20: 208.4 | I20: -0.7 | J20: 2.5
E21: 5 | F21: 3 | G21: -140.7 | H21: -121.3 | I21: 0.1 | J21: -0.9
E22: 5 | F22: 4 | G22: -151.2 | H22: 32.2 | I22: 1.2 | J22: 3
E23: 5 | F23: 5 | G23: 13.7 | H23: 99.1 | I23: 1 | J23: 0.5
E24: 6 | F24: 0 | G24: 65.9 | H24: 0 | I24: -0.6 | J24: 0
E25: 6 | F25: 1 | G25: 65.6 | H25: -19.1 | I25: -0.4 | J25: 0.1
E26: 6 | F26: 2 | G26: 73 | H26: 25 | I26: 0.5 | J26: -1.8
E27: 6 | F27: 3 | G27: -121.5 | H27: 52.7 | I27: 1.4 | J27: -1.4
E28: 6 | F28: 4 | G28: -36.2 | H28: -64.4 | I28: -1.4 | J28: 0.9
E29: 6 | F29: 5 | G29: 13.5 | H29: 9 | I29: 0 | J29: 0.1
E30: 6 | F30: 6 | G30: -64.7 | H30: 68.1 | I30: 0.8 | J30: 1
E31: 7 | F31: 0 | G31: 80.6 | H31: 0 | I31: -0.1 | J31: 0
E32: 7 | F32: 1 | G32: -76.8 | H32: -51.4 | I32: -0.3 | J32: 0.5
E33: 7 | F33: 2 | G33: -8.3 | H33: -16.8 | I33: -0.1 | J33: 0.6
E34: 7 | F34: 3 | G34: 56.5 | H34: 2.3 | I34: 0.7 | J34: -0.7
E35: 7 | F35: 4 | G35: 15.8 | H35: 23.5 | I35: 0.2 | J35: -0.2
E36: 7 | F36: 5 | G36: 6.4 | H36: -2.2 | I36: -0.5 | J36: -1.2
E37: 7 | F37: 6 | G37: -7.2 | H37: -27.2 | I37: -0.8 | J37: 0.2
E38: 7 | F38: 7 | G38: 9.8 | H38: -1.9 | I38: 1 | J38: 0.3
E39: 8 | F39: 0 | G39: 23.6 | H39: 0 | I39: -0.1 | J39: 0
E40: 8 | F40: 1 | G40: 9.8 | H40: 8.4 | I40: 0.1 | J40: -0.3
E41: 8 | F41: 2 | G41: -17.5 | H41: -15.3 | I41: -0.1 | J41: 0.7
E42: 8 | F42: 3 | G42: -0.4 | H42: 12.8 | I42: 0.5 | J42: -0.2
E43: 8 | F43: 4 | G43: -21.1 | H43: -11.8 | I43: -0.1 | J43: 0.5
E44: 8 | F44: 5 | G44: 15.3 | H44: 14.9 | I44: 0.4 | J44: -0.3
E45: 8 | F45: 6 | G45: 13.7 | H45: 3.6 | I45: 0.5 | J45: -0.5
E46: 8 | F46: 7 | G46: -16.5 | H46: -6.9 | I46: 0 | J46: 0.4
E47: 8 | F47: 8 | G47: -0.3 | H47: 2.8 | I47: 0.4 | J47: 0.1
E48: 9 | F48: 0 | G48: 5 | H48: 0 | I48: -0.1 | J48: 0
E49: 9 | F49: 1 | G49: 8.2 | H49: -23.3 | I49: -0.2 | J49: -0.3
E50: 9 | F50: 2 | G50: 2.9 | H50: 11.1 | I50: 0 | J50: 0.2
E51: 9 | F51: 3 | G51: -1.4 | H51: 9.8 | I51: 0.4 | J51: -0.4
E52: 9 | F52: 4 | G52: -1.1 | H52: -5.1 | I52: -0.3 | J52: 0.4
E53: 9 | F53: 5 | G53: -13.3 | H53: -6.2 | I53: 0 | J53: 0.1
E54: 9 | F54: 6 | G54: 1.1 | H54: 7.8 | I54: 0.3 | J54: 0
E55: 9 | F55: 7 | G55: 8.9 | H55: 0.4 | I55: 0 | J55: -0.2
E56: 9 | F56: 8 | G56: -9.3 | H56: -1.5 | I56: 0 | J56: 0.5
E57: 9 | F57: 9 | G57: -11.9 | H57: 9.7 | I57: -0.4 | J57: 0.2
E58: 10 | F58: 0 | G58: -1.9 | H58: 0 | I58: 0 | J58: 0
E59: 10 | F59: 1 | G59: -6.2 | H59: 3.4 | I59: 0 | J59: 0
E60: 10 | F60: 2 | G60: -0.1 | H60: -0.2 | I60: 0 | J60: 0.1
E61: 10 | F61: 3 | G61: 1.7 | H61: 3.5 | I61: 0.2 | J61: -0.3
E62: 10 | F62: 4 | G62: -0.9 | H62: 4.8 | I62: -0.1 | J62: 0.1
E63: 10 | F63: 5 | G63: 0.6 | H63: -8.6 | I63: -0.2 | J63: -0.2
E64: 10 | F64: 6 | G64: -0.9 | H64: -0.1 | I64: 0 | J64: 0.1
E65: 10 | F65: 7 | G65: 1.9 | H65: -4.2 | I65: -0.1 | J65: 0
E66: 10 | F66: 8 | G66: 1.4 | H66: -3.4 | I66: -0.2 | J66: -0.1
E67: 10 | F67: 9 | G67: -2.4 | H67: -0.1 | I67: -0.1 | J67: 0.2
E68: 10 | F68: 10 | G68: -3.9 | H68: -8.8 | I68: 0 | J68: 0
E69: 11 | F69: 0 | G69: 3 | H69: 0 | I69: 0 | J69: 0
E70: 11 | F70: 1 | G70: -1.4 | H70: 0 | I70: -0.1 | J70: 0
E71: 11 | F71: 2 | G71: -2.5 | H71: 2.6 | I71: 0 | J71: 0.1
E72: 11 | F72: 3 | G72: 2.4 | H72: -0.5 | I72: 0 | J72: 0
E73: 11 | F73: 4 | G73: -0.9 | H73: -0.4 | I73: 0 | J73: 0.2
E74: 11 | F74: 5 | G74: 0.3 | H74: 0.6 | I74: -0.1 | J74: 0
E75: 11 | F75: 6 | G75: -0.7 | H75: -0.2 | I75: 0 | J75: 0
E76: 11 | F76: 7 | G76: -0.1 | H76: -1.7 | I76: 0 | J76: 0.1
E77: 11 | F77: 8 | G77: 1.4 | H77: -1.6 | I77: -0.1 | J77: 0
E78: 11 | F78: 9 | G78: -0.6 | H78: -3 | I78: -0.1 | J78: -0.1
E79: 11 | F79: 10 | G79: 0.2 | H79: -2 | I79: -0.1 | J79: 0
E80: 11 | F80: 11 | G80: 3.1 | H80: -2.6 | I80: -0.1 | J80: 0
E81: 12 | F81: 0 | G81: -2 | H81: 0 | I81: 0 | J81: 0
E82: 12 | F82: 1 | G82: -0.1 | H82: -1.2 | I82: 0 | J82: 0
E83: 12 | F83: 2 | G83: 0.5 | H83: 0.5 | I83: 0 | J83: 0
E84: 12 | F84: 3 | G84: 1.3 | H84: 1.3 | I84: 0 | J84: -0.1
E85: 12 | F85: 4 | G85: -1.2 | H85: -1.8 | I85: 0 | J85: 0.1
E86: 12 | F86: 5 | G86: 0.7 | H86: 0.1 | I86: 0 | J86: 0
E87: 12 | F87: 6 | G87: 0.3 | H87: 0.7 | I87: 0 | J87: 0
E88: 12 | F88: 7 | G88: 0.5 | H88: -0.1 | I88: 0 | J88: 0
E89: 12 | F89: 8 | G89: -0.2 | H89: 0.6 | I89: 0 | J89: 0.1
E90: 12 | F90: 9 | G90: -0.5 | H90: 0.2 | I90: 0 | J90: 0
E91: 12 | F91: 10 | G91: 0.1 | H91: -0.9 | I91: 0 | J91: 0
E92: 12 | F92: 11 | G92: -1.1 | H92: 0 | I92: 0 | J92: 0
E93: 12 | F93: 12 | G93: -0.3 | H93: 0.5 | I93: -0.1 | J93: -0.1

Sheet NavaidMagVars
C3: Navaid Type | D3: Country Code
C4: ALL | D4: NZL
C6: ="Magnetic Variations from True North using " & G9 & " model" -> Magnetic Variations from True North using 2021 model
C7: From | D7: To | E7: # of NAVAIDS | G7: 23
C8: 0 | D8: 3 | E8: 0
C9: 3 | D9: 5 | E9: 0 | G9: 2021
C10: 5 | D10: 10 | E10: 0
C11: 10 | D11: 359 | E11: 20
D19: Total | E19: =SUM(E8:E18) -> 20
C22: KML Point Color | D22: Category
C23: TEXT | D23: VOR
C24: TEXT | D24: VOR-DME
C25: TEXT | D25: TACAN
C26: TEXT | D26: VORTAC

Sheet airports (hidden)
A1: id | B1: ident | C1: type | D1: name | E1: latitude_deg | F1: longitude_deg | G1: elevation_ft | H1: continent | I1: iso_country | J1: iso_region | K1: municipality | L1: scheduled_service | M1: gps_code | N1: iata_code | O1: local_code | P1: home_link | Q1: wikipedia_link | R1: keywords
A2: 6523 | B2: 00A | C2: heliport | D2: Total Rf Heliport | E2: 40.07080078 | F2: -74.93360138 | G2: 11 | H2: NA | I2: US | J2: US-PA | K2: Bensalem | L2: no | M2: 00A | O2: 00A
A3: 323361 | B3: 00AA | C3: small_airport | D3: Aero B Ranch Airport | E3: 38.704022 | F3: -101.473911 | G3: 3435 | H3: NA | I3: US | J3: US-KS | K3: Leoti | L3: no | M3: 00AA | O3: 00AA
A4: 6524 | B4: 00AK | C4: small_airport | D4: Lowell Field | E4: 59.947733 | F4: -151.692524 | G4: 450 | H4: NA | I4: US | J4: US-AK | K4: Anchor Point | L4: no | M4: 00AK | O4: 00AK
A5: 6525 | B5: 00AL | C5: small_airport | D5: Epps Airpark | E5: 34.8647995 | F5: -86.77030182 | G5: 820 | H5: NA | I5: US | J5: US-AL | K5: Harvest | L5: no | M5: 00AL | O5: 00AL
A6: 6526 | B6: 00AR | C6: closed | D6: Newport Hospital & Clinic Heliport | E6: 35.6087 | F6: -91.254898 | G6: 237 | H6: NA | I6: US | J6: US-AR | K6: Newport | L6: no | R6: 00AR
A7: 322127 | B7: 00AS | C7: small_airport | D7: Fulton Airport | E7: 34.9428028 | F7: -97.8180194 | G7: 1100 | H7: NA | I7: US | J7: US-OK | K7: Alex | L7: no | M7: 00AS | O7: 00AS
A8: 6527 | B8: 00AZ | C8: small_airport | D8: Cordes Airport | E8: 34.30559921 | F8: -112.1650009 | G8: 3810 | H8: NA | I8: US | J8: US-AZ | K8: Cordes | L8: no | M8: 00AZ | O8: 00AZ
A9: 6528 | B9: 00CA | C9: small_airport | D9: Goldstone (GTS) Airport | E9: 35.35474 | F9: -116.885329 | G9: 3038 | H9: NA | I9: US | J9: US-CA | K9: Barstow | L9: no | M9: 00CA | O9: 00CA
A10: 324424 | B10: 00CL | C10: small_airport | D10: Williams Ag Airport | E10: 39.427188 | F10: -121.763427 | G10: 87 | H10: NA | I10: US | J10: US-CA | K10: Biggs | L10: no | M10: 00CL | O10: 00CL
A11: 322658 | B11: 00CN | C11: heliport | D11: Kitchen Creek Helibase Heliport | E11: 32.7273736 | F11: -116.4597417 | G11: 3350 | H11: NA | I11: US | J11: US-CA | K11: Pine Valley | L11: no | M11: 00CN | O11: 00CN
A12: 6529 | B12: 00CO | C12: closed | D12: Cass Field | E12: 40.622202 | F12: -104.344002 | G12: 4830 | H12: NA | I12: US | J12: US-CO | K12: Briggsdale | L12: no | R12: 00CO
A13: 6531 | B13: 00FA | C13: small_airport | D13: Grass Patch Airport | E13: 28.64550018 | F13: -82.21900177 | G13: 53 | H13: NA | I13: US | J13: US-FL | K13: Bushnell | L13: no | M13: 00FA | O13: 00FA
A14: 6532 | B14: 00FD | C14: heliport | D14: Ringhaver Heliport | E14: 28.84659958 | F14: -82.34539795 | G14: 25 | H14: NA | I14: US | J14: US-FL | K14: Riverview | L14: no | M14: 00FD | O14: 00FD
A15: 6533 | B15: 00FL | C15: small_airport | D15: River Oak Airport | E15: 27.23089981 | F15: -80.96920013 | G15: 35 | H15: NA | I15: US | J15: US-FL | K15: Okeechobee | L15: no | M15: 00FL | O15: 00FL
A16: 6534 | B16: 00GA | C16: small_airport | D16: Lt World Airport | E16: 33.76750183 | F16: -84.06829834 | G16: 700 | H16: NA | I16: US | J16: US-GA | K16: Lithonia | L16: no | M16: 00GA | O16: 00GA
A17: 6535 | B17: 00GE | C17: heliport | D17: Caffrey Heliport | E17: 33.889245 | F17: -84.73793 | G17: 957 | H17: NA | I17: US | J17: US-GA | K17: Hiram | L17: no | M17: 00GE | O17: 00GE
A18: 6536 | B18: 00HI | C18: heliport | D18: Kaupulehu Heliport | E18: 19.832715 | F18: -155.980233 | G18: 43 | H18: NA | I18: US | J18: US-HI | K18: Kailua-Kona | L18: no | M18: 00HI | O18: 00HI
A19: 6537 | B19: 00ID | C19: small_airport | D19: Delta Shores Airport | E19: 48.14530182 | F19: -116.2139969 | G19: 2064 | H19: NA | I19: US | J19: US-ID | K19: Clark Fork | L19: no | M19: 00ID | O19: 00ID
A20: 322581 | B20: 00IG | C20: small_airport | D20: Goltl Airport | E20: 39.724028 | F20: -101.395994 | G20: 3359 | H20: NA | I20: US | J20: US-KS | K20: McDonald | L20: no | M20: 00IG | O20: 00IG
A21: 6538 | B21: 00II | C21: closed | D21: Bailey Generation Station Heliport | E21: 41.644501 | F21: -87.122803 | G21: 600 | H21: NA | I21: US | J21: US-IN | K21: Chesterton | L21: no | R21: 00II
A22: 6539 | B22: 00IL | C22: small_airport | D22: Hammer Airport | E22: 41.97840118 | F22: -89.56040192 | G22: 840 | H22: NA | I22: US | J22: US-IL | K22: Polo | L22: no | M22: 00IL | O22: 00IL
A23: 6540 | B23: 00IN | C23: heliport | D23: St Mary Medical Center Heliport | E23: 41.51139832 | F23: -87.26059723 | G23: 634 | H23: NA | I23: US | J23: US-IN | K23: Hobart | L23: no | M23: 00IN | O23: 00IN
A24: 6541 | B24: 00IS | C24: small_airport | D24: Hayenga's Cant Find Farms Airport | E24: 40.02560043 | F24: -89.12290192 | G24: 820 | H24: NA | I24: US | J24: US-IL | K24: Kings | L24: no | M24: 00IS | O24: 00IS
A25: 6542 | B25: 00KS | C25: small_airport | D25: Hayden Farm Airport | E25: 38.72779846 | F25: -94.93049622 | G25: 1100 | H25: NA | I25: US | J25: US-KS | K25: Gardner | L25: no | M25: 00KS | O25: 00KS
A26: 6543 | B26: 00KY | C26: small_airport | D26: Robbins Roost Airport | E26: 37.40940094 | F26: -84.61969757 | G26: 1265 | H26: NA | I26: US | J26: US-KY | K26: Stanford | L26: no | M26: 00KY | O26: 00KY
A27: 45437 | B27: 00LA | C27: heliport | D27: Shell Chemical East Site Heliport | E27: 30.191944 | F27: -90.980833 | G27: 15 | H27: NA | I27: US | J27: US-LA | K27: Gonzales | L27: no | M27: 00LA | O27: 00LA
A28: 6544 | B28: 00LL | C28: heliport | D28: Ac & R Components Heliport | E28: 39.66529846 | F28: -89.70559692 | G28: 600 | H28: NA | I28: US | J28: US-IL | K28: Chatham | L28: no | M28: 00LL | O28: 00LL
A29: 6545 | B29: 00LS | C29: small_airport | D29: Lejeune Airport | E29: 30.136299 | F29: -92.429398 | G29: 12 | H29: NA | I29: US | J29: US-LA | K29: Crowley | L29: no | M29: 00LS | O29: 00LS
A30: 6546 | B30: 00MD | C30: small_airport | D30: Slater Field | E30: 38.75709915 | F30: -75.75379944 | G30: 45 | H30: NA | I30: US | J30: US-MD | K30: Federalsburg | L30: no | M30: 00MD | O30: 00MD
A31: 6547 | B31: 00MI | C31: heliport | D31: Dow Chemical Heliport | E31: 43.94940186 | F31: -86.41670227 | G31: 588 | H31: NA | I31: US | J31: US-MI | K31: Ludington | L31: no | M31: 00MI | O31: 00MI
A32: 6548 | B32: 00MN | C32: small_airport | D32: Battle Lake Municipal Airport | E32: 46.29999924 | F32: -95.70030212 | G32: 1365 | H32: NA | I32: US | J32: US-MN | K32: Battle Lake | L32: no | M32: 00MN | O32: 00MN
A33: 6549 | B33: 00MO | C33: small_airport | D33: Cooper Flying Service Airport | E33: 37.20280075 | F33: -94.41239929 | G33: 970 | H33: NA | I33: US | J33: US-MO | K33: Alba | L33: no | M33: 00MO | O33: 00MO | R33: 5K8
A34: 324642 | B34: 00MT | C34: heliport | D34: Livingston Healthcare Heliport | E34: 45.675 | F34: -110.52515 | G34: 4465 | H34: NA | I34: US | J34: US-MT | K34: Livingston | L34: no | M34: 00MT | O34: 00MT
A35: 6551 | B35: 00N | C35: small_airport | D35: Bucks Airport | E35: 39.47320175 | F35: -75.18520355 | G35: 105 | H35: NA | I35: US | J35: US-NJ | K35: Bridgeton | L35: no | M35: 00N | O35: 00N
A36: 6552 | B36: 00NC | C36: small_airport | D36: North Raleigh Airport | E36: 36.08520126 | F36: -78.37139893 | G36: 348 | H36: NA | I36: US | J36: US-NC | K36: Louisburg | L36: no | M36: 00NC | O36: 00NC
A37: 6553 | B37: 00NJ | C37: heliport | D37: Colgate-Piscataway Heliport | E37: 40.52090073 | F37: -74.47460175 | G37: 78 | H37: NA | I37: US | J37: US-NJ | K37: New Brunswick | L37: no | M37: 00NJ | O37: 00NJ
A38: 321919 | B38: 00NK | C38: seaplane_base | D38: Cliche Cove Seaplane Base | E38: 44.8118612 | F38: -73.3698057 | G38: 96 | H38: NA | I38: US | J38: US-NY | K38: Beekmantown | L38: no | M38: 00NK | O38: 00NK
A39: 6554 | B39: 00NY | C39: small_airport | D39: Weiss Airfield | E39: 42.90010071 | F39: -77.49970245 | G39: 1000 | H39: NA | I39: US | J39: US-NY | K39: West Bloomfield | L39: no | M39: 00NY | O39: 00NY
A40: 6555 | B40: 00OH | C40: closed | D40: Exit 3 Airport | E40: 41.590476 | F40: -84.141583 | G40: 785 | H40: NA | I40: US | J40: US-OH | K40: Wauseon | L40: no | R40: 64D, 00OH
A41: 6556 | B41: 00OI | C41: heliport | D41: Miami Valley Hospital Heliport | E41: 39.74530029 | F41: -84.18740082 | G41: 905 | H41: NA | I41: US | J41: US-OH | K41: Dayton | L41: no | M41: 00OI | O41: 00OI
A42: 328503 | B42: 00OK | C42: small_airport | D42: Gull Bay Landing Airport | E42: 36.198598 | F42: -96.217693 | G42: 960 | H42: NA | I42: US | J42: US-OK | K42: Sandsprings | L42: no | M42: 00OK | O42: 00OK
A43: 6557 | B43: 00OR | C43: heliport | D43: Steel Systems Heliport | E43: 44.93289948 | F43: -123.1299973 | G43: 195 | H43: NA | I43: US | J43: US-OR | K43: Salem | L43: no | M43: 00OR | O43: 00OR
A44: 6558 | B44: 00PA | C44: heliport | D44: R J D Heliport | E44: 39.94889832 | F44: -75.74690247 | G44: 402 | H44: NA | I44: US | J44: US-PA | K44: Coatesville | L44: no | M44: 00PA | O44: 00PA
A45: 45773 | B45: 00PN | C45: small_airport | D45: Ferrell Field | E45: 41.2995 | F45: -80.211111 | G45: 1301 | H45: NA | I45: US | J45: US-PA | K45: Mercer | L45: no | M45: 00PN | O45: 00PN
A46: 6559 | B46: 00PS | C46: closed | D46: Thomas Field | E46: 40.3778 | F46: -77.365303 | G46: 815 | H46: NA | I46: US | J46: US-PA | K46: Loysville | L46: no | R46: 00PS
A47: 6560 | B47: 00S | C47: small_airport | D47: McKenzie Bridge State Airport | E47: 44.181466 | F47: -122.086 | G47: 1620 | H47: NA | I47: US | J47: US-OR | K47: Blue River | L47: no | O47: 00S | Q47: https://en.wikipedia.org/wiki/McKenzie_Bridge_State_Airport
A48: 6561 | B48: 00SC | C48: small_airport | D48: Flying O Airport | E48: 34.00939941 | F48: -80.26719666 | G48: 150 | H48: NA | I48: US | J48: US-SC | K48: Sumter | L48: no | M48: 00SC | O48: 00SC
A49: 330391 | B49: 00SD | C49: small_airport | D49: Homan Field | E49: 44.809158 | F49: -96.498897 | G49: 1590 | H49: NA | I49: US | J49: US-SD | K49: Gary | L49: no | M49: 00SD | O49: 00SD
A50: 6562 | B50: 00TA | C50: closed | D50: SW Region FAA Heliport | E50: 32.8269 | F50: -97.305801 | G50: 598 | H50: NA | I50: US | J50: US-TX | K50: Fort Worth | L50: no | R50: 00TA
A51: 6563 | B51: 00TE | C51: heliport | D51: Tcjc-Northeast Campus Heliport | E51: 32.84759903 | F51: -97.1894989 | G51: 600 | H51: NA | I51: US | J51: US-TX | K51: Fort Worth | L51: no | M51: 00TE | O51: 00TE
A52: 6564 | B52: 00TN | C52: small_airport | D52: Ragsdale Road Airport | E52: 35.51589966 | F52: -85.95359802 | G52: 1100 | H52: NA | I52: US | J52: US-TN | K52: Manchester | L52: no | M52: 00TN | O52: 00TN
A53: 6565 | B53: 00TS | C53: small_airport | D53: Alpine Range Airport | E53: 32.60760117 | F53: -97.24199677 | G53: 670 | H53: NA | I53: US | J53: US-TX | K53: Everman | L53: no | M53: 00TS | O53: 00TS
A54: 6566 | B54: 00TX | C54: closed | D54: San Jacinto Methodist Hospital Heliport | E54: 29.7377 | F54: -94.980201 | G54: 19 | H54: NA | I54: US | J54: US-TX | K54: Baytown | L54: no | R54: 00TX
A55: 6567 | B55: 00UT | C55: closed | D55: Clear Creek Ranch Airport | E55: 37.247799 | F55: -112.821998 | G55: 6138 | H55: NA | I55: US | J55: US-UT | K55: Kanab | L55: no | R55: 00UT, U21
A56: 6568 | B56: 00VA | C56: small_airport | D56: Vaughan Airport | E56: 36.57600021 | F56: -78.9991684 | G56: 551 | H56: NA | I56: US | J56: US-VA | K56: Alton | L56: no | M56: 00VA | O56: 00VA
A57: 6569 | B57: 00VI | C57: small_airport | D57: Groundhog Mountain Airport | E57: 36.66329956 | F57: -80.49949646 | G57: 2680 | H57: NA | I57: US | J57: US-VA | K57: Hillsville | L57: no | M57: 00VI | O57: 00VI
A58: 6570 | B58: 00W | C58: small_airport | D58: Lower Granite State Airport | E58: 46.672884 | F58: -117.441933 | G58: 719 | H58: NA | I58: US | J58: US-WA | K58: Colfax | L58: no | O58: 00W | P58: http://www.wsdot.wa.gov/aviation/AllStateAirports/Colfax_LowerGraniteState.htm | R58: 0WA0
A59: 6571 | B59: 00WA | C59: small_airport | D59: Howell Airport | E59: 47.17839813 | F59: -122.7720032 | G59: 150 | H59: NA | I59: US | J59: US-WA | K59: Longbranch | L59: no | M59: 00WA | O59: 00WA
A60: 6572 | B60: 00WI | C60: small_airport | D60: Northern Lite Airport | E60: 44.3042984 | F60: -89.05010223 | G60: 860 | H60: NA | I60: US | J60: US-WI | K60: Waupaca | L60: no | M60: 00WI | O60: 00WI
A61: 6573 | B61: 00WN | C61: small_airport | D61: Hawks Run Airport | E61: 46.25 | F61: -117.2490005 | G61: 2900 | H61: NA | I61: US | J61: US-WA | K61: Asotin | L61: no | M61: 00WN | O61: 00WN
A62: 6574 | B62: 00WV | C62: small_airport | D62: Lazy J. Aerodrome | E62: 38.82889938 | F62: -79.8660965 | G62: 2060 | H62: NA | I62: US | J62: US-WV | K62: Beverly | L62: no | M62: 00WV | O62: 00WV
A63: 322300 | B63: 00WY | C63: heliport | D63: Mountain View Regional Hospital Heliport | E63: 42.840361 | F63: -106.224443 | G63: 5210 | H63: NA | I63: US | J63: US-WY | K63: Casper | L63: no | M63: 00WY | O63: 00WY
A64: 6575 | B64: 00XS | C64: small_airport | D64: L P Askew Farms Airport | E64: 33.03340149 | F64: -101.9339981 | G64: 3110 | H64: NA | I64: US | J64: US-TX | K64: O'Donnell | L64: no | M64: 00XS | O64: 00XS
A65: 6576 | B65: 01A | C65: small_airport | D65: Purkeypile Airport | E65: 62.9435997 | F65: -152.2700043 | G65: 1950 | H65: NA | I65: US | J65: US-AK | K65: Purkeypile | L65: no | M65: 01A | O65: 01A
A66: 6577 | B66: 01AK | C66: heliport | D66: Providence Seward Medical Center Heliport | E66: 60.10587398 | F66: -149.446249 | G66: 120 | H66: NA | I66: US | J66: US-AK | K66: Seward | L66: no | M66: 01AK | O66: 01AK
A67: 6578 | B67: 01AL | C67: small_airport | D67: Ware Island Airport | E67: 32.94599915 | F67: -86.51390076 | G67: 344 | H67: NA | I67: US | J67: US-AL | K67: Clanton | L67: no | M67: 01AL | O67: 01AL
A68: 6579 | B68: 01AR | C68: heliport | D68: DeQueen Medical Center Heliport | E68: 34.047456 | F68: -94.354023 | G68: 440 | H68: NA | I68: US | J68: US-AR | K68: DeQueen | L68: no | M68: 01AR | O68: 01AR | R68: Community Hospital of DeQueen Heliport
A69: 6580 | B69: 01AZ | C69: heliport | D69: Yat Heliport | E69: 34.607406 | F69: -111.8609 | G69: 3300 | H69: NA | I69: US | J69: US-AZ | K69: Camp Verde | L69: no | M69: 01AZ | O69: 01AZ
A70: 6581 | B70: 01C | C70: closed | D70: Grant Airport | E70: 43.34170151 | F70: -85.77500153 | G70: 815 | H70: NA | I70: US | J70: US-MI | K70: Grant | L70: no | M70: 01C | O70: 01C | Q70: https://en.wikipedia.org/wiki/Grant_Airport
A71: 6582 | B71: 01CA | C71: heliport | D71: SCE Lugo Substation Heliport | E71: 34.368241 | F71: -117.370059 | G71: 3733 | H71: NA | I71: US | J71: US-CA | K71: Hesperia | L71: no | M71: 01CA | O71: 01CA
A72: 6583 | B72: 01CL | C72: small_airport | D72: Swansboro Country Airport | E72: 38.79990005 | F72: -120.7340012 | G72: 2594 | H72: NA | I72: US | J72: US-CA | K72: Placerville | L72: no | M72: 01CL | O72: 01CL
A73: 6584 | B73: 01CN | C73: heliport | D73: Los Angeles County Sheriff's Department Heliport | E73: 34.03779984 | F73: -118.1539993 | G73: 300 | H73: NA | I73: US | J73: US-CA | K73: Los Angeles | L73: no | M73: 01CN | O73: 01CN
A74: 6585 | B74: 01CO | C74: heliport | D74: St Vincent General Hospital Heliport | E74: 39.24530029 | F74: -106.2460022 | G74: 10175 | H74: NA | I74: US | J74: US-CO | K74: Leadville | L74: no | M74: 01CO | O74: 01CO
A75: 6586 | B75: 01CT | C75: heliport | D75: Berlin Fairgrounds Heliport | E75: 41.62730026 | F75: -72.72750092 | G75: 60 | H75: NA | I75: US | J75: US-CT | K75: Berlin | L75: no | M75: 01CT | O75: 01CT
A76: 6587 | B76: 01FA | C76: small_airport | D76: Rybolt Ranch Airport | E76: 28.58939934 | F76: -81.14420319 | G76: 55 | H76: NA | I76: US | J76: US-FL | K76: Orlando | L76: no | M76: 01FA | O76: 01FA
A77: 6588 | B77: 01FD | C77: heliport | D77: Advent Health Altamonte Springs Heliport | E77: 28.666639 | F77: -81.3697 | G77: 86 | H77: NA | I77: US | J77: US-FL | K77: Altamonte Springs | L77: no | M77: 01FD | O77: 01FD | R77: Florida Hospital-Altamonte
A78: 6589 | B78: 01FL | C78: small_airport | D78: Cedar Knoll Flying Ranch Airport | E78: 28.78190041 | F78: -81.15920258 | G78: 19 | H78: NA | I78: US | J78: US-FL | K78: Geneva | L78: no | M78: 01FL | O78: 01FL
A79: 6590 | B79: 01GA | C79: heliport | D79: Medical Center Heliport | E79: 32.47930145 | F79: -84.97910309 | G79: 319 | H79: NA | I79: US | J79: US-GA | K79: Columbus | L79: no | M79: 01GA | O79: 01GA
A80: 6591 | B80: 01GE | C80: small_airport | D80: The Farm Airport | E80: 32.67440033 | F80: -82.77110291 | G80: 375 | H80: NA | I80: US | J80: US-GA | K80: Wrightsville | L80: no | M80: 01GE | O80: 01GE
A81: 6592 | B81: 01IA | C81: small_airport | D81: Stender Airport | E81: 41.66109848 | F81: -90.74130249 | G81: 725 | H81: NA | I81: US | J81: US-IA | K81: Maysville | L81: no | M81: 01IA | O81: 01IA
A82: 6530 | B82: 01ID | C82: small_airport | D82: Lava Hot Springs Airport | E82: 42.6082 | F82: -112.031998 | G82: 5268 | H82: NA | I82: US | J82: US-ID | K82: Lava Hot Springs | L82: no | M82: 01ID | O82: 01ID | R82: Formerly 00E, ID26
A83: 6593 | B83: 01II | C83: small_airport | D83: Myers Field | E83: 39.88499832 | F83: -86.50669861 | G83: 950 | H83: NA | I83: US | J83: US-IN | K83: Lizton | L83: no | M83: 01II | O83: 01II
A84: 6594 | B84: 01IL | C84: heliport | D84: Hoopeston Community Memorial Hospital Heliport | E84: 40.45859909 | F84: -87.65950012 | G84: 583 | H84: NA | I84: US | J84: US-IL | K84: Hoopeston | L84: no | M84: 01IL | O84: 01IL
A85: 6595 | B85: 01IN | C85: heliport | D85: Community Hospital Heliport | E85: 40.13090134 | F85: -85.69580078 | G85: 890 | H85: NA | I85: US | J85: US-IN | K85: Anderson | L85: no | M85: 01IN | O85: 01IN
A86: 6596 | B86: 01IS | C86: small_airport | D86: William E. Koenig Airport | E86: 39.01620102 | F86: -90.31819916 | G86: 670 | H86: NA | I86: US | J86: US-IL | K86: Dow | L86: no | M86: 01IS | O86: 01IS
A87: 6597 | B87: 01J | C87: small_airport | D87: Hilliard Airpark | E87: 30.68630028 | F87: -81.90570068 | G87: 59 | H87: NA | I87: US | J87: US-FL | K87: Hilliard | L87: no | M87: 01J | O87: 01J
A88: 6598 | B88: 01K | C88: small_airport | D88: Caldwell Municipal Airport | E88: 37.03609848 | F88: -97.58640289 | G88: 1157 | H88: NA | I88: US | J88: US-KS | K88: Caldwell | L88: no | M88: 01K | O88: 01K
A89: 6599 | B89: 01KS | C89: small_airport | D89: Flying N Ranch Airport | E89: 38.54059982 | F89: -97.00330353 | G89: 1485 | H89: NA | I89: US | J89: US-KS | K89: Lost Springs | L89: no | M89: 01KS | O89: 01KS
A90: 6600 | B90: 01KY | C90: heliport | D90: Lourdes Hospital Heliport | E90: 37.05170059 | F90: -88.64689636 | G90: 419 | H90: NA | I90: US | J90: US-KY | K90: Paducah | L90: no | M90: 01KY | O90: 01KY
A91: 6601 | B91: 01LA | C91: small_airport | D91: Barham Airport | E91: 32.63899994 | F91: -91.7736969 | G91: 90 | H91: NA | I91: US | J91: US-LA | K91: Oak Ridge | L91: no | M91: 01LA | O91: 01LA
A92: 6602 | B92: 01LL | C92: small_airport | D92: Schumaier Restricted Landing Area | E92: 38.12580109 | F92: -89.46389771 | G92: 555 | H92: NA | I92: US | J92: US-IL | K92: Pinckneyville | L92: no | M92: 01LL | O92: 01LL
A93: 6603 | B93: 01LS | C93: small_airport | D93: Country Breeze Airport | E93: 30.722478 | F93: -91.077372 | G93: 125 | H93: NA | I93: US | J93: US-LA | K93: Slaughter | L93: no | M93: 01LS | O93: 01LS
A94: 6604 | B94: 01MA | C94: heliport | D94: Compaq Andover Heliport | E94: 42.62509918 | F94: -71.18009949 | G94: 140 | H94: NA | I94: US | J94: US-MA | K94: Andover | L94: no | M94: 01MA | O94: 01MA
A95: 6605 | B95: 01MD | C95: seaplane_base | D95: Annapolis Seaplane Base | E95: 38.999199 | F95: -76.456001 | H95: NA | I95: US | J95: US-MD | K95: Annapolis | L95: no | M95: 01MD | O95: 01MD
A96: 6606 | B96: 01ME | C96: seaplane_base | D96: Saint Peter's Seaplane Base | E96: 46.77890015 | F96: -68.50029755 | G96: 608 | H96: NA | I96: US | J96: US-ME | K96: Portage Lake | L96: no | M96: 01ME | O96: 01ME
A97: 6607 | B97: 01MI | C97: heliport | D97: Flow Through Terminal Heliport | E97: 43.04949951 | F97: -83.67970276 | G97: 736 | H97: NA | I97: US | J97: US-MI | K97: Flint | L97: no | M97: 01MI | O97: 01MI
A98: 6608 | B98: 01MN | C98: seaplane_base | D98: Barnes Seaplane Base | E98: 47.89960098 | F98: -92.55740356 | G98: 1358 | H98: NA | I98: US | J98: US-MN | K98: Cook | L98: no | M98: 01MN | O98: 01MN
A99: 6609 | B99: 01MO | C99: heliport | D99: Highway Patrol Troop C Headquarters Heliport | E99: 38.64170074 | F99: -90.48429871 | G99: 615 | H99: NA | I99: US | J99: US-MO | K99: Town and Country | L99: no | M99: 01MO | O99: 01MO
A100: 6610 | B100: 01MT | C100: small_airport | D100: Crystal Lakes Resort Airport | E100: 48.78910065 | F100: -114.8799973 | G100: 3141 | H100: NA | I100: US | J100: US-MT | K100: Fortine | L100: no | M100: 01MT | O100: 01MT
A101: 6611 | B101: 01NC | C101: small_airport | D101: Topsail Airpark | E101: 34.47529984 | F101: -77.58139801 | G101: 65 | H101: NA | I101: US | J101: US-NC | K101: Holly Ridge | L101: no | M101: 01NC | O101: 01NC
A102: 6612 | B102: 01NE | C102: small_airport | D102: Detour Airport | E102: 40.84360123 | F102: -100.6529999 | G102: 3000 | H102: NA | I102: US | J102: US-NE | K102: Wellfleet | L102: no | M102: 01NE | O102: 01NE
A103: 6613 | B103: 01NH | C103: small_airport | D103: Moore Airfield | E103: 43.6445 | F103: -72.086998 | G103: 835 | H103: NA | I103: US | J103: US-NH | K103: Canaan | L103: no | M103: 01NH | O103: 01NH | R103: Enfield
A104: 6614 | B104: 01NJ | C104: heliport | D104: Albert Guido Memorial Heliport | E104: 40.7417984 | F104: -74.13710022 | G104: 10 | H104: NA | I104: US | J104: US-NJ | K104: Newark | L104: no | M104: 01NJ | O104: 01NJ
A105: 45537 | B105: 01NM | C105: small_airport | D105: Champion Ranch Airport | E105: 33.008611 | F105: -104.540278 | G105: 3630 | H105: NA | I105: US | J105: US-NM | K105: Artesia | L105: no | M105: 01NM | O105: 01NM
A106: 6615 | B106: 01NV | C106: small_airport | D106: Lantana Ranch Airport | E106: 38.76390076 | F106: -119.0270004 | G106: 4600 | H106: NA | I106: US | J106: US-NV | K106: Yerington | L106: no | M106: 01NV | O106: 01NV
A107: 6616 | B107: 01NY | C107: heliport | D107: Vassar Hospital Heliport | E107: 41.692415 | F107: -73.93683 | G107: 100 | H107: NA | I107: US | J107: US-NY | K107: Poughkeepsie | L107: no | M107: 01NY | O107: 01NY
A108: 347920 | B108: 01OH | C108: heliport | D108: Atrium Medical Center Heliport | E108: 39.497455 | F108: -84.313851 | G108: 775 | H108: NA | I108: US | J108: US-OH | K108: Middletown | L108: no | M108: 01OH | O108: 01OH
A109: 6617 | B109: 01OI | C109: heliport | D109: Avita Health System Galion Hospital Heliport | E109: 40.730267 | F109: -82.802022 | G109: 1140 | H109: NA | I109: US | J109: US-OH | K109: Galion | L109: no | M109: 01OI | O109: 01OI | R109: Galion Community Hospital Heliport
A110: 6618 | B110: 01OK | C110: closed | D110: Lawrence Airport | E110: 35.294498 | F110: -98.636496 | G110: 1525 | H110: NA | I110: US | J110: US-OK | K110: Eakly | L110: no | R110: 01OK
A111: 345166 | B111: 01OL | C111: small_airport | D111: Spring Creek Ranch East Airport | E111: 34.391667 | F111: -96.690833 | G111: 1060 | H111: NA | I111: US | J111: US-OK | K111: Tishomingo | L111: no | M111: 01OL | O111: 01OL
A112: 6619 | B112: 01OR | C112: closed | D112: Red & White Flying Service Airport | E112: 43.119301 | F112: -121.044997 | G112: 4346 | H112: NA | I112: US | J112: US-OR | K112: Silver Lake | L112: no | R112: 01OR
A113: 6620 | B113: 01PA | C113: closed | D113: Pine Heliport | E113: 40.655602 | F113: -80.050903 | G113: 1215 | H113: NA | I113: US | J113: US-PA | K113: Mars | L113: no | R113: 01PA
A114: 6621 | B114: 01PN | C114: small_airport | D114: Bierly(Personal Use) Airport | E114: 40.93059921 | F114: -77.73889923 | G114: 960 | H114: NA | I114: US | J114: US-PA | K114: Bellefonte | L114: no | M114: 01PN | O114: 01PN
A115: 6622 | B115: 01PS | C115: small_airport | D115: Nort's Resort Airport | E115: 41.59590149 | F115: -76.02960205 | G115: 1040 | H115: NA | I115: US | J115: US-PA | K115: Meshoppen | L115: no | M115: 01PS | O115: 01PS
A116: 6623 | B116: 01SC | C116: small_airport | D116: York Airport | E116: 35.03210068 | F116: -81.25279999 | G116: 779 | H116: NA | I116: US | J116: US-SC | K116: York | L116: no | M116: 01SC | O116: 01SC
A117: 6624 | B117: 01TA | C117: heliport | D117: Thirty Thirty Matlock Office Center Heliport | E117: 32.69419861 | F117: -97.11579895 | G117: 630 | H117: NA | I117: US | J117: US-TX | K117: Arlington | L117: no | M117: 01TA | O117: 01TA
A118: 6625 | B118: 01TE | C118: small_airport | D118: Smith Field | E118: 32.73759842 | F118: -96.4280014 | G118: 505 | H118: NA | I118: US | J118: US-TX | K118: Forney | L118: no | M118: 01TE | O118: 01TE
A119: 6626 | B119: 01TN | C119: small_airport | D119: Colonial Air Park | E119: 34.9958992 | F119: -89.73059845 | G119: 370 | H119: NA | I119: US | J119: US-TN | K119: Collierville | L119: no | M119: 01TN | O119: 01TN
A120: 6627 | B120: 01TS | C120: closed | D120: St Joseph Hospital Heliport | E120: 32.7285 | F120: -97.324501 | G120: 675 | H120: NA | I120: US | J120: US-TX | K120: Fort Worth | L120: no | R120: 01TS
A121: 340858 | B121: 01TT | C121: heliport | D121: Clute Fire & EMS Station #1 Heliport | E121: 29.012067 | F121: -95.402119 | G121: 7 | H121: NA | I121: US | J121: US-TX | K121: Clute | L121: no | M121: 01TT | O121: 01TT
A122: 6628 | B122: 01TX | C122: closed | D122: Mims Farm Ultralightport | E122: 32.388115 | F122: -96.877398 | G122: 610 | H122: NA | I122: US | J122: US-TX | K122: Waxahachie | L122: no | R122: 01TX
A123: 6629 | B123: 01U | C123: small_airport | D123: Duckwater Airport | E123: 38.85160065 | F123: -115.6340027 | G123: 5124 | H123: NA | I123: US | J123: US-NV | K123: Duckwater | L123: no | M123: 01U | O123: 01U
A124: 6630 | B124: 01UT | C124: small_airport | D124: La Sal Junction Airport | E124: 38.30830002 | F124: -109.3960037 | G124: 6000 | H124: NA | I124: US | J124: US-UT | K124: La Sal | L124: no | M124: 01UT | O124: 01UT
A125: 6631 | B125: 01VA | C125: small_airport | D125: Pickles Airport | E125: 39.125 | F125: -77.92500305 | G125: 500 | H125: NA | I125: US | J125: US-VA | K125: Berryville | L125: no | M125: 01VA | O125: 01VA
A126: 6632 | B126: 01WA | C126: heliport | D126: Willapa Harbor Heliport | E126: 46.66320038 | F126: -123.8119965 | G126: 154 | H126: NA | I126: US | J126: US-WA | K126: South Bend | L126: no | M126: 01WA | O126: 01WA
A127: 6633 | B127: 01WI | C127: small_airport | D127: Prehn Cranberry Company Airport | E127: 44.00999832 | F127: -90.3891983 | G127: 930 | H127: NA | I127: US | J127: US-WI | K127: Tomah | L127: no | M127: 01WI | O127: 01WI
A128: 6634 | B128: 01WN | C128: heliport | D128: Whidbey General Hospital Heliport | E128: 48.21340179 | F128: -122.6849976 | G128: 103 | H128: NA | I128: US | J128: US-WA | K128: Coupeville | L128: no | M128: 01WN | O128: 01WN
A129: 45900 | B129: 01WT | C129: heliport | D129: Odyssey Heliport | E129: 47.518178 | F129: -122.210908 | G129: 20 | H129: NA | I129: US | J129: US-WA | K129: Renton | L129: no | M129: 01WT | O129: 01WT
A130: 6635 | B130: 01WY | C130: small_airport | D130: Keyhole Airport | E130: 44.34719849 | F130: -104.810997 | G130: 4250 | H130: NA | I130: US | J130: US-WY | K130: Moorcroft | L130: no | M130: 01WY | O130: 01WY
A131: 46288 | B131: 01XA | C131: heliport | D131: Ascension Seton Hays Heliport | E131: 30.007222 | F131: -97.853333 | G131: 715 | H131: NA | I131: US | J131: US-TX | K131: Kyle | L131: no | M131: 01XA | O131: 01XA | R131: Seton Medical Center Hays Heliport
A132: 6636 | B132: 01XS | C132: heliport | D132: Meadowood Ranch Heliport | E132: 32.02019882 | F132: -95.74549866 | G132: 500 | H132: NA | I132: US | J132: US-TX | K132: Athens | L132: no | M132: 01XS | O132: 01XS
A133: 335815 | B133: 02AA | C133: small_airport | D133: Barefoot Airport | E133: 61.506147 | F133: -149.912825 | G133: 160 | H133: NA | I133: US | J133: US-AK | K133: Big Lake | L133: no | M133: 02AA | O133: 02AA | R133: H & H Field
A134: 6637 | B134: 02AK | C134: small_airport | D134: Rustic Wilderness Airport | E134: 61.876907 | F134: -150.097626 | G134: 190 | H134: NA | I134: US | J134: US-AK | K134: Willow | L134: no | M134: 02AK | O134: 02AK
A135: 6638 | B135: 02AL | C135: small_airport | D135: Bass Field | E135: 30.37150002 | F135: -87.76439667 | G135: 61 | H135: NA | I135: US | J135: US-AL | K135: Foley | L135: no | M135: 02AL | O135: 02AL
A136: 43030 | B136: 02AR | C136: closed | D136: Three Rivers Airport | E136: 34.822445 | F136: -92.44442 | G136: 264 | H136: NA | I136: US | J136: US-AR | K136: Little Rock | L136: no | R136: 02AR
A137: 6640 | B137: 02AZ | C137: closed | D137: Winchester Farm Airstrip | E137: 32.376401 | F137: -109.936996 | G137: 4200 | H137: NA | I137: US | J137: US-AZ | K137: Willcox | L137: no | R137: 02AZ
A138: 6641 | B138: 02CA | C138: heliport | D138: Swepi Beta Platform Ellen Heliport | E138: 33.58250046 | F138: -118.1289978 | G138: 122 | H138: NA | I138: US | J138: US-CA | K138: Huntington Beach | L138: no | M138: 02CA | O138: 02CA
A139: 6642 | B139: 02CD | C139: small_airport | D139: Shannon Field | E139: 34.12960052 | F139: -90.52400208 | G139: 165 | H139: NA | I139: US | J139: US-MS | K139: Clarksdale | L139: no | M139: 02CD | O139: 02CD
A140: 6643 | B140: 02CL | C140: small_airport | D140: Conover Air Lodge Airport | E140: 34.761101 | F140: -119.058998 | G140: 5160 | H140: NA | I140: US | J140: US-CA | K140: Frazier Park | L140: no | M140: 02CL | O140: 02CL | R140: 04L
A141: 6644 | B141: 02CO | C141: small_airport | D141: Mc Cullough Airport | E141: 37.6432991 | F141: -106.0469971 | G141: 7615 | H141: NA | I141: US | J141: US-CO | K141: Monte Vista | L141: no | M141: 02CO | O141: 02CO
A142: 6645 | B142: 02CT | C142: heliport | D142: Strangers Point Heliport | E142: 41.91960144 | F142: -72.44450378 | G142: 540 | H142: NA | I142: US | J142: US-CT | K142: Ellington | L142: no | M142: 02CT | O142: 02CT
A143: 6646 | B143: 02FA | C143: small_airport | D143: Osborn Airfield | E143: 28.52669907 | F143: -81.87480164 | G143: 121 | H143: NA | I143: US | J143: US-FL | K143: Groveland | L143: no | M143: 02FA | O143: 02FA
A144: 341544 | B144: 02FD | C144: small_airport | D144: Triple R Ranch Airport | E144: 30.950976 | F144: -86.635555 | G144: 209 | H144: NA | I144: US | J144: US-FL | K144: Baker | L144: no | M144: 02FD | O144: 02FD
A145: 45347 | B145: 02FL | C145: closed | D145: Cuchens Airport | E145: 30.642527 | F145: -86.118779 | G145: 215 | H145: NA | I145: US | J145: US-FL | K145: Defuniak Springs | L145: no | R145: 02FL
A146: 6648 | B146: 02GA | C146: small_airport | D146: Doug Bolton Field | E146: 34.20259857 | F146: -83.42900085 | G146: 884 | H146: NA | I146: US | J146: US-GA | K146: Commerce | L146: no | M146: 02GA | O146: 02GA
A147: 6649 | B147: 02GE | C147: small_airport | D147: Etowah Fields Airport | E147: 34.1753006 | F147: -84.92440033 | G147: 710 | H147: NA | I147: US | J147: US-GA | K147: Euharlee | L147: no | M147: 02GE | O147: 02GE
A148: 6650 | B148: 02HI | C148: heliport | D148: K3 Helipad Heliport | E148: 21.36199951 | F148: -157.951004 | G148: 9 | H148: NA | I148: US | J148: US-HI | K148: Pearl Harbor | L148: no | M148: 02HI | O148: 02HI
A149: 6651 | B149: 02IA | C149: heliport | D149: Boone County Hospital Heliport | E149: 42.05609894 | F149: -93.87799835 | G149: 1160 | H149: NA | I149: US | J149: US-IA | K149: Boone | L149: no | M149: 02IA | O149: 02IA
A150: 6652 | B150: 02ID | C150: small_airport | D150: Morgan Ranch Airport | E150: 44.55550003 | F150: -115.3050003 | G150: 5634 | H150: NA | I150: US | J150: US-ID | K150: Cascade | L150: no | M150: 02ID | O150: 02ID
A151: 6653 | B151: 02II | C151: small_airport | D151: King Ultralightport | E151: 40.06230164 | F151: -86.21050262 | G151: 925 | H151: NA | I151: US | J151: US-IN | K151: Westfield | L151: no | M151: 02II | O151: 02II
A152: 6654 | B152: 02IN | C152: small_airport | D152: Diamond P. Field | E152: 40.20890045 | F152: -85.540802 | G152: 904 | H152: NA | I152: US | J152: US-IN | K152: Muncie | L152: no | M152: 02IN | O152: 02IN
A153: 6655 | B153: 02IS | C153: heliport | D153: Condell Medical Center Heliport | E153: 42.27460098 | F153: -87.95729828 | G153: 762 | H153: NA | I153: US | J153: US-IL | K153: Libertyville | L153: no | M153: 02IS | O153: 02IS
A154: 6656 | B154: 02KS | C154: small_airport | D154: Jmj Landing Airport | E154: 39.22219849 | F154: -96.05529785 | G154: 1170 | H154: NA | I154: US | J154: US-KS | K154: St Marys | L154: no | M154: 02KS | O154: 02KS
A155: 327110 | B155: 02KT | C155: heliport | D155: St Claire Healthcare Heliport | E155: 38.181441 | F155: -83.443319 | G155: 781 | H155: NA | I155: US | J155: US-KY | K155: Morehead | L155: no | M155: 02KT | O155: 02KT
A156: 6657 | B156: 02KY | C156: heliport | D156: Boone National Guard Heliport | E156: 38.190282 | F156: -84.906442 | G156: 760 | H156: NA | I156: US | J156: US-KY | K156: Frankfort | L156: no | M156: 02KY | O156: 02KY
A157: 6658 | B157: 02LA | C157: heliport | D157: La State Police Troop G Heliport | E157: 32.53129959 | F157: -93.66020203 | G157: 168 | H157: NA | I157: US | J157: US-LA | K157: Bossier City | L157: no | M157: 02LA | O157: 02LA
A158: 6659 | B158: 02LS | C158: heliport | D158: Windy Hill Heliport | E158: 30.14830017 | F158: -91.91899872 | G158: 25 | H158: NA | I158: US | J158: US-LA | K158: Broussard | L158: no | M158: 02LS | O158: 02LS
A159: 6660 | B159: 02MA | C159: heliport | D159: Cuttyhunk Heliport | E159: 41.419601 | F159: -70.927002 | G159: 9 | H159: NA | I159: US | J159: US-MA | K159: Cuttyhunk | L159: no | M159: 02MA | O159: 02MA
A160: 322099 | B160: 02MD | C160: small_airport | D160: Garner Field | E160: 38.672544 | F160: -76.709739 | G160: 141 | H160: NA | I160: US | J160: US-MD | K160: Brandywine | L160: no | M160: 02MD | O160: 02MD
A161: 6661 | B161: 02ME | C161: small_airport | D161: Nadeau's Airfield | E161: 43.537467 | F161: -70.930685 | G161: 700 | H161: NA | I161: US | J161: US-ME | K161: Acton | L161: no | M161: 02ME | O161: 02ME | R161: Mellion Airport, Old Acton Airfield
A162: 6662 | B162: 02MI | C162: small_airport | D162: Fairplains Airpark | E162: 43.15710068 | F162: -85.14849854 | G162: 850 | H162: NA | I162: US | J162: US-MI | K162: Greenville | L162: no | M162: 02MI | O162: 02MI
A163: 6663 | B163: 02MN | C163: closed | D163: Greenbush Municipal Airport | E163: 48.686527 | F163: -96.191976 | G163: 1070 | H163: NA | I163: US | J163: US-MN | K163: Greenbush | L163: no | R163: 02MN, 02Y
A164: 6664 | B164: 02MO | C164: small_airport | D164: Troy Airpark | E164: 39.04999924 | F164: -91.03350067 | G164: 650 | H164: NA | I164: US | J164: US-MO | K164: Troy | L164: no | M164: 02MO | O164: 02MO
A165: 6665 | B165: 02MS | C165: small_airport | D165: Watts Field | E165: 34.10010147 | F165: -90.84680176 | G165: 153 | H165: NA | I165: US | J165: US-MS | K165: Rochdale | L165: no | M165: 02MS | O165: 02MS
A166: 6666 | B166: 02MT | C166: closed | D166: Barrett Field | E166: 47.2374 | F166: -111.74304 | G166: 3350 | H166: NA | I166: US | J166: US-MT | K166: Cascade | L166: no | R166: 02MT
A167: 6667 | B167: 02MU | C167: closed | D167: Timber Line Airpark | E167: 36.655612 | F167: -93.802387 | G167: 1550 | H167: NA | I167: US | J167: US-MO | K167: Cassville | L167: no | R167: 02MU
A168: 45686 | B168: 02NC | C168: closed | D168: Race City Heliport | E168: 35.540477 | F168: -80.598047 | G168: 809 | H168: NA | I168: US | J168: US-NC | K168: Landis | L168: no | R168: 02NC
A169: 6668 | B169: 02NE | C169: small_airport | D169: Benes Service Airport | E169: 41.07450104 | F169: -96.90450287 | G169: 1550 | H169: NA | I169: US | J169: US-NE | K169: Valparaiso | L169: no | M169: 02NE | O169: 02NE
A170: 6669 | B170: 02NH | C170: seaplane_base | D170: Iroquois Landing Seaplane Base | E170: 44.65710068 | F170: -71.21910095 | G170: 1180 | H170: NA | I170: US | J170: US-NH | K170: Dummer | L170: no | M170: 02NH | O170: 02NH
A171: 6670 | B171: 02NJ | C171: heliport | D171: Penske Heliport | E171: 40.55730057 | F171: -74.46710205 | G171: 78 | H171: NA | I171: US | J171: US-NJ | K171: Piscataway | L171: no | M171: 02NJ | O171: 02NJ
A172: 6671 | B172: 02NV | C172: small_airport | D172: Paiute Meadows Airport | E172: 41.299551 | F172: -118.926709 | G172: 4443 | H172: NA | I172: US | J172: US-NV | K172: Winnemucca | L172: no | M172: 02NV | O172: 02NV
A173: 6672 | B173: 02NY | C173: heliport | D173: Hansen Heliport | E173: 43.13259888 | F173: -75.65550232 | G173: 435 | H173: NA | I173: US | J173: US-NY | K173: Durhamville | L173: no | M173: 02NY | O173: 02NY
A174: 6673 | B174: 02OH | C174: small_airport | D174: Zimmerman Airport | E174: 41.37639999 | F174: -83.08329773 | G174: 614 | H174: NA | I174: US | J174: US-OH | K174: Fremont | L174: no | M174: 02OH | O174: 02OH
A175: 6674 | B175: 02OI | C175: small_airport | D175: Murtha Airport | E175: 41.80199814 | F175: -80.56539917 | G175: 950 | H175: NA | I175: US | J175: US-OH | K175: Conneaut | L175: no | M175: 02OI | O175: 02OI
A176: 6675 | B176: 02OK | C176: closed | D176: Canon Heliport | E176: 35.458401 | F176: -97.525297 | G176: 1191 | H176: NA | I176: US | J176: US-OK | K176: Oklahoma City | L176: no | O176: 02OK | R176: 02OK
A177: 337183 | B177: 02OL | C177: heliport | D177: War Veterans Colony Heliport | E177: 34.811412 | F177: -95.307727 | G177: 807 | H177: NA | I177: US | J177: US-OK | K177: Wilburton | L177: no | M177: 02OL | O177: 02OL
A178: 6676 | B178: 02OR | C178: small_airport | D178: Rowena Dell Airport | E178: 45.68149948 | F178: -121.3160019 | G178: 705 | H178: NA | I178: US | J178: US-OR | K178: The Dalles | L178: no | M178: 02OR | O178: 02OR
A179: 6677 | B179: 02P | C179: heliport | D179: Stottle Memorial Heliport | E179: 40.403596 | F179: -77.556602 | G179: 591 | H179: NA | I179: US | J179: US-PA | K179: Honey Grove | L179: no | M179: 26PA | O179: 26PA | R179: 02P, EWT 4
A180: 6678 | B180: 02PA | C180: heliport | D180: Lag Iii Heliport | E180: 40.43830109 | F180: -79.76999664 | G180: 1070 | H180: NA | I180: US | J180: US-PA | K180: Monroeville | L180: no | M180: 02PA | O180: 02PA
A181: 6679 | B181: 02PN | C181: heliport | D181: Peco Berwyn Heliport | E181: 40.06959915 | F181: -75.4552002 | G181: 390 | H181: NA | I181: US | J181: US-PA | K181: Berwyn | L181: no | M181: 02PN | O181: 02PN
A182: 6680 | B182: 02PR | C182: small_airport | D182: Cuylers Airport | E182: 18.464924 | F182: -66.363773 | G182: 15 | H182: NA | I182: PR | J182: PR-U-A | K182: Vega Baja | L182: no | M182: 02PR | O182: 02PR
A183: 6681 | B183: 02PS | C183: small_airport | D183: Hughes Ultralightport | E183: 41.90060043 | F183: -77.2303009 | G183: 1700 | H183: NA | I183: US | J183: US-PA | K183: Tioga | L183: no | M183: 02PS | O183: 02PS
A184: 6682 | B184: 02SC | C184: small_airport | D184: Harpers Airport | E184: 32.75849915 | F184: -81.22480011 | G184: 111 | H184: NA | I184: US | J184: US-SC | K184: Estill | L184: no | M184: 02SC | O184: 02SC
A185: 6683 | B185: 02T | C185: small_airport | D185: Wise River Airport | E185: 45.76910019 | F185: -112.9820023 | G185: 5830 | H185: NA | I185: US | J185: US-MT | K185: Wise River | L185: no | M185: 02T | O185: 02T
A186: 6684 | B186: 02TA | C186: heliport | D186: Matagorda Shore Facility Heliport | E186: 28.722177 | F186: -95.875813 | G186: 5 | H186: NA | I186: US | J186: US-TX | K186: Matagorda | L186: no | M186: 02TA | O186: 02TA
A187: 6685 | B187: 02TE | C187: heliport | D187: Baylor Medical Center Heliport | E187: 32.395401 | F187: -96.86419678 | G187: 560 | H187: NA | I187: US | J187: US-TX | K187: Waxahachie | L187: no | M187: 02TE | O187: 02TE
A188: 6686 | B188: 02TN | C188: small_airport | D188: Ellis Field | E188: 35.7806015 | F188: -86.584198 | G188: 840 | H188: NA | I188: US | J188: US-TN | K188: Murfreesboro | L188: no | M188: 02TN | O188: 02TN
A189: 6687 | B189: 02TS | C189: closed | D189: FWOMC Heliport | E189: 32.747601 | F189: -97.370003 | G189: 684 | H189: NA | I189: US | J189: US-TX | K189: Fort Worth | L189: no | R189: 02TS
A190: 6688 | B190: 02TX | C190: closed | D190: The Palms At Kitty Hawk Airport | E190: 33.370403 | F190: -101.922882 | G190: 3235 | H190: NA | I190: US | J190: US-TX | K190: New Home | L190: no | R190: 02TX, OLD02TX
A191: 6689 | B191: 02UT | C191: small_airport | D191: Lucin Airport | E191: 41.36629868 | F191: -113.8430023 | G191: 4412 | H191: NA | I191: US | J191: US-UT | K191: Lucin | L191: no | M191: 02UT | O191: 02UT
A192: 6690 | B192: 02VA | C192: small_airport | D192: The Greenhouse Airport | E192: 38.43569946 | F192: -77.85720062 | G192: 320 | H192: NA | I192: US | J192: US-VA | K192: Culpeper | L192: no | M192: 02VA | O192: 02VA
A193: 6691 | B193: 02VG | C193: heliport | D193: Northstar Aviation Heliport | E193: 36.63880157 | F193: -82.11669922 | G193: 1850 | H193: NA | I193: US | J193: US-VA | K193: Bristol | L193: no | M193: 02VG | O193: 02VG
A194: 6692 | B194: 02WA | C194: small_airport | D194: Cawleys South Prairie Airport | E194: 47.15230179 | F194: -122.0940018 | G194: 690 | H194: NA | I194: US | J194: US-WA | K194: South Prairie | L194: no | M194: 02WA | O194: 02WA
A195: 6693 | B195: 02WI | C195: small_airport | D195: Beer Airport | E195: 45.0318985 | F195: -92.65579987 | G195: 920 | H195: NA | I195: US | J195: US-WI | K195: Hudson | L195: no | M195: 02WI | O195: 02WI
A196: 6694 | B196: 02WN | C196: small_airport | D196: Fowler Field | E196: 48.74580002 | F196: -119.3190002 | G196: 2150 | H196: NA | I196: US | J196: US-WA | K196: Tonasket | L196: no | M196: 02WN | O196: 02WN
A197: 330393 | B197: 02XA | C197: small_airport | D197: JLS Farms Airport | E197: 33.591319 | F197: -95.882864 | G197: 675 | H197: NA | I197: US | J197: US-TX | K197: Honey Grove | L197: no | M197: 02XA | O197: 02XA
A198: 6695 | B198: 02XS | C198: closed | D198: Seidel Ranch Airport | E198: 30.147699 | F198: -97.662804 | G198: 510 | H198: NA | I198: US | J198: US-TX | K198: Del Valle | L198: no | M198: 02XS | O198: 02XS
A199: 325508 | B199: 03AA | C199: heliport | D199: Trapper T Heliport | E199: 61.556055 | F199: -149.284527 | G199: 159 | H199: NA | I199: US | J199: US-AK | K199: Palmer | L199: no | M199: 03AA | O199: 03AA
A200: 6696 | B200: 03AK | C200: seaplane_base | D200: Joe Clouds Seaplane Base | E200: 60.72722244 | F200: -151.132782 | G200: 150 | H200: NA | I200: US | J200: US-AK | K200: Kenai | L200: no | M200: 03AK | O200: 03AK
... 4300 more rows

Sheet fltsheet (hidden)

Sheet Countries (hidden)
A1: Number | B1: Country name | C1: 2 character code | D1: 3 character code | E1: country code | F1: iso_3166-2 code | G1: region | H1: sub-region | I1: intermediate-region | J1: region-code | K1: sub-region-code | L1: intermediate-region-code
A2: 1 | B2: Afghanistan | C2: AF | D2: AFG | E2: 4 | F2: ISO 3166-2:AF | G2: Asia | H2: Southern Asia | J2: 142 | K2: 34
A3: =A2+1 -> 2 | B3: Åland Islands | C3: AX | D3: ALA | E3: 248 | F3: ISO 3166-2:AX | G3: Europe | H3: Northern Europe | J3: 150 | K3: 154
A4: =A3+1 -> 3 | B4: Albania | C4: AL | D4: ALB | E4: 8 | F4: ISO 3166-2:AL | G4: Europe | H4: Southern Europe | J4: 150 | K4: 39
A5: 4 | B5: Algeria | C5: DZ | D5: DZA | E5: 12 | F5: ISO 3166-2:DZ | G5: Africa | H5: Northern Africa | J5: 2 | K5: 15
A6: 5 | B6: American Samoa | C6: AS | D6: ASM | E6: 16 | F6: ISO 3166-2:AS | G6: Oceania | H6: Polynesia | J6: 9 | K6: 61
A7: 6 | B7: Andorra | C7: AD | D7: AND | E7: 20 | F7: ISO 3166-2:AD | G7: Europe | H7: Southern Europe | J7: 150 | K7: 39
A8: 7 | B8: Angola | C8: AO | D8: AGO | E8: 24 | F8: ISO 3166-2:AO | G8: Africa | H8: Sub-Saharan Africa | I8: Middle Africa | J8: 2 | K8: 202 | L8: 17
A9: 8 | B9: Anguilla | C9: AI | D9: AIA | E9: 660 | F9: ISO 3166-2:AI | G9: Americas | H9: Latin America and the Caribbean | I9: Caribbean | J9: 19 | K9: 419 | L9: 29
A10: 9 | B10: Antarctica | C10: AQ | D10: XJY | E10: 10 | F10: ISO 3166-2:AQ
A11: 10 | B11: Antigua and Barbuda | C11: AG | D11: ATG | E11: 28 | F11: ISO 3166-2:AG | G11: Americas | H11: Latin America and the Caribbean | I11: Caribbean | J11: 19 | K11: 419 | L11: 29
A12: 11 | B12: Argentina | C12: AR | D12: ARG | E12: 32 | F12: ISO 3166-2:AR | G12: Americas | H12: Latin America and the Caribbean | I12: South America | J12: 19 | K12: 419 | L12: 5
A13: 12 | B13: Armenia | C13: AM | D13: ARM | E13: 51 | F13: ISO 3166-2:AM | G13: Asia | H13: Western Asia | J13: 142 | K13: 145
A14: 13 | B14: Aruba | C14: AW | D14: ABW | E14: 533 | F14: ISO 3166-2:AW | G14: Americas | H14: Latin America and the Caribbean | I14: Caribbean | J14: 19 | K14: 419 | L14: 29
A15: 14 | B15: Australia | C15: AU | D15: AUS | E15: 36 | F15: ISO 3166-2:AU | G15: Oceania | H15: Australia and New Zealand | J15: 9 | K15: 53
A16: 15 | B16: Austria | C16: AT | D16: AUT | E16: 40 | F16: ISO 3166-2:AT | G16: Europe | H16: Western Europe | J16: 150 | K16: 155
A17: 16 | B17: Azerbaijan | C17: AZ | D17: AZE | E17: 31 | F17: ISO 3166-2:AZ | G17: Asia | H17: Western Asia | J17: 142 | K17: 145
A18: 17 | B18: Bahamas | C18: BS | D18: BHS | E18: 44 | F18: ISO 3166-2:BS | G18: Americas | H18: Latin America and the Caribbean | I18: Caribbean | J18: 19 | K18: 419 | L18: 29
A19: 18 | B19: Bahrain | C19: BH | D19: BHR | E19: 48 | F19: ISO 3166-2:BH | G19: Asia | H19: Western Asia | J19: 142 | K19: 145
A20: 19 | B20: Bangladesh | C20: BD | D20: BGD | E20: 50 | F20: ISO 3166-2:BD | G20: Asia | H20: Southern Asia | J20: 142 | K20: 34
A21: 20 | B21: Barbados | C21: BB | D21: BRB | E21: 52 | F21: ISO 3166-2:BB | G21: Americas | H21: Latin America and the Caribbean | I21: Caribbean | J21: 19 | K21: 419 | L21: 29
A22: 21 | B22: Belarus | C22: BY | D22: BLR | E22: 112 | F22: ISO 3166-2:BY | G22: Europe | H22: Eastern Europe | J22: 150 | K22: 151
A23: 22 | B23: Belgium | C23: BE | D23: BEL | E23: 56 | F23: ISO 3166-2:BE | G23: Europe | H23: Western Europe | J23: 150 | K23: 155
A24: 23 | B24: Belize | C24: BZ | D24: BLZ | E24: 84 | F24: ISO 3166-2:BZ | G24: Americas | H24: Latin America and the Caribbean | I24: Central America | J24: 19 | K24: 419 | L24: 13
A25: 24 | B25: Benin | C25: BJ | D25: BEN | E25: 204 | F25: ISO 3166-2:BJ | G25: Africa | H25: Sub-Saharan Africa | I25: Western Africa | J25: 2 | K25: 202 | L25: 11
A26: 25 | B26: Bermuda | C26: BM | D26: BMU | E26: 60 | F26: ISO 3166-2:BM | G26: Americas | H26: Northern America | J26: 19 | K26: 21
A27: 26 | B27: Bhutan | C27: BT | D27: BTN | E27: 64 | F27: ISO 3166-2:BT | G27: Asia | H27: Southern Asia | J27: 142 | K27: 34
A28: 27 | B28: Bolivia (Plurinational State of) | C28: BO | D28: BOL | E28: 68 | F28: ISO 3166-2:BO | G28: Americas | H28: Latin America and the Caribbean | I28: South America | J28: 19 | K28: 419 | L28: 5
A29: 28 | B29: Bonaire, Sint Eustatius and Saba | C29: BQ | D29: BES | E29: 535 | F29: ISO 3166-2:BQ | G29: Americas | H29: Latin America and the Caribbean | I29: Caribbean | J29: 19 | K29: 419 | L29: 29
A30: 29 | B30: Bosnia and Herzegovina | C30: BA | D30: BIH | E30: 70 | F30: ISO 3166-2:BA | G30: Europe | H30: Southern Europe | J30: 150 | K30: 39
A31: 30 | B31: Botswana | C31: BW | D31: BWA | E31: 72 | F31: ISO 3166-2:BW | G31: Africa | H31: Sub-Saharan Africa | I31: Southern Africa | J31: 2 | K31: 202 | L31: 18
A32: 31 | B32: Bouvet Island | C32: BV | D32: BVT | E32: 74 | F32: ISO 3166-2:BV | G32: Americas | H32: Latin America and the Caribbean | I32: South America | J32: 19 | K32: 419 | L32: 5
A33: 32 | B33: Brazil | C33: BR | D33: BRA | E33: 76 | F33: ISO 3166-2:BR | G33: Americas | H33: Latin America and the Caribbean | I33: South America | J33: 19 | K33: 419 | L33: 5
A34: 33 | B34: British Indian Ocean Territory | C34: IO | D34: IOT | E34: 86 | F34: ISO 3166-2:IO | G34: Africa | H34: Sub-Saharan Africa | I34: Eastern Africa | J34: 2 | K34: 202 | L34: 14
A35: 34 | B35: Brunei Darussalam | C35: BN | D35: BRN | E35: 96 | F35: ISO 3166-2:BN | G35: Asia | H35: South-eastern Asia | J35: 142 | K35: 35
A36: 35 | B36: Bulgaria | C36: BG | D36: BGR | E36: 100 | F36: ISO 3166-2:BG | G36: Europe | H36: Eastern Europe | J36: 150 | K36: 151
A37: 36 | B37: Burkina Faso | C37: BF | D37: BFA | E37: 854 | F37: ISO 3166-2:BF | G37: Africa | H37: Sub-Saharan Africa | I37: Western Africa | J37: 2 | K37: 202 | L37: 11
A38: 37 | B38: Burundi | C38: BI | D38: BDI | E38: 108 | F38: ISO 3166-2:BI | G38: Africa | H38: Sub-Saharan Africa | I38: Eastern Africa | J38: 2 | K38: 202 | L38: 14
A39: 38 | B39: Cabo Verde | C39: CV | D39: CPV | E39: 132 | F39: ISO 3166-2:CV | G39: Africa | H39: Sub-Saharan Africa | I39: Western Africa | J39: 2 | K39: 202 | L39: 11
A40: 39 | B40: Cambodia | C40: KH | D40: KHM | E40: 116 | F40: ISO 3166-2:KH | G40: Asia | H40: South-eastern Asia | J40: 142 | K40: 35
A41: 40 | B41: Cameroon | C41: CM | D41: CMR | E41: 120 | F41: ISO 3166-2:CM | G41: Africa | H41: Sub-Saharan Africa | I41: Middle Africa | J41: 2 | K41: 202 | L41: 17
A42: 41 | B42: Canada | C42: CA | D42: CAN | E42: 124 | F42: ISO 3166-2:CA | G42: Americas | H42: Northern America | J42: 19 | K42: 21
A43: =A42+1 -> 42 | B43: Canary Islands | C43: GC | D43: XJE
A44: =A43+1 -> 43 | B44: Cayman Islands | C44: KY | D44: CYM | E44: 136 | F44: ISO 3166-2:KY | G44: Americas | H44: Latin America and the Caribbean | I44: Caribbean | J44: 19 | K44: 419 | L44: 29
A45: 44 | B45: Central African Republic | C45: CF | D45: CAF | E45: 140 | F45: ISO 3166-2:CF | G45: Africa | H45: Sub-Saharan Africa | I45: Middle Africa | J45: 2 | K45: 202 | L45: 17
A46: 45 | B46: Chad | C46: TD | D46: TCD | E46: 148 | F46: ISO 3166-2:TD | G46: Africa | H46: Sub-Saharan Africa | I46: Middle Africa | J46: 2 | K46: 202 | L46: 17
A47: 46 | B47: Chile | C47: CL | D47: CHL | E47: 152 | F47: ISO 3166-2:CL | G47: Americas | H47: Latin America and the Caribbean | I47: South America | J47: 19 | K47: 419 | L47: 5
A48: 47 | B48: China | C48: CN | D48: CHN | E48: 156 | F48: ISO 3166-2:CN | G48: Asia | H48: Eastern Asia | J48: 142 | K48: 30
A49: 48 | B49: Christmas Island | C49: CX | D49: CXR | E49: 162 | F49: ISO 3166-2:CX | G49: Oceania | H49: Australia and New Zealand | J49: 9 | K49: 53
A50: 49 | B50: Cocos (Keeling) Islands | C50: CC | D50: CCK | E50: 166 | F50: ISO 3166-2:CC | G50: Oceania | H50: Australia and New Zealand | J50: 9 | K50: 53
A51: 50 | B51: Colombia | C51: CO | D51: COL | E51: 170 | F51: ISO 3166-2:CO | G51: Americas | H51: Latin America and the Caribbean | I51: South America | J51: 19 | K51: 419 | L51: 5
A52: 51 | B52: Comoros | C52: KM | D52: COM | E52: 174 | F52: ISO 3166-2:KM | G52: Africa | H52: Sub-Saharan Africa | I52: Eastern Africa | J52: 2 | K52: 202 | L52: 14
A53: 52 | B53: Congo | C53: CG | D53: COG | E53: 178 | F53: ISO 3166-2:CG | G53: Africa | H53: Sub-Saharan Africa | I53: Middle Africa | J53: 2 | K53: 202 | L53: 17
A54: 53 | B54: Congo, Democratic Republic of the | C54: CD | D54: COD | E54: 180 | F54: ISO 3166-2:CD | G54: Africa | H54: Sub-Saharan Africa | I54: Middle Africa | J54: 2 | K54: 202 | L54: 17
A55: 54 | B55: Cook Islands | C55: CK | D55: COK | E55: 184 | F55: ISO 3166-2:CK | G55: Oceania | H55: Polynesia | J55: 9 | K55: 61
A56: 55 | B56: Costa Rica | C56: CR | D56: CRI | E56: 188 | F56: ISO 3166-2:CR | G56: Americas | H56: Latin America and the Caribbean | I56: Central America | J56: 19 | K56: 419 | L56: 13
A57: 56 | B57: Côte d'Ivoire | C57: CI | D57: CIV | E57: 384 | F57: ISO 3166-2:CI | G57: Africa | H57: Sub-Saharan Africa | I57: Western Africa | J57: 2 | K57: 202 | L57: 11
A58: 57 | B58: Croatia | C58: HR | D58: HRV | E58: 191 | F58: ISO 3166-2:HR | G58: Europe | H58: Southern Europe | J58: 150 | K58: 39
A59: 58 | B59: Cuba | C59: CU | D59: CUB | E59: 192 | F59: ISO 3166-2:CU | G59: Americas | H59: Latin America and the Caribbean | I59: Caribbean | J59: 19 | K59: 419 | L59: 29
A60: 59 | B60: Curaçao | C60: CW | D60: CUW | E60: 531 | F60: ISO 3166-2:CW | G60: Americas | H60: Latin America and the Caribbean | I60: Caribbean | J60: 19 | K60: 419 | L60: 29
A61: 60 | B61: Cyprus | C61: CY | D61: CYP | E61: 196 | F61: ISO 3166-2:CY | G61: Asia | H61: Western Asia | J61: 142 | K61: 145
A62: 61 | B62: Czechia | C62: CZ | D62: CZE | E62: 203 | F62: ISO 3166-2:CZ | G62: Europe | H62: Eastern Europe | J62: 150 | K62: 151
A63: 62 | B63: Denmark | C63: DK | D63: DNK | E63: 208 | F63: ISO 3166-2:DK | G63: Europe | H63: Northern Europe | J63: 150 | K63: 154
A64: 63 | B64: Djibouti | C64: DJ | D64: DJI | E64: 262 | F64: ISO 3166-2:DJ | G64: Africa | H64: Sub-Saharan Africa | I64: Eastern Africa | J64: 2 | K64: 202 | L64: 14
A65: 64 | B65: Dominica | C65: DM | D65: DMA | E65: 212 | F65: ISO 3166-2:DM | G65: Americas | H65: Latin America and the Caribbean | I65: Caribbean | J65: 19 | K65: 419 | L65: 29
A66: 65 | B66: Dominican Republic | C66: DO | D66: DOM | E66: 214 | F66: ISO 3166-2:DO | G66: Americas | H66: Latin America and the Caribbean | I66: Caribbean | J66: 19 | K66: 419 | L66: 29
A67: 66 | B67: Ecuador | C67: EC | D67: ECU | E67: 218 | F67: ISO 3166-2:EC | G67: Americas | H67: Latin America and the Caribbean | I67: South America | J67: 19 | K67: 419 | L67: 5
A68: 67 | B68: Egypt | C68: EG | D68: EGY | E68: 818 | F68: ISO 3166-2:EG | G68: Africa | H68: Northern Africa | J68: 2 | K68: 15
A69: 68 | B69: El Salvador | C69: SV | D69: SLV | E69: 222 | F69: ISO 3166-2:SV | G69: Americas | H69: Latin America and the Caribbean | I69: Central America | J69: 19 | K69: 419 | L69: 13
A70: 69 | B70: Equatorial Guinea | C70: GQ | D70: GNQ | E70: 226 | F70: ISO 3166-2:GQ | G70: Africa | H70: Sub-Saharan Africa | I70: Middle Africa | J70: 2 | K70: 202 | L70: 17
A71: 70 | B71: Eritrea | C71: ER | D71: ERI | E71: 232 | F71: ISO 3166-2:ER | G71: Africa | H71: Sub-Saharan Africa | I71: Eastern Africa | J71: 2 | K71: 202 | L71: 14
A72: 71 | B72: Estonia | C72: EE | D72: EST | E72: 233 | F72: ISO 3166-2:EE | G72: Europe | H72: Northern Europe | J72: 150 | K72: 154
A73: 72 | B73: Eswatini | C73: SZ | D73: SWZ | E73: 748 | F73: ISO 3166-2:SZ | G73: Africa | H73: Sub-Saharan Africa | I73: Southern Africa | J73: 2 | K73: 202 | L73: 18
A74: 73 | B74: Ethiopia | C74: ET | D74: ETH | E74: 231 | F74: ISO 3166-2:ET | G74: Africa | H74: Sub-Saharan Africa | I74: Eastern Africa | J74: 2 | K74: 202 | L74: 14
A75: 74 | B75: Falkland Islands (Malvinas) | C75: FK | D75: FLK | E75: 238 | F75: ISO 3166-2:FK | G75: Americas | H75: Latin America and the Caribbean | I75: South America | J75: 19 | K75: 419 | L75: 5
A76: 75 | B76: Faroe Islands | C76: FO | D76: FRO | E76: 234 | F76: ISO 3166-2:FO | G76: Europe | H76: Northern Europe | J76: 150 | K76: 154
A77: 76 | B77: Fiji | C77: FJ | D77: FJI | E77: 242 | F77: ISO 3166-2:FJ | G77: Oceania | H77: Melanesia | J77: 9 | K77: 54
A78: 77 | B78: Finland | C78: FI | D78: FIN | E78: 246 | F78: ISO 3166-2:FI | G78: Europe | H78: Northern Europe | J78: 150 | K78: 154
A79: 78 | B79: France | C79: FR | D79: FRA | E79: 250 | F79: ISO 3166-2:FR | G79: Europe | H79: Western Europe | J79: 150 | K79: 155
A80: 79 | B80: French Guiana | C80: GF | D80: GUF | E80: 254 | F80: ISO 3166-2:GF | G80: Americas | H80: Latin America and the Caribbean | I80: South America | J80: 19 | K80: 419 | L80: 5
A81: 80 | B81: French Polynesia | C81: PF | D81: PYF | E81: 258 | F81: ISO 3166-2:PF | G81: Oceania | H81: Polynesia | J81: 9 | K81: 61
A82: 81 | B82: French Southern Territories | C82: TF | D82: ATF | E82: 260 | F82: ISO 3166-2:TF | G82: Africa | H82: Sub-Saharan Africa | I82: Eastern Africa | J82: 2 | K82: 202 | L82: 14
A83: 82 | B83: Gabon | C83: GA | D83: GAB | E83: 266 | F83: ISO 3166-2:GA | G83: Africa | H83: Sub-Saharan Africa | I83: Middle Africa | J83: 2 | K83: 202 | L83: 17
A84: 83 | B84: Gambia | C84: GM | D84: GMB | E84: 270 | F84: ISO 3166-2:GM | G84: Africa | H84: Sub-Saharan Africa | I84: Western Africa | J84: 2 | K84: 202 | L84: 11
A85: 84 | B85: Georgia | C85: GE | D85: GEO | E85: 268 | F85: ISO 3166-2:GE | G85: Asia | H85: Western Asia | J85: 142 | K85: 145
A86: 85 | B86: Germany | C86: DE | D86: DEU | E86: 276 | F86: ISO 3166-2:DE | G86: Europe | H86: Western Europe | J86: 150 | K86: 155
A87: 86 | B87: Ghana | C87: GH | D87: GHA | E87: 288 | F87: ISO 3166-2:GH | G87: Africa | H87: Sub-Saharan Africa | I87: Western Africa | J87: 2 | K87: 202 | L87: 11
A88: 87 | B88: Gibraltar | C88: GI | D88: GIB | E88: 292 | F88: ISO 3166-2:GI | G88: Europe | H88: Southern Europe | J88: 150 | K88: 39
A89: 88 | B89: Greece | C89: GR | D89: GRC | E89: 300 | F89: ISO 3166-2:GR | G89: Europe | H89: Southern Europe | J89: 150 | K89: 39
A90: 89 | B90: Greenland | C90: GL | D90: GRL | E90: 304 | F90: ISO 3166-2:GL | G90: Americas | H90: Northern America | J90: 19 | K90: 21
A91: 90 | B91: Grenada | C91: GD | D91: GRD | E91: 308 | F91: ISO 3166-2:GD | G91: Americas | H91: Latin America and the Caribbean | I91: Caribbean | J91: 19 | K91: 419 | L91: 29
A92: 91 | B92: Guadeloupe | C92: GP | D92: GLP | E92: 312 | F92: ISO 3166-2:GP | G92: Americas | H92: Latin America and the Caribbean | I92: Caribbean | J92: 19 | K92: 419 | L92: 29
A93: 92 | B93: Guam | C93: GU | D93: GUM | E93: 316 | F93: ISO 3166-2:GU | G93: Oceania | H93: Micronesia | J93: 9 | K93: 57
A94: 93 | B94: Guatemala | C94: GT | D94: GTM | E94: 320 | F94: ISO 3166-2:GT | G94: Americas | H94: Latin America and the Caribbean | I94: Central America | J94: 19 | K94: 419 | L94: 13
A95: 94 | B95: Guernsey | C95: GG | D95: GGY | E95: 831 | F95: ISO 3166-2:GG | G95: Europe | H95: Northern Europe | I95: Channel Islands | J95: 150 | K95: 154 | L95: 830
A96: 95 | B96: Guinea | C96: GN | D96: GIN | E96: 324 | F96: ISO 3166-2:GN | G96: Africa | H96: Sub-Saharan Africa | I96: Western Africa | J96: 2 | K96: 202 | L96: 11
A97: 96 | B97: Guinea-Bissau | C97: GW | D97: GNB | E97: 624 | F97: ISO 3166-2:GW | G97: Africa | H97: Sub-Saharan Africa | I97: Western Africa | J97: 2 | K97: 202 | L97: 11
A98: 97 | B98: Guyana | C98: GY | D98: GUY | E98: 328 | F98: ISO 3166-2:GY | G98: Americas | H98: Latin America and the Caribbean | I98: South America | J98: 19 | K98: 419 | L98: 5
A99: 98 | B99: Haiti | C99: HT | D99: HTI | E99: 332 | F99: ISO 3166-2:HT | G99: Americas | H99: Latin America and the Caribbean | I99: Caribbean | J99: 19 | K99: 419 | L99: 29
A100: 99 | B100: Heard Island and McDonald Islands | C100: HM | D100: HMD | E100: 334 | F100: ISO 3166-2:HM | G100: Oceania | H100: Australia and New Zealand | J100: 9 | K100: 53
A101: 100 | B101: Holy See | C101: VA | D101: VAT | E101: 336 | F101: ISO 3166-2:VA | G101: Europe | H101: Southern Europe | J101: 150 | K101: 39
A102: 101 | B102: Honduras | C102: HN | D102: HND | E102: 340 | F102: ISO 3166-2:HN | G102: Americas | H102: Latin America and the Caribbean | I102: Central America | J102: 19 | K102: 419 | L102: 13
A103: 102 | B103: Hong Kong | C103: HK | D103: HKG | E103: 344 | F103: ISO 3166-2:HK | G103: Asia | H103: Eastern Asia | J103: 142 | K103: 30
A104: 103 | B104: Hungary | C104: HU | D104: HUN | E104: 348 | F104: ISO 3166-2:HU | G104: Europe | H104: Eastern Europe | J104: 150 | K104: 151
A105: 104 | B105: Iceland | C105: IS | D105: ISL | E105: 352 | F105: ISO 3166-2:IS | G105: Europe | H105: Northern Europe | J105: 150 | K105: 154
A106: 105 | B106: India | C106: IN | D106: IND | E106: 356 | F106: ISO 3166-2:IN | G106: Asia | H106: Southern Asia | J106: 142 | K106: 34
A107: 106 | B107: Indonesia | C107: ID | D107: IDN | E107: 360 | F107: ISO 3166-2:ID | G107: Asia | H107: South-eastern Asia | J107: 142 | K107: 35
A108: =A107+1 -> 107 | B108: Iran (Islamic Republic of) | C108: IR | D108: IRN | E108: 364 | F108: ISO 3166-2:IR | G108: Asia | H108: Southern Asia | J108: 142 | K108: 34
A109: 108 | B109: Iraq | C109: IQ | D109: IRQ | E109: 368 | F109: ISO 3166-2:IQ | G109: Asia | H109: Western Asia | J109: 142 | K109: 145
A110: 109 | B110: Ireland | C110: IE | D110: IRL | E110: 372 | F110: ISO 3166-2:IE | G110: Europe | H110: Northern Europe | J110: 150 | K110: 154
A111: 110 | B111: Isle of Man | C111: IM | D111: IMN | E111: 833 | F111: ISO 3166-2:IM | G111: Europe | H111: Northern Europe | J111: 150 | K111: 154
A112: 111 | B112: Israel | C112: IL | D112: ISR | E112: 376 | F112: ISO 3166-2:IL | G112: Asia | H112: Western Asia | J112: 142 | K112: 145
A113: 112 | B113: Italy | C113: IT | D113: ITA | E113: 380 | F113: ISO 3166-2:IT | G113: Europe | H113: Southern Europe | J113: 150 | K113: 39
A114: 113 | B114: Jamaica | C114: JM | D114: JAM | E114: 388 | F114: ISO 3166-2:JM | G114: Americas | H114: Latin America and the Caribbean | I114: Caribbean | J114: 19 | K114: 419 | L114: 29
A115: 114 | B115: Japan | C115: JP | D115: JPN | E115: 392 | F115: ISO 3166-2:JP | G115: Asia | H115: Eastern Asia | J115: 142 | K115: 30
A116: 115 | B116: Jersey | C116: JE | D116: JEY | E116: 832 | F116: ISO 3166-2:JE | G116: Europe | H116: Northern Europe | I116: Channel Islands | J116: 150 | K116: 154 | L116: 830
A117: 116 | B117: Jordan | C117: JO | D117: JOR | E117: 400 | F117: ISO 3166-2:JO | G117: Asia | H117: Western Asia | J117: 142 | K117: 145
A118: 117 | B118: Kazakhstan | C118: KZ | D118: KAZ | E118: 398 | F118: ISO 3166-2:KZ | G118: Asia | H118: Central Asia | J118: 142 | K118: 143
A119: 118 | B119: Kenya | C119: KE | D119: KEN | E119: 404 | F119: ISO 3166-2:KE | G119: Africa | H119: Sub-Saharan Africa | I119: Eastern Africa | J119: 2 | K119: 202 | L119: 14
A120: 119 | B120: Kiribati | C120: KI | D120: KIR | E120: 296 | F120: ISO 3166-2:KI | G120: Oceania | H120: Micronesia | J120: 9 | K120: 57
A121: 120 | B121: Korea (Democratic People's Republic of) | C121: KP | D121: PRK | E121: 408 | F121: ISO 3166-2:KP | G121: Asia | H121: Eastern Asia | J121: 142 | K121: 30
A122: 121 | B122: Korea, Republic of | C122: KR | D122: KOR | E122: 410 | F122: ISO 3166-2:KR | G122: Asia | H122: Eastern Asia | J122: 142 | K122: 30
A123: 122 | B123: Kuwait | C123: KW | D123: KWT | E123: 414 | F123: ISO 3166-2:KW | G123: Asia | H123: Western Asia | J123: 142 | K123: 145
A124: 123 | B124: Kyrgyzstan | C124: KG | D124: KGZ | E124: 417 | F124: ISO 3166-2:KG | G124: Asia | H124: Central Asia | J124: 142 | K124: 143
A125: 124 | B125: Lao People's Democratic Republic | C125: LA | D125: LAO | E125: 418 | F125: ISO 3166-2:LA | G125: Asia | H125: South-eastern Asia | J125: 142 | K125: 35
A126: 125 | B126: Latvia | C126: LV | D126: LVA | E126: 428 | F126: ISO 3166-2:LV | G126: Europe | H126: Northern Europe | J126: 150 | K126: 154
A127: 126 | B127: Lebanon | C127: LB | D127: LBN | E127: 422 | F127: ISO 3166-2:LB | G127: Asia | H127: Western Asia | J127: 142 | K127: 145
A128: 127 | B128: Lesotho | C128: LS | D128: LSO | E128: 426 | F128: ISO 3166-2:LS | G128: Africa | H128: Sub-Saharan Africa | I128: Southern Africa | J128: 2 | K128: 202 | L128: 18
A129: 128 | B129: Liberia | C129: LR | D129: LBR | E129: 430 | F129: ISO 3166-2:LR | G129: Africa | H129: Sub-Saharan Africa | I129: Western Africa | J129: 2 | K129: 202 | L129: 11
A130: 129 | B130: Libya | C130: LY | D130: LBY | E130: 434 | F130: ISO 3166-2:LY | G130: Africa | H130: Northern Africa | J130: 2 | K130: 15
A131: 130 | B131: Liechtenstein | C131: LI | D131: LIE | E131: 438 | F131: ISO 3166-2:LI | G131: Europe | H131: Western Europe | J131: 150 | K131: 155
A132: 131 | B132: Lithuania | C132: LT | D132: LTU | E132: 440 | F132: ISO 3166-2:LT | G132: Europe | H132: Northern Europe | J132: 150 | K132: 154
A133: 132 | B133: Luxembourg | C133: LU | D133: LUX | E133: 442 | F133: ISO 3166-2:LU | G133: Europe | H133: Western Europe | J133: 150 | K133: 155
A134: 133 | B134: Macao | C134: MO | D134: MAC | E134: 446 | F134: ISO 3166-2:MO | G134: Asia | H134: Eastern Asia | J134: 142 | K134: 30
A135: 134 | B135: Madagascar | C135: MG | D135: MDG | E135: 450 | F135: ISO 3166-2:MG | G135: Africa | H135: Sub-Saharan Africa | I135: Eastern Africa | J135: 2 | K135: 202 | L135: 14
A136: 135 | B136: Malawi | C136: MW | D136: MWI | E136: 454 | F136: ISO 3166-2:MW | G136: Africa | H136: Sub-Saharan Africa | I136: Eastern Africa | J136: 2 | K136: 202 | L136: 14
A137: 136 | B137: Malaysia | C137: MY | D137: MYS | E137: 458 | F137: ISO 3166-2:MY | G137: Asia | H137: South-eastern Asia | J137: 142 | K137: 35
A138: 137 | B138: Maldives | C138: MV | D138: MDV | E138: 462 | F138: ISO 3166-2:MV | G138: Asia | H138: Southern Asia | J138: 142 | K138: 34
A139: 138 | B139: Mali | C139: ML | D139: MLI | E139: 466 | F139: ISO 3166-2:ML | G139: Africa | H139: Sub-Saharan Africa | I139: Western Africa | J139: 2 | K139: 202 | L139: 11
A140: 139 | B140: Malta | C140: MT | D140: MLT | E140: 470 | F140: ISO 3166-2:MT | G140: Europe | H140: Southern Europe | J140: 150 | K140: 39
A141: 140 | B141: Marshall Islands | C141: MH | D141: MHL | E141: 584 | F141: ISO 3166-2:MH | G141: Oceania | H141: Micronesia | J141: 9 | K141: 57
A142: 141 | B142: Martinique | C142: MQ | D142: MTQ | E142: 474 | F142: ISO 3166-2:MQ | G142: Americas | H142: Latin America and the Caribbean | I142: Caribbean | J142: 19 | K142: 419 | L142: 29
A143: 142 | B143: Mauritania | C143: MR | D143: MRT | E143: 478 | F143: ISO 3166-2:MR | G143: Africa | H143: Sub-Saharan Africa | I143: Western Africa | J143: 2 | K143: 202 | L143: 11
A144: 143 | B144: Mauritius | C144: MU | D144: MUS | E144: 480 | F144: ISO 3166-2:MU | G144: Africa | H144: Sub-Saharan Africa | I144: Eastern Africa | J144: 2 | K144: 202 | L144: 14
A145: 144 | B145: Mayotte | C145: YT | D145: MYT | E145: 175 | F145: ISO 3166-2:YT | G145: Africa | H145: Sub-Saharan Africa | I145: Eastern Africa | J145: 2 | K145: 202 | L145: 14
A146: 145 | B146: Mexico | C146: MX | D146: MEX | E146: 484 | F146: ISO 3166-2:MX | G146: Americas | H146: Latin America and the Caribbean | I146: Central America | J146: 19 | K146: 419 | L146: 13
A147: 146 | B147: Micronesia (Federated States of) | C147: FM | D147: XJI | E147: 583 | F147: ISO 3166-2:FM | G147: Oceania | H147: Micronesia | J147: 9 | K147: 57
A148: 147 | B148: Moldova, Republic of | C148: MD | D148: MDA | E148: 498 | F148: ISO 3166-2:MD | G148: Europe | H148: Eastern Europe | J148: 150 | K148: 151
A149: 148 | B149: Monaco | C149: MC | D149: MCO | E149: 492 | F149: ISO 3166-2:MC | G149: Europe | H149: Western Europe | J149: 150 | K149: 155
A150: 149 | B150: Mongolia | C150: MN | D150: MNG | E150: 496 | F150: ISO 3166-2:MN | G150: Asia | H150: Eastern Asia | J150: 142 | K150: 30
A151: 150 | B151: Montenegro | C151: ME | D151: MNE | E151: 499 | F151: ISO 3166-2:ME | G151: Europe | H151: Southern Europe | J151: 150 | K151: 39
A152: 151 | B152: Montserrat | C152: MS | D152: MSR | E152: 500 | F152: ISO 3166-2:MS | G152: Americas | H152: Latin America and the Caribbean | I152: Caribbean | J152: 19 | K152: 419 | L152: 29
A153: 152 | B153: Morocco | C153: MA | D153: MAR | E153: 504 | F153: ISO 3166-2:MA | G153: Africa | H153: Northern Africa | J153: 2 | K153: 15
A154: 153 | B154: Mozambique | C154: MZ | D154: MOZ | E154: 508 | F154: ISO 3166-2:MZ | G154: Africa | H154: Sub-Saharan Africa | I154: Eastern Africa | J154: 2 | K154: 202 | L154: 14
A155: 154 | B155: Myanmar | C155: MM | D155: MMR | E155: 104 | F155: ISO 3166-2:MM | G155: Asia | H155: South-eastern Asia | J155: 142 | K155: 35
A156: 155 | B156: Namibia | C156: NA | D156: NAM | E156: 516 | F156: ISO 3166-2:NA | G156: Africa | H156: Sub-Saharan Africa | I156: Southern Africa | J156: 2 | K156: 202 | L156: 18
A157: 156 | B157: Nauru | C157: NR | D157: NRU | E157: 520 | F157: ISO 3166-2:NR | G157: Oceania | H157: Micronesia | J157: 9 | K157: 57
A158: 157 | B158: Nepal | C158: NP | D158: NPL | E158: 524 | F158: ISO 3166-2:NP | G158: Asia | H158: Southern Asia | J158: 142 | K158: 34
A159: 158 | B159: Netherlands | C159: NL | D159: NLD | E159: 528 | F159: ISO 3166-2:NL | G159: Europe | H159: Western Europe | J159: 150 | K159: 155
A160: 159 | B160: New Caledonia | C160: NC | D160: NCL | E160: 540 | F160: ISO 3166-2:NC | G160: Oceania | H160: Melanesia | J160: 9 | K160: 54
A161: 160 | B161: New Zealand | C161: NZ | D161: NZL | E161: 554 | F161: ISO 3166-2:NZ | G161: Oceania | H161: Australia and New Zealand | J161: 9 | K161: 53
A162: 161 | B162: Nicaragua | C162: NI | D162: NIC | E162: 558 | F162: ISO 3166-2:NI | G162: Americas | H162: Latin America and the Caribbean | I162: Central America | J162: 19 | K162: 419 | L162: 13
A163: 162 | B163: Niger | C163: NE | D163: NER | E163: 562 | F163: ISO 3166-2:NE | G163: Africa | H163: Sub-Saharan Africa | I163: Western Africa | J163: 2 | K163: 202 | L163: 11
A164: 163 | B164: Nigeria | C164: NG | D164: NGA | E164: 566 | F164: ISO 3166-2:NG | G164: Africa | H164: Sub-Saharan Africa | I164: Western Africa | J164: 2 | K164: 202 | L164: 11
A165: 164 | B165: Niue | C165: NU | D165: NIU | E165: 570 | F165: ISO 3166-2:NU | G165: Oceania | H165: Polynesia | J165: 9 | K165: 61
A166: 165 | B166: Norfolk Island | C166: NF | D166: NFK | E166: 574 | F166: ISO 3166-2:NF | G166: Oceania | H166: Australia and New Zealand | J166: 9 | K166: 53
A167: 166 | B167: North Macedonia | C167: MK | D167: MKD | E167: 807 | F167: ISO 3166-2:MK | G167: Europe | H167: Southern Europe | J167: 150 | K167: 39
A168: 167 | B168: Northern Mariana Islands | C168: MP | D168: MNP | E168: 580 | F168: ISO 3166-2:MP | G168: Oceania | H168: Micronesia | J168: 9 | K168: 57
A169: 168 | B169: Norway | C169: NO | D169: NOR | E169: 578 | F169: ISO 3166-2:NO | G169: Europe | H169: Northern Europe | J169: 150 | K169: 154
A170: 169 | B170: Oman | C170: OM | D170: OMN | E170: 512 | F170: ISO 3166-2:OM | G170: Asia | H170: Western Asia | J170: 142 | K170: 145
A171: 170 | B171: Pakistan | C171: PK | D171: PAK | E171: 586 | F171: ISO 3166-2:PK | G171: Asia | H171: Southern Asia | J171: 142 | K171: 34
A172: =A171+1 -> 171 | B172: Palau | C172: PW | D172: PLW | E172: 585 | F172: ISO 3166-2:PW | G172: Oceania | H172: Micronesia | J172: 9 | K172: 57
A173: 172 | B173: Palestine, State of | C173: PS | D173: PSE | E173: 275 | F173: ISO 3166-2:PS | G173: Asia | H173: Western Asia | J173: 142 | K173: 145
A174: 173 | B174: Panama | C174: PA | D174: PAN | E174: 591 | F174: ISO 3166-2:PA | G174: Americas | H174: Latin America and the Caribbean | I174: Central America | J174: 19 | K174: 419 | L174: 13
A175: 174 | B175: Papua New Guinea | C175: PG | D175: PNG | E175: 598 | F175: ISO 3166-2:PG | G175: Oceania | H175: Melanesia | J175: 9 | K175: 54
A176: 175 | B176: Paraguay | C176: PY | D176: PRY | E176: 600 | F176: ISO 3166-2:PY | G176: Americas | H176: Latin America and the Caribbean | I176: South America | J176: 19 | K176: 419 | L176: 5
A177: 176 | B177: Peru | C177: PE | D177: PER | E177: 604 | F177: ISO 3166-2:PE | G177: Americas | H177: Latin America and the Caribbean | I177: South America | J177: 19 | K177: 419 | L177: 5
A178: 177 | B178: Philippines | C178: PH | D178: PHL | E178: 608 | F178: ISO 3166-2:PH | G178: Asia | H178: South-eastern Asia | J178: 142 | K178: 35
A179: 178 | B179: Pitcairn | C179: PN | D179: PCN | E179: 612 | F179: ISO 3166-2:PN | G179: Oceania | H179: Polynesia | J179: 9 | K179: 61
A180: 179 | B180: Poland | C180: PL | D180: POL | E180: 616 | F180: ISO 3166-2:PL | G180: Europe | H180: Eastern Europe | J180: 150 | K180: 151
A181: 180 | B181: Portugal | C181: PT | D181: PRT | E181: 620 | F181: ISO 3166-2:PT | G181: Europe | H181: Southern Europe | J181: 150 | K181: 39
A182: 181 | B182: Puerto Rico | C182: PR | D182: PRI | E182: 630 | F182: ISO 3166-2:PR | G182: Americas | H182: Latin America and the Caribbean | I182: Caribbean | J182: 19 | K182: 419 | L182: 29
A183: 182 | B183: Qatar | C183: QA | D183: QAT | E183: 634 | F183: ISO 3166-2:QA | G183: Asia | H183: Western Asia | J183: 142 | K183: 145
A184: 183 | B184: Réunion | C184: RE | D184: REU | E184: 638 | F184: ISO 3166-2:RE | G184: Africa | H184: Sub-Saharan Africa | I184: Eastern Africa | J184: 2 | K184: 202 | L184: 14
A185: 184 | B185: Romania | C185: RO | D185: ROU | E185: 642 | F185: ISO 3166-2:RO | G185: Europe | H185: Eastern Europe | J185: 150 | K185: 151
A186: 185 | B186: Russian Federation | C186: RU | D186: RUS | E186: 643 | F186: ISO 3166-2:RU | G186: Europe | H186: Eastern Europe | J186: 150 | K186: 151
A187: 186 | B187: Rwanda | C187: RW | D187: RWA | E187: 646 | F187: ISO 3166-2:RW | G187: Africa | H187: Sub-Saharan Africa | I187: Eastern Africa | J187: 2 | K187: 202 | L187: 14
A188: 187 | B188: Saint Barthélemy | C188: BL | D188: BLM | E188: 652 | F188: ISO 3166-2:BL | G188: Americas | H188: Latin America and the Caribbean | I188: Caribbean | J188: 19 | K188: 419 | L188: 29
A189: 188 | B189: Saint Helena, Ascension and Tristan da Cunha | C189: SH | D189: SHN | E189: 654 | F189: ISO 3166-2:SH | G189: Africa | H189: Sub-Saharan Africa | I189: Western Africa | J189: 2 | K189: 202 | L189: 11
A190: 189 | B190: Saint Kitts and Nevis | C190: KN | D190: KNA | E190: 659 | F190: ISO 3166-2:KN | G190: Americas | H190: Latin America and the Caribbean | I190: Caribbean | J190: 19 | K190: 419 | L190: 29
A191: 190 | B191: Saint Lucia | C191: LC | D191: LCA | E191: 662 | F191: ISO 3166-2:LC | G191: Americas | H191: Latin America and the Caribbean | I191: Caribbean | J191: 19 | K191: 419 | L191: 29
A192: 191 | B192: Saint Martin (French part) | C192: MF | D192: MAF | E192: 663 | F192: ISO 3166-2:MF | G192: Americas | H192: Latin America and the Caribbean | I192: Caribbean | J192: 19 | K192: 419 | L192: 29
A193: 192 | B193: Saint Pierre and Miquelon | C193: PM | D193: SPM | E193: 666 | F193: ISO 3166-2:PM | G193: Americas | H193: Northern America | J193: 19 | K193: 21
A194: 193 | B194: Saint Vincent and the Grenadines | C194: VC | D194: VCT | E194: 670 | F194: ISO 3166-2:VC | G194: Americas | H194: Latin America and the Caribbean | I194: Caribbean | J194: 19 | K194: 419 | L194: 29
A195: 194 | B195: Samoa | C195: WS | D195: WSM | E195: 882 | F195: ISO 3166-2:WS | G195: Oceania | H195: Polynesia | J195: 9 | K195: 61
A196: 195 | B196: San Marino | C196: SM | D196: SMR | E196: 674 | F196: ISO 3166-2:SM | G196: Europe | H196: Southern Europe | J196: 150 | K196: 39
A197: 196 | B197: Sao Tome and Principe | C197: ST | D197: STP | E197: 678 | F197: ISO 3166-2:ST | G197: Africa | H197: Sub-Saharan Africa | I197: Middle Africa | J197: 2 | K197: 202 | L197: 17
A198: 197 | B198: Saudi Arabia | C198: SA | D198: SAU | E198: 682 | F198: ISO 3166-2:SA | G198: Asia | H198: Western Asia | J198: 142 | K198: 145
A199: 198 | B199: Senegal | C199: SN | D199: SEN | E199: 686 | F199: ISO 3166-2:SN | G199: Africa | H199: Sub-Saharan Africa | I199: Western Africa | J199: 2 | K199: 202 | L199: 11
A200: 199 | B200: Serbia | C200: RS | D200: SRB | E200: 688 | F200: ISO 3166-2:RS | G200: Europe | H200: Southern Europe | J200: 150 | K200: 39
... 51 more rows

Sheet navaids (hidden)
D2: ="Number of NAVAIDS on screen = " & SUBTOTAL(3,A10:A99980) -> Number of NAVAIDS on screen = 4095 | X2: =D2 -> Number of NAVAIDS on screen = 4095
A7: =COLUMN() -> 1 | B7: =COLUMN() -> 2 | C7: =COLUMN() -> 3 | D7: =COLUMN() -> 4 | E7: =COLUMN() -> 5 | F7: =COLUMN() -> 6 | G7: =COLUMN() -> 7 | H7: =COLUMN() -> 8 | I7: =COLUMN() -> 9 | J7: =COLUMN() -> 10 | K7: =COLUMN() -> 11 | L7: =COLUMN() -> 12 | M7: =COLUMN() -> 13 | N7: =COLUMN() -> 14 | O7: =COLUMN() -> 15 | P7: =COLUMN() -> 16 | Q7: =COLUMN() -> 17 | R7: =COLUMN() -> 18 | S7: =COLUMN() -> 19 | T7: =COLUMN() -> 20 | U7: =COLUMN() -> 21 | V7: =COLUMN() -> 22 | W7: =COLUMN() -> 23 | X7: =COLUMN() -> 24 | Y7: =COLUMN() -> 25 | Z7: =COLUMN() -> 26 | AA7: =COLUMN() -> 27 | AB7: =COLUMN() -> 28 | AC7: =COLUMN() -> 29 | AD7: =COLUMN() -> 30 | AE7: =COLUMN() -> 31 | AF7: =COLUMN() -> 32 | AG7: =COLUMN() -> 33
V8: Declination by year | AA8: Declination predictions using WMM2020 | AG8: Yearly change (deg)
A9: id | B9: filename | C9: ident | D9: name | E9: type | F9: frequency_khz | G9: latitude_deg | H9: longitude_deg | I9: elevation_ft | J9: iso_country | K9: dme_frequency_khz | L9: dme_channel | M9: dme_latitude_deg | N9: dme_longitude_deg | O9: dme_elevation_ft | P9: slaved_variation_deg | Q9: magnetic_variation_deg | R9: usageType | S9: power | T9: associated_airport | U9: Published Mag Var from Jepp | V9: 2020 | W9: 2021 | X9: 2022 | Y9: 2023 | Z9: 2024 | AA9: 2025 | AB9: 2026 | AC9: 2027 | AD9: 2028 | AE9: 2029 | AF9: 2030 | AH9: 5 year change | AI9: 10 year change
A10: 85169 | B10: Auckland_VOR-DME_NZ | C10: AA | D10: Auckland | E10: VOR-DME | F10: 114800 | G10: -37.00460052 | H10: 174.8139954 | I10: 13 | J10: NZ | K10: 114800 | L10: 095X | P10: 19.011 | Q10: 19.282 | R10: BOTH | S10: HIGH | T10: NZAA | U10: 20 | V10: 20.02938832 | W10: 20.11855516 | X10: 20.2079125 | Y10: 20.29751855 | Z10: 20.3870137 | AA10: 20.4766177 | AB10: 20.56641283 | AC10: 20.65623416 | AD10: 20.7463836 | AE10: 20.83650462 | AF10: 20.92664993 | AG10: 0.09 | AH10: =5*AG10 -> 0.45 | AI10: =AG10*10 -> 0.9
A11: 85181 | B11: Ahmedabad_VOR-DME_IN | C11: AAE | D11: Ahmedabad | E11: VOR-DME | F11: 113100 | G11: 23.07220078 | H11: 72.625 | I11: 184 | J11: IN | K11: 113100 | L11: 078X | P11: 0.011 | Q11: -0.099 | R11: BOTH | S11: HIGH | T11: VAAH | U11: 0 | V11: 0.5262279877 | W11: 0.5587371572 | X11: 0.5913766962 | Y11: 0.623833593 | Z11: 0.6562644013 | AA11: 0.6886691317 | AB11: 0.7210477949 | AC11: 0.7533983483 | AD11: 0.7858809175 | AE11: 0.8181812931 | AF11: 0.8504556451 | AG11: 0.032 | AH11: =5*AG11 -> 0.16 | AI11: =AG11*10 -> 0.32
A12: 85183 | B12: Aalborg_TACAN_DK | C12: AAL | D12: Aalborg | E12: TACAN | F12: 116700 | G12: 57.10390091 | H12: 9.992810249 | I12: 57 | J12: DK | K12: 116700 | L12: 114X | P12: 1.008 | Q12: 0.598 | R12: BOTH | S12: HIGH | T12: EKYT | U12: 3 | V12: 3.529512994 | W12: 3.732536404 | X12: 3.935900268 | Y12: 4.138926761 | Z12: 4.342304747 | AA12: 4.545335309 | AB12: 4.748706953 | AC12: 4.95175118 | AD12: 5.15509725 | AE12: 5.358075899 | AF12: 5.561374721 | AG12: 0.203 | AH12: 1.015 | AI12: 2.03
A13: 85184 | B13: Aalborg_VOR-DME_DK | C13: AAL | D13: Aalborg | E13: VOR-DME | F13: 116700 | G13: 57.10369873 | H13: 9.99557972 | I13: 57 | J13: DK | K13: 116700 | L13: 114X | M13: 57.1039 | N13: 9.99281 | O13: 57 | P13: 1.008 | Q13: 0.589 | R13: RNAV | S13: HIGH | T13: EKYT | V13: 3.530554485 | W13: 3.733555061 | X13: 3.936941359 | Y13: 4.13996761 | Z13: 4.343345327 | AA13: 4.546375594 | AB13: 4.749746917 | AC13: 4.952790803 | AD13: 5.155790084 | AE13: 5.359114751 | AF13: 5.562067005 | AG13: 0.203 | AH13: 1.015 | AI13: 2.03
A14: 85186 | B14: Arar_VORTAC_SA | C14: AAR | D14: Arar | E14: VORTAC | F14: 113300 | G14: 30.90800095 | H14: 41.14220047 | I14: 1811 | J14: SA | K14: 113300 | L14: 080X | P14: 2.007 | Q14: 3.355 | R14: BOTH | S14: HIGH | T14: OERR | U14: 4 | V14: 4.549706002 | W14: 4.597912985 | X14: 4.646093195 | Y14: 4.694231249 | Z14: 4.742170915 | AA14: 4.790270444 | AB14: 4.838327225 | AC14: 4.886372648 | AD14: 4.934391026 | AE14: 4.982382315 | AF14: 5.030143759 | AG14: 0.048 | AH14: 0.24 | AI14: 0.48
A15: 85187 | B15: Amritsar_VOR-DME_IN | C15: AAR | D15: Amritsar | E15: VOR-DME | F15: 115500 | G15: 31.70689964 | H15: 74.80079651 | I15: 752 | J15: IN | K15: 115500 | L15: 102X | P15: 2.011 | Q15: 1.28 | R15: BOTH | S15: HIGH | T15: VIAR | V15: 2.076548674 | W15: 2.105684827 | X15: 2.135009524 | Y15: 2.164344266 | Z15: 2.193682204 | AA15: 2.223036916 | AB15: 2.252401643 | AC15: 2.281776376 | AD15: 2.310982401 | AE15: 2.340377086 | AF15: 2.369781745 | AG15: 0.029 | AH15: 0.145 | AI15: 0.29
A16: 85188 | B16: Agartala_VOR-DME_IN | C16: AAT | D16: Agartala | E16: VOR-DME | F16: 116100 | G16: 23.88960075 | H16: 91.23970032 | I16: 47 | J16: IN | K16: 116100 | L16: 108X | P16: 0.011 | Q16: -0.302 | R16: BOTH | S16: HIGH | T16: VEAT | U16: -1 | V16: -0.4896864808 | W16: -0.5218474937 | X16: -0.553840226 | Y16: -0.5858169754 | Z16: -0.6179298841 | AA16: -0.6498746049 | AB16: -0.681803319 | AC16: -0.7138680516 | AD16: -0.7457646899 | AE16: -0.7776452982 | AF16: -0.8096617838 | AG16: 0.032 | AH16: 0.16 | AI16: 0.32
A17: 85189 | B17: Aurangabad_VOR-DME_IN | C17: AAU | D17: Aurangabad | E17: VOR-DME | F17: 116300 | G17: 19.86470032 | H17: 75.39409637 | I17: 1908 | J17: IN | K17: 116300 | L17: 110X | P17: -1.011 | Q17: -0.464 | R17: BOTH | S17: HIGH | T17: VAAU | U17: -1 | V17: -0.1478123088 | W17: -0.1246246363 | X17: -0.1014661816 | Y17: -0.07818652416 | Z17: -0.05508574569 | AA17: -0.0318639796 | AB17: -0.00882069237 | AC17: 0.01434336789 | AD17: 0.03732934825 | AE17: 0.0604358876 | AF17: 0.08336474485 | AG17: 0.023 | AH17: 0.115 | AI17: 0.23
A18: 85202 | B18: Aruba_VOR-DME_AW | C18: ABA | D18: Aruba | E18: VOR-DME | F18: 112500 | G18: 12.50979996 | H18: -69.94069672 | I18: 59 | J18: AW | K18: 112500 | L18: 072X | P18: -4.001 | Q18: -9.37 | R18: BOTH | S18: HIGH | T18: TNCA | U18: -11 | V18: -11.12823439 | W18: -11.24106838 | X18: -11.35406607 | Y18: -11.46685434 | Z18: -11.57988727 | AA18: -11.69266735 | AB18: -11.8056479 | AC18: -11.91845935 | AD18: -12.03142628 | AE18: -12.14422335 | AF18: -12.25717315 | AG18: 0.113 | AH18: 0.565 | AI18: 1.13
A19: 85204 | B19: Nabb_VORTAC_US | C19: ABB | D19: Nabb | E19: VORTAC | F19: 112400 | G19: 38.58879852 | H19: -85.63600159 | I19: 710 | J19: US | K19: 112400 | L19: 071X | P19: 1.001 | Q19: -4.045 | R19: LO | S19: MEDIUM | U19: 0 | V19: -5.036915511 | W19: -5.08832578 | X19: -5.139349771 | Y19: -5.190485778 | Z19: -5.241510048 | AA19: -5.29210125 | AB19: -5.342854471 | AC19: -5.39347277 | AD19: -5.443659918 | AE19: -5.494009927 | AF19: -5.544200167 | AG19: 0.051 | AH19: 0.255 | AI19: 0.51
A20: 85205 | B20: Abbeville_VOR-DME_FR | C20: ABB | D20: Abbeville | E20: VOR-DME | F20: 108450 | G20: 50.13510132 | H20: 1.854689956 | I20: 223 | J20: FR | K20: 108450 | L20: 021Y | P20: -3.007 | Q20: -1.232 | R20: BOTH | S20: HIGH | T20: LFOI | V20: 0.9707864382 | W20: 1.156826402 | X20: 1.342389485 | Y20: 1.527748104 | Z20: 1.713195751 | AA20: 1.898156338 | AB20: 2.082909399 | AC20: 2.267733736 | AD20: 2.452049028 | AE20: 2.636157586 | AF20: 2.820326485 | AG20: 0.185 | AH20: 0.925 | AI20: 1.85
A21: 85206 | B21: Abuja_VOR-DME_NG | C21: ABC | D21: Abuja | E21: VOR-DME | F21: 116300 | G21: 9.037799835 | H21: 7.285099983 | I21: 1240 | J21: NG | K21: 116300 | L21: 110X | Q21: -2.022 | R21: BOTH | S21: MEDIUM | T21: DNAA | U21: 0 | V21: -0.4023054069 | W21: -0.2858373283 | X21: -0.1692617397 | Y21: -0.05292207091 | Z21: 0.06352269206 | AA21: 0.1797296638 | AB21: 0.2960403333 | AC21: 0.412111516 | AD21: 0.5281119137 | AE21: 0.6442144011 | AF21: 0.7600748947 | AG21: 0.116 | AH21: 0.58 | AI21: 1.16
A22: 85207 | B22: Abadan_VOR-DME_IR | C22: ABD | D22: Abadan | E22: VOR-DME | F22: 114500 | G22: 30.38699913 | H22: 48.21760178 | I22: 10 | J22: IR | K22: 114500 | L22: 092X | P22: 3.001 | Q22: 3.069 | R22: BOTH | S22: HIGH | T22: OIAA | U22: 4 | V22: 3.894026202 | W22: 3.935382965 | X22: 3.976717176 | Y22: 4.018041754 | Z22: 4.059330917 | AA22: 4.100597454 | AB22: 4.141854672 | AC22: 4.183076015 | AD22: 4.22427466 | AE22: 4.2654643 | AF22: 4.306617607 | AG22: 0.041 | AH22: 0.205 | AI22: 0.41
A23: 85210 | B23: Abha_VORTAC_SA | C23: ABH | D23: Abha | E23: VORTAC | F23: 112900 | G23: 18.24189949 | H23: 42.6568985 | I23: 6862 | J23: SA | K23: 112900 | L23: 076X | P23: 1.007 | Q23: 2.111 | R23: BOTH | S23: HIGH | T23: OEAB | U23: 2 | V23: 2.839632819 | W23: 2.866349479 | X23: 2.892885128 | Y23: 2.919550946 | Z23: 2.946043984 | AA23: 2.972675221 | AB23: 2.999125774 | AC23: 3.02571442 | AD23: 3.052114057 | AE23: 3.078660098 | AF23: 3.105025784 | AG23: 0.027 | AH23: 0.135 | AI23: 0.27
A24: 85211 | B24: Abilene_VORTAC_US | C24: ABI | D24: Abilene | E24: VORTAC | F24: 113700 | G24: 32.48130035 | H24: -99.8635025 | I24: 1810 | J24: US | K24: 113700 | L24: 084X | P24: 10.012 | Q24: 6.246 | R24: BOTH | S24: HIGH | T24: KDYS | U24: 10 | V24: 4.76362148 | W24: 4.656547392 | X24: 4.549296326 | Y24: 4.441829379 | Z24: 4.334185007 | AA24: 4.226326074 | AB24: 4.118271713 | AC24: 4.010039291 | AD24: 3.901594351 | AE24: 3.792970948 | AF24: 3.684136429 | AG24: 0.108 | AH24: 0.54 | AI24: 1.08
A25: 85212 | B25: Djibouti_Ambouli_TACAN_DJ | C25: ABI | D25: Djibouti/Ambouli | E25: TACAN | F25: 114600 | G25: 11.54950047 | H25: 43.15459824 | I25: 49 | J25: DJ | K25: 114600 | L25: 093X | Q25: 1.265 | R25: BOTH | S25: HIGH | T25: HDAM | V25: 1.940007816 | W25: 1.951971721 | X25: 1.963922197 | Y25: 1.97585385 | Z25: 1.987934325 | AA25: 1.99984452 | AB25: 2.011741371 | AC25: 2.023619368 | AD25: 2.035646034 | AE25: 2.047502864 | AF25: 2.059346434 | AG25: 0.012 | AH25: 0.06 | AI25: 0.12
A26: 85213 | B26: Abakan_VOR-DME_RU | C26: ABK | D26: Abakan | E26: VOR-DME | F26: 113300 | G26: 53.74499893 | H26: 91.38500214 | I26: 830 | J26: RU | K26: 113300 | L26: 080X | P26: 4.007 | Q26: 4.192 | R26: BOTH | S26: HIGH | T26: UNAA | U26: 4 | V26: 3.505985072 | W26: 3.387779505 | X26: 3.268878087 | Y26: 3.149296979 | Z26: 3.029049676 | AA26: 2.908094096 | AB26: 2.786444345 | AC26: 2.664111759 | AD26: 2.541058266 | AE26: 2.417295839 | AF26: 2.292833586 | AG26: 0.121 | AH26: 0.605 | AI26: 1.21
A27: 85217 | B27: Albuquerque_VORTAC_US | C27: ABQ | D27: Albuquerque | E27: VORTAC | F27: 113200 | G27: 35.04380035 | H27: -106.8160019 | I27: 5743 | J27: US | K27: 113200 | L27: 079X | P27: 13.001 | Q27: 9.551 | R27: BOTH | S27: HIGH | U27: 13 | V27: 8.341573324 | W27: 8.238882341 | X27: 8.135686001 | Y27: 8.032230625 | Z27: 7.928764033 | AA27: 7.824790063 | AB27: 7.720556175 | AC27: 7.616311319 | AD27: 7.511557118 | AE27: 7.406542164 | AF27: 7.301516536 | AG27: 0.104 | AH27: 0.52 | AI27: 1.04
A28: 85218 | B28: Aberdeen_VOR-DME_US | C28: ABR | D28: Aberdeen | E28: VOR-DME | F28: 113000 | G28: 45.41740036 | H28: -98.36869812 | I28: 1301 | J28: US | K28: 113000 | L28: 077X | P28: 7.001 | Q28: 5.316 | R28: BOTH | S28: HIGH | U28: 7 | V28: 4.05735334 | W28: 3.983707791 | X28: 3.910279753 | Y28: 3.837346705 | Z28: 3.764306204 | AA28: 3.691437892 | AB28: 3.6187832 | AC28: 3.546300506 | AD28: 3.474029501 | AE28: 3.401930294 | AF28: 3.330040854 | AG28: 0.073 | AH28: 0.365 | AI28: 0.73
A29: 85220 | B29: Abu_Argub_VOR-DME_LY | C29: ABU | D29: Abu Argub | E29: VOR-DME | F29: 115100 | G29: 32.46279907 | H29: 13.16940022 | I29: 470 | J29: LY | K29: 115100 | L29: 098X | Q29: 1.291 | R29: BOTH | S29: HIGH | T29: HLLT | U29: 2 | V29: 2.980584489 | W29: 3.090037848 | X29: 3.199520773 | Y29: 3.30886287 | Z29: 3.418053364 | AA29: 3.527091776 | AB29: 3.635775635 | AC29: 3.744508285 | AD29: 3.853087462 | AE29: 3.961512712 | AF29: 4.069770119 | AG29: 0.109 | AH29: 0.545 | AI29: 1.09
A30: 85222 | B30: Alexander_Bay_VOR-DME_ZA | C30: ABV | D30: Alexander Bay | E30: VOR-DME | F30: 112100 | G30: -28.57069969 | H30: 16.53389931 | I30: 98 | J30: ZA | K30: 112100 | L30: 058X | P30: -18.007 | Q30: -19.183 | R30: BOTH | S30: HIGH | T30: FAAB | U30: -19 | V30: -19.10486126 | W30: -19.13854945 | X30: -19.17238006 | Y30: -19.2065093 | Z30: -19.24026815 | AA30: -19.27381236 | AB30: -19.30749995 | AC30: -19.34097256 | AD30: -19.37458903 | AE30: -19.40850083 | AF30: -19.44204594 | AG30: 0.034 | AH30: 0.17 | AI30: 0.34
A31: 85227 | B31: Acapulco_VOR-DME_MX | C31: ACA | D31: Acapulco | E31: VOR-DME | F31: 115900 | G31: 16.75849915 | H31: -99.7539978 | I31: 13 | J31: MX | K31: 115900 | L31: 106X | P31: 8.007 | Q31: 6.192 | R31: BOTH | S31: HIGH | T31: MMAA | U31: 5 | V31: 4.69090089 | W31: 4.568673727 | X31: 4.446168758 | Y31: 4.323211958 | Z31: 4.199563616 | AA31: 4.075665684 | AB31: 3.951087447 | AC31: 3.826227913 | AD31: 3.700906779 | AE31: 3.574886446 | AF31: 3.448608913 | AG31: 0.124 | AH31: 0.62 | AI31: 1.24
A32: 85228 | B32: Accra_VOR-DME_GH | C32: ACC | D32: Accra | E32: VOR-DME | F32: 113100 | G32: 5.634109974 | H32: -0.155343994 | I32: 205 | J32: GH | K32: 113100 | L32: 078X | P32: -7.009 | Q32: -4.426 | R32: BOTH | S32: HIGH | T32: DGAA | U32: -4 | V32: -2.917755742 | W32: -2.776191796 | X32: -2.634483992 | Y32: -2.492993248 | Z32: -2.351370529 | AA32: -2.209792693 | AB32: -2.068438373 | AC32: -1.92695586 | AD32: -1.785706858 | AE32: -1.644320734 | AF32: -1.502993709 | AG32: 0.141 | AH32: 0.705 | AI32: 1.41
A33: 85231 | B33: Anton_Chico_VORTAC_US | C33: ACH | D33: Anton Chico | E33: VORTAC | F33: 117800 | G33: 35.11169815 | H33: -105.0400009 | I33: 5450 | J33: US | K33: 117800 | L33: 125X | P33: 12.001 | Q33: 9.091 | R33: BOTH | S33: HIGH | T33: NM76 | U33: 12 | V33: 7.551527998 | W33: 7.447896956 | X33: 7.344038874 | Y33: 7.23995369 | Z33: 7.135391354 | AA33: 7.030851475 | AB33: 6.926084344 | AC33: 6.821089921 | AD33: 6.715868173 | AE33: 6.610419073 | AF33: 6.504742601 | AG33: 0.105 | AH33: 0.525 | AI33: 1.05
A34: 85232 | B34: Aracaju_VOR-DME_BR | C34: ACJ | D34: Aracaju | E34: VOR-DME | F34: 112000 | G34: -10.98400021 | H34: -37.07139969 | I34: 26 | J34: BR | K34: 112000 | L34: 057X | P34: -22.007 | Q34: -22.589 | R34: BOTH | S34: HIGH | T34: SBAR | V34: -22.81155214 | W34: -22.75488628 | X34: -22.69763504 | Y34: -22.63974974 | Z34: -22.58162524 | AA34: -22.52289646 | AB34: -22.4637694 | AC34: -22.40402497 | AD34: -22.34386971 | AE34: -22.28319057 | AF34: -22.22161125 | AG34: 0.059 | AH34: 0.295 | AI34: 0.59
A35: 85234 | B35: Nantucket_VOR-DME_US | C35: ACK | D35: Nantucket | E35: VOR-DME | F35: 116200 | G35: 41.28179932 | H35: -70.02670288 | I35: 100 | J35: US | K35: 116200 | L35: 109X | P35: -15.001 | Q35: -15.298 | R35: BOTH | S35: HIGH | T35: KACK | U35: -15 | V35: -14.50222893 | W35: -14.42998642 | X35: -14.35837344 | Y35: -14.28712341 | Z35: -14.2161675 | AA35: -14.14563628 | AB35: -14.07546046 | AC35: -14.00557274 | AD35: -13.93610083 | AE35: -13.86697696 | AF35: -13.79813532 | AG35: 0.07 | AH35: 0.35 | AI35: 0.7
A36: 85235 | B36: Akron_VOR-DME_US | C36: ACO | D36: Akron | E36: VOR-DME | F36: 114400 | G36: 41.10789871 | H36: -81.20149994 | I36: 1200 | J36: US | K36: 114400 | L36: 091X | P36: -4.004 | Q36: -8.159 | R36: LO | S36: MEDIUM | U36: -4 | V36: -8.571240316 | W36: -8.57954958 | X36: -8.587823558 | Y36: -8.596344853 | Z36: -8.604548329 | AA36: -8.612759776 | AB36: -8.620894188 | AC36: -8.628994419 | AD36: -8.637060684 | AE36: -8.645093195 | AF36: -8.653092163 | AG36: 0.008 | AH36: 0.04 | AI36: 0.08
A37: 85238 | B37: Waco_VORTAC_US | C37: ACT | D37: Waco | E37: VORTAC | F37: 115300 | G37: 31.66230011 | H37: -97.26899719 | I37: 510 | J37: US | K37: 115300 | L37: 100X | P37: 9.008 | Q37: 4.574 | R37: BOTH | S37: HIGH | U37: 9 | V37: 3.292211131 | W37: 3.185568821 | X37: 3.078761883 | Y37: 2.971778131 | Z37: 2.864643475 | AA37: 2.757345299 | AB37: 2.649883981 | AC37: 2.542259908 | AD37: 2.434463147 | AE37: 2.326515191 | AF37: 2.218405671 | AG37: 0.107 | AH37: 0.535 | AI37: 1.07
A38: 85239 | B38: Arcata_VOR-DME_US | C38: ACV | D38: Arcata | E38: VOR-DME | F38: 110200 | G38: 40.98139954 | H38: -124.1080017 | I38: 193 | J38: US | K38: 110200 | L38: 039X | P38: 17.001 | Q38: 15.535 | R38: LO | S38: LOW | T38: KACV | U38: 17 | V38: 14.27440148 | W38: 14.18923937 | X38: 14.10378899 | Y38: 14.01804924 | Z38: 13.93201904 | AA38: 13.84569731 | AB38: 13.75902069 | AC38: 13.67185808 | AD38: 13.58465494 | AE38: 13.4971559 | AF38: 13.40935985 | AG38: 0.087 | AH38: 0.435 | AI38: 0.87
A39: 85240 | B39: Atlantic_City_VORTAC_US | C39: ACY | D39: Atlantic City | E39: VORTAC | F39: 108600 | G39: 39.45589828 | H39: -74.57630157 | I39: 70 | J39: US | K39: 108600 | L39: 023X | P39: -10.002 | Q39: -12.268 | R39: LO | S39: MEDIUM | T39: KACY | U39: -10 | V39: -12.17595402 | W39: -12.15038316 | X39: -12.12498097 | Y39: -12.09963387 | Z39: -12.07439768 | AA39: -12.0493273 | AB39: -12.02431057 | AC39: -11.99940263 | AD39: -11.97465767 | AE39: -11.94996498 | AF39: -11.92543345 | AG39: 0.025 | AH39: 0.125 | AI39: 0.25
A40: 85242 | B40: Adelaide_VOR-DME_AU | C40: AD | D40: Adelaide | E40: VOR-DME | F40: 116400 | G40: -34.94689941 | H40: 138.5240021 | I40: 32 | J40: AU | K40: 116400 | L40: 111X | P40: 7.007 | Q40: 8.07 | R40: BOTH | S40: HIGH | T40: YPAD | U40: -4 | V40: 8.000453214 | W40: 8.014076867 | X40: 8.027710388 | Y40: 8.041353786 | Z40: 8.055286091 | AA40: 8.068949421 | AB40: 8.082622657 | AC40: 8.096340612 | AD40: 8.110278507 | AE40: 8.123981664 | AF40: 8.137694763 | AG40: 0.014 | AH40: 0.07 | AI40: 0.14
A41: 85243 | B41: Abidjan_VOR-DME_CI | C41: AD | D41: Abidjan | E41: VOR-DME | F41: 114300 | G41: 5.282810211 | H41: -3.917000055 | I41: 30 | J41: CI | K41: 114300 | L41: 090X | P41: -7.003 | Q41: -6.003 | R41: BOTH | S41: HIGH | T41: DIAP | V41: -4.138557347 | W41: -3.98428532 | X41: -3.830035956 | Y41: -3.675837005 | Z41: -3.521677671 | AA41: -3.36754917 | AB41: -3.213476217 | AC41: -3.059439527 | AD41: -2.905461787 | AE41: -2.751712626 | AF41: -2.597838891 | AG41: 0.154 | AH41: 0.77 | AI41: 1.54
A42: 85256 | B42: Aldeia_VOR-DME_BR | C42: ADA | D42: Aldeia | E42: VOR-DME | F42: 112100 | G42: -22.81279945 | H42: -42.09529877 | I42: 61 | J42: BR | K42: 112100 | L42: 058X | Q42: -22.048 | R42: BOTH | S42: HIGH | T42: SBES | U42: 3.2 | V42: -23.21343999 | W42: -23.26277298 | X42: -23.31257418 | Y42: -23.3626752 | Z42: -23.41370552 | AA42: -23.4650547 | AB42: -23.51749722 | AC42: -23.57014253 | AD42: -23.62377193 | AE42: -23.67776146 | AF42: -23.73276437 | AG42: 0.052 | AH42: 0.26 | AI42: 0.52
A43: 85257 | B43: Adana_VOR-DME_TR | C43: ADA | D43: Adana | E43: VOR-DME | F43: 112700 | G43: 36.94060135 | H43: 35.21030045 | I43: 49 | J43: TR | K43: 112700 | L43: 074X | P43: 3.007 | Q43: 4.175 | R43: BOTH | S43: HIGH | T43: LTAF | V43: 5.565417212 | W43: 5.637578099 | X43: 5.709920131 | Y43: 5.782232643 | Z43: 5.854536973 | AA43: 5.926790068 | AB43: 5.998802976 | AC43: 6.070995622 | AD43: 6.143157693 | AE43: 6.21528898 | AF43: 6.287179533 | AG43: 0.072 | AH43: 0.36 | AI43: 0.72
A44: 85263 | B44: Ada_VOR-DME_US | C44: ADH | D44: Ada | E44: VOR-DME | F44: 117800 | G44: 34.80260086 | H44: -96.67009735 | I44: 987 | J44: US | K44: 117800 | L44: 125X | P44: 6.001 | Q44: 4.33 | R44: LO | S44: LOW | V44: 2.929486193 | W44: 2.829247567 | X44: 2.728952851 | Y44: 2.628577888 | Z44: 2.528135798 | AA44: 2.427627132 | AB44: 2.327052442 | AC44: 2.226677206 | AD44: 2.12597179 | AE44: 2.025202023 | AF44: 1.924368464 | AG44: 0.101 | AH44: 0.505 | AI44: 1.01
A45: 85265 | B45: Sochi_VOR-DME_RU | C45: ADL | D45: Sochi | E45: VOR-DME | F45: 112700 | G45: 43.40330124 | H45: 39.94829941 | I45: 36 | J45: RU | K45: 112700 | L45: 074X | P45: 5.006 | Q45: 5.527 | R45: BOTH | S45: HIGH | T45: URSS | U45: 7 | V45: 7.197202547 | W45: 7.273622682 | X45: 7.349818917 | Y45: 7.426311289 | Z45: 7.50279196 | AA45: 7.57932466 | AB45: 7.65584447 | AC45: 7.732139115 | AD45: 7.808730167 | AE45: 7.885306541 | AF45: 7.961901121 | AG45: 0.076 | AH45: 0.38 | AI45: 0.76
A46: 85266 | B46: Ardmore_VORTAC_US | C46: ADM | D46: Ardmore | E46: VORTAC | F46: 116700 | G46: 34.21160126 | H46: -97.16829681 | I46: 925 | J46: US | K46: 116700 | L46: 114X | P46: 6.003 | Q46: 4.523 | R46: BOTH | S46: HIGH | U46: 6 | V46: 3.237741667 | W46: 3.135834712 | X46: 3.033567502 | Y46: 2.93147079 | Z46: 2.829267375 | AA46: 2.726731073 | AB46: 2.624353475 | AC46: 2.521619767 | AD46: 2.419057654 | AE46: 2.31639371 | AF46: 2.213396648 | AG46: 0.102 | AH46: 0.51 | AI46: 1.02
A47: 85267 | B47: Agadir_VOR-DME_MA | C47: ADM | D47: Agadir | E47: VOR-DME | F47: 117200 | G47: 30.32189941 | H47: -9.383330345 | I47: 295 | J47: MA | K47: 117200 | L47: 119X | P47: -5.007 | Q47: -3.548 | R47: BOTH | S47: HIGH | T47: GMAD | V47: -1.94135964 | W47: -1.785824838 | X47: -1.630616625 | Y47: -1.475741047 | Z47: -1.321189209 | AA47: -1.166781581 | AB47: -1.012894886 | AC47: -0.8593369693 | AD47: -0.7061127425 | AE47: -0.5532250924 | AF47: -0.4006710206 | AG47: 0.154 | AH47: 0.77 | AI47: 1.54
A48: 85268 | B48: Roberto_VOR-DME_MX | C48: ADN | D48: Roberto | E48: VOR-DME | F48: 115400 | G48: 25.86540031 | H48: -100.2389984 | I48: 1476 | J48: MX | K48: 115400 | L48: 101X | P48: 7.004 | Q48: 6.258 | R48: BOTH | S48: HIGH | T48: MMAN | U48: 5 | V48: 4.779925711 | W48: 4.664568685 | X48: 4.548881991 | Y48: 4.43305208 | Z48: 4.316651014 | AA48: 4.199900724 | AB48: 4.082800612 | AC48: 3.965365637 | AD48: 3.847563671 | AE48: 3.729635241 | AF48: 3.611129918 | AG48: 0.117 | AH48: 0.585 | AI48: 1.17
A49: 85269 | B49: Aberdeen_VOR-DME_GB | C49: ADN | D49: Aberdeen | E49: VOR-DME | F49: 114300 | G49: 57.31060028 | H49: -2.26722002 | I49: 600 | J49: GB | K49: 114300 | L49: 090X | P49: -5.001 | Q49: -4.148 | R49: BOTH | S49: HIGH | T49: EGPD | V49: -1.309488503 | W49: -1.083354072 | X49: -0.8574205581 | Y49: -0.6317025849 | Z49: -0.4062068396 | AA49: -0.1805964103 | AB49: 0.04443615225 | AC49: 0.269226659 | AD49: 0.4937685915 | AE49: 0.7180597858 | AF49: 0.9424301759 | AG49: 0.225 | AH49: 1.125 | AI49: 2.25
A50: 85271 | B50: Adrar_VOR-DME_DZ | C50: ADR | D50: Adrar | E50: VOR-DME | F50: 112600 | G50: 27.81699944 | H50: -0.205867007 | I50: 920 | J50: DZ | K50: 112600 | L50: 073X | Q50: -1.172 | R50: BOTH | S50: LOW | T50: DAUA | U50: -1 | V50: 0.3508212422 | W50: 0.4790202724 | X50: 0.6071828184 | Y50: 0.7349499053 | Z50: 0.8626787415 | AA50: 0.9900109999 | AB50: 1.117306759 | AC50: 1.244201784 | AD50: 1.371055139 | AE50: 1.497509827 | AF50: 1.623921193 | AG50: 0.127 | AH50: 0.635 | AI50: 1.27
A51: 85273 | B51: Addis_Abeba_VOR-DME_ET | C51: ADS | D51: Addis Abeba | E51: VOR-DME | F51: 112900 | G51: 8.975040436 | H51: 38.79940033 | I51: 7656 | J51: ET | K51: 112900 | L51: 076X | Q51: 1.393 | R51: BOTH | S51: HIGH | T51: HAAB | U51: 2 | V51: 2.308904788 | W51: 2.325139918 | X51: 2.341359193 | Y51: 2.357569235 | Z51: 2.373917174 | AA51: 2.390088969 | AB51: 2.40625172 | AC51: 2.422392032 | AD51: 2.438516613 | AE51: 2.454632335 | AF51: 2.470725555 | AG51: 0.016 | AH51: 0.08 | AI51: 0.16
A52: 85276 | B52: Andrews_VORTAC_US | C52: ADW | D52: Andrews | E52: VORTAC | F52: 113100 | G52: 38.80720139 | H52: -76.86620331 | I52: 260 | J52: US | K52: 113100 | L52: 078X | P52: -10.005 | Q52: -10.463 | R52: LO | S52: MEDIUM | T52: KADW | U52: -10 | V52: -10.83223012 | W52: -10.82776834 | X52: -10.82306149 | Y52: -10.81858562 | Z52: -10.81417762 | AA52: -10.80952578 | AB52: -10.80510341 | AC52: -10.80074824 | AD52: -10.79615044 | AE52: -10.79178062 | AF52: -10.78747733 | AG52: 0.004 | AH52: 0.02 | AI52: 0.04
A53: 85278 | B53: Abeche_VOR_TD | C53: AE | D53: Abeche | E53: VOR | F53: 114500 | G53: 13.8451004 | H53: 20.84499931 | I53: 1804 | J53: TD | Q53: 1.03 | R53: BOTH | S53: HIGH | T53: FTTC | U53: 2 | V53: 2.630428237 | W53: 2.722928427 | X53: 2.815371488 | Y53: 2.907772594 | Z53: 3.000123627 | AA53: 3.092415437 | AB53: 3.18466475 | AC53: 3.276853454 | AD53: 3.368999306 | AE53: 3.461083171 | AF53: 3.553123833 | AG53: 0.092 | AH53: 0.46 | AI53: 0.92
A54: 85282 | B54: Albert_Lea_VOR-DME_US | C54: AEL | D54: Albert Lea | E54: VOR-DME | F54: 109800 | G54: 43.68180084 | H54: -93.3707962 | I54: 1265 | J54: US | K54: 109800 | L54: 035X | P54: 5.001 | Q54: 1.315 | R54: TERMINAL | S54: LOW | U54: 1 | V54: 0.3013879307 | W54: 0.2388687604 | X54: 0.1768517178 | Y54: 0.1147151366 | Z54: 0.05276881942 | AA54: -0.008678032391 | AB54: -0.07024647817 | AC54: -0.1316261265 | AD54: -0.1925102811 | AE54: -0.2535167678 | AF54: -0.3140297564 | AG54: 0.062 | AH54: 0.31 | AI54: 0.62
A55: 85284 | B55: Alexandria_VORTAC_US | C55: AEX | D55: Alexandria | E55: VORTAC | F55: 116100 | G55: 31.25670052 | H55: -92.50099945 | I55: 80 | J55: US | K55: 116100 | L55: 108X | P55: 3.009 | Q55: 2.012 | R55: BOTH | S55: HIGH | U55: 3 | V55: 0.3819033617 | W55: 0.280732589 | X55: 0.1794848893 | Y55: 0.07816080795 | Z55: -0.02323920524 | AA55: -0.1244726682 | AB55: -0.2260229377 | AC55: -0.3276473827 | AD55: -0.4293454443 | AE55: -0.530876303 | AF55: -0.6327202613 | AG55: 0.101 | AH55: 0.505 | AI55: 1.01
A56: 85289 | B56: Affligem_VOR-DME_BE | C56: AFI | D56: Affligem | E56: VOR-DME | F56: 114900 | G56: 50.90779877 | H56: 4.13888979 | I56: 284 | J56: BE | K56: 114900 | L56: 096X | P56: -2.01 | Q56: -0.416 | R56: TERMINAL | S56: HIGH | T56: EBBR | U56: 1 | V56: 1.639056156 | W56: 1.823919866 | X56: 2.008333182 | Y56: 2.192602072 | Z56: 2.376701666 | AA56: 2.560940894 | AB56: 2.744712222 | AC56: 2.9283137 | AD56: 3.112046373 | AE56: 3.295298306 | AF56: 3.478387389 | AG56: 0.184 | AH56: 0.92 | AI56: 1.84
A57: 85291 | B57: Manas_TACAN_KG | C57: AFM | D57: Manas | E57: TACAN | F57: 134000 | G57: 43.06219864 | H57: 74.47070313 | I57: 2091 | J57: KG | K57: 134000 | L57: 067X | Q57: 5.001 | R57: BOTH | S57: LOW | T57: UAFM | V57: 5.529395244 | W57: 5.554725375 | X57: 5.580106419 | Y57: 5.605538519 | Z57: 5.631021819 | AA57: 5.656556465 | AB57: 5.682142601 | AC57: 5.707780373 | AD57: 5.733469927 | AE57: 5.759211411 | AF57: 5.78500497 | AG57: 0.026 | AH57: 0.13 | AI57: 0.26
A58: 85302 | B58: Allegheny_VOR-DME_US | C58: AGC | D58: Allegheny | E58: VOR-DME | F58: 110000 | G58: 40.27870178 | H58: -80.04090118 | I58: 1290 | J58: US | K58: 110000 | L58: 037X | P58: -9.004 | Q58: -8.553 | R58: LO | S58: MEDIUM | U58: -9 | V58: -9.183275135 | W58: -9.189792189 | X58: -9.196237817 | Y58: -9.202701638 | Z58: -9.20909448 | AA58: -9.215505718 | AB58: -9.221846419 | AC58: -9.228205714 | AD58: -9.234494907 | AE58: -9.240530745 | AF58: -9.24676961 | AG58: 0.006 | AH58: 0.03 | AI58: 0.06
A59: 85304 | B59: Agra_VOR-DME_IN | C59: AGG | D59: Agra | E59: VOR-DME | F59: 112000 | G59: 27.15069962 | H59: 77.94750214 | I59: 551 | J59: IN | K59: 112000 | L59: 057X | P59: 0.011 | Q59: 0.219 | R59: BOTH | S59: MEDIUM | T59: VIAG | U59: 0 | V59: 0.8917445984 | W59: 0.9081882183 | X59: 0.9246285885 | Y59: 0.9410630199 | Z59: 0.9574968389 | AA59: 0.973927403 | AB59: 0.9903547106 | AC59: 1.006775886 | AD59: 1.023033109 | AE59: 1.039450606 | AF59: 1.055864841 | AG59: 0.016 | AH59: 0.08 | AI59: 0.16
A60: 85306 | B60: Anchialos_VOR-DME_GR | C60: AGH | D60: Anchialos | E60: VOR-DME | F60: 110400 | G60: 39.21620178 | H60: 22.79190063 | I60: 65 | J60: GR | K60: 110400 | L60: 041X | P60: 0.011 | Q60: 3.164 | R60: BOTH | S60: MEDIUM | T60: LGBL | U60: 4 | V60: 4.82972008 | W60: 4.93857527 | X60: 5.047347655 | Y60: 5.156056353 | Z60: 5.264442083 | AA60: 5.372962466 | AB60: 5.48139731 | AC60: 5.589548363 | AD60: 5.697810643 | AE60: 5.805985372 | AF60: 5.914071885 | AG60: 0.108 | AH60: 0.54 | AI60: 1.08
A61: 85308 | B61: Agen_VOR-DME_FR | C61: AGN | D61: Agen | E61: VOR-DME | F61: 114800 | G61: 43.88800049 | H61: 0.872861028 | I61: 868 | J61: FR | K61: 114800 | L61: 095X | P61: -2.007 | Q61: -1.062 | R61: BOTH | S61: HIGH | U61: 1 | V61: 0.9899748652 | W61: 1.154357175 | X61: 1.318488997 | Y61: 1.482133177 | Z61: 1.645758591 | AA61: 1.80912724 | AB61: 1.97223708 | AC61: 2.135095051 | AD61: 2.297441688 | AE61: 2.45976395 | AF61: 2.621819452 | AG61: 0.163 | AH61: 0.815 | AI61: 1.63
A62: 85310 | B62: Aguascalientes_VOR-DME_MX | C62: AGU | D62: Aguascalientes | E62: VOR-DME | F62: 113600 | G62: 21.71139908 | H62: -102.3190002 | I62: 6112 | J62: MX | K62: 113600 | L62: 083X | P62: 8.001 | Q62: 7.097 | R62: BOTH | S62: HIGH | T62: MMAS | U62: 6 | V62: 5.57954993 | W62: 5.460908216 | X62: 5.341803368 | Y62: 5.22225462 | Z62: 5.102047104 | AA62: 4.981605807 | AB62: 4.860734531 | AC62: 4.739394983 | AD62: 4.617604385 | AE62: 4.495145715 | AF62: 4.37246487 | AG62: 0.121 | AH62: 0.605 | AI62: 1.21
A63: 85312 | B63: Aggeneys_VOR-DME_ZA | C63: AGV | D63: Aggeneys | E63: VOR-DME | F63: 116700 | G63: -29.48110008 | H63: 18.5625 | I63: 3356 | J63: ZA | K63: 116700 | L63: 114X | Q63: -20.1 | R63: BOTH | S63: HIGH | U63: -20 | V63: -20.65035204 | W63: -20.73242464 | X63: -20.81477254 | Y63: -20.89620466 | Z63: -20.97810146 | AA63: -21.05927614 | AB63: -21.14003654 | AC63: -21.22126185 | AD63: -21.30176971 | AE63: -21.38255032 | AF63: -21.46242295 | AG63: 0.081 | AH63: 0.405 | AI63: 0.81
A64: 85313 | B64: Acarigua_VOR-DME_VE | C64: AGV | D64: Acarigua | E64: VOR-DME | F64: 113400 | G64: 9.554750443 | H64: -69.23619843 | I64: 640 | J64: VE | K64: 113400 | L64: 081X | P64: -6.007 | Q64: -9.393 | R64: BOTH | S64: HIGH | T64: SVAC | V64: -11.30131164 | W64: -11.42668482 | X64: -11.551895 | Y64: -11.67739591 | Z64: -11.80289544 | AA64: -11.92843455 | AB64: -12.05385013 | AC64: -12.17946535 | AD64: -12.30511659 | AE64: -12.4306423 | AF64: -12.55636251 | AG64: 0.126 | AH64: 0.63 | AI64: 1.26
A65: 85315 | B65: Ayaguz_VOR_KZ | C65: AGZ | D65: Ayaguz | E65: VOR | F65: 113600 | G65: 47.93109894 | H65: 80.4496994 | J65: KZ | Q65: 5.555 | R65: BOTH | S65: HIGH | U65: 6 | V65: 6.107690352 | W65: 6.090738043 | X65: 6.073964016 | Y65: 6.057156081 | Z65: 6.040013605 | AA65: 6.023049977 | AB65: 6.006051304 | AC65: 5.988959858 | AD65: 5.97155903 | AE65: 5.954366388 | AF65: 5.937079967 | AG65: 0.017 | AH65: 0.085 | AI65: 0.17
A66: 85319 | B66: Amedee_VOR-DME_US | C66: AHC | D66: Amedee | E66: VOR-DME | F66: 109000 | G66: 40.26789856 | H66: -120.1520004 | I66: 4028 | J66: US | K66: 109000 | L66: 027X | P66: 17.001 | Q66: 15.017 | R66: TERMINAL | S66: LOW | U66: 17 | V66: 13.44215939 | W66: 13.35434176 | X66: 13.26593167 | Y66: 13.17755564 | Z66: 13.0886442 | AA66: 12.99970582 | AB66: 12.91022922 | AC66: 12.82072484 | AD66: 12.73062139 | AE66: 12.64054768 | AF66: 12.54993012 | AG66: 0.089 | AH66: 0.445 | AI66: 0.89
A67: 85321 | B67: Athens_VORTAC_US | C67: AHN | D67: Athens | E67: VORTAC | F67: 109600 | G67: 33.94760132 | H67: -83.32479858 | I67: 790 | J67: US | K67: 109600 | L67: 033X | P67: 0.001 | Q67: -4.57 | R67: BOTH | S67: MEDIUM | T67: KAHN | U67: 0 | V67: -6.022111224 | W67: -6.085417797 | X67: -6.148871443 | Y67: -6.211972965 | Z67: -6.27497222 | AA67: -6.337869305 | AB67: -6.400885029 | AC67: -6.463577585 | AD67: -6.526168264 | AE67: -6.588657166 | AF67: -6.65129206 | AG67: 0.063 | AH67: 0.315 | AI67: 0.63
A68: 85322 | B68: Alghero_TACAN_IT | C68: AHO | D68: Alghero | E68: TACAN | F68: 109300 | G68: 40.63610077 | H68: 8.289440155 | I68: 88 | J68: IT | K68: 109300 | L68: 030X | Q68: 0.54 | R68: BOTH | S68: HIGH | T68: LIEA | V68: 2.670895912 | W68: 2.809475319 | X68: 2.947646422 | Y68: 3.085621138 | Z68: 3.223421938 | AA68: 3.361260401 | AB68: 3.498686379 | AC68: 3.635909007 | AD68: 3.773178858 | AE68: 3.910033239 | AF68: 4.046694996 | AG68: 0.138 | AH68: 0.69 | AI68: 1.38
